Workbook

Sheet Historical scenario - input
B1: Unit cost - historical | C1: Calibration period: Calendar Year 2016 to 2019
B2: Replacement lives - calibrated | C2: Reference to 2020 refers to calendar year 2020
C3: All expenditure values are in $2020-21 | D3: Unit cost | E3: Replacement life | G3: Method | H3: Volume | CV3: Replacement Cost (NOT depreciated)
H4: Installation date | CV4: Installation date
A5: ID | B5: Asset group | C5: Asset category | D5: $ ('000) | E5: μ | F5: σ | G5: # | H5: 2019 | I5: 2018 | J5: 2017 | K5: 2016 | L5: 2015 | M5: 2014 | N5: 2013 | O5: 2012 | P5: 2011 | Q5: 2010 | R5: 2009 | S5: 2008 | T5: 2007 | U5: 2006 | V5: 2005 | W5: 2004 | X5: 2003 | Y5: 2002 | Z5: 2001 | AA5: 2000 | AB5: 1999 | AC5: 1998 | AD5: 1997 | AE5: 1996 | AF5: 1995 | AG5: 1994 | AH5: 1993 | AI5: 1992 | AJ5: 1991 | AK5: 1990 | AL5: 1989 | AM5: 1988 | AN5: 1987 | AO5: 1986 | AP5: 1985 | AQ5: 1984 | AR5: 1983 | AS5: 1982 | AT5: 1981 | AU5: 1980 | AV5: 1979 | AW5: 1978 | AX5: 1977 | AY5: 1976 | AZ5: 1975 | BA5: 1974 | BB5: 1973 | BC5: 1972 | BD5: 1971 | BE5: 1970 | BF5: 1969 | BG5: 1968 | BH5: 1967 | BI5: 1966 | BJ5: 1965 | BK5: 1964 | BL5: 1963 | BM5: 1962 | BN5: 1961 | BO5: 1960 | BP5: 1959 | BQ5: 1958 | BR5: 1957 | BS5: 1956 | BT5: 1955 | BU5: 1954 | BV5: 1953 | BW5: 1952 | BX5: 1951 | BY5: 1950 | BZ5: 1949 | CA5: 1948 | CB5: 1947 | CC5: 1946 | CD5: 1945 | CE5: 1944 | CF5: 1943 | CG5: 1942 | CH5: 1941 | CI5: 1940 | CJ5: 1939 | CK5: 1938 | CL5: 1937 | CM5: 1936 | CN5: 1935 | CO5: 1934 | CP5: 1933 | CQ5: 1932 | CR5: 1931 | CS5: 1930 | CT5: 1929 | CV5: 2019 | CW5: 2018 | CX5: 2017 | CY5: 2016 | CZ5: 2015 | DA5: 2014 | DB5: 2013 | DC5: 2012 | DD5: 2011 | DE5: 2010 | DF5: 2009 | DG5: 2008 | DH5: 2007 | DI5: 2006 | DJ5: 2005 | DK5: 2004 | DL5: 2003 | DM5: 2002 | DN5: 2001 | DO5: 2000 | DP5: 1999 | DQ5: 1998 | DR5: 1997 | DS5: 1996 | DT5: 1995 | DU5: 1994 | DV5: 1993 | DW5: 1992 | DX5: 1991 | DY5: 1990 | DZ5: 1989 | EA5: 1988 | EB5: 1987 | EC5: 1986 | ED5: 1985 | EE5: 1984 | EF5: 1983 | EG5: 1982 | EH5: 1981 | EI5: 1980 | EJ5: 1979 | EK5: 1978 | EL5: 1977 | EM5: 1976 | EN5: 1975 | EO5: 1974 | EP5: 1973 | EQ5: 1972 | ER5: 1971 | ES5: 1970 | ET5: 1969 | EU5: 1968 | EV5: 1967 | EW5: 1966 | EX5: 1965 | EY5: 1964 | EZ5: 1963 | FA5: 1962 | FB5: 1961 | FC5: 1960 | FD5: 1959 | FE5: 1958 | FF5: 1957 | FG5: 1956 | FH5: 1955 | FI5: 1954 | FJ5: 1953 | FK5: 1952 | FL5: 1951 | FM5: 1950 | FN5: 1949 | FO5: 1948 | FP5: 1947 | FQ5: 1946 | FR5: 1945 | FS5: 1944 | FT5: 1943 | FU5: 1942 | FV5: 1941 | FW5: 1940 | FX5: 1939 | FY5: 1938 | FZ5: 1937 | GA5: 1936 | GB5: 1935 | GC5: 1934 | GD5: 1933 | GE5: 1932 | GF5: 1931 | GG5: 1930 | GH5: 1929
A6: 1 | B6: OVERHEAD CONDUCTORS | C6: ˂ = 1 kv | D6: 110.3347947 | E6: 107.8237616 | F6: 10.38382211 | G6: 2 | H6: 9.2 | I6: 5.5 | J6: 9.5 | K6: 11.4 | L6: 12 | M6: 14.4 | N6: 25.4 | O6: 11 | P6: 12 | Q6: 12.2 | R6: 14.9 | S6: 13.2 | T6: 6.6 | U6: 8.3 | V6: 13 | W6: 7.3 | X6: 12.7 | Y6: 15.4 | Z6: 9 | AA6: 9.2 | AB6: 9.5 | AC6: 6.9 | AD6: 3 | AE6: 6.4 | AF6: 13.5 | AG6: 9 | AH6: 16.6 | AI6: 14.4 | AJ6: 6.9 | AK6: 16.3 | AL6: 28.5 | AM6: 45.9 | AN6: 20.5 | AO6: 38.5 | AP6: 31.5 | AQ6: 23.2 | AR6: 15.8 | AS6: 37.8 | AT6: 31.3 | AU6: 26.7 | AV6: 34.5 | AW6: 30 | AX6: 18.8 | AY6: 19.1 | AZ6: 16.8 | BA6: 15.8 | BB6: 32.9 | BC6: 61 | BD6: 63.3 | BE6: 44 | BF6: 52.4 | BG6: 69.3 | BH6: 62.1 | BI6: 48 | BJ6: 35.9 | BK6: 39.1 | BL6: 31 | BM6: 33.2 | BN6: 35.8 | BO6: 27.1 | BP6: 19.2 | BQ6: 18.2 | BR6: 5.2 | BS6: 8.5 | BT6: 4.8 | BU6: 4.2 | BV6: 6.2 | BW6: 2.1 | BX6: 0.9 | BY6: 4.5 | BZ6: 0.6 | CA6: 1.5 | CB6: 2.4 | CC6: 1.9 | CD6: 1 | CE6: 1 | CF6: 2.5 | CG6: 6.7 | CH6: 9.9 | CI6: 20.3 | CJ6: 16.7 | CK6: 14 | CL6: 11.7 | CM6: 14.8 | CN6: 18.4 | CO6: 17.5 | CP6: 11 | CQ6: 5.8 | CR6: 0.7 | CS6: 0.6 | CT6: 0 | CV6: 1015.080111 | CW6: 606.8413708 | CX6: 1048.180549 | CY6: 1257.816659 | CZ6: 1324.017536 | DA6: 1588.821043 | DB6: 2802.503785 | DC6: 1213.682742 | DD6: 1324.017536 | DE6: 1346.084495 | DF6: 1643.988441 | DG6: 1456.41929 | DH6: 728.2096449 | DI6: 915.7787959 | DJ6: 1434.352331 | DK6: 805.4440012 | DL6: 1401.251892 | DM6: 1699.155838 | DN6: 993.0131521 | DO6: 1015.080111 | DP6: 1048.180549 | DQ6: 761.3100833 | DR6: 331.004384 | DS6: 706.142686 | DT6: 1489.519728 | DU6: 993.0131521 | DV6: 1831.557592 | DW6: 1588.821043 | DX6: 761.3100833 | DY6: 1798.457153 | DZ6: 3144.541648 | EA6: 5064.367076 | EB6: 2261.863291 | EC6: 4247.889595 | ED6: 3475.546033 | EE6: 2559.767237 | EF6: 1743.289756 | EG6: 4170.655239 | EH6: 3453.479074 | EI6: 2945.939018 | EJ6: 3806.550417 | EK6: 3310.04384 | EL6: 2074.29414 | EM6: 2107.394578 | EN6: 1853.624551 | EO6: 1743.289756 | EP6: 3630.014745 | EQ6: 6730.422476 | ER6: 6984.192503 | ES6: 4854.730966 | ET6: 5781.543241 | EU6: 7646.201272 | EV6: 6851.79075 | EW6: 5296.070145 | EX6: 3961.019129 | EY6: 4314.090472 | EZ6: 3420.378635 | FA6: 3663.115183 | FB6: 3949.98565 | FC6: 2990.072936 | FD6: 2118.428058 | FE6: 2008.093263 | FF6: 573.7409324 | FG6: 937.8457548 | FH6: 529.6070145 | FI6: 463.4061377 | FJ6: 684.075727 | FK6: 231.7030688 | FL6: 99.30131521 | FM6: 496.5065761 | FN6: 66.20087681 | FO6: 165.502192 | FP6: 264.8035072 | FQ6: 209.6361099 | FR6: 110.3347947 | FS6: 110.3347947 | FT6: 275.8369867 | FU6: 739.2431244 | FV6: 1092.314467 | FW6: 2239.796332 | FX6: 1842.591071 | FY6: 1544.687126 | FZ6: 1290.917098 | GA6: 1632.954961 | GB6: 2030.160222 | GC6: 1930.858907 | GD6: 1213.682742 | GE6: 639.9418092 | GF6: 77.23435628 | GG6: 66.20087681 | GH6: 0
A7: 1 | B7: OVERHEAD CONDUCTORS | C7: ˃ 11 kv & < = 22 kv ; multiple-phase | D7: 110.3347947 | E7: 107.8237616 | F7: 10.38382211 | G7: 2 | H7: 0 | I7: 0 | J7: 0 | K7: 0 | L7: 0 | M7: 0 | N7: 0 | O7: 0 | P7: 0 | Q7: 0 | R7: 0.1 | S7: 0.1 | T7: 0 | U7: 0.1 | V7: 0.1 | W7: 0.1 | X7: 0.1 | Y7: 0.1 | Z7: 0.1 | AA7: 0.1 | AB7: 0.1 | AC7: 0.1 | AD7: 0 | AE7: 0.1 | AF7: 0 | AG7: 0.1 | AH7: 0.1 | AI7: 0 | AJ7: 0.1 | AK7: 0.1 | AL7: 0.1 | AM7: 0.2 | AN7: 0.1 | AO7: 0.3 | AP7: 0.3 | AQ7: 0.2 | AR7: 0.1 | AS7: 0.2 | AT7: 0.1 | AU7: 0.2 | AV7: 0.2 | AW7: 0.2 | AX7: 0.1 | AY7: 0.1 | AZ7: 0.1 | BA7: 0.1 | BB7: 0.1 | BC7: 0.1 | BD7: 0.1 | BE7: 0.1 | BF7: 0.2 | BG7: 0.2 | BH7: 0.3 | BI7: 0.1 | BJ7: 0.2 | BK7: 0.1 | BL7: 0.1 | BM7: 0.1 | BN7: 0.1 | BO7: 0.1 | BP7: 0.1 | BQ7: 0.1 | BR7: 0 | BS7: 0 | BT7: 0 | BU7: 0 | BV7: 0 | BW7: 0 | BX7: 0 | BY7: 0 | BZ7: 0 | CA7: 0 | CB7: 0 | CC7: 0 | CD7: 0 | CE7: 0 | CF7: 0 | CG7: 0 | CH7: 0 | CI7: 0.1 | CJ7: 0.1 | CK7: 0 | CL7: 0 | CM7: 0.1 | CN7: 0 | CO7: 0.1 | CP7: 0.1 | CQ7: 0 | CR7: 0 | CS7: 0 | CT7: 0 | CV7: 0 | CW7: 0 | CX7: 0 | CY7: 0 | CZ7: 0 | DA7: 0 | DB7: 0 | DC7: 0 | DD7: 0 | DE7: 0 | DF7: 11.03347947 | DG7: 11.03347947 | DH7: 0 | DI7: 11.03347947 | DJ7: 11.03347947 | DK7: 11.03347947 | DL7: 11.03347947 | DM7: 11.03347947 | DN7: 11.03347947 | DO7: 11.03347947 | DP7: 11.03347947 | DQ7: 11.03347947 | DR7: 0 | DS7: 11.03347947 | DT7: 0 | DU7: 11.03347947 | DV7: 11.03347947 | DW7: 0 | DX7: 11.03347947 | DY7: 11.03347947 | DZ7: 11.03347947 | EA7: 22.06695894 | EB7: 11.03347947 | EC7: 33.1004384 | ED7: 33.1004384 | EE7: 22.06695894 | EF7: 11.03347947 | EG7: 22.06695894 | EH7: 11.03347947 | EI7: 22.06695894 | EJ7: 22.06695894 | EK7: 22.06695894 | EL7: 11.03347947 | EM7: 11.03347947 | EN7: 11.03347947 | EO7: 11.03347947 | EP7: 11.03347947 | EQ7: 11.03347947 | ER7: 11.03347947 | ES7: 11.03347947 | ET7: 22.06695894 | EU7: 22.06695894 | EV7: 33.1004384 | EW7: 11.03347947 | EX7: 22.06695894 | EY7: 11.03347947 | EZ7: 11.03347947 | FA7: 11.03347947 | FB7: 11.03347947 | FC7: 11.03347947 | FD7: 11.03347947 | FE7: 11.03347947 | FF7: 0 | FG7: 0 | FH7: 0 | FI7: 0 | FJ7: 0 | FK7: 0 | FL7: 0 | FM7: 0 | FN7: 0 | FO7: 0 | FP7: 0 | FQ7: 0 | FR7: 0 | FS7: 0 | FT7: 0 | FU7: 0 | FV7: 0 | FW7: 11.03347947 | FX7: 11.03347947 | FY7: 0 | FZ7: 0 | GA7: 11.03347947 | GB7: 0 | GC7: 11.03347947 | GD7: 11.03347947 | GE7: 0 | GF7: 0 | GG7: 0 | GH7: 0
A8: 1 | B8: OVERHEAD CONDUCTORS | C8: > 1 kv & < = 11 kv | D8: 110.3347947 | E8: 107.8237616 | F8: 10.38382211 | G8: 2 | H8: 2.1 | I8: 0.5 | J8: 1 | K8: 0.6 | L8: 0.9 | M8: 0.7 | N8: 3 | O8: 1.2 | P8: 2.1 | Q8: 1 | R8: 5.5 | S8: 4.5 | T8: 2.7 | U8: 5.8 | V8: 4.1 | W8: 4.6 | X8: 4.7 | Y8: 5 | Z8: 8 | AA8: 10.3 | AB8: 7.1 | AC8: 4.1 | AD8: 2.3 | AE8: 4.2 | AF8: 2.3 | AG8: 4.7 | AH8: 3.6 | AI8: 1 | AJ8: 4.9 | AK8: 8 | AL8: 7.5 | AM8: 10.3 | AN8: 7.9 | AO8: 15.5 | AP8: 12.8 | AQ8: 13.7 | AR8: 9.8 | AS8: 12.5 | AT8: 8 | AU8: 11.7 | AV8: 14.6 | AW8: 12.5 | AX8: 3.7 | AY8: 6.1 | AZ8: 4.5 | BA8: 4.1 | BB8: 6 | BC8: 10.3 | BD8: 5.7 | BE8: 6.7 | BF8: 11.9 | BG8: 14.2 | BH8: 21.5 | BI8: 13.7 | BJ8: 20.3 | BK8: 9.6 | BL8: 10.6 | BM8: 10.6 | BN8: 8.1 | BO8: 6 | BP8: 4.9 | BQ8: 3.7 | BR8: 2.2 | BS8: 0.9 | BT8: 1.1 | BU8: 1.6 | BV8: 1 | BW8: 1 | BX8: 0.2 | BY8: 0.9 | BZ8: 0.7 | CA8: 0.2 | CB8: 0.4 | CC8: 0.2 | CD8: 0.2 | CE8: 0.2 | CF8: 0.4 | CG8: 1.3 | CH8: 2.5 | CI8: 4.4 | CJ8: 3.7 | CK8: 2 | CL8: 1.6 | CM8: 3.2 | CN8: 2.3 | CO8: 3.2 | CP8: 3.8 | CQ8: 1.1 | CR8: 0.3 | CS8: 0.8 | CT8: 0 | CV8: 231.7030688 | CW8: 55.16739734 | CX8: 110.3347947 | CY8: 66.20087681 | CZ8: 99.30131521 | DA8: 77.23435628 | DB8: 331.004384 | DC8: 132.4017536 | DD8: 231.7030688 | DE8: 110.3347947 | DF8: 606.8413708 | DG8: 496.5065761 | DH8: 297.9039456 | DI8: 639.9418092 | DJ8: 452.3726582 | DK8: 507.5400555 | DL8: 518.573535 | DM8: 551.6739734 | DN8: 882.6783575 | DO8: 1136.448385 | DP8: 783.3770423 | DQ8: 452.3726582 | DR8: 253.7700278 | DS8: 463.4061377 | DT8: 253.7700278 | DU8: 518.573535 | DV8: 397.2052609 | DW8: 110.3347947 | DX8: 540.6404939 | DY8: 882.6783575 | DZ8: 827.5109601 | EA8: 1136.448385 | EB8: 871.644878 | EC8: 1710.189318 | ED8: 1412.285372 | EE8: 1511.586687 | EF8: 1081.280988 | EG8: 1379.184934 | EH8: 882.6783575 | EI8: 1290.917098 | EJ8: 1610.888002 | EK8: 1379.184934 | EL8: 408.2387403 | EM8: 673.0422476 | EN8: 496.5065761 | EO8: 452.3726582 | EP8: 662.0087681 | EQ8: 1136.448385 | ER8: 628.9083297 | ES8: 739.2431244 | ET8: 1312.984057 | EU8: 1566.754085 | EV8: 2372.198086 | EW8: 1511.586687 | EX8: 2239.796332 | EY8: 1059.214029 | EZ8: 1169.548824 | FA8: 1169.548824 | FB8: 893.7118369 | FC8: 662.0087681 | FD8: 540.6404939 | FE8: 408.2387403 | FF8: 242.7365483 | FG8: 99.30131521 | FH8: 121.3682742 | FI8: 176.5356715 | FJ8: 110.3347947 | FK8: 110.3347947 | FL8: 22.06695894 | FM8: 99.30131521 | FN8: 77.23435628 | FO8: 22.06695894 | FP8: 44.13391787 | FQ8: 22.06695894 | FR8: 22.06695894 | FS8: 22.06695894 | FT8: 44.13391787 | FU8: 143.4352331 | FV8: 275.8369867 | FW8: 485.4730966 | FX8: 408.2387403 | FY8: 220.6695894 | FZ8: 176.5356715 | GA8: 353.071343 | GB8: 253.7700278 | GC8: 353.071343 | GD8: 419.2722198 | GE8: 121.3682742 | GF8: 33.1004384 | GG8: 88.26783575 | GH8: 0
A9: 1 | B9: OVERHEAD CONDUCTORS | C9: > 22 kv & < = 66 kv | D9: 110.3347947 | E9: 107.8237616 | F9: 10.38382211 | G9: 2 | H9: 0.7 | I9: 0.2 | J9: 0 | K9: 0.1 | L9: 0.2 | M9: 0.2 | N9: 0 | O9: 0 | P9: 0 | Q9: 0 | R9: 0.9 | S9: 0.6 | T9: 0.9 | U9: 1.6 | V9: 0.6 | W9: 0.8 | X9: 1.6 | Y9: 0.4 | Z9: 0.5 | AA9: 0.4 | AB9: 2.7 | AC9: 0.4 | AD9: 2.6 | AE9: 3 | AF9: 1.6 | AG9: 1.8 | AH9: 3.2 | AI9: 0.5 | AJ9: 2.9 | AK9: 3.8 | AL9: 3.6 | AM9: 1.7 | AN9: 0.9 | AO9: 4 | AP9: 4.8 | AQ9: 6.2 | AR9: 1.5 | AS9: 2.9 | AT9: 2.3 | AU9: 2.1 | AV9: 3.4 | AW9: 1 | AX9: 0.8 | AY9: 1.1 | AZ9: 0.3 | BA9: 0.7 | BB9: 0.6 | BC9: 0.7 | BD9: 3.4 | BE9: 2.9 | BF9: 2.2 | BG9: 4.7 | BH9: 12.1 | BI9: 7.9 | BJ9: 14.7 | BK9: 6.4 | BL9: 3.4 | BM9: 3.5 | BN9: 1.3 | BO9: 0.4 | BP9: 0.1 | BQ9: 0.9 | BR9: 1.4 | BS9: 0.5 | BT9: 0.3 | BU9: 0.3 | BV9: 0.1 | BW9: 0.6 | BX9: 0.2 | BY9: 0.4 | BZ9: 0 | CA9: 0 | CB9: 0 | CC9: 0 | CD9: 0 | CE9: 0 | CF9: 0.1 | CG9: 0.8 | CH9: 0.6 | CI9: 0.1 | CJ9: 0.4 | CK9: 1.9 | CL9: 0 | CM9: 0 | CN9: 0.4 | CO9: 0 | CP9: 0.2 | CQ9: 0 | CR9: 0 | CS9: 0 | CT9: 0 | CV9: 77.23435628 | CW9: 22.06695894 | CX9: 0 | CY9: 11.03347947 | CZ9: 22.06695894 | DA9: 22.06695894 | DB9: 0 | DC9: 0 | DD9: 0 | DE9: 0 | DF9: 99.30131521 | DG9: 66.20087681 | DH9: 99.30131521 | DI9: 176.5356715 | DJ9: 66.20087681 | DK9: 88.26783575 | DL9: 176.5356715 | DM9: 44.13391787 | DN9: 55.16739734 | DO9: 44.13391787 | DP9: 297.9039456 | DQ9: 44.13391787 | DR9: 286.8704662 | DS9: 331.004384 | DT9: 176.5356715 | DU9: 198.6026304 | DV9: 353.071343 | DW9: 55.16739734 | DX9: 319.9709046 | DY9: 419.2722198 | DZ9: 397.2052609 | EA9: 187.569151 | EB9: 99.30131521 | EC9: 441.3391787 | ED9: 529.6070145 | EE9: 684.075727 | EF9: 165.502192 | EG9: 319.9709046 | EH9: 253.7700278 | EI9: 231.7030688 | EJ9: 375.1383019 | EK9: 110.3347947 | EL9: 88.26783575 | EM9: 121.3682742 | EN9: 33.1004384 | EO9: 77.23435628 | EP9: 66.20087681 | EQ9: 77.23435628 | ER9: 375.1383019 | ES9: 319.9709046 | ET9: 242.7365483 | EU9: 518.573535 | EV9: 1335.051016 | EW9: 871.644878 | EX9: 1621.921482 | EY9: 706.142686 | EZ9: 375.1383019 | FA9: 386.1717814 | FB9: 143.4352331 | FC9: 44.13391787 | FD9: 11.03347947 | FE9: 99.30131521 | FF9: 154.4687126 | FG9: 55.16739734 | FH9: 33.1004384 | FI9: 33.1004384 | FJ9: 11.03347947 | FK9: 66.20087681 | FL9: 22.06695894 | FM9: 44.13391787 | FN9: 0 | FO9: 0 | FP9: 0 | FQ9: 0 | FR9: 0 | FS9: 0 | FT9: 11.03347947 | FU9: 88.26783575 | FV9: 66.20087681 | FW9: 11.03347947 | FX9: 44.13391787 | FY9: 209.6361099 | FZ9: 0 | GA9: 0 | GB9: 44.13391787 | GC9: 0 | GD9: 22.06695894 | GE9: 0 | GF9: 0 | GG9: 0 | GH9: 0
A10: 2 | B10: POLES | C10: ˂ = 1 kv ; concrete | D10: 22.58786367 | E10: 61.9266353 | F10: 7.869347832 | G10: 2 | H10: 3 | I10: 2 | J10: 7 | K10: 7 | L10: 7 | M10: 0 | N10: 3 | O10: 5 | P10: 3 | Q10: 11 | R10: 2 | S10: 11 | T10: 8 | U10: 5 | V10: 15 | W10: 37 | X10: 45 | Y10: 97 | Z10: 72 | AA10: 49 | AB10: 102 | AC10: 85 | AD10: 63 | AE10: 105 | AF10: 131 | AG10: 120 | AH10: 245 | AI10: 172 | AJ10: 55 | AK10: 110 | AL10: 290 | AM10: 458 | AN10: 126 | AO10: 109 | AP10: 128 | AQ10: 35 | AR10: 33 | AS10: 14 | AT10: 22 | AU10: 17 | AV10: 0 | AW10: 16 | AX10: 10 | AY10: 5 | AZ10: 1 | BA10: 4 | BB10: 261 | BC10: 84 | BD10: 1 | BE10: 0 | BF10: 0 | BG10: 0 | BH10: 0 | BI10: 0 | BJ10: 0 | BK10: 0 | BL10: 0 | BM10: 0 | BN10: 0 | BO10: 0 | BP10: 0 | BQ10: 0 | BR10: 0 | BS10: 0 | BT10: 0 | BU10: 0 | BV10: 0 | BW10: 0 | BX10: 0 | BY10: 0 | BZ10: 0 | CA10: 0 | CB10: 0 | CC10: 0 | CD10: 0 | CE10: 0 | CF10: 0 | CG10: 0 | CH10: 0 | CI10: 0 | CJ10: 0 | CK10: 0 | CL10: 0 | CM10: 0 | CN10: 0 | CO10: 0 | CP10: 0 | CQ10: 0 | CR10: 0 | CS10: 0 | CT10: 0 | CV10: 67.76359101 | CW10: 45.17572734 | CX10: 158.1150457 | CY10: 158.1150457 | CZ10: 158.1150457 | DA10: 0 | DB10: 67.76359101 | DC10: 112.9393183 | DD10: 67.76359101 | DE10: 248.4665004 | DF10: 45.17572734 | DG10: 248.4665004 | DH10: 180.7029094 | DI10: 112.9393183 | DJ10: 338.817955 | DK10: 835.7509558 | DL10: 1016.453865 | DM10: 2191.022776 | DN10: 1626.326184 | DO10: 1106.80532 | DP10: 2303.962094 | DQ10: 1919.968412 | DR10: 1423.035411 | DS10: 2371.725685 | DT10: 2959.010141 | DU10: 2710.54364 | DV10: 5534.026599 | DW10: 3885.112551 | DX10: 1242.332502 | DY10: 2484.665004 | DZ10: 6550.480464 | EA10: 10345.24156 | EB10: 2846.070822 | EC10: 2462.07714 | ED10: 2891.24655 | EE10: 790.5752284 | EF10: 745.3995011 | EG10: 316.2300914 | EH10: 496.9330007 | EI10: 383.9936824 | EJ10: 0 | EK10: 361.4058187 | EL10: 225.8786367 | EM10: 112.9393183 | EN10: 22.58786367 | EO10: 90.35145468 | EP10: 5895.432418 | EQ10: 1897.380548 | ER10: 22.58786367 | ES10: 0 | ET10: 0 | EU10: 0 | EV10: 0 | EW10: 0 | EX10: 0 | EY10: 0 | EZ10: 0 | FA10: 0 | FB10: 0 | FC10: 0 | FD10: 0 | FE10: 0 | FF10: 0 | FG10: 0 | FH10: 0 | FI10: 0 | FJ10: 0 | FK10: 0 | FL10: 0 | FM10: 0 | FN10: 0 | FO10: 0 | FP10: 0 | FQ10: 0 | FR10: 0 | FS10: 0 | FT10: 0 | FU10: 0 | FV10: 0 | FW10: 0 | FX10: 0 | FY10: 0 | FZ10: 0 | GA10: 0 | GB10: 0 | GC10: 0 | GD10: 0 | GE10: 0 | GF10: 0 | GG10: 0 | GH10: 0
A11: 2 | B11: POLES | C11: ˂ = 1 kv ; steel | D11: 16.40562653 | E11: 79.21018556 | F11: 8.900010425 | G11: 2 | H11: 4 | I11: 12 | J11: 13 | K11: 6 | L11: 24 | M11: 25 | N11: 36 | O11: 50 | P11: 50 | Q11: 65 | R11: 23 | S11: 161 | T11: 109 | U11: 87 | V11: 65 | W11: 44 | X11: 55 | Y11: 47 | Z11: 55 | AA11: 50 | AB11: 115 | AC11: 72 | AD11: 50 | AE11: 57 | AF11: 75 | AG11: 48 | AH11: 76 | AI11: 81 | AJ11: 51 | AK11: 67 | AL11: 68 | AM11: 64 | AN11: 86 | AO11: 63 | AP11: 77 | AQ11: 47 | AR11: 108 | AS11: 54 | AT11: 70 | AU11: 76 | AV11: 100 | AW11: 90 | AX11: 81 | AY11: 66 | AZ11: 84 | BA11: 45 | BB11: 66 | BC11: 67 | BD11: 84 | BE11: 139 | BF11: 131 | BG11: 67 | BH11: 57 | BI11: 98 | BJ11: 37 | BK11: 17 | BL11: 25 | BM11: 15 | BN11: 9 | BO11: 27 | BP11: 9 | BQ11: 4 | BR11: 2 | BS11: 3 | BT11: 0 | BU11: 0 | BV11: 0 | BW11: 0 | BX11: 0 | BY11: 2 | BZ11: 0 | CA11: 0 | CB11: 0 | CC11: 0 | CD11: 0 | CE11: 0 | CF11: 0 | CG11: 0 | CH11: 2 | CI11: 0 | CJ11: 2 | CK11: 0 | CL11: 0 | CM11: 2 | CN11: 2 | CO11: 0 | CP11: 0 | CQ11: 0 | CR11: 0 | CS11: 0 | CT11: 0 | CV11: 65.62250611 | CW11: 196.8675183 | CX11: 213.2731448 | CY11: 98.43375916 | CZ11: 393.7350366 | DA11: 410.1406632 | DB11: 590.6025549 | DC11: 820.2813263 | DD11: 820.2813263 | DE11: 1066.365724 | DF11: 377.3294101 | DG11: 2641.305871 | DH11: 1788.213291 | DI11: 1427.289508 | DJ11: 1066.365724 | DK11: 721.8475672 | DL11: 902.3094589 | DM11: 771.0644467 | DN11: 902.3094589 | DO11: 820.2813263 | DP11: 1886.647051 | DQ11: 1181.20511 | DR11: 820.2813263 | DS11: 935.120712 | DT11: 1230.421989 | DU11: 787.4700733 | DV11: 1246.827616 | DW11: 1328.855749 | DX11: 836.6869528 | DY11: 1099.176977 | DZ11: 1115.582604 | EA11: 1049.960098 | EB11: 1410.883881 | EC11: 1033.554471 | ED11: 1263.233243 | EE11: 771.0644467 | EF11: 1771.807665 | EG11: 885.9038324 | EH11: 1148.393857 | EI11: 1246.827616 | EJ11: 1640.562653 | EK11: 1476.506387 | EL11: 1328.855749 | EM11: 1082.771351 | EN11: 1378.072628 | EO11: 738.2531937 | EP11: 1082.771351 | EQ11: 1099.176977 | ER11: 1378.072628 | ES11: 2280.382087 | ET11: 2149.137075 | EU11: 1099.176977 | EV11: 935.120712 | EW11: 1607.7514 | EX11: 607.0081815 | EY11: 278.8956509 | EZ11: 410.1406632 | FA11: 246.0843979 | FB11: 147.6506387 | FC11: 442.9519162 | FD11: 147.6506387 | FE11: 65.62250611 | FF11: 32.81125305 | FG11: 49.21687958 | FH11: 0 | FI11: 0 | FJ11: 0 | FK11: 0 | FL11: 0 | FM11: 32.81125305 | FN11: 0 | FO11: 0 | FP11: 0 | FQ11: 0 | FR11: 0 | FS11: 0 | FT11: 0 | FU11: 0 | FV11: 32.81125305 | FW11: 0 | FX11: 32.81125305 | FY11: 0 | FZ11: 0 | GA11: 32.81125305 | GB11: 32.81125305 | GC11: 0 | GD11: 0 | GE11: 0 | GF11: 0 | GG11: 0 | GH11: 0
A12: 2 | B12: POLES | C12: ˂ = 1 kv ; wood | D12: 7.475601085 | E12: 87.45726256 | F12: 9.351858776 | G12: 2 | H12: 43 | I12: 79 | J12: 176 | K12: 192 | L12: 164 | M12: 158 | N12: 189 | O12: 199 | P12: 135 | Q12: 116 | R12: 166 | S12: 132 | T12: 75 | U12: 88 | V12: 124 | W12: 43 | X12: 91 | Y12: 121 | Z12: 40 | AA12: 22 | AB12: 79 | AC12: 12 | AD12: 7 | AE12: 13 | AF12: 39 | AG12: 21 | AH12: 12 | AI12: 77 | AJ12: 59 | AK12: 140 | AL12: 226 | AM12: 303 | AN12: 201 | AO12: 517 | AP12: 332 | AQ12: 363 | AR12: 240 | AS12: 545 | AT12: 458 | AU12: 368 | AV12: 542 | AW12: 462 | AX12: 294 | AY12: 310 | AZ12: 224 | BA12: 222 | BB12: 248 | BC12: 844 | BD12: 925 | BE12: 599 | BF12: 750 | BG12: 980 | BH12: 919 | BI12: 677 | BJ12: 587 | BK12: 668 | BL12: 514 | BM12: 540 | BN12: 577 | BO12: 418 | BP12: 361 | BQ12: 329 | BR12: 120 | BS12: 153 | BT12: 113 | BU12: 107 | BV12: 135 | BW12: 79 | BX12: 64 | BY12: 93 | BZ12: 51 | CA12: 65 | CB12: 85 | CC12: 53 | CD12: 40 | CE12: 60 | CF12: 98 | CG12: 126 | CH12: 180 | CI12: 331 | CJ12: 275 | CK12: 211 | CL12: 191 | CM12: 236 | CN12: 280 | CO12: 285 | CP12: 169 | CQ12: 76 | CR12: 10 | CS12: 12 | CT12: 0 | CV12: 321.4508466 | CW12: 590.5724857 | CX12: 1315.705791 | CY12: 1435.315408 | CZ12: 1225.998578 | DA12: 1181.144971 | DB12: 1412.888605 | DC12: 1487.644616 | DD12: 1009.206146 | DE12: 867.1697258 | DF12: 1240.94978 | DG12: 986.7793432 | DH12: 560.6700814 | DI12: 657.8528955 | DJ12: 926.9745345 | DK12: 321.4508466 | DL12: 680.2796987 | DM12: 904.5477312 | DN12: 299.0240434 | DO12: 164.4632239 | DP12: 590.5724857 | DQ12: 89.70721302 | DR12: 52.32920759 | DS12: 97.1828141 | DT12: 291.5484423 | DU12: 156.9876228 | DV12: 89.70721302 | DW12: 575.6212835 | DX12: 441.060464 | DY12: 1046.584152 | DZ12: 1689.485845 | EA12: 2265.107129 | EB12: 1502.595818 | EC12: 3864.885761 | ED12: 2481.89956 | EE12: 2713.643194 | EF12: 1794.14426 | EG12: 4074.202591 | EH12: 3423.825297 | EI12: 2751.021199 | EJ12: 4051.775788 | EK12: 3453.727701 | EL12: 2197.826719 | EM12: 2317.436336 | EN12: 1674.534643 | EO12: 1659.583441 | EP12: 1853.949069 | EQ12: 6309.407315 | ER12: 6914.931003 | ES12: 4477.88505 | ET12: 5606.700814 | EU12: 7326.089063 | EV12: 6870.077397 | EW12: 5060.981934 | EX12: 4388.177837 | EY12: 4993.701525 | EZ12: 3842.458958 | FA12: 4036.824586 | FB12: 4313.421826 | FC12: 3124.801253 | FD12: 2698.691992 | FE12: 2459.472757 | FF12: 897.0721302 | FG12: 1143.766966 | FH12: 844.7429226 | FI12: 799.8893161 | FJ12: 1009.206146 | FK12: 590.5724857 | FL12: 478.4384694 | FM12: 695.2309009 | FN12: 381.2556553 | FO12: 485.9140705 | FP12: 635.4260922 | FQ12: 396.2068575 | FR12: 299.0240434 | FS12: 448.5360651 | FT12: 732.6089063 | FU12: 941.9257367 | FV12: 1345.608195 | FW12: 2474.423959 | FX12: 2055.790298 | FY12: 1577.351829 | FZ12: 1427.839807 | GA12: 1764.241856 | GB12: 2093.168304 | GC12: 2130.546309 | GD12: 1263.376583 | GE12: 568.1456824 | GF12: 74.75601085 | GG12: 89.70721302 | GH12: 0
A13: 2 | B13: POLES | C13: ˃ 11 kv & < = 22 kv ; concrete | D13: 22.58786367 | E13: 61.9266353 | F13: 7.869347832 | G13: 2 | H13: 0 | I13: 0 | J13: 0 | K13: 0 | L13: 0 | M13: 0 | N13: 0 | O13: 0 | P13: 0 | Q13: 0 | R13: 0 | S13: 0 | T13: 0 | U13: 0 | V13: 0 | W13: 0 | X13: 0 | Y13: 0 | Z13: 0 | AA13: 0 | AB13: 0 | AC13: 3 | AD13: 0 | AE13: 3 | AF13: 0 | AG13: 0 | AH13: 2 | AI13: 0 | AJ13: 3 | AK13: 0 | AL13: 0 | AM13: 0 | AN13: 0 | AO13: 0 | AP13: 0 | AQ13: 0 | AR13: 0 | AS13: 0 | AT13: 0 | AU13: 0 | AV13: 0 | AW13: 0 | AX13: 0 | AY13: 0 | AZ13: 0 | BA13: 0 | BB13: 0 | BC13: 0 | BD13: 0 | BE13: 2 | BF13: 0 | BG13: 0 | BH13: 0 | BI13: 0 | BJ13: 0 | BK13: 0 | BL13: 0 | BM13: 0 | BN13: 0 | BO13: 0 | BP13: 0 | BQ13: 0 | BR13: 0 | BS13: 0 | BT13: 0 | BU13: 0 | BV13: 0 | BW13: 0 | BX13: 0 | BY13: 0 | BZ13: 0 | CA13: 0 | CB13: 0 | CC13: 0 | CD13: 0 | CE13: 0 | CF13: 0 | CG13: 0 | CH13: 0 | CI13: 0 | CJ13: 0 | CK13: 0 | CL13: 0 | CM13: 0 | CN13: 0 | CO13: 0 | CP13: 0 | CQ13: 0 | CR13: 0 | CS13: 0 | CT13: 0 | CV13: 0 | CW13: 0 | CX13: 0 | CY13: 0 | CZ13: 0 | DA13: 0 | DB13: 0 | DC13: 0 | DD13: 0 | DE13: 0 | DF13: 0 | DG13: 0 | DH13: 0 | DI13: 0 | DJ13: 0 | DK13: 0 | DL13: 0 | DM13: 0 | DN13: 0 | DO13: 0 | DP13: 0 | DQ13: 67.76359101 | DR13: 0 | DS13: 67.76359101 | DT13: 0 | DU13: 0 | DV13: 45.17572734 | DW13: 0 | DX13: 67.76359101 | DY13: 0 | DZ13: 0 | EA13: 0 | EB13: 0 | EC13: 0 | ED13: 0 | EE13: 0 | EF13: 0 | EG13: 0 | EH13: 0 | EI13: 0 | EJ13: 0 | EK13: 0 | EL13: 0 | EM13: 0 | EN13: 0 | EO13: 0 | EP13: 0 | EQ13: 0 | ER13: 0 | ES13: 45.17572734 | ET13: 0 | EU13: 0 | EV13: 0 | EW13: 0 | EX13: 0 | EY13: 0 | EZ13: 0 | FA13: 0 | FB13: 0 | FC13: 0 | FD13: 0 | FE13: 0 | FF13: 0 | FG13: 0 | FH13: 0 | FI13: 0 | FJ13: 0 | FK13: 0 | FL13: 0 | FM13: 0 | FN13: 0 | FO13: 0 | FP13: 0 | FQ13: 0 | FR13: 0 | FS13: 0 | FT13: 0 | FU13: 0 | FV13: 0 | FW13: 0 | FX13: 0 | FY13: 0 | FZ13: 0 | GA13: 0 | GB13: 0 | GC13: 0 | GD13: 0 | GE13: 0 | GF13: 0 | GG13: 0 | GH13: 0
A14: 2 | B14: POLES | C14: ˃ 11 kv & < = 22 kv ; steel | D14: 16.40562653 | E14: 79.21018556 | F14: 8.900010425 | G14: 2 | H14: 0 | I14: 0 | J14: 0 | K14: 0 | L14: 0 | M14: 0 | N14: 0 | O14: 0 | P14: 0 | Q14: 0 | R14: 0 | S14: 0 | T14: 0 | U14: 0 | V14: 0 | W14: 0 | X14: 0 | Y14: 0 | Z14: 0 | AA14: 2 | AB14: 0 | AC14: 2 | AD14: 0 | AE14: 0 | AF14: 0 | AG14: 0 | AH14: 0 | AI14: 0 | AJ14: 0 | AK14: 0 | AL14: 0 | AM14: 0 | AN14: 0 | AO14: 0 | AP14: 0 | AQ14: 0 | AR14: 0 | AS14: 0 | AT14: 0 | AU14: 1 | AV14: 0 | AW14: 0 | AX14: 0 | AY14: 0 | AZ14: 0 | BA14: 0 | BB14: 0 | BC14: 0 | BD14: 0 | BE14: 0 | BF14: 0 | BG14: 0 | BH14: 0 | BI14: 0 | BJ14: 0 | BK14: 0 | BL14: 0 | BM14: 0 | BN14: 0 | BO14: 0 | BP14: 0 | BQ14: 0 | BR14: 0 | BS14: 0 | BT14: 0 | BU14: 0 | BV14: 0 | BW14: 0 | BX14: 0 | BY14: 0 | BZ14: 0 | CA14: 0 | CB14: 0 | CC14: 0 | CD14: 0 | CE14: 0 | CF14: 0 | CG14: 0 | CH14: 0 | CI14: 0 | CJ14: 0 | CK14: 0 | CL14: 0 | CM14: 0 | CN14: 0 | CO14: 0 | CP14: 0 | CQ14: 0 | CR14: 0 | CS14: 0 | CT14: 0 | CV14: 0 | CW14: 0 | CX14: 0 | CY14: 0 | CZ14: 0 | DA14: 0 | DB14: 0 | DC14: 0 | DD14: 0 | DE14: 0 | DF14: 0 | DG14: 0 | DH14: 0 | DI14: 0 | DJ14: 0 | DK14: 0 | DL14: 0 | DM14: 0 | DN14: 0 | DO14: 32.81125305 | DP14: 0 | DQ14: 32.81125305 | DR14: 0 | DS14: 0 | DT14: 0 | DU14: 0 | DV14: 0 | DW14: 0 | DX14: 0 | DY14: 0 | DZ14: 0 | EA14: 0 | EB14: 0 | EC14: 0 | ED14: 0 | EE14: 0 | EF14: 0 | EG14: 0 | EH14: 0 | EI14: 16.40562653 | EJ14: 0 | EK14: 0 | EL14: 0 | EM14: 0 | EN14: 0 | EO14: 0 | EP14: 0 | EQ14: 0 | ER14: 0 | ES14: 0 | ET14: 0 | EU14: 0 | EV14: 0 | EW14: 0 | EX14: 0 | EY14: 0 | EZ14: 0 | FA14: 0 | FB14: 0 | FC14: 0 | FD14: 0 | FE14: 0 | FF14: 0 | FG14: 0 | FH14: 0 | FI14: 0 | FJ14: 0 | FK14: 0 | FL14: 0 | FM14: 0 | FN14: 0 | FO14: 0 | FP14: 0 | FQ14: 0 | FR14: 0 | FS14: 0 | FT14: 0 | FU14: 0 | FV14: 0 | FW14: 0 | FX14: 0 | FY14: 0 | FZ14: 0 | GA14: 0 | GB14: 0 | GC14: 0 | GD14: 0 | GE14: 0 | GF14: 0 | GG14: 0 | GH14: 0
A15: 2 | B15: POLES | C15: ˃ 11 kv & < = 22 kv ; wood | D15: 32.29554651 | E15: 91.57007658 | F15: 9.569225496 | G15: 2 | H15: 6 | I15: 11 | J15: 8 | K15: 10 | L15: 18 | M15: 9 | N15: 21 | O15: 8 | P15: 12 | Q15: 6 | R15: 3 | S15: 6 | T15: 4 | U15: 2 | V15: 9 | W15: 7 | X15: 15 | Y15: 9 | Z15: 7 | AA15: 2 | AB15: 11 | AC15: 3 | AD15: 14 | AE15: 15 | AF15: 25 | AG15: 2 | AH15: 9 | AI15: 3 | AJ15: 14 | AK15: 12 | AL15: 37 | AM15: 8 | AN15: 10 | AO15: 12 | AP15: 10 | AQ15: 15 | AR15: 9 | AS15: 27 | AT15: 12 | AU15: 11 | AV15: 10 | AW15: 9 | AX15: 21 | AY15: 13 | AZ15: 5 | BA15: 5 | BB15: 18 | BC15: 7 | BD15: 5 | BE15: 11 | BF15: 17 | BG15: 7 | BH15: 13 | BI15: 9 | BJ15: 19 | BK15: 24 | BL15: 11 | BM15: 42 | BN15: 7 | BO15: 7 | BP15: 4 | BQ15: 9 | BR15: 11 | BS15: 6 | BT15: 5 | BU15: 2 | BV15: 2 | BW15: 5 | BX15: 3 | BY15: 2 | BZ15: 3 | CA15: 1 | CB15: 2 | CC15: 0 | CD15: 2 | CE15: 0 | CF15: 4 | CG15: 9 | CH15: 7 | CI15: 7 | CJ15: 5 | CK15: 3 | CL15: 2 | CM15: 6 | CN15: 2 | CO15: 7 | CP15: 3 | CQ15: 2 | CR15: 0 | CS15: 0 | CT15: 0 | CV15: 193.773279 | CW15: 355.2510116 | CX15: 258.364372 | CY15: 322.9554651 | CZ15: 581.3198371 | DA15: 290.6599186 | DB15: 678.2064766 | DC15: 258.364372 | DD15: 387.5465581 | DE15: 193.773279 | DF15: 96.88663952 | DG15: 193.773279 | DH15: 129.182186 | DI15: 64.59109301 | DJ15: 290.6599186 | DK15: 226.0688255 | DL15: 484.4331976 | DM15: 290.6599186 | DN15: 226.0688255 | DO15: 64.59109301 | DP15: 355.2510116 | DQ15: 96.88663952 | DR15: 452.1376511 | DS15: 484.4331976 | DT15: 807.3886626 | DU15: 64.59109301 | DV15: 290.6599186 | DW15: 96.88663952 | DX15: 452.1376511 | DY15: 387.5465581 | DZ15: 1194.935221 | EA15: 258.364372 | EB15: 322.9554651 | EC15: 387.5465581 | ED15: 322.9554651 | EE15: 484.4331976 | EF15: 290.6599186 | EG15: 871.9797557 | EH15: 387.5465581 | EI15: 355.2510116 | EJ15: 322.9554651 | EK15: 290.6599186 | EL15: 678.2064766 | EM15: 419.8421046 | EN15: 161.4777325 | EO15: 161.4777325 | EP15: 581.3198371 | EQ15: 226.0688255 | ER15: 161.4777325 | ES15: 355.2510116 | ET15: 549.0242906 | EU15: 226.0688255 | EV15: 419.8421046 | EW15: 290.6599186 | EX15: 613.6153836 | EY15: 775.0931161 | EZ15: 355.2510116 | FA15: 1356.412953 | FB15: 226.0688255 | FC15: 226.0688255 | FD15: 129.182186 | FE15: 290.6599186 | FF15: 355.2510116 | FG15: 193.773279 | FH15: 161.4777325 | FI15: 64.59109301 | FJ15: 64.59109301 | FK15: 161.4777325 | FL15: 96.88663952 | FM15: 64.59109301 | FN15: 96.88663952 | FO15: 32.29554651 | FP15: 64.59109301 | FQ15: 0 | FR15: 64.59109301 | FS15: 0 | FT15: 129.182186 | FU15: 290.6599186 | FV15: 226.0688255 | FW15: 226.0688255 | FX15: 161.4777325 | FY15: 96.88663952 | FZ15: 64.59109301 | GA15: 193.773279 | GB15: 64.59109301 | GC15: 226.0688255 | GD15: 96.88663952 | GE15: 64.59109301 | GF15: 0 | GG15: 0 | GH15: 0
A16: 2 | B16: POLES | C16: > 1 kv & < = 11 kv ; concrete | D16: 25.4607869 | E16: 58.9565369 | F16: 7.67831602 | G16: 2 | H16: 10 | I16: 18 | J16: 10 | K16: 17 | L16: 16 | M16: 16 | N16: 18 | O16: 13 | P16: 3 | Q16: 24 | R16: 6 | S16: 20 | T16: 14 | U16: 23 | V16: 9 | W16: 3 | X16: 5 | Y16: 10 | Z16: 13 | AA16: 22 | AB16: 31 | AC16: 14 | AD16: 5 | AE16: 10 | AF16: 8 | AG16: 24 | AH16: 32 | AI16: 7 | AJ16: 32 | AK16: 65 | AL16: 12 | AM16: 83 | AN16: 21 | AO16: 16 | AP16: 37 | AQ16: 76 | AR16: 35 | AS16: 10 | AT16: 16 | AU16: 16 | AV16: 0 | AW16: 18 | AX16: 0 | AY16: 0 | AZ16: 0 | BA16: 0 | BB16: 0 | BC16: 3 | BD16: 0 | BE16: 0 | BF16: 2 | BG16: 2 | BH16: 0 | BI16: 0 | BJ16: 0 | BK16: 0 | BL16: 0 | BM16: 0 | BN16: 0 | BO16: 0 | BP16: 0 | BQ16: 0 | BR16: 0 | BS16: 0 | BT16: 0 | BU16: 0 | BV16: 0 | BW16: 0 | BX16: 0 | BY16: 0 | BZ16: 0 | CA16: 0 | CB16: 0 | CC16: 0 | CD16: 0 | CE16: 0 | CF16: 0 | CG16: 0 | CH16: 0 | CI16: 0 | CJ16: 0 | CK16: 0 | CL16: 0 | CM16: 0 | CN16: 0 | CO16: 0 | CP16: 0 | CQ16: 0 | CR16: 0 | CS16: 0 | CT16: 0 | CV16: 254.607869 | CW16: 458.2941642 | CX16: 254.607869 | CY16: 432.8333773 | CZ16: 407.3725904 | DA16: 407.3725904 | DB16: 458.2941642 | DC16: 330.9902297 | DD16: 76.38236069 | DE16: 611.0588855 | DF16: 152.7647214 | DG16: 509.2157379 | DH16: 356.4510166 | DI16: 585.5980986 | DJ16: 229.1470821 | DK16: 76.38236069 | DL16: 127.3039345 | DM16: 254.607869 | DN16: 330.9902297 | DO16: 560.1373117 | DP16: 789.2843938 | DQ16: 356.4510166 | DR16: 127.3039345 | DS16: 254.607869 | DT16: 203.6862952 | DU16: 611.0588855 | DV16: 814.7451807 | DW16: 178.2255083 | DX16: 814.7451807 | DY16: 1654.951148 | DZ16: 305.5294428 | EA16: 2113.245312 | EB16: 534.6765248 | EC16: 407.3725904 | ED16: 942.0491152 | EE16: 1935.019804 | EF16: 891.1275414 | EG16: 254.607869 | EH16: 407.3725904 | EI16: 407.3725904 | EJ16: 0 | EK16: 458.2941642 | EL16: 0 | EM16: 0 | EN16: 0 | EO16: 0 | EP16: 0 | EQ16: 76.38236069 | ER16: 0 | ES16: 0 | ET16: 50.92157379 | EU16: 50.92157379 | EV16: 0 | EW16: 0 | EX16: 0 | EY16: 0 | EZ16: 0 | FA16: 0 | FB16: 0 | FC16: 0 | FD16: 0 | FE16: 0 | FF16: 0 | FG16: 0 | FH16: 0 | FI16: 0 | FJ16: 0 | FK16: 0 | FL16: 0 | FM16: 0 | FN16: 0 | FO16: 0 | FP16: 0 | FQ16: 0 | FR16: 0 | FS16: 0 | FT16: 0 | FU16: 0 | FV16: 0 | FW16: 0 | FX16: 0 | FY16: 0 | FZ16: 0 | GA16: 0 | GB16: 0 | GC16: 0 | GD16: 0 | GE16: 0 | GF16: 0 | GG16: 0 | GH16: 0
A17: 2 | B17: POLES | C17: > 1 kv & < = 11 kv ; steel | D17: 16.40562653 | E17: 79.21018556 | F17: 8.900010425 | G17: 2 | H17: 1 | I17: 0 | J17: 0 | K17: 0 | L17: 0 | M17: 1 | N17: 0 | O17: 0 | P17: 0 | Q17: 0 | R17: 0 | S17: 0 | T17: 0 | U17: 1 | V17: 0 | W17: 0 | X17: 0 | Y17: 0 | Z17: 0 | AA17: 1 | AB17: 2 | AC17: 1 | AD17: 0 | AE17: 0 | AF17: 0 | AG17: 2 | AH17: 0 | AI17: 0 | AJ17: 0 | AK17: 0 | AL17: 0 | AM17: 0 | AN17: 0 | AO17: 0 | AP17: 1 | AQ17: 3 | AR17: 0 | AS17: 0 | AT17: 0 | AU17: 1 | AV17: 0 | AW17: 0 | AX17: 1 | AY17: 0 | AZ17: 0 | BA17: 0 | BB17: 1 | BC17: 0 | BD17: 0 | BE17: 0 | BF17: 0 | BG17: 1 | BH17: 0 | BI17: 0 | BJ17: 0 | BK17: 0 | BL17: 0 | BM17: 0 | BN17: 0 | BO17: 0 | BP17: 0 | BQ17: 0 | BR17: 0 | BS17: 0 | BT17: 0 | BU17: 0 | BV17: 0 | BW17: 0 | BX17: 0 | BY17: 0 | BZ17: 0 | CA17: 0 | CB17: 0 | CC17: 0 | CD17: 0 | CE17: 0 | CF17: 0 | CG17: 0 | CH17: 0 | CI17: 0 | CJ17: 0 | CK17: 0 | CL17: 0 | CM17: 0 | CN17: 0 | CO17: 0 | CP17: 0 | CQ17: 0 | CR17: 0 | CS17: 0 | CT17: 0 | CV17: 16.40562653 | CW17: 0 | CX17: 0 | CY17: 0 | CZ17: 0 | DA17: 16.40562653 | DB17: 0 | DC17: 0 | DD17: 0 | DE17: 0 | DF17: 0 | DG17: 0 | DH17: 0 | DI17: 16.40562653 | DJ17: 0 | DK17: 0 | DL17: 0 | DM17: 0 | DN17: 0 | DO17: 16.40562653 | DP17: 32.81125305 | DQ17: 16.40562653 | DR17: 0 | DS17: 0 | DT17: 0 | DU17: 32.81125305 | DV17: 0 | DW17: 0 | DX17: 0 | DY17: 0 | DZ17: 0 | EA17: 0 | EB17: 0 | EC17: 0 | ED17: 16.40562653 | EE17: 49.21687958 | EF17: 0 | EG17: 0 | EH17: 0 | EI17: 16.40562653 | EJ17: 0 | EK17: 0 | EL17: 16.40562653 | EM17: 0 | EN17: 0 | EO17: 0 | EP17: 16.40562653 | EQ17: 0 | ER17: 0 | ES17: 0 | ET17: 0 | EU17: 16.40562653 | EV17: 0 | EW17: 0 | EX17: 0 | EY17: 0 | EZ17: 0 | FA17: 0 | FB17: 0 | FC17: 0 | FD17: 0 | FE17: 0 | FF17: 0 | FG17: 0 | FH17: 0 | FI17: 0 | FJ17: 0 | FK17: 0 | FL17: 0 | FM17: 0 | FN17: 0 | FO17: 0 | FP17: 0 | FQ17: 0 | FR17: 0 | FS17: 0 | FT17: 0 | FU17: 0 | FV17: 0 | FW17: 0 | FX17: 0 | FY17: 0 | FZ17: 0 | GA17: 0 | GB17: 0 | GC17: 0 | GD17: 0 | GE17: 0 | GF17: 0 | GG17: 0 | GH17: 0
A18: 2 | B18: POLES | C18: > 1 kv & < = 11 kv ; wood | D18: 6.304090738 | E18: 83.47791673 | F18: 9.136625019 | G18: 2 | H18: 33 | I18: 50 | J18: 92 | K18: 89 | L18: 99 | M18: 101 | N18: 133 | O18: 78 | P18: 98 | Q18: 74 | R18: 60 | S18: 79 | T18: 39 | U18: 66 | V18: 66 | W18: 33 | X18: 55 | Y18: 69 | Z18: 90 | AA18: 25 | AB18: 67 | AC18: 30 | AD18: 27 | AE18: 46 | AF18: 17 | AG18: 41 | AH18: 54 | AI18: 17 | AJ18: 79 | AK18: 112 | AL18: 143 | AM18: 145 | AN18: 148 | AO18: 315 | AP18: 243 | AQ18: 221 | AR18: 198 | AS18: 251 | AT18: 150 | AU18: 250 | AV18: 319 | AW18: 270 | AX18: 92 | AY18: 116 | AZ18: 85 | BA18: 106 | BB18: 133 | BC18: 252 | BD18: 116 | BE18: 146 | BF18: 239 | BG18: 314 | BH18: 492 | BI18: 316 | BJ18: 438 | BK18: 199 | BL18: 234 | BM18: 206 | BN18: 201 | BO18: 141 | BP18: 113 | BQ18: 90 | BR18: 48 | BS18: 30 | BT18: 49 | BU18: 48 | BV18: 52 | BW18: 45 | BX18: 31 | BY18: 39 | BZ18: 37 | CA18: 22 | CB18: 23 | CC18: 20 | CD18: 21 | CE18: 18 | CF18: 24 | CG18: 41 | CH18: 72 | CI18: 90 | CJ18: 77 | CK18: 47 | CL18: 30 | CM18: 72 | CN18: 63 | CO18: 76 | CP18: 88 | CQ18: 37 | CR18: 6 | CS18: 14 | CT18: 0 | CV18: 208.0349943 | CW18: 315.2045369 | CX18: 579.9763479 | CY18: 561.0640756 | CZ18: 624.104983 | DA18: 636.7131645 | DB18: 838.4440681 | DC18: 491.7190775 | DD18: 617.8008923 | DE18: 466.5027146 | DF18: 378.2454443 | DG18: 498.0231683 | DH18: 245.8595388 | DI18: 416.0699887 | DJ18: 416.0699887 | DK18: 208.0349943 | DL18: 346.7249906 | DM18: 434.9822609 | DN18: 567.3681664 | DO18: 157.6022684 | DP18: 422.3740794 | DQ18: 189.1227221 | DR18: 170.2104499 | DS18: 289.9881739 | DT18: 107.1695425 | DU18: 258.4677202 | DV18: 340.4208998 | DW18: 107.1695425 | DX18: 498.0231683 | DY18: 706.0581626 | DZ18: 901.4849755 | EA18: 914.093157 | EB18: 933.0054292 | EC18: 1985.788582 | ED18: 1531.894049 | EE18: 1393.204053 | EF18: 1248.209966 | EG18: 1582.326775 | EH18: 945.6136106 | EI18: 1576.022684 | EJ18: 2011.004945 | EK18: 1702.104499 | EL18: 579.9763479 | EM18: 731.2745256 | EN18: 535.8477127 | EO18: 668.2336182 | EP18: 838.4440681 | EQ18: 1588.630866 | ER18: 731.2745256 | ES18: 920.3972477 | ET18: 1506.677686 | EU18: 1979.484492 | EV18: 3101.612643 | EW18: 1992.092673 | EX18: 2761.191743 | EY18: 1254.514057 | EZ18: 1475.157233 | FA18: 1298.642692 | FB18: 1267.122238 | FC18: 888.876794 | FD18: 712.3622534 | FE18: 567.3681664 | FF18: 302.5963554 | FG18: 189.1227221 | FH18: 308.9004461 | FI18: 302.5963554 | FJ18: 327.8127184 | FK18: 283.6840832 | FL18: 195.4268129 | FM18: 245.8595388 | FN18: 233.2513573 | FO18: 138.6899962 | FP18: 144.994087 | FQ18: 126.0818148 | FR18: 132.3859055 | FS18: 113.4736333 | FT18: 151.2981777 | FU18: 258.4677202 | FV18: 453.8945331 | FW18: 567.3681664 | FX18: 485.4149868 | FY18: 296.2922647 | FZ18: 189.1227221 | GA18: 453.8945331 | GB18: 397.1577165 | GC18: 479.1108961 | GD18: 554.7599849 | GE18: 233.2513573 | GF18: 37.82454443 | GG18: 88.25727033 | GH18: 0
A19: 2 | B19: POLES | C19: > 22 kv & < = 66 kv ; concrete | D19: 25.4607869 | E19: 58.9565369 | F19: 7.67831602 | G19: 2 | H19: 1 | I19: 0 | J19: 2 | K19: 0 | L19: 2 | M19: 0 | N19: 1 | O19: 0 | P19: 0 | Q19: 4 | R19: 0 | S19: 0 | T19: 1 | U19: 5 | V19: 1 | W19: 2 | X19: 2 | Y19: 0 | Z19: 1 | AA19: 1 | AB19: 0 | AC19: 2 | AD19: 1 | AE19: 10 | AF19: 0 | AG19: 2 | AH19: 3 | AI19: 2 | AJ19: 1 | AK19: 0 | AL19: 1 | AM19: 0 | AN19: 1 | AO19: 1 | AP19: 12 | AQ19: 25 | AR19: 1 | AS19: 0 | AT19: 9 | AU19: 3 | AV19: 0 | AW19: 1 | AX19: 0 | AY19: 0 | AZ19: 0 | BA19: 0 | BB19: 0 | BC19: 0 | BD19: 0 | BE19: 1 | BF19: 0 | BG19: 0 | BH19: 0 | BI19: 0 | BJ19: 0 | BK19: 0 | BL19: 0 | BM19: 0 | BN19: 0 | BO19: 0 | BP19: 0 | BQ19: 0 | BR19: 0 | BS19: 0 | BT19: 0 | BU19: 0 | BV19: 0 | BW19: 0 | BX19: 0 | BY19: 0 | BZ19: 0 | CA19: 0 | CB19: 0 | CC19: 0 | CD19: 0 | CE19: 0 | CF19: 0 | CG19: 0 | CH19: 0 | CI19: 0 | CJ19: 0 | CK19: 0 | CL19: 0 | CM19: 0 | CN19: 0 | CO19: 0 | CP19: 0 | CQ19: 0 | CR19: 0 | CS19: 0 | CT19: 0 | CV19: 25.4607869 | CW19: 0 | CX19: 50.92157379 | CY19: 0 | CZ19: 50.92157379 | DA19: 0 | DB19: 25.4607869 | DC19: 0 | DD19: 0 | DE19: 101.8431476 | DF19: 0 | DG19: 0 | DH19: 25.4607869 | DI19: 127.3039345 | DJ19: 25.4607869 | DK19: 50.92157379 | DL19: 50.92157379 | DM19: 0 | DN19: 25.4607869 | DO19: 25.4607869 | DP19: 0 | DQ19: 50.92157379 | DR19: 25.4607869 | DS19: 254.607869 | DT19: 0 | DU19: 50.92157379 | DV19: 76.38236069 | DW19: 50.92157379 | DX19: 25.4607869 | DY19: 0 | DZ19: 25.4607869 | EA19: 0 | EB19: 25.4607869 | EC19: 25.4607869 | ED19: 305.5294428 | EE19: 636.5196724 | EF19: 25.4607869 | EG19: 0 | EH19: 229.1470821 | EI19: 76.38236069 | EJ19: 0 | EK19: 25.4607869 | EL19: 0 | EM19: 0 | EN19: 0 | EO19: 0 | EP19: 0 | EQ19: 0 | ER19: 0 | ES19: 25.4607869 | ET19: 0 | EU19: 0 | EV19: 0 | EW19: 0 | EX19: 0 | EY19: 0 | EZ19: 0 | FA19: 0 | FB19: 0 | FC19: 0 | FD19: 0 | FE19: 0 | FF19: 0 | FG19: 0 | FH19: 0 | FI19: 0 | FJ19: 0 | FK19: 0 | FL19: 0 | FM19: 0 | FN19: 0 | FO19: 0 | FP19: 0 | FQ19: 0 | FR19: 0 | FS19: 0 | FT19: 0 | FU19: 0 | FV19: 0 | FW19: 0 | FX19: 0 | FY19: 0 | FZ19: 0 | GA19: 0 | GB19: 0 | GC19: 0 | GD19: 0 | GE19: 0 | GF19: 0 | GG19: 0 | GH19: 0
A20: 2 | B20: POLES | C20: > 22 kv & < = 66 kv ; steel | D20: 16.40562653 | E20: 79.21018556 | F20: 8.900010425 | G20: 2 | H20: 0 | I20: 0 | J20: 0 | K20: 0 | L20: 0 | M20: 2 | N20: 0 | O20: 2 | P20: 1 | Q20: 0 | R20: 0 | S20: 0 | T20: 0 | U20: 1 | V20: 0 | W20: 0 | X20: 0 | Y20: 2 | Z20: 2 | AA20: 0 | AB20: 16 | AC20: 1 | AD20: 1 | AE20: 0 | AF20: 0 | AG20: 0 | AH20: 2 | AI20: 1 | AJ20: 0 | AK20: 1 | AL20: 0 | AM20: 0 | AN20: 0 | AO20: 0 | AP20: 0 | AQ20: 4 | AR20: 0 | AS20: 0 | AT20: 3 | AU20: 0 | AV20: 3 | AW20: 1 | AX20: 0 | AY20: 0 | AZ20: 2 | BA20: 0 | BB20: 0 | BC20: 0 | BD20: 0 | BE20: 0 | BF20: 0 | BG20: 0 | BH20: 0 | BI20: 0 | BJ20: 0 | BK20: 0 | BL20: 0 | BM20: 0 | BN20: 0 | BO20: 0 | BP20: 0 | BQ20: 0 | BR20: 0 | BS20: 0 | BT20: 0 | BU20: 0 | BV20: 0 | BW20: 0 | BX20: 0 | BY20: 0 | BZ20: 0 | CA20: 0 | CB20: 0 | CC20: 0 | CD20: 0 | CE20: 0 | CF20: 0 | CG20: 0 | CH20: 0 | CI20: 0 | CJ20: 0 | CK20: 0 | CL20: 0 | CM20: 0 | CN20: 0 | CO20: 0 | CP20: 0 | CQ20: 0 | CR20: 0 | CS20: 0 | CT20: 0 | CV20: 0 | CW20: 0 | CX20: 0 | CY20: 0 | CZ20: 0 | DA20: 32.81125305 | DB20: 0 | DC20: 32.81125305 | DD20: 16.40562653 | DE20: 0 | DF20: 0 | DG20: 0 | DH20: 0 | DI20: 16.40562653 | DJ20: 0 | DK20: 0 | DL20: 0 | DM20: 32.81125305 | DN20: 32.81125305 | DO20: 0 | DP20: 262.4900244 | DQ20: 16.40562653 | DR20: 16.40562653 | DS20: 0 | DT20: 0 | DU20: 0 | DV20: 32.81125305 | DW20: 16.40562653 | DX20: 0 | DY20: 16.40562653 | DZ20: 0 | EA20: 0 | EB20: 0 | EC20: 0 | ED20: 0 | EE20: 65.62250611 | EF20: 0 | EG20: 0 | EH20: 49.21687958 | EI20: 0 | EJ20: 49.21687958 | EK20: 16.40562653 | EL20: 0 | EM20: 0 | EN20: 32.81125305 | EO20: 0 | EP20: 0 | EQ20: 0 | ER20: 0 | ES20: 0 | ET20: 0 | EU20: 0 | EV20: 0 | EW20: 0 | EX20: 0 | EY20: 0 | EZ20: 0 | FA20: 0 | FB20: 0 | FC20: 0 | FD20: 0 | FE20: 0 | FF20: 0 | FG20: 0 | FH20: 0 | FI20: 0 | FJ20: 0 | FK20: 0 | FL20: 0 | FM20: 0 | FN20: 0 | FO20: 0 | FP20: 0 | FQ20: 0 | FR20: 0 | FS20: 0 | FT20: 0 | FU20: 0 | FV20: 0 | FW20: 0 | FX20: 0 | FY20: 0 | FZ20: 0 | GA20: 0 | GB20: 0 | GC20: 0 | GD20: 0 | GE20: 0 | GF20: 0 | GG20: 0 | GH20: 0
A21: 2 | B21: POLES | C21: > 22 kv & < = 66 kv ; wood | D21: 7.918979643 | E21: 75.40315501 | F21: 8.683499007 | G21: 2 | H21: 24 | I21: 11 | J21: 14 | K21: 16 | L21: 79 | M21: 57 | N21: 27 | O21: 28 | P21: 10 | Q21: 14 | R21: 10 | S21: 21 | T21: 15 | U21: 22 | V21: 5 | W21: 10 | X21: 21 | Y21: 6 | Z21: 9 | AA21: 2 | AB21: 7 | AC21: 3 | AD21: 15 | AE21: 29 | AF21: 20 | AG21: 28 | AH21: 39 | AI21: 8 | AJ21: 44 | AK21: 135 | AL21: 28 | AM21: 27 | AN21: 10 | AO21: 54 | AP21: 65 | AQ21: 68 | AR21: 19 | AS21: 29 | AT21: 27 | AU21: 20 | AV21: 50 | AW21: 13 | AX21: 9 | AY21: 6 | AZ21: 9 | BA21: 8 | BB21: 12 | BC21: 11 | BD21: 52 | BE21: 51 | BF21: 33 | BG21: 78 | BH21: 196 | BI21: 141 | BJ21: 239 | BK21: 84 | BL21: 46 | BM21: 24 | BN21: 18 | BO21: 7 | BP21: 4 | BQ21: 14 | BR21: 10 | BS21: 11 | BT21: 8 | BU21: 9 | BV21: 3 | BW21: 7 | BX21: 4 | BY21: 9 | BZ21: 0 | CA21: 3 | CB21: 0 | CC21: 2 | CD21: 2 | CE21: 5 | CF21: 0 | CG21: 7 | CH21: 7 | CI21: 0 | CJ21: 5 | CK21: 18 | CL21: 2 | CM21: 0 | CN21: 7 | CO21: 0 | CP21: 4 | CQ21: 0 | CR21: 0 | CS21: 0 | CT21: 0 | CV21: 190.0555114 | CW21: 87.10877607 | CX21: 110.865715 | CY21: 126.7036743 | CZ21: 625.5993918 | DA21: 451.3818396 | DB21: 213.8124504 | DC21: 221.73143 | DD21: 79.18979643 | DE21: 110.865715 | DF21: 79.18979643 | DG21: 166.2985725 | DH21: 118.7846946 | DI21: 174.2175521 | DJ21: 39.59489821 | DK21: 79.18979643 | DL21: 166.2985725 | DM21: 47.51387786 | DN21: 71.27081679 | DO21: 15.83795929 | DP21: 55.4328575 | DQ21: 23.75693893 | DR21: 118.7846946 | DS21: 229.6504096 | DT21: 158.3795929 | DU21: 221.73143 | DV21: 308.8402061 | DW21: 63.35183714 | DX21: 348.4351043 | DY21: 1069.062252 | DZ21: 221.73143 | EA21: 213.8124504 | EB21: 79.18979643 | EC21: 427.6249007 | ED21: 514.7336768 | EE21: 538.4906157 | EF21: 150.4606132 | EG21: 229.6504096 | EH21: 213.8124504 | EI21: 158.3795929 | EJ21: 395.9489821 | EK21: 102.9467354 | EL21: 71.27081679 | EM21: 47.51387786 | EN21: 71.27081679 | EO21: 63.35183714 | EP21: 95.02775571 | EQ21: 87.10877607 | ER21: 411.7869414 | ES21: 403.8679618 | ET21: 261.3263282 | EU21: 617.6804121 | EV21: 1552.12001 | EW21: 1116.57613 | EX21: 1892.636135 | EY21: 665.19429 | EZ21: 364.2730636 | FA21: 190.0555114 | FB21: 142.5416336 | FC21: 55.4328575 | FD21: 31.67591857 | FE21: 110.865715 | FF21: 79.18979643 | FG21: 87.10877607 | FH21: 63.35183714 | FI21: 71.27081679 | FJ21: 23.75693893 | FK21: 55.4328575 | FL21: 31.67591857 | FM21: 71.27081679 | FN21: 0 | FO21: 23.75693893 | FP21: 0 | FQ21: 15.83795929 | FR21: 15.83795929 | FS21: 39.59489821 | FT21: 0 | FU21: 55.4328575 | FV21: 55.4328575 | FW21: 0 | FX21: 39.59489821 | FY21: 142.5416336 | FZ21: 15.83795929 | GA21: 0 | GB21: 55.4328575 | GC21: 0 | GD21: 31.67591857 | GE21: 0 | GF21: 0 | GG21: 0 | GH21: 0
A22: 2 | B22: POLES | C22: staking of a wooden pole | D22: 18.15774899 | E22: 33.36082006 | F22: 5.775882622 | G22: 2 | H22: 15 | I22: 64 | J22: 203 | K22: 231 | L22: 239 | M22: 602 | N22: 477 | O22: 378 | P22: 268 | Q22: 290 | R22: 298 | S22: 254 | T22: 139 | U22: 94 | V22: 236 | W22: 164 | X22: 172 | Y22: 241 | Z22: 103 | AA22: 116 | AB22: 143 | AC22: 114 | AD22: 131 | AE22: 255 | AF22: 85 | AG22: 16 | AH22: 22 | AI22: 12 | AJ22: 96 | AK22: 68 | AL22: 0 | AM22: 0 | AN22: 0 | AO22: 0 | AP22: 0 | AQ22: 0 | AR22: 0 | AS22: 0 | AT22: 0 | AU22: 0 | AV22: 0 | AW22: 0 | AX22: 0 | AY22: 0 | AZ22: 0 | BA22: 0 | BB22: 0 | BC22: 0 | BD22: 0 | BE22: 0 | BF22: 0 | BG22: 0 | BH22: 0 | BI22: 0 | BJ22: 0 | BK22: 0 | BL22: 0 | BM22: 0 | BN22: 0 | BO22: 0 | BP22: 0 | BQ22: 0 | BR22: 0 | BS22: 0 | BT22: 0 | BU22: 0 | BV22: 0 | BW22: 0 | BX22: 0 | BY22: 0 | BZ22: 0 | CA22: 0 | CB22: 0 | CC22: 0 | CD22: 0 | CE22: 0 | CF22: 0 | CG22: 0 | CH22: 0 | CI22: 0 | CJ22: 0 | CK22: 0 | CL22: 0 | CM22: 0 | CN22: 0 | CO22: 0 | CP22: 0 | CQ22: 0 | CR22: 0 | CS22: 0 | CT22: 0 | CV22: 272.3662348 | CW22: 1162.095935 | CX22: 3686.023044 | CY22: 4194.440016 | CZ22: 4339.702008 | DA22: 10930.96489 | DB22: 8661.246267 | DC22: 6863.629117 | DD22: 4866.276729 | DE22: 5265.747206 | DF22: 5411.009198 | DG22: 4612.068243 | DH22: 2523.927109 | DI22: 1706.828405 | DJ22: 4285.228761 | DK22: 2977.870834 | DL22: 3123.132826 | DM22: 4376.017506 | DN22: 1870.248146 | DO22: 2106.298882 | DP22: 2596.558105 | DQ22: 2069.983385 | DR22: 2378.665117 | DS22: 4630.225992 | DT22: 1543.408664 | DU22: 290.5239838 | DV22: 399.4704777 | DW22: 217.8929878 | DX22: 1743.143903 | DY22: 1234.726931 | DZ22: 0 | EA22: 0 | EB22: 0 | EC22: 0 | ED22: 0 | EE22: 0 | EF22: 0 | EG22: 0 | EH22: 0 | EI22: 0 | EJ22: 0 | EK22: 0 | EL22: 0 | EM22: 0 | EN22: 0 | EO22: 0 | EP22: 0 | EQ22: 0 | ER22: 0 | ES22: 0 | ET22: 0 | EU22: 0 | EV22: 0 | EW22: 0 | EX22: 0 | EY22: 0 | EZ22: 0 | FA22: 0 | FB22: 0 | FC22: 0 | FD22: 0 | FE22: 0 | FF22: 0 | FG22: 0 | FH22: 0 | FI22: 0 | FJ22: 0 | FK22: 0 | FL22: 0 | FM22: 0 | FN22: 0 | FO22: 0 | FP22: 0 | FQ22: 0 | FR22: 0 | FS22: 0 | FT22: 0 | FU22: 0 | FV22: 0 | FW22: 0 | FX22: 0 | FY22: 0 | FZ22: 0 | GA22: 0 | GB22: 0 | GC22: 0 | GD22: 0 | GE22: 0 | GF22: 0 | GG22: 0 | GH22: 0
A23: 4 | B23: SWITCHGEAR | C23: ˂ = 11 kv ; circuit breaker | D23: 167.6968334 | E23: 97.02968737 | F23: 9.850364835 | G23: 2 | H23: 0 | I23: 3 | J23: 3 | K23: 3 | L23: 0 | M23: 7 | N23: 24 | O23: 1 | P23: 2 | Q23: 24 | R23: 35 | S23: 0 | T23: 5 | U23: 26 | V23: 7 | W23: 0 | X23: 29 | Y23: 15 | Z23: 0 | AA23: 0 | AB23: 0 | AC23: 0 | AD23: 0 | AE23: 0 | AF23: 0 | AG23: 0 | AH23: 0 | AI23: 0 | AJ23: 0 | AK23: 0 | AL23: 6 | AM23: 47 | AN23: 0 | AO23: 0 | AP23: 0 | AQ23: 0 | AR23: 0 | AS23: 20 | AT23: 4 | AU23: 0 | AV23: 0 | AW23: 0 | AX23: 0 | AY23: 61 | AZ23: 0 | BA23: 0 | BB23: 0 | BC23: 1 | BD23: 64 | BE23: 3 | BF23: 102 | BG23: 78 | BH23: 72 | BI23: 0 | BJ23: 94 | BK23: 36 | BL23: 103 | BM23: 21 | BN23: 20 | BO23: 0 | BP23: 0 | BQ23: 4 | BR23: 0 | BS23: 0 | BT23: 0 | BU23: 36 | BV23: 2 | BW23: 49 | BX23: 0 | BY23: 0 | BZ23: 0 | CA23: 0 | CB23: 0 | CC23: 0 | CD23: 0 | CE23: 0 | CF23: 0 | CG23: 0 | CH23: 0 | CI23: 17 | CJ23: 0 | CK23: 14 | CL23: 1 | CM23: 0 | CN23: 0 | CO23: 0 | CP23: 0 | CQ23: 0 | CR23: 0 | CS23: 0 | CT23: 0 | CV23: 0 | CW23: 503.0905001 | CX23: 503.0905001 | CY23: 503.0905001 | CZ23: 0 | DA23: 1173.877833 | DB23: 4024.724001 | DC23: 167.6968334 | DD23: 335.3936667 | DE23: 4024.724001 | DF23: 5869.389167 | DG23: 0 | DH23: 838.4841668 | DI23: 4360.117667 | DJ23: 1173.877833 | DK23: 0 | DL23: 4863.208167 | DM23: 2515.4525 | DN23: 0 | DO23: 0 | DP23: 0 | DQ23: 0 | DR23: 0 | DS23: 0 | DT23: 0 | DU23: 0 | DV23: 0 | DW23: 0 | DX23: 0 | DY23: 0 | DZ23: 1006.181 | EA23: 7881.751168 | EB23: 0 | EC23: 0 | ED23: 0 | EE23: 0 | EF23: 0 | EG23: 3353.936667 | EH23: 670.7873334 | EI23: 0 | EJ23: 0 | EK23: 0 | EL23: 0 | EM23: 10229.50683 | EN23: 0 | EO23: 0 | EP23: 0 | EQ23: 167.6968334 | ER23: 10732.59733 | ES23: 503.0905001 | ET23: 17105.077 | EU23: 13080.353 | EV23: 12074.172 | EW23: 0 | EX23: 15763.50234 | EY23: 6037.086001 | EZ23: 17272.77384 | FA23: 3521.6335 | FB23: 3353.936667 | FC23: 0 | FD23: 0 | FE23: 670.7873334 | FF23: 0 | FG23: 0 | FH23: 0 | FI23: 6037.086001 | FJ23: 335.3936667 | FK23: 8217.144834 | FL23: 0 | FM23: 0 | FN23: 0 | FO23: 0 | FP23: 0 | FQ23: 0 | FR23: 0 | FS23: 0 | FT23: 0 | FU23: 0 | FV23: 0 | FW23: 2850.846167 | FX23: 0 | FY23: 2347.755667 | FZ23: 167.6968334 | GA23: 0 | GB23: 0 | GC23: 0 | GD23: 0 | GE23: 0 | GF23: 0 | GG23: 0 | GH23: 0
A24: 4 | B24: SWITCHGEAR | C24: ˂ = 11 kv ; switch | D24: 31.23725225 | E24: 85.62987547 | F24: 9.253641201 | G24: 2 | H24: 299 | I24: 241 | J24: 193 | K24: 252 | L24: 261 | M24: 252 | N24: 311 | O24: 217 | P24: 257 | Q24: 220 | R24: 186 | S24: 358 | T24: 289 | U24: 258 | V24: 196 | W24: 3 | X24: 9 | Y24: 30 | Z24: 33 | AA24: 63 | AB24: 10 | AC24: 16 | AD24: 8 | AE24: 8 | AF24: 8 | AG24: 13 | AH24: 8 | AI24: 8 | AJ24: 8 | AK24: 8 | AL24: 392 | AM24: 8 | AN24: 8 | AO24: 8 | AP24: 8 | AQ24: 8 | AR24: 8 | AS24: 160 | AT24: 288 | AU24: 8 | AV24: 8 | AW24: 8 | AX24: 8 | AY24: 464 | AZ24: 8 | BA24: 8 | BB24: 8 | BC24: 8 | BD24: 472 | BE24: 248 | BF24: 744 | BG24: 608 | BH24: 584 | BI24: 8 | BJ24: 696 | BK24: 280 | BL24: 784 | BM24: 160 | BN24: 176 | BO24: 8 | BP24: 8 | BQ24: 8 | BR24: 8 | BS24: 8 | BT24: 8 | BU24: 376 | BV24: 32 | BW24: 312 | BX24: 8 | BY24: 8 | BZ24: 8 | CA24: 8 | CB24: 8 | CC24: 8 | CD24: 8 | CE24: 8 | CF24: 8 | CG24: 8 | CH24: 8 | CI24: 128 | CJ24: 8 | CK24: 112 | CL24: 8 | CM24: 8 | CN24: 8 | CO24: 8 | CP24: 8 | CQ24: 8 | CR24: 8 | CS24: 8 | CT24: 136 | CV24: 9339.938422 | CW24: 7528.177792 | CX24: 6028.789684 | CY24: 7871.787567 | CZ24: 8152.922837 | DA24: 7871.787567 | DB24: 9714.785449 | DC24: 6778.483738 | DD24: 8027.973828 | DE24: 6872.195495 | DF24: 5810.128918 | DG24: 11182.93631 | DH24: 9027.5659 | DI24: 8059.21108 | DJ24: 6122.501441 | DK24: 93.71175675 | DL24: 281.1352702 | DM24: 937.1175675 | DN24: 1030.829324 | DO24: 1967.946892 | DP24: 312.3725225 | DQ24: 499.796036 | DR24: 249.898018 | DS24: 249.898018 | DT24: 249.898018 | DU24: 406.0842792 | DV24: 249.898018 | DW24: 249.898018 | DX24: 249.898018 | DY24: 249.898018 | DZ24: 12245.00288 | EA24: 249.898018 | EB24: 249.898018 | EC24: 249.898018 | ED24: 249.898018 | EE24: 249.898018 | EF24: 249.898018 | EG24: 4997.96036 | EH24: 8996.328648 | EI24: 249.898018 | EJ24: 249.898018 | EK24: 249.898018 | EL24: 249.898018 | EM24: 14494.08504 | EN24: 249.898018 | EO24: 249.898018 | EP24: 249.898018 | EQ24: 249.898018 | ER24: 14743.98306 | ES24: 7746.838558 | ET24: 23240.51567 | EU24: 18992.24937 | EV24: 18242.55531 | EW24: 249.898018 | EX24: 21741.12757 | EY24: 8746.43063 | EZ24: 24490.00576 | FA24: 4997.96036 | FB24: 5497.756396 | FC24: 249.898018 | FD24: 249.898018 | FE24: 249.898018 | FF24: 249.898018 | FG24: 249.898018 | FH24: 249.898018 | FI24: 11745.20685 | FJ24: 999.592072 | FK24: 9746.022702 | FL24: 249.898018 | FM24: 249.898018 | FN24: 249.898018 | FO24: 249.898018 | FP24: 249.898018 | FQ24: 249.898018 | FR24: 249.898018 | FS24: 249.898018 | FT24: 249.898018 | FU24: 249.898018 | FV24: 249.898018 | FW24: 3998.368288 | FX24: 249.898018 | FY24: 3498.572252 | FZ24: 249.898018 | GA24: 249.898018 | GB24: 249.898018 | GC24: 249.898018 | GD24: 249.898018 | GE24: 249.898018 | GF24: 249.898018 | GG24: 249.898018 | GH24: 4248.266306
A25: 4 | B25: SWITCHGEAR | C25: > 11 kv & < = 22 kv ; circuit breaker | D25: 143.0427791 | E25: 58.48670675 | F25: 7.647660214 | G25: 2 | H25: 0 | I25: 0 | J25: 1 | K25: 0 | L25: 0 | M25: 0 | N25: 0 | O25: 0 | P25: 1 | Q25: 1 | R25: 0 | S25: 0 | T25: 0 | U25: 0 | V25: 0 | W25: 0 | X25: 0 | Y25: 0 | Z25: 0 | AA25: 0 | AB25: 0 | AC25: 0 | AD25: 0 | AE25: 0 | AF25: 0 | AG25: 0 | AH25: 0 | AI25: 0 | AJ25: 0 | AK25: 0 | AL25: 0 | AM25: 0 | AN25: 0 | AO25: 0 | AP25: 0 | AQ25: 0 | AR25: 0 | AS25: 0 | AT25: 0 | AU25: 0 | AV25: 0 | AW25: 0 | AX25: 0 | AY25: 0 | AZ25: 0 | BA25: 0 | BB25: 0 | BC25: 0 | BD25: 0 | BE25: 0 | BF25: 4 | BG25: 0 | BH25: 0 | BI25: 0 | BJ25: 0 | BK25: 0 | BL25: 0 | BM25: 0 | BN25: 0 | BO25: 0 | BP25: 0 | BQ25: 0 | BR25: 0 | BS25: 0 | BT25: 0 | BU25: 23 | BV25: 2 | BW25: 2 | BX25: 0 | BY25: 0 | BZ25: 0 | CA25: 0 | CB25: 0 | CC25: 0 | CD25: 0 | CE25: 0 | CF25: 0 | CG25: 0 | CH25: 0 | CI25: 0 | CJ25: 0 | CK25: 0 | CL25: 0 | CM25: 0 | CN25: 0 | CO25: 0 | CP25: 0 | CQ25: 0 | CR25: 0 | CS25: 0 | CT25: 0 | CV25: 0 | CW25: 0 | CX25: 143.0427791 | CY25: 0 | CZ25: 0 | DA25: 0 | DB25: 0 | DC25: 0 | DD25: 143.0427791 | DE25: 143.0427791 | DF25: 0 | DG25: 0 | DH25: 0 | DI25: 0 | DJ25: 0 | DK25: 0 | DL25: 0 | DM25: 0 | DN25: 0 | DO25: 0 | DP25: 0 | DQ25: 0 | DR25: 0 | DS25: 0 | DT25: 0 | DU25: 0 | DV25: 0 | DW25: 0 | DX25: 0 | DY25: 0 | DZ25: 0 | EA25: 0 | EB25: 0 | EC25: 0 | ED25: 0 | EE25: 0 | EF25: 0 | EG25: 0 | EH25: 0 | EI25: 0 | EJ25: 0 | EK25: 0 | EL25: 0 | EM25: 0 | EN25: 0 | EO25: 0 | EP25: 0 | EQ25: 0 | ER25: 0 | ES25: 0 | ET25: 572.1711165 | EU25: 0 | EV25: 0 | EW25: 0 | EX25: 0 | EY25: 0 | EZ25: 0 | FA25: 0 | FB25: 0 | FC25: 0 | FD25: 0 | FE25: 0 | FF25: 0 | FG25: 0 | FH25: 0 | FI25: 3289.98392 | FJ25: 286.0855583 | FK25: 286.0855583 | FL25: 0 | FM25: 0 | FN25: 0 | FO25: 0 | FP25: 0 | FQ25: 0 | FR25: 0 | FS25: 0 | FT25: 0 | FU25: 0 | FV25: 0 | FW25: 0 | FX25: 0 | FY25: 0 | FZ25: 0 | GA25: 0 | GB25: 0 | GC25: 0 | GD25: 0 | GE25: 0 | GF25: 0 | GG25: 0 | GH25: 0
A26: 4 | B26: SWITCHGEAR | C26: > 11 kv & < = 22 kv ; switch | D26: 31.23725225 | E26: 25.37444141 | F26: 5.037304975 | G26: 2 | H26: 0 | I26: 0 | J26: 7 | K26: 0 | L26: 0 | M26: 0 | N26: 0 | O26: 0 | P26: 0 | Q26: 0 | R26: 0 | S26: 31 | T26: 18 | U26: 0 | V26: 0 | W26: 0 | X26: 0 | Y26: 0 | Z26: 0 | AA26: 0 | AB26: 0 | AC26: 0 | AD26: 0 | AE26: 0 | AF26: 0 | AG26: 0 | AH26: 0 | AI26: 0 | AJ26: 0 | AK26: 0 | AL26: 0 | AM26: 0 | AN26: 0 | AO26: 0 | AP26: 0 | AQ26: 0 | AR26: 0 | AS26: 0 | AT26: 0 | AU26: 0 | AV26: 0 | AW26: 0 | AX26: 0 | AY26: 0 | AZ26: 0 | BA26: 0 | BB26: 0 | BC26: 0 | BD26: 0 | BE26: 0 | BF26: 0 | BG26: 0 | BH26: 0 | BI26: 0 | BJ26: 0 | BK26: 0 | BL26: 1 | BM26: 0 | BN26: 0 | BO26: 0 | BP26: 0 | BQ26: 0 | BR26: 0 | BS26: 0 | BT26: 0 | BU26: 0 | BV26: 0 | BW26: 0 | BX26: 0 | BY26: 0 | BZ26: 0 | CA26: 0 | CB26: 0 | CC26: 0 | CD26: 0 | CE26: 0 | CF26: 0 | CG26: 0 | CH26: 0 | CI26: 0 | CJ26: 0 | CK26: 0 | CL26: 0 | CM26: 0 | CN26: 0 | CO26: 0 | CP26: 0 | CQ26: 0 | CR26: 0 | CS26: 0 | CT26: 0 | CV26: 0 | CW26: 0 | CX26: 218.6607657 | CY26: 0 | CZ26: 0 | DA26: 0 | DB26: 0 | DC26: 0 | DD26: 0 | DE26: 0 | DF26: 0 | DG26: 968.3548197 | DH26: 562.2705405 | DI26: 0 | DJ26: 0 | DK26: 0 | DL26: 0 | DM26: 0 | DN26: 0 | DO26: 0 | DP26: 0 | DQ26: 0 | DR26: 0 | DS26: 0 | DT26: 0 | DU26: 0 | DV26: 0 | DW26: 0 | DX26: 0 | DY26: 0 | DZ26: 0 | EA26: 0 | EB26: 0 | EC26: 0 | ED26: 0 | EE26: 0 | EF26: 0 | EG26: 0 | EH26: 0 | EI26: 0 | EJ26: 0 | EK26: 0 | EL26: 0 | EM26: 0 | EN26: 0 | EO26: 0 | EP26: 0 | EQ26: 0 | ER26: 0 | ES26: 0 | ET26: 0 | EU26: 0 | EV26: 0 | EW26: 0 | EX26: 0 | EY26: 0 | EZ26: 31.23725225 | FA26: 0 | FB26: 0 | FC26: 0 | FD26: 0 | FE26: 0 | FF26: 0 | FG26: 0 | FH26: 0 | FI26: 0 | FJ26: 0 | FK26: 0 | FL26: 0 | FM26: 0 | FN26: 0 | FO26: 0 | FP26: 0 | FQ26: 0 | FR26: 0 | FS26: 0 | FT26: 0 | FU26: 0 | FV26: 0 | FW26: 0 | FX26: 0 | FY26: 0 | FZ26: 0 | GA26: 0 | GB26: 0 | GC26: 0 | GD26: 0 | GE26: 0 | GF26: 0 | GG26: 0 | GH26: 0
A27: 4 | B27: SWITCHGEAR | C27: > 33 kv & < = 66 kv ; circuit breaker | D27: 143.0427791 | E27: 58.48670675 | F27: 7.647660214 | G27: 2 | H27: 0 | I27: 0 | J27: 1 | K27: 1 | L27: 0 | M27: 1 | N27: 1 | O27: 1 | P27: 0 | Q27: 31 | R27: 8 | S27: 0 | T27: 1 | U27: 1 | V27: 0 | W27: 2 | X27: 1 | Y27: 2 | Z27: 0 | AA27: 0 | AB27: 0 | AC27: 0 | AD27: 0 | AE27: 0 | AF27: 0 | AG27: 0 | AH27: 0 | AI27: 0 | AJ27: 0 | AK27: 0 | AL27: 0 | AM27: 2 | AN27: 0 | AO27: 0 | AP27: 0 | AQ27: 0 | AR27: 0 | AS27: 0 | AT27: 0 | AU27: 0 | AV27: 0 | AW27: 0 | AX27: 0 | AY27: 0 | AZ27: 0 | BA27: 0 | BB27: 0 | BC27: 0 | BD27: 0 | BE27: 0 | BF27: 4 | BG27: 7 | BH27: 2 | BI27: 1 | BJ27: 2 | BK27: 0 | BL27: 1 | BM27: 1 | BN27: 0 | BO27: 1 | BP27: 0 | BQ27: 1 | BR27: 0 | BS27: 0 | BT27: 0 | BU27: 0 | BV27: 0 | BW27: 0 | BX27: 0 | BY27: 0 | BZ27: 0 | CA27: 0 | CB27: 0 | CC27: 0 | CD27: 0 | CE27: 0 | CF27: 0 | CG27: 0 | CH27: 0 | CI27: 0 | CJ27: 0 | CK27: 0 | CL27: 0 | CM27: 0 | CN27: 0 | CO27: 0 | CP27: 0 | CQ27: 0 | CR27: 0 | CS27: 0 | CT27: 0 | CV27: 0 | CW27: 0 | CX27: 143.0427791 | CY27: 143.0427791 | CZ27: 0 | DA27: 143.0427791 | DB27: 143.0427791 | DC27: 143.0427791 | DD27: 0 | DE27: 4434.326153 | DF27: 1144.342233 | DG27: 0 | DH27: 143.0427791 | DI27: 143.0427791 | DJ27: 0 | DK27: 286.0855583 | DL27: 143.0427791 | DM27: 286.0855583 | DN27: 0 | DO27: 0 | DP27: 0 | DQ27: 0 | DR27: 0 | DS27: 0 | DT27: 0 | DU27: 0 | DV27: 0 | DW27: 0 | DX27: 0 | DY27: 0 | DZ27: 0 | EA27: 286.0855583 | EB27: 0 | EC27: 0 | ED27: 0 | EE27: 0 | EF27: 0 | EG27: 0 | EH27: 0 | EI27: 0 | EJ27: 0 | EK27: 0 | EL27: 0 | EM27: 0 | EN27: 0 | EO27: 0 | EP27: 0 | EQ27: 0 | ER27: 0 | ES27: 0 | ET27: 572.1711165 | EU27: 1001.299454 | EV27: 286.0855583 | EW27: 143.0427791 | EX27: 286.0855583 | EY27: 0 | EZ27: 143.0427791 | FA27: 143.0427791 | FB27: 0 | FC27: 143.0427791 | FD27: 0 | FE27: 143.0427791 | FF27: 0 | FG27: 0 | FH27: 0 | FI27: 0 | FJ27: 0 | FK27: 0 | FL27: 0 | FM27: 0 | FN27: 0 | FO27: 0 | FP27: 0 | FQ27: 0 | FR27: 0 | FS27: 0 | FT27: 0 | FU27: 0 | FV27: 0 | FW27: 0 | FX27: 0 | FY27: 0 | FZ27: 0 | GA27: 0 | GB27: 0 | GC27: 0 | GD27: 0 | GE27: 0 | GF27: 0 | GG27: 0 | GH27: 0
A28: 4 | B28: SWITCHGEAR | C28: > 33 kv & < = 66 kv ; switch | D28: 31.23725225 | E28: 85.62987547 | F28: 9.253641201 | G28: 2 | H28: 0 | I28: 2 | J28: 11 | K28: 0 | L28: 0 | M28: 4 | N28: 1 | O28: 5 | P28: 0 | Q28: 0 | R28: 0 | S28: 0 | T28: 1 | U28: 0 | V28: 0 | W28: 5 | X28: 0 | Y28: 0 | Z28: 0 | AA28: 0 | AB28: 0 | AC28: 0 | AD28: 0 | AE28: 0 | AF28: 0 | AG28: 0 | AH28: 0 | AI28: 0 | AJ28: 0 | AK28: 0 | AL28: 0 | AM28: 0 | AN28: 0 | AO28: 0 | AP28: 0 | AQ28: 0 | AR28: 0 | AS28: 1 | AT28: 0 | AU28: 0 | AV28: 0 | AW28: 0 | AX28: 0 | AY28: 0 | AZ28: 0 | BA28: 0 | BB28: 0 | BC28: 0 | BD28: 0 | BE28: 0 | BF28: 0 | BG28: 0 | BH28: 0 | BI28: 0 | BJ28: 0 | BK28: 1 | BL28: 0 | BM28: 0 | BN28: 0 | BO28: 0 | BP28: 0 | BQ28: 0 | BR28: 0 | BS28: 0 | BT28: 0 | BU28: 0 | BV28: 0 | BW28: 0 | BX28: 0 | BY28: 0 | BZ28: 0 | CA28: 0 | CB28: 0 | CC28: 0 | CD28: 0 | CE28: 0 | CF28: 0 | CG28: 0 | CH28: 0 | CI28: 0 | CJ28: 0 | CK28: 0 | CL28: 0 | CM28: 0 | CN28: 0 | CO28: 0 | CP28: 0 | CQ28: 0 | CR28: 0 | CS28: 0 | CT28: 0 | CV28: 0 | CW28: 62.4745045 | CX28: 343.6097747 | CY28: 0 | CZ28: 0 | DA28: 124.949009 | DB28: 31.23725225 | DC28: 156.1862612 | DD28: 0 | DE28: 0 | DF28: 0 | DG28: 0 | DH28: 31.23725225 | DI28: 0 | DJ28: 0 | DK28: 156.1862612 | DL28: 0 | DM28: 0 | DN28: 0 | DO28: 0 | DP28: 0 | DQ28: 0 | DR28: 0 | DS28: 0 | DT28: 0 | DU28: 0 | DV28: 0 | DW28: 0 | DX28: 0 | DY28: 0 | DZ28: 0 | EA28: 0 | EB28: 0 | EC28: 0 | ED28: 0 | EE28: 0 | EF28: 0 | EG28: 31.23725225 | EH28: 0 | EI28: 0 | EJ28: 0 | EK28: 0 | EL28: 0 | EM28: 0 | EN28: 0 | EO28: 0 | EP28: 0 | EQ28: 0 | ER28: 0 | ES28: 0 | ET28: 0 | EU28: 0 | EV28: 0 | EW28: 0 | EX28: 0 | EY28: 31.23725225 | EZ28: 0 | FA28: 0 | FB28: 0 | FC28: 0 | FD28: 0 | FE28: 0 | FF28: 0 | FG28: 0 | FH28: 0 | FI28: 0 | FJ28: 0 | FK28: 0 | FL28: 0 | FM28: 0 | FN28: 0 | FO28: 0 | FP28: 0 | FQ28: 0 | FR28: 0 | FS28: 0 | FT28: 0 | FU28: 0 | FV28: 0 | FW28: 0 | FX28: 0 | FY28: 0 | FZ28: 0 | GA28: 0 | GB28: 0 | GC28: 0 | GD28: 0 | GE28: 0 | GF28: 0 | GG28: 0 | GH28: 0
B29: TRANSFORMERS | C29: ground outdoor / indoor chamber mounted ; ˂ 22 kv ; < = 60 kva ; multiple phase | G29: 2 | H29: 0 | I29: 0 | J29: 0 | K29: 0 | L29: 0 | M29: 0 | N29: 0 | O29: 0 | P29: 0 | Q29: 0 | R29: 0 | S29: 0 | T29: 0 | U29: 0 | V29: 0 | W29: 0 | X29: 0 | Y29: 0 | Z29: 0 | AA29: 0 | AB29: 0 | AC29: 0 | AD29: 0 | AE29: 0 | AF29: 0 | AG29: 0 | AH29: 0 | AI29: 0 | AJ29: 0 | AK29: 0 | AL29: 0 | AM29: 0 | AN29: 0 | AO29: 0 | AP29: 0 | AQ29: 0 | AR29: 0 | AS29: 0 | AT29: 0 | AU29: 1 | AV29: 0 | AW29: 0 | AX29: 0 | AY29: 0 | AZ29: 0 | BA29: 0 | BB29: 0 | BC29: 0 | BD29: 0 | BE29: 1 | BF29: 0 | BG29: 0 | BH29: 0 | BI29: 1 | BJ29: 0 | BK29: 0 | BL29: 0 | BM29: 0 | BN29: 0 | BO29: 0 | BP29: 0 | BQ29: 0 | BR29: 0 | BS29: 0 | BT29: 0 | BU29: 0 | BV29: 0 | BW29: 0 | BX29: 0 | BY29: 0 | BZ29: 0 | CA29: 0 | CB29: 0 | CC29: 0 | CD29: 0 | CE29: 0 | CF29: 0 | CG29: 0 | CH29: 0 | CI29: 0 | CJ29: 0 | CK29: 0 | CL29: 0 | CM29: 0 | CN29: 0 | CO29: 0 | CP29: 0 | CQ29: 0 | CR29: 0 | CS29: 0 | CT29: 0 | CV29: 0 | CW29: 0 | CX29: 0 | CY29: 0 | CZ29: 0 | DA29: 0 | DB29: 0 | DC29: 0 | DD29: 0 | DE29: 0 | DF29: 0 | DG29: 0 | DH29: 0 | DI29: 0 | DJ29: 0 | DK29: 0 | DL29: 0 | DM29: 0 | DN29: 0 | DO29: 0 | DP29: 0 | DQ29: 0 | DR29: 0 | DS29: 0 | DT29: 0 | DU29: 0 | DV29: 0 | DW29: 0 | DX29: 0 | DY29: 0 | DZ29: 0 | EA29: 0 | EB29: 0 | EC29: 0 | ED29: 0 | EE29: 0 | EF29: 0 | EG29: 0 | EH29: 0 | EI29: 0 | EJ29: 0 | EK29: 0 | EL29: 0 | EM29: 0 | EN29: 0 | EO29: 0 | EP29: 0 | EQ29: 0 | ER29: 0 | ES29: 0 | ET29: 0 | EU29: 0 | EV29: 0 | EW29: 0 | EX29: 0 | EY29: 0 | EZ29: 0 | FA29: 0 | FB29: 0 | FC29: 0 | FD29: 0 | FE29: 0 | FF29: 0 | FG29: 0 | FH29: 0 | FI29: 0 | FJ29: 0 | FK29: 0 | FL29: 0 | FM29: 0 | FN29: 0 | FO29: 0 | FP29: 0 | FQ29: 0 | FR29: 0 | FS29: 0 | FT29: 0 | FU29: 0 | FV29: 0 | FW29: 0 | FX29: 0 | FY29: 0 | FZ29: 0 | GA29: 0 | GB29: 0 | GC29: 0 | GD29: 0 | GE29: 0 | GF29: 0 | GG29: 0 | GH29: 0
A30: 5 | B30: TRANSFORMERS | C30: ground outdoor / indoor chamber mounted ; ˂ 22 kv ; > 60 kva and < = 600 kva ; multiple phase | D30: 109.5818064 | E30: 80.31948214 | F30: 8.962113709 | G30: 2 | H30: 22 | I30: 22 | J30: 23 | K30: 26 | L30: 28 | M30: 23 | N30: 26 | O30: 24 | P30: 39 | Q30: 33 | R30: 36 | S30: 38 | T30: 38 | U30: 37 | V30: 37 | W30: 31 | X30: 30 | Y30: 26 | Z30: 21 | AA30: 27 | AB30: 17 | AC30: 10 | AD30: 9 | AE30: 10 | AF30: 18 | AG30: 16 | AH30: 6 | AI30: 23 | AJ30: 12 | AK30: 9 | AL30: 9 | AM30: 7 | AN30: 17 | AO30: 9 | AP30: 28 | AQ30: 6 | AR30: 6 | AS30: 1 | AT30: 13 | AU30: 59 | AV30: 31 | AW30: 14 | AX30: 4 | AY30: 6 | AZ30: 14 | BA30: 6 | BB30: 22 | BC30: 26 | BD30: 6 | BE30: 50 | BF30: 20 | BG30: 33 | BH30: 41 | BI30: 45 | BJ30: 42 | BK30: 22 | BL30: 5 | BM30: 3 | BN30: 1 | BO30: 1 | BP30: 0 | BQ30: 1 | BR30: 0 | BS30: 0 | BT30: 0 | BU30: 0 | BV30: 0 | BW30: 0 | BX30: 0 | BY30: 1 | BZ30: 0 | CA30: 0 | CB30: 0 | CC30: 0 | CD30: 1 | CE30: 0 | CF30: 0 | CG30: 0 | CH30: 0 | CI30: 0 | CJ30: 0 | CK30: 0 | CL30: 0 | CM30: 0 | CN30: 1 | CO30: 0 | CP30: 0 | CQ30: 0 | CR30: 0 | CS30: 0 | CT30: 0 | CV30: 2410.79974 | CW30: 2410.79974 | CX30: 2520.381547 | CY30: 2849.126966 | CZ30: 3068.290579 | DA30: 2520.381547 | DB30: 2849.126966 | DC30: 2629.963353 | DD30: 4273.690449 | DE30: 3616.199611 | DF30: 3944.94503 | DG30: 4164.108642 | DH30: 4164.108642 | DI30: 4054.526836 | DJ30: 4054.526836 | DK30: 3397.035998 | DL30: 3287.454191 | DM30: 2849.126966 | DN30: 2301.217934 | DO30: 2958.708772 | DP30: 1862.890708 | DQ30: 1095.818064 | DR30: 986.2362574 | DS30: 1095.818064 | DT30: 1972.472515 | DU30: 1753.308902 | DV30: 657.4908383 | DW30: 2520.381547 | DX30: 1314.981677 | DY30: 986.2362574 | DZ30: 986.2362574 | EA30: 767.0726447 | EB30: 1862.890708 | EC30: 986.2362574 | ED30: 3068.290579 | EE30: 657.4908383 | EF30: 657.4908383 | EG30: 109.5818064 | EH30: 1424.563483 | EI30: 6465.326576 | EJ30: 3397.035998 | EK30: 1534.145289 | EL30: 438.3272255 | EM30: 657.4908383 | EN30: 1534.145289 | EO30: 657.4908383 | EP30: 2410.79974 | EQ30: 2849.126966 | ER30: 657.4908383 | ES30: 5479.090319 | ET30: 2191.636128 | EU30: 3616.199611 | EV30: 4492.854062 | EW30: 4931.181287 | EX30: 4602.435868 | EY30: 2410.79974 | EZ30: 547.9090319 | FA30: 328.7454191 | FB30: 109.5818064 | FC30: 109.5818064 | FD30: 0 | FE30: 109.5818064 | FF30: 0 | FG30: 0 | FH30: 0 | FI30: 0 | FJ30: 0 | FK30: 0 | FL30: 0 | FM30: 109.5818064 | FN30: 0 | FO30: 0 | FP30: 0 | FQ30: 0 | FR30: 109.5818064 | FS30: 0 | FT30: 0 | FU30: 0 | FV30: 0 | FW30: 0 | FX30: 0 | FY30: 0 | FZ30: 0 | GA30: 0 | GB30: 109.5818064 | GC30: 0 | GD30: 0 | GE30: 0 | GF30: 0 | GG30: 0 | GH30: 0
A31: 5 | B31: TRANSFORMERS | C31: ground outdoor / indoor chamber mounted ; ˂ 22 kv ; > 600 kva ; multiple phase | D31: 57.21433635 | E31: 71.64675539 | F31: 8.464440643 | G31: 2 | H31: 63 | I31: 41 | J31: 42 | K31: 49 | L31: 52 | M31: 43 | N31: 49 | O31: 44 | P31: 73 | Q31: 61 | R31: 67 | S31: 71 | T31: 70 | U31: 69 | V31: 69 | W31: 58 | X31: 55 | Y31: 49 | Z31: 40 | AA31: 51 | AB31: 32 | AC31: 18 | AD31: 16 | AE31: 19 | AF31: 33 | AG31: 29 | AH31: 11 | AI31: 42 | AJ31: 22 | AK31: 17 | AL31: 17 | AM31: 14 | AN31: 32 | AO31: 17 | AP31: 51 | AQ31: 11 | AR31: 11 | AS31: 2 | AT31: 23 | AU31: 110 | AV31: 58 | AW31: 26 | AX31: 8 | AY31: 10 | AZ31: 26 | BA31: 10 | BB31: 42 | BC31: 48 | BD31: 11 | BE31: 92 | BF31: 37 | BG31: 61 | BH31: 77 | BI31: 83 | BJ31: 78 | BK31: 42 | BL31: 9 | BM31: 5 | BN31: 1 | BO31: 1 | BP31: 0 | BQ31: 2 | BR31: 0 | BS31: 0 | BT31: 0 | BU31: 0 | BV31: 0 | BW31: 0 | BX31: 0 | BY31: 1 | BZ31: 0 | CA31: 0 | CB31: 0 | CC31: 0 | CD31: 1 | CE31: 0 | CF31: 0 | CG31: 0 | CH31: 0 | CI31: 0 | CJ31: 0 | CK31: 0 | CL31: 0 | CM31: 0 | CN31: 1 | CO31: 0 | CP31: 0 | CQ31: 0 | CR31: 0 | CS31: 0 | CT31: 0 | CV31: 3604.50319 | CW31: 2345.78779 | CX31: 2403.002127 | CY31: 2803.502481 | CZ31: 2975.14549 | DA31: 2460.216463 | DB31: 2803.502481 | DC31: 2517.4308 | DD31: 4176.646554 | DE31: 3490.074518 | DF31: 3833.360536 | DG31: 4062.217881 | DH31: 4005.003545 | DI31: 3947.789208 | DJ31: 3947.789208 | DK31: 3318.431509 | DL31: 3146.788499 | DM31: 2803.502481 | DN31: 2288.573454 | DO31: 2917.931154 | DP31: 1830.858763 | DQ31: 1029.858054 | DR31: 915.4293817 | DS31: 1087.072391 | DT31: 1888.0731 | DU31: 1659.215754 | DV31: 629.3576999 | DW31: 2403.002127 | DX31: 1258.7154 | DY31: 972.643718 | DZ31: 972.643718 | EA31: 801.000709 | EB31: 1830.858763 | EC31: 972.643718 | ED31: 2917.931154 | EE31: 629.3576999 | EF31: 629.3576999 | EG31: 114.4286727 | EH31: 1315.929736 | EI31: 6293.576999 | EJ31: 3318.431509 | EK31: 1487.572745 | EL31: 457.7146908 | EM31: 572.1433635 | EN31: 1487.572745 | EO31: 572.1433635 | EP31: 2403.002127 | EQ31: 2746.288145 | ER31: 629.3576999 | ES31: 5263.718945 | ET31: 2116.930445 | EU31: 3490.074518 | EV31: 4405.503899 | EW31: 4748.789917 | EX31: 4462.718236 | EY31: 2403.002127 | EZ31: 514.9290272 | FA31: 286.0716818 | FB31: 57.21433635 | FC31: 57.21433635 | FD31: 0 | FE31: 114.4286727 | FF31: 0 | FG31: 0 | FH31: 0 | FI31: 0 | FJ31: 0 | FK31: 0 | FL31: 0 | FM31: 57.21433635 | FN31: 0 | FO31: 0 | FP31: 0 | FQ31: 0 | FR31: 57.21433635 | FS31: 0 | FT31: 0 | FU31: 0 | FV31: 0 | FW31: 0 | FX31: 0 | FY31: 0 | FZ31: 0 | GA31: 0 | GB31: 57.21433635 | GC31: 0 | GD31: 0 | GE31: 0 | GF31: 0 | GG31: 0 | GH31: 0
A32: 5 | B32: TRANSFORMERS | C32: ground outdoor / indoor chamber mounted ; > = 22 kv & < = 33 kv ; < = 15 mva | D32: 1500 | E32: 71.64675539 | F32: 8.464440643 | G32: 2 | H32: 0 | I32: 0 | J32: 0 | K32: 0 | L32: 0 | M32: 0 | N32: 0 | O32: 0 | P32: 1 | Q32: 0 | R32: 0 | S32: 1 | T32: 0 | U32: 0 | V32: 0 | W32: 0 | X32: 0 | Y32: 0 | Z32: 0 | AA32: 0 | AB32: 0 | AC32: 0 | AD32: 0 | AE32: 0 | AF32: 0 | AG32: 0 | AH32: 0 | AI32: 0 | AJ32: 0 | AK32: 0 | AL32: 0 | AM32: 0 | AN32: 0 | AO32: 0 | AP32: 0 | AQ32: 0 | AR32: 0 | AS32: 0 | AT32: 0 | AU32: 1 | AV32: 0 | AW32: 0 | AX32: 0 | AY32: 0 | AZ32: 1 | BA32: 0 | BB32: 0 | BC32: 0 | BD32: 1 | BE32: 0 | BF32: 1 | BG32: 1 | BH32: 0 | BI32: 0 | BJ32: 1 | BK32: 0 | BL32: 1 | BM32: 1 | BN32: 1 | BO32: 2 | BP32: 0 | BQ32: 0 | BR32: 1 | BS32: 0 | BT32: 0 | BU32: 2 | BV32: 0 | BW32: 3 | BX32: 1 | BY32: 2 | BZ32: 0 | CA32: 0 | CB32: 0 | CC32: 0 | CD32: 0 | CE32: 0 | CF32: 0 | CG32: 0 | CH32: 0 | CI32: 1 | CJ32: 0 | CK32: 2 | CL32: 0 | CM32: 0 | CN32: 0 | CO32: 0 | CP32: 0 | CQ32: 0 | CR32: 0 | CS32: 0 | CT32: 0 | CV32: 0 | CW32: 0 | CX32: 0 | CY32: 0 | CZ32: 0 | DA32: 0 | DB32: 0 | DC32: 0 | DD32: 1500 | DE32: 0 | DF32: 0 | DG32: 1500 | DH32: 0 | DI32: 0 | DJ32: 0 | DK32: 0 | DL32: 0 | DM32: 0 | DN32: 0 | DO32: 0 | DP32: 0 | DQ32: 0 | DR32: 0 | DS32: 0 | DT32: 0 | DU32: 0 | DV32: 0 | DW32: 0 | DX32: 0 | DY32: 0 | DZ32: 0 | EA32: 0 | EB32: 0 | EC32: 0 | ED32: 0 | EE32: 0 | EF32: 0 | EG32: 0 | EH32: 0 | EI32: 1500 | EJ32: 0 | EK32: 0 | EL32: 0 | EM32: 0 | EN32: 1500 | EO32: 0 | EP32: 0 | EQ32: 0 | ER32: 1500 | ES32: 0 | ET32: 1500 | EU32: 1500 | EV32: 0 | EW32: 0 | EX32: 1500 | EY32: 0 | EZ32: 1500 | FA32: 1500 | FB32: 1500 | FC32: 3000 | FD32: 0 | FE32: 0 | FF32: 1500 | FG32: 0 | FH32: 0 | FI32: 3000 | FJ32: 0 | FK32: 4500 | FL32: 1500 | FM32: 3000 | FN32: 0 | FO32: 0 | FP32: 0 | FQ32: 0 | FR32: 0 | FS32: 0 | FT32: 0 | FU32: 0 | FV32: 0 | FW32: 1500 | FX32: 0 | FY32: 3000 | FZ32: 0 | GA32: 0 | GB32: 0 | GC32: 0 | GD32: 0 | GE32: 0 | GF32: 0 | GG32: 0 | GH32: 0
A33: 5 | B33: TRANSFORMERS | C33: ground outdoor / indoor chamber mounted ; > 33 kv & < = 66 kv ; < = 15 mva | D33: 1500 | E33: 71.64675539 | F33: 8.464440643 | G33: 2 | H33: 0 | I33: 0 | J33: 0 | K33: 0 | L33: 0 | M33: 0 | N33: 0 | O33: 0 | P33: 0 | Q33: 0 | R33: 0 | S33: 0 | T33: 0 | U33: 0 | V33: 0 | W33: 0 | X33: 0 | Y33: 0 | Z33: 0 | AA33: 0 | AB33: 0 | AC33: 0 | AD33: 0 | AE33: 0 | AF33: 0 | AG33: 0 | AH33: 0 | AI33: 0 | AJ33: 0 | AK33: 0 | AL33: 0 | AM33: 0 | AN33: 0 | AO33: 0 | AP33: 0 | AQ33: 0 | AR33: 0 | AS33: 0 | AT33: 0 | AU33: 0 | AV33: 0 | AW33: 0 | AX33: 0 | AY33: 0 | AZ33: 0 | BA33: 0 | BB33: 0 | BC33: 0 | BD33: 0 | BE33: 0 | BF33: 0 | BG33: 0 | BH33: 0 | BI33: 0 | BJ33: 0 | BK33: 0 | BL33: 0 | BM33: 0 | BN33: 1 | BO33: 2 | BP33: 0 | BQ33: 0 | BR33: 0 | BS33: 0 | BT33: 0 | BU33: 0 | BV33: 0 | BW33: 0 | BX33: 0 | BY33: 0 | BZ33: 0 | CA33: 0 | CB33: 0 | CC33: 0 | CD33: 0 | CE33: 0 | CF33: 0 | CG33: 0 | CH33: 0 | CI33: 0 | CJ33: 0 | CK33: 0 | CL33: 0 | CM33: 0 | CN33: 0 | CO33: 0 | CP33: 0 | CQ33: 0 | CR33: 0 | CS33: 0 | CT33: 0 | CV33: 0 | CW33: 0 | CX33: 0 | CY33: 0 | CZ33: 0 | DA33: 0 | DB33: 0 | DC33: 0 | DD33: 0 | DE33: 0 | DF33: 0 | DG33: 0 | DH33: 0 | DI33: 0 | DJ33: 0 | DK33: 0 | DL33: 0 | DM33: 0 | DN33: 0 | DO33: 0 | DP33: 0 | DQ33: 0 | DR33: 0 | DS33: 0 | DT33: 0 | DU33: 0 | DV33: 0 | DW33: 0 | DX33: 0 | DY33: 0 | DZ33: 0 | EA33: 0 | EB33: 0 | EC33: 0 | ED33: 0 | EE33: 0 | EF33: 0 | EG33: 0 | EH33: 0 | EI33: 0 | EJ33: 0 | EK33: 0 | EL33: 0 | EM33: 0 | EN33: 0 | EO33: 0 | EP33: 0 | EQ33: 0 | ER33: 0 | ES33: 0 | ET33: 0 | EU33: 0 | EV33: 0 | EW33: 0 | EX33: 0 | EY33: 0 | EZ33: 0 | FA33: 0 | FB33: 1500 | FC33: 3000 | FD33: 0 | FE33: 0 | FF33: 0 | FG33: 0 | FH33: 0 | FI33: 0 | FJ33: 0 | FK33: 0 | FL33: 0 | FM33: 0 | FN33: 0 | FO33: 0 | FP33: 0 | FQ33: 0 | FR33: 0 | FS33: 0 | FT33: 0 | FU33: 0 | FV33: 0 | FW33: 0 | FX33: 0 | FY33: 0 | FZ33: 0 | GA33: 0 | GB33: 0 | GC33: 0 | GD33: 0 | GE33: 0 | GF33: 0 | GG33: 0 | GH33: 0
A34: 5 | B34: TRANSFORMERS | C34: ground outdoor / indoor chamber mounted ; > 33 kv & < = 66 kv ; > 15 mva and < = 40 mva | D34: 1500 | E34: 71.64675539 | F34: 8.464440643 | G34: 2 | H34: 0 | I34: 0 | J34: 0 | K34: 0 | L34: 0 | M34: 1 | N34: 0 | O34: 0 | P34: 0 | Q34: 0 | R34: 0 | S34: 0 | T34: 1 | U34: 1 | V34: 0 | W34: 0 | X34: 4 | Y34: 0 | Z34: 0 | AA34: 1 | AB34: 0 | AC34: 0 | AD34: 0 | AE34: 0 | AF34: 0 | AG34: 0 | AH34: 0 | AI34: 0 | AJ34: 1 | AK34: 0 | AL34: 0 | AM34: 1 | AN34: 0 | AO34: 0 | AP34: 0 | AQ34: 0 | AR34: 0 | AS34: 0 | AT34: 1 | AU34: 1 | AV34: 0 | AW34: 0 | AX34: 0 | AY34: 1 | AZ34: 0 | BA34: 0 | BB34: 3 | BC34: 0 | BD34: 0 | BE34: 2 | BF34: 4 | BG34: 10 | BH34: 4 | BI34: 4 | BJ34: 5 | BK34: 2 | BL34: 6 | BM34: 1 | BN34: 0 | BO34: 0 | BP34: 0 | BQ34: 2 | BR34: 0 | BS34: 0 | BT34: 0 | BU34: 0 | BV34: 0 | BW34: 0 | BX34: 0 | BY34: 0 | BZ34: 0 | CA34: 0 | CB34: 0 | CC34: 0 | CD34: 0 | CE34: 0 | CF34: 0 | CG34: 0 | CH34: 0 | CI34: 0 | CJ34: 0 | CK34: 0 | CL34: 0 | CM34: 0 | CN34: 0 | CO34: 0 | CP34: 0 | CQ34: 0 | CR34: 0 | CS34: 0 | CT34: 0 | CV34: 0 | CW34: 0 | CX34: 0 | CY34: 0 | CZ34: 0 | DA34: 1500 | DB34: 0 | DC34: 0 | DD34: 0 | DE34: 0 | DF34: 0 | DG34: 0 | DH34: 1500 | DI34: 1500 | DJ34: 0 | DK34: 0 | DL34: 6000 | DM34: 0 | DN34: 0 | DO34: 1500 | DP34: 0 | DQ34: 0 | DR34: 0 | DS34: 0 | DT34: 0 | DU34: 0 | DV34: 0 | DW34: 0 | DX34: 1500 | DY34: 0 | DZ34: 0 | EA34: 1500 | EB34: 0 | EC34: 0 | ED34: 0 | EE34: 0 | EF34: 0 | EG34: 0 | EH34: 1500 | EI34: 1500 | EJ34: 0 | EK34: 0 | EL34: 0 | EM34: 1500 | EN34: 0 | EO34: 0 | EP34: 4500 | EQ34: 0 | ER34: 0 | ES34: 3000 | ET34: 6000 | EU34: 15000 | EV34: 6000 | EW34: 6000 | EX34: 7500 | EY34: 3000 | EZ34: 9000 | FA34: 1500 | FB34: 0 | FC34: 0 | FD34: 0 | FE34: 3000 | FF34: 0 | FG34: 0 | FH34: 0 | FI34: 0 | FJ34: 0 | FK34: 0 | FL34: 0 | FM34: 0 | FN34: 0 | FO34: 0 | FP34: 0 | FQ34: 0 | FR34: 0 | FS34: 0 | FT34: 0 | FU34: 0 | FV34: 0 | FW34: 0 | FX34: 0 | FY34: 0 | FZ34: 0 | GA34: 0 | GB34: 0 | GC34: 0 | GD34: 0 | GE34: 0 | GF34: 0 | GG34: 0 | GH34: 0
B35: TRANSFORMERS | C35: ground outdoor / indoor chamber mounted ; > 33 kv & < = 66 kv ; > 40 mva | E35: 71.64675539 | F35: 8.464440643 | G35: 2 | H35: 0 | I35: 0 | J35: 0 | K35: 0 | L35: 0 | M35: 0 | N35: 0 | O35: 1 | P35: 1 | Q35: 0 | R35: 2 | S35: 0 | T35: 0 | U35: 0 | V35: 1 | W35: 0 | X35: 0 | Y35: 0 | Z35: 0 | AA35: 0 | AB35: 0 | AC35: 0 | AD35: 0 | AE35: 0 | AF35: 0 | AG35: 1 | AH35: 0 | AI35: 0 | AJ35: 0 | AK35: 0 | AL35: 0 | AM35: 2 | AN35: 0 | AO35: 0 | AP35: 0 | AQ35: 0 | AR35: 0 | AS35: 0 | AT35: 0 | AU35: 0 | AV35: 0 | AW35: 2 | AX35: 1 | AY35: 0 | AZ35: 0 | BA35: 0 | BB35: 0 | BC35: 0 | BD35: 2 | BE35: 0 | BF35: 0 | BG35: 0 | BH35: 0 | BI35: 0 | BJ35: 0 | BK35: 0 | BL35: 0 | BM35: 0 | BN35: 0 | BO35: 0 | BP35: 0 | BQ35: 0 | BR35: 0 | BS35: 0 | BT35: 0 | BU35: 0 | BV35: 0 | BW35: 0 | BX35: 0 | BY35: 0 | BZ35: 0 | CA35: 0 | CB35: 0 | CC35: 0 | CD35: 0 | CE35: 0 | CF35: 0 | CG35: 0 | CH35: 0 | CI35: 0 | CJ35: 0 | CK35: 0 | CL35: 0 | CM35: 0 | CN35: 0 | CO35: 0 | CP35: 0 | CQ35: 0 | CR35: 0 | CS35: 0 | CT35: 0 | CV35: 0 | CW35: 0 | CX35: 0 | CY35: 0 | CZ35: 0 | DA35: 0 | DB35: 0 | DC35: 0 | DD35: 0 | DE35: 0 | DF35: 0 | DG35: 0 | DH35: 0 | DI35: 0 | DJ35: 0 | DK35: 0 | DL35: 0 | DM35: 0 | DN35: 0 | DO35: 0 | DP35: 0 | DQ35: 0 | DR35: 0 | DS35: 0 | DT35: 0 | DU35: 0 | DV35: 0 | DW35: 0 | DX35: 0 | DY35: 0 | DZ35: 0 | EA35: 0 | EB35: 0 | EC35: 0 | ED35: 0 | EE35: 0 | EF35: 0 | EG35: 0 | EH35: 0 | EI35: 0 | EJ35: 0 | EK35: 0 | EL35: 0 | EM35: 0 | EN35: 0 | EO35: 0 | EP35: 0 | EQ35: 0 | ER35: 0 | ES35: 0 | ET35: 0 | EU35: 0 | EV35: 0 | EW35: 0 | EX35: 0 | EY35: 0 | EZ35: 0 | FA35: 0 | FB35: 0 | FC35: 0 | FD35: 0 | FE35: 0 | FF35: 0 | FG35: 0 | FH35: 0 | FI35: 0 | FJ35: 0 | FK35: 0 | FL35: 0 | FM35: 0 | FN35: 0 | FO35: 0 | FP35: 0 | FQ35: 0 | FR35: 0 | FS35: 0 | FT35: 0 | FU35: 0 | FV35: 0 | FW35: 0 | FX35: 0 | FY35: 0 | FZ35: 0 | GA35: 0 | GB35: 0 | GC35: 0 | GD35: 0 | GE35: 0 | GF35: 0 | GG35: 0 | GH35: 0
B36: TRANSFORMERS | C36: kiosk mounted ; < = 22 kv ; < = 60 kva ; multiple phase | E36: 62.58139914 | F36: 7.910840609 | G36: 2 | H36: 0 | I36: 0 | J36: 0 | K36: 0 | L36: 0 | M36: 0 | N36: 0 | O36: 0 | P36: 0 | Q36: 0 | R36: 0 | S36: 0 | T36: 0 | U36: 0 | V36: 0 | W36: 0 | X36: 0 | Y36: 0 | Z36: 0 | AA36: 0 | AB36: 0 | AC36: 0 | AD36: 0 | AE36: 0 | AF36: 0 | AG36: 0 | AH36: 0 | AI36: 0 | AJ36: 0 | AK36: 0 | AL36: 0 | AM36: 0 | AN36: 0 | AO36: 0 | AP36: 0 | AQ36: 0 | AR36: 0 | AS36: 0 | AT36: 0 | AU36: 1 | AV36: 0 | AW36: 0 | AX36: 0 | AY36: 0 | AZ36: 0 | BA36: 0 | BB36: 0 | BC36: 0 | BD36: 0 | BE36: 0 | BF36: 0 | BG36: 0 | BH36: 0 | BI36: 0 | BJ36: 0 | BK36: 0 | BL36: 0 | BM36: 0 | BN36: 0 | BO36: 0 | BP36: 0 | BQ36: 0 | BR36: 0 | BS36: 0 | BT36: 0 | BU36: 0 | BV36: 0 | BW36: 0 | BX36: 0 | BY36: 0 | BZ36: 0 | CA36: 0 | CB36: 0 | CC36: 0 | CD36: 0 | CE36: 0 | CF36: 0 | CG36: 0 | CH36: 0 | CI36: 0 | CJ36: 0 | CK36: 0 | CL36: 0 | CM36: 0 | CN36: 0 | CO36: 0 | CP36: 0 | CQ36: 0 | CR36: 0 | CS36: 0 | CT36: 0 | CV36: 0 | CW36: 0 | CX36: 0 | CY36: 0 | CZ36: 0 | DA36: 0 | DB36: 0 | DC36: 0 | DD36: 0 | DE36: 0 | DF36: 0 | DG36: 0 | DH36: 0 | DI36: 0 | DJ36: 0 | DK36: 0 | DL36: 0 | DM36: 0 | DN36: 0 | DO36: 0 | DP36: 0 | DQ36: 0 | DR36: 0 | DS36: 0 | DT36: 0 | DU36: 0 | DV36: 0 | DW36: 0 | DX36: 0 | DY36: 0 | DZ36: 0 | EA36: 0 | EB36: 0 | EC36: 0 | ED36: 0 | EE36: 0 | EF36: 0 | EG36: 0 | EH36: 0 | EI36: 0 | EJ36: 0 | EK36: 0 | EL36: 0 | EM36: 0 | EN36: 0 | EO36: 0 | EP36: 0 | EQ36: 0 | ER36: 0 | ES36: 0 | ET36: 0 | EU36: 0 | EV36: 0 | EW36: 0 | EX36: 0 | EY36: 0 | EZ36: 0 | FA36: 0 | FB36: 0 | FC36: 0 | FD36: 0 | FE36: 0 | FF36: 0 | FG36: 0 | FH36: 0 | FI36: 0 | FJ36: 0 | FK36: 0 | FL36: 0 | FM36: 0 | FN36: 0 | FO36: 0 | FP36: 0 | FQ36: 0 | FR36: 0 | FS36: 0 | FT36: 0 | FU36: 0 | FV36: 0 | FW36: 0 | FX36: 0 | FY36: 0 | FZ36: 0 | GA36: 0 | GB36: 0 | GC36: 0 | GD36: 0 | GE36: 0 | GF36: 0 | GG36: 0 | GH36: 0
A37: 5 | B37: TRANSFORMERS | C37: kiosk mounted ; < = 22 kv ; > 60 kva and < = 600 kva ; multiple phase | D37: 226.6827799 | E37: 62.58139914 | F37: 7.910840609 | G37: 2 | H37: 4 | I37: 4 | J37: 4 | K37: 5 | L37: 5 | M37: 4 | N37: 5 | O37: 4 | P37: 7 | Q37: 6 | R37: 7 | S37: 7 | T37: 6 | U37: 7 | V37: 7 | W37: 6 | X37: 5 | Y37: 5 | Z37: 4 | AA37: 5 | AB37: 3 | AC37: 2 | AD37: 2 | AE37: 2 | AF37: 3 | AG37: 3 | AH37: 1 | AI37: 4 | AJ37: 2 | AK37: 2 | AL37: 2 | AM37: 1 | AN37: 3 | AO37: 2 | AP37: 5 | AQ37: 1 | AR37: 1 | AS37: 0 | AT37: 2 | AU37: 11 | AV37: 6 | AW37: 3 | AX37: 1 | AY37: 1 | AZ37: 3 | BA37: 1 | BB37: 4 | BC37: 5 | BD37: 1 | BE37: 9 | BF37: 4 | BG37: 6 | BH37: 8 | BI37: 8 | BJ37: 8 | BK37: 4 | BL37: 1 | BM37: 1 | BN37: 0 | BO37: 0 | BP37: 0 | BQ37: 0 | BR37: 0 | BS37: 0 | BT37: 0 | BU37: 0 | BV37: 0 | BW37: 0 | BX37: 0 | BY37: 0 | BZ37: 0 | CA37: 0 | CB37: 0 | CC37: 0 | CD37: 0 | CE37: 0 | CF37: 0 | CG37: 0 | CH37: 0 | CI37: 0 | CJ37: 0 | CK37: 0 | CL37: 0 | CM37: 0 | CN37: 0 | CO37: 0 | CP37: 0 | CQ37: 0 | CR37: 0 | CS37: 0 | CT37: 0 | CV37: 906.7311197 | CW37: 906.7311197 | CX37: 906.7311197 | CY37: 1133.4139 | CZ37: 1133.4139 | DA37: 906.7311197 | DB37: 1133.4139 | DC37: 906.7311197 | DD37: 1586.77946 | DE37: 1360.09668 | DF37: 1586.77946 | DG37: 1586.77946 | DH37: 1360.09668 | DI37: 1586.77946 | DJ37: 1586.77946 | DK37: 1360.09668 | DL37: 1133.4139 | DM37: 1133.4139 | DN37: 906.7311197 | DO37: 1133.4139 | DP37: 680.0483398 | DQ37: 453.3655599 | DR37: 453.3655599 | DS37: 453.3655599 | DT37: 680.0483398 | DU37: 680.0483398 | DV37: 226.6827799 | DW37: 906.7311197 | DX37: 453.3655599 | DY37: 453.3655599 | DZ37: 453.3655599 | EA37: 226.6827799 | EB37: 680.0483398 | EC37: 453.3655599 | ED37: 1133.4139 | EE37: 226.6827799 | EF37: 226.6827799 | EG37: 0 | EH37: 453.3655599 | EI37: 2493.510579 | EJ37: 1360.09668 | EK37: 680.0483398 | EL37: 226.6827799 | EM37: 226.6827799 | EN37: 680.0483398 | EO37: 226.6827799 | EP37: 906.7311197 | EQ37: 1133.4139 | ER37: 226.6827799 | ES37: 2040.145019 | ET37: 906.7311197 | EU37: 1360.09668 | EV37: 1813.462239 | EW37: 1813.462239 | EX37: 1813.462239 | EY37: 906.7311197 | EZ37: 226.6827799 | FA37: 226.6827799 | FB37: 0 | FC37: 0 | FD37: 0 | FE37: 0 | FF37: 0 | FG37: 0 | FH37: 0 | FI37: 0 | FJ37: 0 | FK37: 0 | FL37: 0 | FM37: 0 | FN37: 0 | FO37: 0 | FP37: 0 | FQ37: 0 | FR37: 0 | FS37: 0 | FT37: 0 | FU37: 0 | FV37: 0 | FW37: 0 | FX37: 0 | FY37: 0 | FZ37: 0 | GA37: 0 | GB37: 0 | GC37: 0 | GD37: 0 | GE37: 0 | GF37: 0 | GG37: 0 | GH37: 0
A38: 5 | B38: TRANSFORMERS | C38: kiosk mounted ; < = 22 kv ; > 600 kva ; multiple phase | D38: 226.6827799 | E38: 62.58139914 | F38: 7.910840609 | G38: 2 | H38: 8 | I38: 4 | J38: 4 | K38: 4 | L38: 4 | M38: 4 | N38: 4 | O38: 4 | P38: 6 | Q38: 5 | R38: 6 | S38: 6 | T38: 6 | U38: 6 | V38: 6 | W38: 5 | X38: 5 | Y38: 4 | Z38: 3 | AA38: 4 | AB38: 3 | AC38: 2 | AD38: 1 | AE38: 2 | AF38: 3 | AG38: 3 | AH38: 1 | AI38: 4 | AJ38: 2 | AK38: 1 | AL38: 1 | AM38: 1 | AN38: 3 | AO38: 1 | AP38: 4 | AQ38: 1 | AR38: 1 | AS38: 0 | AT38: 2 | AU38: 10 | AV38: 5 | AW38: 2 | AX38: 1 | AY38: 1 | AZ38: 2 | BA38: 1 | BB38: 4 | BC38: 4 | BD38: 1 | BE38: 8 | BF38: 3 | BG38: 5 | BH38: 7 | BI38: 7 | BJ38: 7 | BK38: 4 | BL38: 1 | BM38: 0 | BN38: 0 | BO38: 0 | BP38: 0 | BQ38: 0 | BR38: 0 | BS38: 0 | BT38: 0 | BU38: 0 | BV38: 0 | BW38: 0 | BX38: 0 | BY38: 0 | BZ38: 0 | CA38: 0 | CB38: 0 | CC38: 0 | CD38: 0 | CE38: 0 | CF38: 0 | CG38: 0 | CH38: 0 | CI38: 0 | CJ38: 0 | CK38: 0 | CL38: 0 | CM38: 0 | CN38: 0 | CO38: 0 | CP38: 0 | CQ38: 0 | CR38: 0 | CS38: 0 | CT38: 0 | CV38: 1813.462239 | CW38: 906.7311197 | CX38: 906.7311197 | CY38: 906.7311197 | CZ38: 906.7311197 | DA38: 906.7311197 | DB38: 906.7311197 | DC38: 906.7311197 | DD38: 1360.09668 | DE38: 1133.4139 | DF38: 1360.09668 | DG38: 1360.09668 | DH38: 1360.09668 | DI38: 1360.09668 | DJ38: 1360.09668 | DK38: 1133.4139 | DL38: 1133.4139 | DM38: 906.7311197 | DN38: 680.0483398 | DO38: 906.7311197 | DP38: 680.0483398 | DQ38: 453.3655599 | DR38: 226.6827799 | DS38: 453.3655599 | DT38: 680.0483398 | DU38: 680.0483398 | DV38: 226.6827799 | DW38: 906.7311197 | DX38: 453.3655599 | DY38: 226.6827799 | DZ38: 226.6827799 | EA38: 226.6827799 | EB38: 680.0483398 | EC38: 226.6827799 | ED38: 906.7311197 | EE38: 226.6827799 | EF38: 226.6827799 | EG38: 0 | EH38: 453.3655599 | EI38: 2266.827799 | EJ38: 1133.4139 | EK38: 453.3655599 | EL38: 226.6827799 | EM38: 226.6827799 | EN38: 453.3655599 | EO38: 226.6827799 | EP38: 906.7311197 | EQ38: 906.7311197 | ER38: 226.6827799 | ES38: 1813.462239 | ET38: 680.0483398 | EU38: 1133.4139 | EV38: 1586.77946 | EW38: 1586.77946 | EX38: 1586.77946 | EY38: 906.7311197 | EZ38: 226.6827799 | FA38: 0 | FB38: 0 | FC38: 0 | FD38: 0 | FE38: 0 | FF38: 0 | FG38: 0 | FH38: 0 | FI38: 0 | FJ38: 0 | FK38: 0 | FL38: 0 | FM38: 0 | FN38: 0 | FO38: 0 | FP38: 0 | FQ38: 0 | FR38: 0 | FS38: 0 | FT38: 0 | FU38: 0 | FV38: 0 | FW38: 0 | FX38: 0 | FY38: 0 | FZ38: 0 | GA38: 0 | GB38: 0 | GC38: 0 | GD38: 0 | GE38: 0 | GF38: 0 | GG38: 0 | GH38: 0
A39: 5 | B39: TRANSFORMERS | C39: pole mounted ; < = 22 kv ; < = 60 kva ; multiple phase | D39: 94.6479053 | E39: 62.41408543 | F39: 7.900258567 | G39: 2 | H39: 0 | I39: 0 | J39: 0 | K39: 0 | L39: 0 | M39: 0 | N39: 0 | O39: 0 | P39: 0 | Q39: 0 | R39: 0 | S39: 0 | T39: 0 | U39: 0 | V39: 0 | W39: 0 | X39: 0 | Y39: 0 | Z39: 0 | AA39: 0 | AB39: 0 | AC39: 0 | AD39: 0 | AE39: 0 | AF39: 0 | AG39: 0 | AH39: 0 | AI39: 0 | AJ39: 0 | AK39: 0 | AL39: 0 | AM39: 0 | AN39: 0 | AO39: 0 | AP39: 0 | AQ39: 0 | AR39: 0 | AS39: 0 | AT39: 0 | AU39: 1 | AV39: 0 | AW39: 0 | AX39: 0 | AY39: 0 | AZ39: 0 | BA39: 0 | BB39: 0 | BC39: 0 | BD39: 0 | BE39: 1 | BF39: 0 | BG39: 0 | BH39: 0 | BI39: 0 | BJ39: 0 | BK39: 0 | BL39: 0 | BM39: 0 | BN39: 0 | BO39: 0 | BP39: 0 | BQ39: 0 | BR39: 0 | BS39: 0 | BT39: 0 | BU39: 0 | BV39: 0 | BW39: 0 | BX39: 0 | BY39: 0 | BZ39: 0 | CA39: 0 | CB39: 0 | CC39: 0 | CD39: 0 | CE39: 0 | CF39: 0 | CG39: 0 | CH39: 0 | CI39: 0 | CJ39: 0 | CK39: 0 | CL39: 0 | CM39: 0 | CN39: 0 | CO39: 0 | CP39: 0 | CQ39: 0 | CR39: 0 | CS39: 0 | CT39: 0 | CV39: 0 | CW39: 0 | CX39: 0 | CY39: 0 | CZ39: 0 | DA39: 0 | DB39: 0 | DC39: 0 | DD39: 0 | DE39: 0 | DF39: 0 | DG39: 0 | DH39: 0 | DI39: 0 | DJ39: 0 | DK39: 0 | DL39: 0 | DM39: 0 | DN39: 0 | DO39: 0 | DP39: 0 | DQ39: 0 | DR39: 0 | DS39: 0 | DT39: 0 | DU39: 0 | DV39: 0 | DW39: 0 | DX39: 0 | DY39: 0 | DZ39: 0 | EA39: 0 | EB39: 0 | EC39: 0 | ED39: 0 | EE39: 0 | EF39: 0 | EG39: 0 | EH39: 0 | EI39: 94.6479053 | EJ39: 0 | EK39: 0 | EL39: 0 | EM39: 0 | EN39: 0 | EO39: 0 | EP39: 0 | EQ39: 0 | ER39: 0 | ES39: 94.6479053 | ET39: 0 | EU39: 0 | EV39: 0 | EW39: 0 | EX39: 0 | EY39: 0 | EZ39: 0 | FA39: 0 | FB39: 0 | FC39: 0 | FD39: 0 | FE39: 0 | FF39: 0 | FG39: 0 | FH39: 0 | FI39: 0 | FJ39: 0 | FK39: 0 | FL39: 0 | FM39: 0 | FN39: 0 | FO39: 0 | FP39: 0 | FQ39: 0 | FR39: 0 | FS39: 0 | FT39: 0 | FU39: 0 | FV39: 0 | FW39: 0 | FX39: 0 | FY39: 0 | FZ39: 0 | GA39: 0 | GB39: 0 | GC39: 0 | GD39: 0 | GE39: 0 | GF39: 0 | GG39: 0 | GH39: 0
A40: 5 | B40: TRANSFORMERS | C40: pole mounted ; < = 22 kv ; > 60 kva and < = 600 kva ; multiple phase | D40: 94.6479053 | E40: 62.41408543 | F40: 7.900258567 | G40: 2 | H40: 30 | I40: 14 | J40: 15 | K40: 17 | L40: 18 | M40: 16 | N40: 18 | O40: 16 | P40: 26 | Q40: 21 | R40: 23 | S40: 24 | T40: 25 | U40: 24 | V40: 23 | W40: 21 | X40: 20 | Y40: 16 | Z40: 13 | AA40: 17 | AB40: 11 | AC40: 6 | AD40: 5 | AE40: 6 | AF40: 11 | AG40: 10 | AH40: 4 | AI40: 14 | AJ40: 7 | AK40: 6 | AL40: 6 | AM40: 5 | AN40: 11 | AO40: 6 | AP40: 17 | AQ40: 4 | AR40: 4 | AS40: 1 | AT40: 8 | AU40: 37 | AV40: 20 | AW40: 9 | AX40: 3 | AY40: 4 | AZ40: 9 | BA40: 4 | BB40: 14 | BC40: 16 | BD40: 4 | BE40: 32 | BF40: 12 | BG40: 21 | BH40: 26 | BI40: 28 | BJ40: 26 | BK40: 14 | BL40: 3 | BM40: 2 | BN40: 0 | BO40: 0 | BP40: 0 | BQ40: 1 | BR40: 0 | BS40: 0 | BT40: 0 | BU40: 0 | BV40: 0 | BW40: 0 | BX40: 0 | BY40: 0 | BZ40: 0 | CA40: 0 | CB40: 0 | CC40: 0 | CD40: 0 | CE40: 0 | CF40: 0 | CG40: 0 | CH40: 0 | CI40: 0 | CJ40: 0 | CK40: 0 | CL40: 0 | CM40: 0 | CN40: 0 | CO40: 0 | CP40: 0 | CQ40: 0 | CR40: 0 | CS40: 0 | CT40: 0 | CV40: 2839.437159 | CW40: 1325.070674 | CX40: 1419.71858 | CY40: 1609.01439 | CZ40: 1703.662295 | DA40: 1514.366485 | DB40: 1703.662295 | DC40: 1514.366485 | DD40: 2460.845538 | DE40: 1987.606011 | DF40: 2176.901822 | DG40: 2271.549727 | DH40: 2366.197633 | DI40: 2271.549727 | DJ40: 2176.901822 | DK40: 1987.606011 | DL40: 1892.958106 | DM40: 1514.366485 | DN40: 1230.422769 | DO40: 1609.01439 | DP40: 1041.126958 | DQ40: 567.8874318 | DR40: 473.2395265 | DS40: 567.8874318 | DT40: 1041.126958 | DU40: 946.479053 | DV40: 378.5916212 | DW40: 1325.070674 | DX40: 662.5353371 | DY40: 567.8874318 | DZ40: 567.8874318 | EA40: 473.2395265 | EB40: 1041.126958 | EC40: 567.8874318 | ED40: 1609.01439 | EE40: 378.5916212 | EF40: 378.5916212 | EG40: 94.6479053 | EH40: 757.1832424 | EI40: 3501.972496 | EJ40: 1892.958106 | EK40: 851.8311477 | EL40: 283.9437159 | EM40: 378.5916212 | EN40: 851.8311477 | EO40: 378.5916212 | EP40: 1325.070674 | EQ40: 1514.366485 | ER40: 378.5916212 | ES40: 3028.73297 | ET40: 1135.774864 | EU40: 1987.606011 | EV40: 2460.845538 | EW40: 2650.141349 | EX40: 2460.845538 | EY40: 1325.070674 | EZ40: 283.9437159 | FA40: 189.2958106 | FB40: 0 | FC40: 0 | FD40: 0 | FE40: 94.6479053 | FF40: 0 | FG40: 0 | FH40: 0 | FI40: 0 | FJ40: 0 | FK40: 0 | FL40: 0 | FM40: 0 | FN40: 0 | FO40: 0 | FP40: 0 | FQ40: 0 | FR40: 0 | FS40: 0 | FT40: 0 | FU40: 0 | FV40: 0 | FW40: 0 | FX40: 0 | FY40: 0 | FZ40: 0 | GA40: 0 | GB40: 0 | GC40: 0 | GD40: 0 | GE40: 0 | GF40: 0 | GG40: 0 | GH40: 0
A41: 6 | B41: UNDERGROUND CABLES | C41: ˂ = 1 kv | D41: 90.94211008 | E41: 94.70121812 | F41: 9.731455087 | G41: 2 | H41: 7.08 | I41: 5.8 | J41: 5.7 | K41: 5.4 | L41: 6.3 | M41: 7.3 | N41: 11.2 | O41: 4.2 | P41: 7.2 | Q41: 8.3 | R41: 2.8 | S41: 0.9 | T41: 1 | U41: 0.8 | V41: 1.8 | W41: 2.9 | X41: 1.9 | Y41: 3.3 | Z41: 3.8 | AA41: 5.4 | AB41: 2 | AC41: 2.1 | AD41: 2.2 | AE41: 1.9 | AF41: 2.9 | AG41: 1.2 | AH41: 2.2 | AI41: 3.1 | AJ41: 0.7 | AK41: 5 | AL41: 6.9 | AM41: 10.1 | AN41: 10.3 | AO41: 10.3 | AP41: 21.2 | AQ41: 16.1 | AR41: 15.5 | AS41: 12.9 | AT41: 18.1 | AU41: 11.1 | AV41: 18.1 | AW41: 21.7 | AX41: 17.8 | AY41: 7.2 | AZ41: 10.3 | BA41: 6.4 | BB41: 6.8 | BC41: 9.1 | BD41: 19.2 | BE41: 7.6 | BF41: 9.8 | BG41: 16.2 | BH41: 19.4 | BI41: 33.5 | BJ41: 19.7 | BK41: 30.3 | BL41: 13 | BM41: 14.4 | BN41: 14.5 | BO41: 12.4 | BP41: 9.3 | BQ41: 7.3 | BR41: 5.6 | BS41: 3.3 | BT41: 2.3 | BU41: 2 | BV41: 3 | BW41: 1.8 | BX41: 2.2 | BY41: 0.4 | BZ41: 1.3 | CA41: 1.1 | CB41: 0.3 | CC41: 0.7 | CD41: 0.6 | CE41: 0.6 | CF41: 0.3 | CG41: 0.5 | CH41: 2 | CI41: 4.1 | CJ41: 7.3 | CK41: 6 | CL41: 4 | CM41: 3.4 | CN41: 6.5 | CO41: 5.7 | CP41: 6 | CQ41: 7.3 | CR41: 3.1 | CS41: 0.4 | CT41: 5.3 | CV41: 643.8701394 | CW41: 527.4642385 | CX41: 518.3700275 | CY41: 491.0873944 | CZ41: 572.9352935 | DA41: 663.8774036 | DB41: 1018.551633 | DC41: 381.9568623 | DD41: 654.7831926 | DE41: 754.8195137 | DF41: 254.6379082 | DG41: 81.84789907 | DH41: 90.94211008 | DI41: 72.75368807 | DJ41: 163.6957981 | DK41: 263.7321192 | DL41: 172.7900092 | DM41: 300.1089633 | DN41: 345.5800183 | DO41: 491.0873944 | DP41: 181.8842202 | DQ41: 190.9784312 | DR41: 200.0726422 | DS41: 172.7900092 | DT41: 263.7321192 | DU41: 109.1305321 | DV41: 200.0726422 | DW41: 281.9205413 | DX41: 63.65947706 | DY41: 454.7105504 | DZ41: 627.5005596 | EA41: 918.5153118 | EB41: 936.7037338 | EC41: 936.7037338 | ED41: 1927.972734 | EE41: 1464.167972 | EF41: 1409.602706 | EG41: 1173.15322 | EH41: 1646.052192 | EI41: 1009.457422 | EJ41: 1646.052192 | EK41: 1973.443789 | EL41: 1618.769559 | EM41: 654.7831926 | EN41: 936.7037338 | EO41: 582.0295045 | EP41: 618.4063486 | EQ41: 827.5732017 | ER41: 1746.088514 | ES41: 691.1600366 | ET41: 891.2326788 | EU41: 1473.262183 | EV41: 1764.276936 | EW41: 3046.560688 | EX41: 1791.559569 | EY41: 2755.545935 | EZ41: 1182.247431 | FA41: 1309.566385 | FB41: 1318.660596 | FC41: 1127.682165 | FD41: 845.7616238 | FE41: 663.8774036 | FF41: 509.2758165 | FG41: 300.1089633 | FH41: 209.1668532 | FI41: 181.8842202 | FJ41: 272.8263302 | FK41: 163.6957981 | FL41: 200.0726422 | FM41: 36.37684403 | FN41: 118.2247431 | FO41: 100.0363211 | FP41: 27.28263302 | FQ41: 63.65947706 | FR41: 54.56526605 | FS41: 54.56526605 | FT41: 27.28263302 | FU41: 45.47105504 | FV41: 181.8842202 | FW41: 372.8626513 | FX41: 663.8774036 | FY41: 545.6526605 | FZ41: 363.7684403 | GA41: 309.2031743 | GB41: 591.1237155 | GC41: 518.3700275 | GD41: 545.6526605 | GE41: 663.8774036 | GF41: 281.9205413 | GG41: 36.37684403 | GH41: 481.9931834
A42: 6 | B42: UNDERGROUND CABLES | C42: > 1 kv & < = 11 kv | D42: 274.5237128 | E42: 93.39889159 | F42: 9.664310197 | G42: 2 | H42: 26.54 | I42: 23.6 | J42: 18.3 | K42: 20.2 | L42: 24.9 | M42: 24.4 | N42: 28.1 | O42: 3.9 | P42: 6.5 | Q42: 5.4 | R42: 6.2 | S42: 1.8 | T42: 2.1 | U42: 1.7 | V42: 3.8 | W42: 6.1 | X42: 4.1 | Y42: 6.8 | Z42: 7.9 | AA42: 11.3 | AB42: 4.2 | AC42: 4.4 | AD42: 4.5 | AE42: 4 | AF42: 6 | AG42: 2.6 | AH42: 4.6 | AI42: 6.4 | AJ42: 1.4 | AK42: 10.6 | AL42: 14.4 | AM42: 21.1 | AN42: 21.6 | AO42: 21.6 | AP42: 44.5 | AQ42: 34.1 | AR42: 32.7 | AS42: 27.2 | AT42: 38.1 | AU42: 23.3 | AV42: 38.1 | AW42: 45.6 | AX42: 37.5 | AY42: 15.1 | AZ42: 21.7 | BA42: 13.5 | BB42: 14.2 | BC42: 19.1 | BD42: 40.4 | BE42: 15.9 | BF42: 20.6 | BG42: 34.2 | BH42: 40.9 | BI42: 70.5 | BJ42: 41.4 | BK42: 63.7 | BL42: 27.4 | BM42: 30.4 | BN42: 30.6 | BO42: 26.3 | BP42: 19.4 | BQ42: 15.4 | BR42: 11.8 | BS42: 6.8 | BT42: 4.7 | BU42: 4.3 | BV42: 6.3 | BW42: 3.8 | BX42: 4.6 | BY42: 0.9 | BZ42: 2.8 | CA42: 2.3 | CB42: 0.6 | CC42: 1.4 | CD42: 1.3 | CE42: 1.3 | CF42: 0.6 | CG42: 1 | CH42: 4.2 | CI42: 8.7 | CJ42: 15.3 | CK42: 12.6 | CL42: 8.4 | CM42: 7 | CN42: 13.6 | CO42: 12.1 | CP42: 12.7 | CQ42: 15.3 | CR42: 6.4 | CS42: 0.9 | CT42: 10.4 | CV42: 7285.859337 | CW42: 6478.759622 | CX42: 5023.783944 | CY42: 5545.378998 | CZ42: 6835.640448 | DA42: 6698.378592 | DB42: 7714.116329 | DC42: 1070.64248 | DD42: 1784.404133 | DE42: 1482.428049 | DF42: 1702.047019 | DG42: 494.142683 | DH42: 576.4997969 | DI42: 466.6903117 | DJ42: 1043.190109 | DK42: 1674.594648 | DL42: 1125.547222 | DM42: 1866.761247 | DN42: 2168.737331 | DO42: 3102.117954 | DP42: 1152.999594 | DQ42: 1207.904336 | DR42: 1235.356708 | DS42: 1098.094851 | DT42: 1647.142277 | DU42: 713.7616532 | DV42: 1262.809079 | DW42: 1756.951762 | DX42: 384.3331979 | DY42: 2909.951356 | DZ42: 3953.141464 | EA42: 5792.45034 | EB42: 5929.712196 | EC42: 5929.712196 | ED42: 12216.30522 | EE42: 9361.258606 | EF42: 8976.925408 | EG42: 7467.044988 | EH42: 10459.35346 | EI42: 6396.402508 | EJ42: 10459.35346 | EK42: 12518.2813 | EL42: 10294.63923 | EM42: 4145.308063 | EN42: 5957.164567 | EO42: 3706.070123 | EP42: 3898.236722 | EQ42: 5243.402914 | ER42: 11090.758 | ES42: 4364.927033 | ET42: 5655.188483 | EU42: 9388.710977 | EV42: 11228.01985 | EW42: 19353.92175 | EX42: 11365.28171 | EY42: 17487.1605 | EZ42: 7521.94973 | FA42: 8345.520869 | FB42: 8400.425611 | FC42: 7219.973646 | FD42: 5325.760028 | FE42: 4227.665177 | FF42: 3239.379811 | FG42: 1866.761247 | FH42: 1290.26145 | FI42: 1180.451965 | FJ42: 1729.499391 | FK42: 1043.190109 | FL42: 1262.809079 | FM42: 247.0713415 | FN42: 768.6663958 | FO42: 631.4045394 | FP42: 164.7142277 | FQ42: 384.3331979 | FR42: 356.8808266 | FS42: 356.8808266 | FT42: 164.7142277 | FU42: 274.5237128 | FV42: 1152.999594 | FW42: 2388.356301 | FX42: 4200.212806 | FY42: 3458.998781 | FZ42: 2305.999187 | GA42: 1921.66599 | GB42: 3733.522494 | GC42: 3321.736925 | GD42: 3486.451152 | GE42: 4200.212806 | GF42: 1756.951762 | GG42: 247.0713415 | GH42: 2855.046613
A43: 6 | B43: UNDERGROUND CABLES | C43: > 11 kv & < = 22 kv | D43: 33.08926291 | E43: 89.17169057 | F43: 9.44307633 | G43: 2 | H43: 0.16 | I43: 2.2 | J43: 1.1 | K43: 0 | L43: 0.8 | M43: 0.1 | N43: 0.8 | O43: 4.8 | P43: 9.2 | Q43: 6.6 | R43: 11.2 | S43: 12.1 | T43: 0 | U43: 0 | V43: 0 | W43: 0 | X43: 0 | Y43: 0 | Z43: 0 | AA43: 6.4 | AB43: 0 | AC43: 0 | AD43: 5.8 | AE43: 0 | AF43: 0 | AG43: 0 | AH43: 0 | AI43: 0 | AJ43: 0 | AK43: 0 | AL43: 0 | AM43: 0 | AN43: 0 | AO43: 0 | AP43: 0 | AQ43: 0 | AR43: 0 | AS43: 0 | AT43: 0 | AU43: 0 | AV43: 0 | AW43: 0 | AX43: 0 | AY43: 0 | AZ43: 0 | BA43: 2 | BB43: 0 | BC43: 0 | BD43: 0 | BE43: 0 | BF43: 0 | BG43: 8.9 | BH43: 0 | BI43: 0 | BJ43: 0 | BK43: 0 | BL43: 0 | BM43: 0 | BN43: 0 | BO43: 0 | BP43: 0 | BQ43: 0 | BR43: 0 | BS43: 0 | BT43: 0 | BU43: 0 | BV43: 0 | BW43: 0 | BX43: 0 | BY43: 0 | BZ43: 0 | CA43: 6.3 | CB43: 0 | CC43: 0 | CD43: 13.6 | CE43: 0 | CF43: 0 | CG43: 0 | CH43: 0 | CI43: 15.9 | CJ43: 0 | CK43: 3.4 | CL43: 0 | CM43: 0 | CN43: 20 | CO43: 0 | CP43: 0 | CQ43: 0 | CR43: 0 | CS43: 0 | CT43: 3.1 | CV43: 5.294282066 | CW43: 72.7963784 | CX43: 36.3981892 | CY43: 0 | CZ43: 26.47141033 | DA43: 3.308926291 | DB43: 26.47141033 | DC43: 158.828462 | DD43: 304.4212188 | DE43: 218.3891352 | DF43: 370.5997446 | DG43: 400.3800812 | DH43: 0 | DI43: 0 | DJ43: 0 | DK43: 0 | DL43: 0 | DM43: 0 | DN43: 0 | DO43: 211.7712826 | DP43: 0 | DQ43: 0 | DR43: 191.9177249 | DS43: 0 | DT43: 0 | DU43: 0 | DV43: 0 | DW43: 0 | DX43: 0 | DY43: 0 | DZ43: 0 | EA43: 0 | EB43: 0 | EC43: 0 | ED43: 0 | EE43: 0 | EF43: 0 | EG43: 0 | EH43: 0 | EI43: 0 | EJ43: 0 | EK43: 0 | EL43: 0 | EM43: 0 | EN43: 0 | EO43: 66.17852582 | EP43: 0 | EQ43: 0 | ER43: 0 | ES43: 0 | ET43: 0 | EU43: 294.4944399 | EV43: 0 | EW43: 0 | EX43: 0 | EY43: 0 | EZ43: 0 | FA43: 0 | FB43: 0 | FC43: 0 | FD43: 0 | FE43: 0 | FF43: 0 | FG43: 0 | FH43: 0 | FI43: 0 | FJ43: 0 | FK43: 0 | FL43: 0 | FM43: 0 | FN43: 0 | FO43: 208.4623563 | FP43: 0 | FQ43: 0 | FR43: 450.0139756 | FS43: 0 | FT43: 0 | FU43: 0 | FV43: 0 | FW43: 526.1192803 | FX43: 0 | FY43: 112.5034939 | FZ43: 0 | GA43: 0 | GB43: 661.7852582 | GC43: 0 | GD43: 0 | GE43: 0 | GF43: 0 | GG43: 0 | GH43: 102.576715
A44: 6 | B44: UNDERGROUND CABLES | C44: > 33 kv & < = 66 kv | D44: 33.08926291 | E44: 61.96466767 | F44: 7.871763949 | G44: 2 | H44: 0 | I44: 1.4 | J44: 0 | K44: 6.4 | L44: 1.4 | M44: 2.5 | N44: 1.3 | O44: 2.7 | P44: 5.4 | Q44: 3.8 | R44: 0 | S44: 0 | T44: 0 | U44: 0 | V44: 2.9 | W44: 0 | X44: 0 | Y44: 0 | Z44: 0.3 | AA44: 0 | AB44: 0 | AC44: 0 | AD44: 0 | AE44: 0 | AF44: 0.9 | AG44: 0 | AH44: 0.3 | AI44: 0 | AJ44: 0 | AK44: 3.3 | AL44: 0 | AM44: 0 | AN44: 0 | AO44: 0 | AP44: 1 | AQ44: 0 | AR44: 0 | AS44: 0 | AT44: 0 | AU44: 0 | AV44: 0 | AW44: 0 | AX44: 0 | AY44: 0 | AZ44: 22 | BA44: 0 | BB44: 0 | BC44: 0 | BD44: 0 | BE44: 14.6 | BF44: 0 | BG44: 0 | BH44: 0 | BI44: 0 | BJ44: 0 | BK44: 0 | BL44: 0 | BM44: 0 | BN44: 0 | BO44: 0 | BP44: 0 | BQ44: 0 | BR44: 0 | BS44: 0 | BT44: 0 | BU44: 0 | BV44: 0 | BW44: 0 | BX44: 0 | BY44: 0 | BZ44: 0 | CA44: 0 | CB44: 0 | CC44: 0 | CD44: 0 | CE44: 0 | CF44: 0 | CG44: 0 | CH44: 0 | CI44: 0 | CJ44: 0 | CK44: 0 | CL44: 0 | CM44: 0 | CN44: 0 | CO44: 0 | CP44: 0 | CQ44: 0 | CR44: 0 | CS44: 0 | CT44: 0 | CV44: 0 | CW44: 46.32496807 | CX44: 0 | CY44: 211.7712826 | CZ44: 46.32496807 | DA44: 82.72315728 | DB44: 43.01604178 | DC44: 89.34100986 | DD44: 178.6820197 | DE44: 125.7391991 | DF44: 0 | DG44: 0 | DH44: 0 | DI44: 0 | DJ44: 95.95886244 | DK44: 0 | DL44: 0 | DM44: 0 | DN44: 9.926778873 | DO44: 0 | DP44: 0 | DQ44: 0 | DR44: 0 | DS44: 0 | DT44: 29.78033662 | DU44: 0 | DV44: 9.926778873 | DW44: 0 | DX44: 0 | DY44: 109.1945676 | DZ44: 0 | EA44: 0 | EB44: 0 | EC44: 0 | ED44: 33.08926291 | EE44: 0 | EF44: 0 | EG44: 0 | EH44: 0 | EI44: 0 | EJ44: 0 | EK44: 0 | EL44: 0 | EM44: 0 | EN44: 727.963784 | EO44: 0 | EP44: 0 | EQ44: 0 | ER44: 0 | ES44: 483.1032385 | ET44: 0 | EU44: 0 | EV44: 0 | EW44: 0 | EX44: 0 | EY44: 0 | EZ44: 0 | FA44: 0 | FB44: 0 | FC44: 0 | FD44: 0 | FE44: 0 | FF44: 0 | FG44: 0 | FH44: 0 | FI44: 0 | FJ44: 0 | FK44: 0 | FL44: 0 | FM44: 0 | FN44: 0 | FO44: 0 | FP44: 0 | FQ44: 0 | FR44: 0 | FS44: 0 | FT44: 0 | FU44: 0 | FV44: 0 | FW44: 0 | FX44: 0 | FY44: 0 | FZ44: 0 | GA44: 0 | GB44: 0 | GC44: 0 | GD44: 0 | GE44: 0 | GF44: 0 | GG44: 0 | GH44: 0
A45: 3 | B45: SERVICE LINES | C45: ˂ = 11 kv ; residential ; simple type | D45: 1.51016482 | E45: 79.79490771 | F45: 8.932799545 | G45: 2 | H45: 2612 | I45: 2584 | J45: 2132 | K45: 2243 | L45: 4223 | M45: 3158 | N45: 4216 | O45: 4831 | P45: 4610 | Q45: 2517 | R45: 1123 | S45: 543 | T45: 671 | U45: 1023 | V45: 638 | W45: 1084 | X45: 1247 | Y45: 832 | Z45: 598 | AA45: 1028 | AB45: 691 | AC45: 366 | AD45: 622 | AE45: 1138 | AF45: 831 | AG45: 1126 | AH45: 1032 | AI45: 505 | AJ45: 1109 | AK45: 2273 | AL45: 3567 | AM45: 1779 | AN45: 3118 | AO45: 2611 | AP45: 2460 | AQ45: 1698 | AR45: 3211 | AS45: 2613 | AT45: 2484 | AU45: 2774 | AV45: 2735 | AW45: 2057 | AX45: 1907 | AY45: 1165 | AZ45: 1104 | BA45: 2227 | BB45: 4322 | BC45: 4591 | BD45: 3584 | BE45: 3788 | BF45: 5128 | BG45: 4849 | BH45: 3864 | BI45: 3554 | BJ45: 3204 | BK45: 3040 | BL45: 2507 | BM45: 2766 | BN45: 2114 | BO45: 1552 | BP45: 1344 | BQ45: 314 | BR45: 467 | BS45: 256 | BT45: 192 | BU45: 335 | BV45: 173 | BW45: 113 | BX45: 243 | BY45: 25 | BZ45: 83 | CA45: 91 | CB45: 53 | CC45: 63 | CD45: 57 | CE45: 97 | CF45: 127 | CG45: 241 | CH45: 556 | CI45: 569 | CJ45: 650 | CK45: 530 | CL45: 549 | CM45: 561 | CN45: 669 | CO45: 518 | CP45: 258 | CQ45: 311 | CR45: 129 | CS45: 18 | CT45: 218 | CV45: 3944.550509 | CW45: 3902.265894 | CX45: 3219.671395 | CY45: 3387.29969 | CZ45: 6377.426033 | DA45: 4769.1005 | DB45: 6366.85488 | DC45: 7295.606244 | DD45: 6961.859819 | DE45: 3801.084851 | DF45: 1695.915092 | DG45: 820.0194971 | DH45: 1013.320594 | DI45: 1544.898611 | DJ45: 963.4851549 | DK45: 1637.018664 | DL45: 1883.17553 | DM45: 1256.45713 | DN45: 903.0785622 | DO45: 1552.449435 | DP45: 1043.52389 | DQ45: 552.720324 | DR45: 939.3225178 | DS45: 1718.567565 | DT45: 1254.946965 | DU45: 1700.445587 | DV45: 1558.490094 | DW45: 762.6332339 | DX45: 1674.772785 | DY45: 3432.604635 | DZ45: 5386.757912 | EA45: 2686.583214 | EB45: 4708.693908 | EC45: 3943.040344 | ED45: 3715.005456 | EE45: 2564.259864 | EF45: 4849.139236 | EG45: 3946.060674 | EH45: 3751.249412 | EI45: 4189.19721 | EJ45: 4130.300782 | EK45: 3106.409034 | EL45: 2879.884311 | EM45: 1759.342015 | EN45: 1667.221961 | EO45: 3363.137053 | EP45: 6526.932351 | EQ45: 6933.166687 | ER45: 5412.430714 | ES45: 5720.504337 | ET45: 7744.125195 | EU45: 7322.78921 | EV45: 5835.276863 | EW45: 5367.125769 | EX45: 4838.568082 | EY45: 4590.901052 | EZ45: 3785.983203 | FA45: 4177.115891 | FB45: 3192.488429 | FC45: 2343.7758 | FD45: 2029.661518 | FE45: 474.1917534 | FF45: 705.2469708 | FG45: 386.6021938 | FH45: 289.9516454 | FI45: 505.9052146 | FJ45: 261.2585138 | FK45: 170.6486246 | FL45: 366.9700512 | FM45: 37.75412049 | FN45: 125.34368 | FO45: 137.4249986 | FP45: 80.03873544 | FQ45: 95.14038364 | FR45: 86.07939472 | FS45: 146.4859875 | FT45: 191.7909321 | FU45: 363.9497215 | FV45: 839.6516397 | FW45: 859.2837824 | FX45: 981.6071328 | FY45: 800.3873544 | FZ45: 829.080486 | GA45: 847.2024638 | GB45: 1010.300264 | GC45: 782.2653766 | GD45: 389.6225235 | GE45: 469.6612589 | GF45: 194.8112617 | GG45: 27.18296675 | GH45: 329.2159307
CV46: 0 | CW46: 0 | CX46: 0 | CY46: 0 | CZ46: 0 | DA46: 0 | DB46: 0 | DC46: 0 | DD46: 0 | DE46: 0 | DF46: 0 | DG46: 0 | DH46: 0 | DI46: 0 | DJ46: 0 | DK46: 0 | DL46: 0 | DM46: 0 | DN46: 0 | DO46: 0 | DP46: 0 | DQ46: 0 | DR46: 0 | DS46: 0 | DT46: 0 | DU46: 0 | DV46: 0 | DW46: 0 | DX46: 0 | DY46: 0 | DZ46: 0 | EA46: 0 | EB46: 0 | EC46: 0 | ED46: 0 | EE46: 0 | EF46: 0 | EG46: 0 | EH46: 0 | EI46: 0 | EJ46: 0 | EK46: 0 | EL46: 0 | EM46: 0 | EN46: 0 | EO46: 0 | EP46: 0 | EQ46: 0 | ER46: 0 | ES46: 0 | ET46: 0 | EU46: 0 | EV46: 0 | EW46: 0 | EX46: 0 | EY46: 0 | EZ46: 0 | FA46: 0 | FB46: 0 | FC46: 0 | FD46: 0 | FE46: 0 | FF46: 0 | FG46: 0 | FH46: 0 | FI46: 0 | FJ46: 0 | FK46: 0 | FL46: 0 | FM46: 0 | FN46: 0 | FO46: 0 | FP46: 0 | FQ46: 0 | FR46: 0 | FS46: 0 | FT46: 0 | FU46: 0 | FV46: 0 | FW46: 0 | FX46: 0 | FY46: 0 | FZ46: 0 | GA46: 0 | GB46: 0 | GC46: 0 | GD46: 0 | GE46: 0 | GF46: 0 | GG46: 0 | GH46: 0
CV47: 0 | CW47: 0 | CX47: 0 | CY47: 0 | CZ47: 0 | DA47: 0 | DB47: 0 | DC47: 0 | DD47: 0 | DE47: 0 | DF47: 0 | DG47: 0 | DH47: 0 | DI47: 0 | DJ47: 0 | DK47: 0 | DL47: 0 | DM47: 0 | DN47: 0 | DO47: 0 | DP47: 0 | DQ47: 0 | DR47: 0 | DS47: 0 | DT47: 0 | DU47: 0 | DV47: 0 | DW47: 0 | DX47: 0 | DY47: 0 | DZ47: 0 | EA47: 0 | EB47: 0 | EC47: 0 | ED47: 0 | EE47: 0 | EF47: 0 | EG47: 0 | EH47: 0 | EI47: 0 | EJ47: 0 | EK47: 0 | EL47: 0 | EM47: 0 | EN47: 0 | EO47: 0 | EP47: 0 | EQ47: 0 | ER47: 0 | ES47: 0 | ET47: 0 | EU47: 0 | EV47: 0 | EW47: 0 | EX47: 0 | EY47: 0 | EZ47: 0 | FA47: 0 | FB47: 0 | FC47: 0 | FD47: 0 | FE47: 0 | FF47: 0 | FG47: 0 | FH47: 0 | FI47: 0 | FJ47: 0 | FK47: 0 | FL47: 0 | FM47: 0 | FN47: 0 | FO47: 0 | FP47: 0 | FQ47: 0 | FR47: 0 | FS47: 0 | FT47: 0 | FU47: 0 | FV47: 0 | FW47: 0 | FX47: 0 | FY47: 0 | FZ47: 0 | GA47: 0 | GB47: 0 | GC47: 0 | GD47: 0 | GE47: 0 | GF47: 0 | GG47: 0 | GH47: 0
CV48: 0 | CW48: 0 | CX48: 0 | CY48: 0 | CZ48: 0 | DA48: 0 | DB48: 0 | DC48: 0 | DD48: 0 | DE48: 0 | DF48: 0 | DG48: 0 | DH48: 0 | DI48: 0 | DJ48: 0 | DK48: 0 | DL48: 0 | DM48: 0 | DN48: 0 | DO48: 0 | DP48: 0 | DQ48: 0 | DR48: 0 | DS48: 0 | DT48: 0 | DU48: 0 | DV48: 0 | DW48: 0 | DX48: 0 | DY48: 0 | DZ48: 0 | EA48: 0 | EB48: 0 | EC48: 0 | ED48: 0 | EE48: 0 | EF48: 0 | EG48: 0 | EH48: 0 | EI48: 0 | EJ48: 0 | EK48: 0 | EL48: 0 | EM48: 0 | EN48: 0 | EO48: 0 | EP48: 0 | EQ48: 0 | ER48: 0 | ES48: 0 | ET48: 0 | EU48: 0 | EV48: 0 | EW48: 0 | EX48: 0 | EY48: 0 | EZ48: 0 | FA48: 0 | FB48: 0 | FC48: 0 | FD48: 0 | FE48: 0 | FF48: 0 | FG48: 0 | FH48: 0 | FI48: 0 | FJ48: 0 | FK48: 0 | FL48: 0 | FM48: 0 | FN48: 0 | FO48: 0 | FP48: 0 | FQ48: 0 | FR48: 0 | FS48: 0 | FT48: 0 | FU48: 0 | FV48: 0 | FW48: 0 | FX48: 0 | FY48: 0 | FZ48: 0 | GA48: 0 | GB48: 0 | GC48: 0 | GD48: 0 | GE48: 0 | GF48: 0 | GG48: 0 | GH48: 0
CV49: 0 | CW49: 0 | CX49: 0 | CY49: 0 | CZ49: 0 | DA49: 0 | DB49: 0 | DC49: 0 | DD49: 0 | DE49: 0 | DF49: 0 | DG49: 0 | DH49: 0 | DI49: 0 | DJ49: 0 | DK49: 0 | DL49: 0 | DM49: 0 | DN49: 0 | DO49: 0 | DP49: 0 | DQ49: 0 | DR49: 0 | DS49: 0 | DT49: 0 | DU49: 0 | DV49: 0 | DW49: 0 | DX49: 0 | DY49: 0 | DZ49: 0 | EA49: 0 | EB49: 0 | EC49: 0 | ED49: 0 | EE49: 0 | EF49: 0 | EG49: 0 | EH49: 0 | EI49: 0 | EJ49: 0 | EK49: 0 | EL49: 0 | EM49: 0 | EN49: 0 | EO49: 0 | EP49: 0 | EQ49: 0 | ER49: 0 | ES49: 0 | ET49: 0 | EU49: 0 | EV49: 0 | EW49: 0 | EX49: 0 | EY49: 0 | EZ49: 0 | FA49: 0 | FB49: 0 | FC49: 0 | FD49: 0 | FE49: 0 | FF49: 0 | FG49: 0 | FH49: 0 | FI49: 0 | FJ49: 0 | FK49: 0 | FL49: 0 | FM49: 0 | FN49: 0 | FO49: 0 | FP49: 0 | FQ49: 0 | FR49: 0 | FS49: 0 | FT49: 0 | FU49: 0 | FV49: 0 | FW49: 0 | FX49: 0 | FY49: 0 | FZ49: 0 | GA49: 0 | GB49: 0 | GC49: 0 | GD49: 0 | GE49: 0 | GF49: 0 | GG49: 0 | GH49: 0
CV50: 0 | CW50: 0 | CX50: 0 | CY50: 0 | CZ50: 0 | DA50: 0 | DB50: 0 | DC50: 0 | DD50: 0 | DE50: 0 | DF50: 0 | DG50: 0 | DH50: 0 | DI50: 0 | DJ50: 0 | DK50: 0 | DL50: 0 | DM50: 0 | DN50: 0 | DO50: 0 | DP50: 0 | DQ50: 0 | DR50: 0 | DS50: 0 | DT50: 0 | DU50: 0 | DV50: 0 | DW50: 0 | DX50: 0 | DY50: 0 | DZ50: 0 | EA50: 0 | EB50: 0 | EC50: 0 | ED50: 0 | EE50: 0 | EF50: 0 | EG50: 0 | EH50: 0 | EI50: 0 | EJ50: 0 | EK50: 0 | EL50: 0 | EM50: 0 | EN50: 0 | EO50: 0 | EP50: 0 | EQ50: 0 | ER50: 0 | ES50: 0 | ET50: 0 | EU50: 0 | EV50: 0 | EW50: 0 | EX50: 0 | EY50: 0 | EZ50: 0 | FA50: 0 | FB50: 0 | FC50: 0 | FD50: 0 | FE50: 0 | FF50: 0 | FG50: 0 | FH50: 0 | FI50: 0 | FJ50: 0 | FK50: 0 | FL50: 0 | FM50: 0 | FN50: 0 | FO50: 0 | FP50: 0 | FQ50: 0 | FR50: 0 | FS50: 0 | FT50: 0 | FU50: 0 | FV50: 0 | FW50: 0 | FX50: 0 | FY50: 0 | FZ50: 0 | GA50: 0 | GB50: 0 | GC50: 0 | GD50: 0 | GE50: 0 | GF50: 0 | GG50: 0 | GH50: 0
CV51: 0 | CW51: 0 | CX51: 0 | CY51: 0 | CZ51: 0 | DA51: 0 | DB51: 0 | DC51: 0 | DD51: 0 | DE51: 0 | DF51: 0 | DG51: 0 | DH51: 0 | DI51: 0 | DJ51: 0 | DK51: 0 | DL51: 0 | DM51: 0 | DN51: 0 | DO51: 0 | DP51: 0 | DQ51: 0 | DR51: 0 | DS51: 0 | DT51: 0 | DU51: 0 | DV51: 0 | DW51: 0 | DX51: 0 | DY51: 0 | DZ51: 0 | EA51: 0 | EB51: 0 | EC51: 0 | ED51: 0 | EE51: 0 | EF51: 0 | EG51: 0 | EH51: 0 | EI51: 0 | EJ51: 0 | EK51: 0 | EL51: 0 | EM51: 0 | EN51: 0 | EO51: 0 | EP51: 0 | EQ51: 0 | ER51: 0 | ES51: 0 | ET51: 0 | EU51: 0 | EV51: 0 | EW51: 0 | EX51: 0 | EY51: 0 | EZ51: 0 | FA51: 0 | FB51: 0 | FC51: 0 | FD51: 0 | FE51: 0 | FF51: 0 | FG51: 0 | FH51: 0 | FI51: 0 | FJ51: 0 | FK51: 0 | FL51: 0 | FM51: 0 | FN51: 0 | FO51: 0 | FP51: 0 | FQ51: 0 | FR51: 0 | FS51: 0 | FT51: 0 | FU51: 0 | FV51: 0 | FW51: 0 | FX51: 0 | FY51: 0 | FZ51: 0 | GA51: 0 | GB51: 0 | GC51: 0 | GD51: 0 | GE51: 0 | GF51: 0 | GG51: 0 | GH51: 0
CV52: 0 | CW52: 0 | CX52: 0 | CY52: 0 | CZ52: 0 | DA52: 0 | DB52: 0 | DC52: 0 | DD52: 0 | DE52: 0 | DF52: 0 | DG52: 0 | DH52: 0 | DI52: 0 | DJ52: 0 | DK52: 0 | DL52: 0 | DM52: 0 | DN52: 0 | DO52: 0 | DP52: 0 | DQ52: 0 | DR52: 0 | DS52: 0 | DT52: 0 | DU52: 0 | DV52: 0 | DW52: 0 | DX52: 0 | DY52: 0 | DZ52: 0 | EA52: 0 | EB52: 0 | EC52: 0 | ED52: 0 | EE52: 0 | EF52: 0 | EG52: 0 | EH52: 0 | EI52: 0 | EJ52: 0 | EK52: 0 | EL52: 0 | EM52: 0 | EN52: 0 | EO52: 0 | EP52: 0 | EQ52: 0 | ER52: 0 | ES52: 0 | ET52: 0 | EU52: 0 | EV52: 0 | EW52: 0 | EX52: 0 | EY52: 0 | EZ52: 0 | FA52: 0 | FB52: 0 | FC52: 0 | FD52: 0 | FE52: 0 | FF52: 0 | FG52: 0 | FH52: 0 | FI52: 0 | FJ52: 0 | FK52: 0 | FL52: 0 | FM52: 0 | FN52: 0 | FO52: 0 | FP52: 0 | FQ52: 0 | FR52: 0 | FS52: 0 | FT52: 0 | FU52: 0 | FV52: 0 | FW52: 0 | FX52: 0 | FY52: 0 | FZ52: 0 | GA52: 0 | GB52: 0 | GC52: 0 | GD52: 0 | GE52: 0 | GF52: 0 | GG52: 0 | GH52: 0
CV53: 0 | CW53: 0 | CX53: 0 | CY53: 0 | CZ53: 0 | DA53: 0 | DB53: 0 | DC53: 0 | DD53: 0 | DE53: 0 | DF53: 0 | DG53: 0 | DH53: 0 | DI53: 0 | DJ53: 0 | DK53: 0 | DL53: 0 | DM53: 0 | DN53: 0 | DO53: 0 | DP53: 0 | DQ53: 0 | DR53: 0 | DS53: 0 | DT53: 0 | DU53: 0 | DV53: 0 | DW53: 0 | DX53: 0 | DY53: 0 | DZ53: 0 | EA53: 0 | EB53: 0 | EC53: 0 | ED53: 0 | EE53: 0 | EF53: 0 | EG53: 0 | EH53: 0 | EI53: 0 | EJ53: 0 | EK53: 0 | EL53: 0 | EM53: 0 | EN53: 0 | EO53: 0 | EP53: 0 | EQ53: 0 | ER53: 0 | ES53: 0 | ET53: 0 | EU53: 0 | EV53: 0 | EW53: 0 | EX53: 0 | EY53: 0 | EZ53: 0 | FA53: 0 | FB53: 0 | FC53: 0 | FD53: 0 | FE53: 0 | FF53: 0 | FG53: 0 | FH53: 0 | FI53: 0 | FJ53: 0 | FK53: 0 | FL53: 0 | FM53: 0 | FN53: 0 | FO53: 0 | FP53: 0 | FQ53: 0 | FR53: 0 | FS53: 0 | FT53: 0 | FU53: 0 | FV53: 0 | FW53: 0 | FX53: 0 | FY53: 0 | FZ53: 0 | GA53: 0 | GB53: 0 | GC53: 0 | GD53: 0 | GE53: 0 | GF53: 0 | GG53: 0 | GH53: 0
CV54: 0 | CW54: 0 | CX54: 0 | CY54: 0 | CZ54: 0 | DA54: 0 | DB54: 0 | DC54: 0 | DD54: 0 | DE54: 0 | DF54: 0 | DG54: 0 | DH54: 0 | DI54: 0 | DJ54: 0 | DK54: 0 | DL54: 0 | DM54: 0 | DN54: 0 | DO54: 0 | DP54: 0 | DQ54: 0 | DR54: 0 | DS54: 0 | DT54: 0 | DU54: 0 | DV54: 0 | DW54: 0 | DX54: 0 | DY54: 0 | DZ54: 0 | EA54: 0 | EB54: 0 | EC54: 0 | ED54: 0 | EE54: 0 | EF54: 0 | EG54: 0 | EH54: 0 | EI54: 0 | EJ54: 0 | EK54: 0 | EL54: 0 | EM54: 0 | EN54: 0 | EO54: 0 | EP54: 0 | EQ54: 0 | ER54: 0 | ES54: 0 | ET54: 0 | EU54: 0 | EV54: 0 | EW54: 0 | EX54: 0 | EY54: 0 | EZ54: 0 | FA54: 0 | FB54: 0 | FC54: 0 | FD54: 0 | FE54: 0 | FF54: 0 | FG54: 0 | FH54: 0 | FI54: 0 | FJ54: 0 | FK54: 0 | FL54: 0 | FM54: 0 | FN54: 0 | FO54: 0 | FP54: 0 | FQ54: 0 | FR54: 0 | FS54: 0 | FT54: 0 | FU54: 0 | FV54: 0 | FW54: 0 | FX54: 0 | FY54: 0 | FZ54: 0 | GA54: 0 | GB54: 0 | GC54: 0 | GD54: 0 | GE54: 0 | GF54: 0 | GG54: 0 | GH54: 0
CV55: 0 | CW55: 0 | CX55: 0 | CY55: 0 | CZ55: 0 | DA55: 0 | DB55: 0 | DC55: 0 | DD55: 0 | DE55: 0 | DF55: 0 | DG55: 0 | DH55: 0 | DI55: 0 | DJ55: 0 | DK55: 0 | DL55: 0 | DM55: 0 | DN55: 0 | DO55: 0 | DP55: 0 | DQ55: 0 | DR55: 0 | DS55: 0 | DT55: 0 | DU55: 0 | DV55: 0 | DW55: 0 | DX55: 0 | DY55: 0 | DZ55: 0 | EA55: 0 | EB55: 0 | EC55: 0 | ED55: 0 | EE55: 0 | EF55: 0 | EG55: 0 | EH55: 0 | EI55: 0 | EJ55: 0 | EK55: 0 | EL55: 0 | EM55: 0 | EN55: 0 | EO55: 0 | EP55: 0 | EQ55: 0 | ER55: 0 | ES55: 0 | ET55: 0 | EU55: 0 | EV55: 0 | EW55: 0 | EX55: 0 | EY55: 0 | EZ55: 0 | FA55: 0 | FB55: 0 | FC55: 0 | FD55: 0 | FE55: 0 | FF55: 0 | FG55: 0 | FH55: 0 | FI55: 0 | FJ55: 0 | FK55: 0 | FL55: 0 | FM55: 0 | FN55: 0 | FO55: 0 | FP55: 0 | FQ55: 0 | FR55: 0 | FS55: 0 | FT55: 0 | FU55: 0 | FV55: 0 | FW55: 0 | FX55: 0 | FY55: 0 | FZ55: 0 | GA55: 0 | GB55: 0 | GC55: 0 | GD55: 0 | GE55: 0 | GF55: 0 | GG55: 0 | GH55: 0
CV56: 0 | CW56: 0 | CX56: 0 | CY56: 0 | CZ56: 0 | DA56: 0 | DB56: 0 | DC56: 0 | DD56: 0 | DE56: 0 | DF56: 0 | DG56: 0 | DH56: 0 | DI56: 0 | DJ56: 0 | DK56: 0 | DL56: 0 | DM56: 0 | DN56: 0 | DO56: 0 | DP56: 0 | DQ56: 0 | DR56: 0 | DS56: 0 | DT56: 0 | DU56: 0 | DV56: 0 | DW56: 0 | DX56: 0 | DY56: 0 | DZ56: 0 | EA56: 0 | EB56: 0 | EC56: 0 | ED56: 0 | EE56: 0 | EF56: 0 | EG56: 0 | EH56: 0 | EI56: 0 | EJ56: 0 | EK56: 0 | EL56: 0 | EM56: 0 | EN56: 0 | EO56: 0 | EP56: 0 | EQ56: 0 | ER56: 0 | ES56: 0 | ET56: 0 | EU56: 0 | EV56: 0 | EW56: 0 | EX56: 0 | EY56: 0 | EZ56: 0 | FA56: 0 | FB56: 0 | FC56: 0 | FD56: 0 | FE56: 0 | FF56: 0 | FG56: 0 | FH56: 0 | FI56: 0 | FJ56: 0 | FK56: 0 | FL56: 0 | FM56: 0 | FN56: 0 | FO56: 0 | FP56: 0 | FQ56: 0 | FR56: 0 | FS56: 0 | FT56: 0 | FU56: 0 | FV56: 0 | FW56: 0 | FX56: 0 | FY56: 0 | FZ56: 0 | GA56: 0 | GB56: 0 | GC56: 0 | GD56: 0 | GE56: 0 | GF56: 0 | GG56: 0 | GH56: 0
CV57: 0 | CW57: 0 | CX57: 0 | CY57: 0 | CZ57: 0 | DA57: 0 | DB57: 0 | DC57: 0 | DD57: 0 | DE57: 0 | DF57: 0 | DG57: 0 | DH57: 0 | DI57: 0 | DJ57: 0 | DK57: 0 | DL57: 0 | DM57: 0 | DN57: 0 | DO57: 0 | DP57: 0 | DQ57: 0 | DR57: 0 | DS57: 0 | DT57: 0 | DU57: 0 | DV57: 0 | DW57: 0 | DX57: 0 | DY57: 0 | DZ57: 0 | EA57: 0 | EB57: 0 | EC57: 0 | ED57: 0 | EE57: 0 | EF57: 0 | EG57: 0 | EH57: 0 | EI57: 0 | EJ57: 0 | EK57: 0 | EL57: 0 | EM57: 0 | EN57: 0 | EO57: 0 | EP57: 0 | EQ57: 0 | ER57: 0 | ES57: 0 | ET57: 0 | EU57: 0 | EV57: 0 | EW57: 0 | EX57: 0 | EY57: 0 | EZ57: 0 | FA57: 0 | FB57: 0 | FC57: 0 | FD57: 0 | FE57: 0 | FF57: 0 | FG57: 0 | FH57: 0 | FI57: 0 | FJ57: 0 | FK57: 0 | FL57: 0 | FM57: 0 | FN57: 0 | FO57: 0 | FP57: 0 | FQ57: 0 | FR57: 0 | FS57: 0 | FT57: 0 | FU57: 0 | FV57: 0 | FW57: 0 | FX57: 0 | FY57: 0 | FZ57: 0 | GA57: 0 | GB57: 0 | GC57: 0 | GD57: 0 | GE57: 0 | GF57: 0 | GG57: 0 | GH57: 0
CV58: 0 | CW58: 0 | CX58: 0 | CY58: 0 | CZ58: 0 | DA58: 0 | DB58: 0 | DC58: 0 | DD58: 0 | DE58: 0 | DF58: 0 | DG58: 0 | DH58: 0 | DI58: 0 | DJ58: 0 | DK58: 0 | DL58: 0 | DM58: 0 | DN58: 0 | DO58: 0 | DP58: 0 | DQ58: 0 | DR58: 0 | DS58: 0 | DT58: 0 | DU58: 0 | DV58: 0 | DW58: 0 | DX58: 0 | DY58: 0 | DZ58: 0 | EA58: 0 | EB58: 0 | EC58: 0 | ED58: 0 | EE58: 0 | EF58: 0 | EG58: 0 | EH58: 0 | EI58: 0 | EJ58: 0 | EK58: 0 | EL58: 0 | EM58: 0 | EN58: 0 | EO58: 0 | EP58: 0 | EQ58: 0 | ER58: 0 | ES58: 0 | ET58: 0 | EU58: 0 | EV58: 0 | EW58: 0 | EX58: 0 | EY58: 0 | EZ58: 0 | FA58: 0 | FB58: 0 | FC58: 0 | FD58: 0 | FE58: 0 | FF58: 0 | FG58: 0 | FH58: 0 | FI58: 0 | FJ58: 0 | FK58: 0 | FL58: 0 | FM58: 0 | FN58: 0 | FO58: 0 | FP58: 0 | FQ58: 0 | FR58: 0 | FS58: 0 | FT58: 0 | FU58: 0 | FV58: 0 | FW58: 0 | FX58: 0 | FY58: 0 | FZ58: 0 | GA58: 0 | GB58: 0 | GC58: 0 | GD58: 0 | GE58: 0 | GF58: 0 | GG58: 0 | GH58: 0
CV59: 0 | CW59: 0 | CX59: 0 | CY59: 0 | CZ59: 0 | DA59: 0 | DB59: 0 | DC59: 0 | DD59: 0 | DE59: 0 | DF59: 0 | DG59: 0 | DH59: 0 | DI59: 0 | DJ59: 0 | DK59: 0 | DL59: 0 | DM59: 0 | DN59: 0 | DO59: 0 | DP59: 0 | DQ59: 0 | DR59: 0 | DS59: 0 | DT59: 0 | DU59: 0 | DV59: 0 | DW59: 0 | DX59: 0 | DY59: 0 | DZ59: 0 | EA59: 0 | EB59: 0 | EC59: 0 | ED59: 0 | EE59: 0 | EF59: 0 | EG59: 0 | EH59: 0 | EI59: 0 | EJ59: 0 | EK59: 0 | EL59: 0 | EM59: 0 | EN59: 0 | EO59: 0 | EP59: 0 | EQ59: 0 | ER59: 0 | ES59: 0 | ET59: 0 | EU59: 0 | EV59: 0 | EW59: 0 | EX59: 0 | EY59: 0 | EZ59: 0 | FA59: 0 | FB59: 0 | FC59: 0 | FD59: 0 | FE59: 0 | FF59: 0 | FG59: 0 | FH59: 0 | FI59: 0 | FJ59: 0 | FK59: 0 | FL59: 0 | FM59: 0 | FN59: 0 | FO59: 0 | FP59: 0 | FQ59: 0 | FR59: 0 | FS59: 0 | FT59: 0 | FU59: 0 | FV59: 0 | FW59: 0 | FX59: 0 | FY59: 0 | FZ59: 0 | GA59: 0 | GB59: 0 | GC59: 0 | GD59: 0 | GE59: 0 | GF59: 0 | GG59: 0 | GH59: 0
CV60: 0 | CW60: 0 | CX60: 0 | CY60: 0 | CZ60: 0 | DA60: 0 | DB60: 0 | DC60: 0 | DD60: 0 | DE60: 0 | DF60: 0 | DG60: 0 | DH60: 0 | DI60: 0 | DJ60: 0 | DK60: 0 | DL60: 0 | DM60: 0 | DN60: 0 | DO60: 0 | DP60: 0 | DQ60: 0 | DR60: 0 | DS60: 0 | DT60: 0 | DU60: 0 | DV60: 0 | DW60: 0 | DX60: 0 | DY60: 0 | DZ60: 0 | EA60: 0 | EB60: 0 | EC60: 0 | ED60: 0 | EE60: 0 | EF60: 0 | EG60: 0 | EH60: 0 | EI60: 0 | EJ60: 0 | EK60: 0 | EL60: 0 | EM60: 0 | EN60: 0 | EO60: 0 | EP60: 0 | EQ60: 0 | ER60: 0 | ES60: 0 | ET60: 0 | EU60: 0 | EV60: 0 | EW60: 0 | EX60: 0 | EY60: 0 | EZ60: 0 | FA60: 0 | FB60: 0 | FC60: 0 | FD60: 0 | FE60: 0 | FF60: 0 | FG60: 0 | FH60: 0 | FI60: 0 | FJ60: 0 | FK60: 0 | FL60: 0 | FM60: 0 | FN60: 0 | FO60: 0 | FP60: 0 | FQ60: 0 | FR60: 0 | FS60: 0 | FT60: 0 | FU60: 0 | FV60: 0 | FW60: 0 | FX60: 0 | FY60: 0 | FZ60: 0 | GA60: 0 | GB60: 0 | GC60: 0 | GD60: 0 | GE60: 0 | GF60: 0 | GG60: 0 | GH60: 0
CV61: 0 | CW61: 0 | CX61: 0 | CY61: 0 | CZ61: 0 | DA61: 0 | DB61: 0 | DC61: 0 | DD61: 0 | DE61: 0 | DF61: 0 | DG61: 0 | DH61: 0 | DI61: 0 | DJ61: 0 | DK61: 0 | DL61: 0 | DM61: 0 | DN61: 0 | DO61: 0 | DP61: 0 | DQ61: 0 | DR61: 0 | DS61: 0 | DT61: 0 | DU61: 0 | DV61: 0 | DW61: 0 | DX61: 0 | DY61: 0 | DZ61: 0 | EA61: 0 | EB61: 0 | EC61: 0 | ED61: 0 | EE61: 0 | EF61: 0 | EG61: 0 | EH61: 0 | EI61: 0 | EJ61: 0 | EK61: 0 | EL61: 0 | EM61: 0 | EN61: 0 | EO61: 0 | EP61: 0 | EQ61: 0 | ER61: 0 | ES61: 0 | ET61: 0 | EU61: 0 | EV61: 0 | EW61: 0 | EX61: 0 | EY61: 0 | EZ61: 0 | FA61: 0 | FB61: 0 | FC61: 0 | FD61: 0 | FE61: 0 | FF61: 0 | FG61: 0 | FH61: 0 | FI61: 0 | FJ61: 0 | FK61: 0 | FL61: 0 | FM61: 0 | FN61: 0 | FO61: 0 | FP61: 0 | FQ61: 0 | FR61: 0 | FS61: 0 | FT61: 0 | FU61: 0 | FV61: 0 | FW61: 0 | FX61: 0 | FY61: 0 | FZ61: 0 | GA61: 0 | GB61: 0 | GC61: 0 | GD61: 0 | GE61: 0 | GF61: 0 | GG61: 0 | GH61: 0
CV62: 0 | CW62: 0 | CX62: 0 | CY62: 0 | CZ62: 0 | DA62: 0 | DB62: 0 | DC62: 0 | DD62: 0 | DE62: 0 | DF62: 0 | DG62: 0 | DH62: 0 | DI62: 0 | DJ62: 0 | DK62: 0 | DL62: 0 | DM62: 0 | DN62: 0 | DO62: 0 | DP62: 0 | DQ62: 0 | DR62: 0 | DS62: 0 | DT62: 0 | DU62: 0 | DV62: 0 | DW62: 0 | DX62: 0 | DY62: 0 | DZ62: 0 | EA62: 0 | EB62: 0 | EC62: 0 | ED62: 0 | EE62: 0 | EF62: 0 | EG62: 0 | EH62: 0 | EI62: 0 | EJ62: 0 | EK62: 0 | EL62: 0 | EM62: 0 | EN62: 0 | EO62: 0 | EP62: 0 | EQ62: 0 | ER62: 0 | ES62: 0 | ET62: 0 | EU62: 0 | EV62: 0 | EW62: 0 | EX62: 0 | EY62: 0 | EZ62: 0 | FA62: 0 | FB62: 0 | FC62: 0 | FD62: 0 | FE62: 0 | FF62: 0 | FG62: 0 | FH62: 0 | FI62: 0 | FJ62: 0 | FK62: 0 | FL62: 0 | FM62: 0 | FN62: 0 | FO62: 0 | FP62: 0 | FQ62: 0 | FR62: 0 | FS62: 0 | FT62: 0 | FU62: 0 | FV62: 0 | FW62: 0 | FX62: 0 | FY62: 0 | FZ62: 0 | GA62: 0 | GB62: 0 | GC62: 0 | GD62: 0 | GE62: 0 | GF62: 0 | GG62: 0 | GH62: 0
CV63: 0 | CW63: 0 | CX63: 0 | CY63: 0 | CZ63: 0 | DA63: 0 | DB63: 0 | DC63: 0 | DD63: 0 | DE63: 0 | DF63: 0 | DG63: 0 | DH63: 0 | DI63: 0 | DJ63: 0 | DK63: 0 | DL63: 0 | DM63: 0 | DN63: 0 | DO63: 0 | DP63: 0 | DQ63: 0 | DR63: 0 | DS63: 0 | DT63: 0 | DU63: 0 | DV63: 0 | DW63: 0 | DX63: 0 | DY63: 0 | DZ63: 0 | EA63: 0 | EB63: 0 | EC63: 0 | ED63: 0 | EE63: 0 | EF63: 0 | EG63: 0 | EH63: 0 | EI63: 0 | EJ63: 0 | EK63: 0 | EL63: 0 | EM63: 0 | EN63: 0 | EO63: 0 | EP63: 0 | EQ63: 0 | ER63: 0 | ES63: 0 | ET63: 0 | EU63: 0 | EV63: 0 | EW63: 0 | EX63: 0 | EY63: 0 | EZ63: 0 | FA63: 0 | FB63: 0 | FC63: 0 | FD63: 0 | FE63: 0 | FF63: 0 | FG63: 0 | FH63: 0 | FI63: 0 | FJ63: 0 | FK63: 0 | FL63: 0 | FM63: 0 | FN63: 0 | FO63: 0 | FP63: 0 | FQ63: 0 | FR63: 0 | FS63: 0 | FT63: 0 | FU63: 0 | FV63: 0 | FW63: 0 | FX63: 0 | FY63: 0 | FZ63: 0 | GA63: 0 | GB63: 0 | GC63: 0 | GD63: 0 | GE63: 0 | GF63: 0 | GG63: 0 | GH63: 0
CV64: 0 | CW64: 0 | CX64: 0 | CY64: 0 | CZ64: 0 | DA64: 0 | DB64: 0 | DC64: 0 | DD64: 0 | DE64: 0 | DF64: 0 | DG64: 0 | DH64: 0 | DI64: 0 | DJ64: 0 | DK64: 0 | DL64: 0 | DM64: 0 | DN64: 0 | DO64: 0 | DP64: 0 | DQ64: 0 | DR64: 0 | DS64: 0 | DT64: 0 | DU64: 0 | DV64: 0 | DW64: 0 | DX64: 0 | DY64: 0 | DZ64: 0 | EA64: 0 | EB64: 0 | EC64: 0 | ED64: 0 | EE64: 0 | EF64: 0 | EG64: 0 | EH64: 0 | EI64: 0 | EJ64: 0 | EK64: 0 | EL64: 0 | EM64: 0 | EN64: 0 | EO64: 0 | EP64: 0 | EQ64: 0 | ER64: 0 | ES64: 0 | ET64: 0 | EU64: 0 | EV64: 0 | EW64: 0 | EX64: 0 | EY64: 0 | EZ64: 0 | FA64: 0 | FB64: 0 | FC64: 0 | FD64: 0 | FE64: 0 | FF64: 0 | FG64: 0 | FH64: 0 | FI64: 0 | FJ64: 0 | FK64: 0 | FL64: 0 | FM64: 0 | FN64: 0 | FO64: 0 | FP64: 0 | FQ64: 0 | FR64: 0 | FS64: 0 | FT64: 0 | FU64: 0 | FV64: 0 | FW64: 0 | FX64: 0 | FY64: 0 | FZ64: 0 | GA64: 0 | GB64: 0 | GC64: 0 | GD64: 0 | GE64: 0 | GF64: 0 | GG64: 0 | GH64: 0
CV65: 0 | CW65: 0 | CX65: 0 | CY65: 0 | CZ65: 0 | DA65: 0 | DB65: 0 | DC65: 0 | DD65: 0 | DE65: 0 | DF65: 0 | DG65: 0 | DH65: 0 | DI65: 0 | DJ65: 0 | DK65: 0 | DL65: 0 | DM65: 0 | DN65: 0 | DO65: 0 | DP65: 0 | DQ65: 0 | DR65: 0 | DS65: 0 | DT65: 0 | DU65: 0 | DV65: 0 | DW65: 0 | DX65: 0 | DY65: 0 | DZ65: 0 | EA65: 0 | EB65: 0 | EC65: 0 | ED65: 0 | EE65: 0 | EF65: 0 | EG65: 0 | EH65: 0 | EI65: 0 | EJ65: 0 | EK65: 0 | EL65: 0 | EM65: 0 | EN65: 0 | EO65: 0 | EP65: 0 | EQ65: 0 | ER65: 0 | ES65: 0 | ET65: 0 | EU65: 0 | EV65: 0 | EW65: 0 | EX65: 0 | EY65: 0 | EZ65: 0 | FA65: 0 | FB65: 0 | FC65: 0 | FD65: 0 | FE65: 0 | FF65: 0 | FG65: 0 | FH65: 0 | FI65: 0 | FJ65: 0 | FK65: 0 | FL65: 0 | FM65: 0 | FN65: 0 | FO65: 0 | FP65: 0 | FQ65: 0 | FR65: 0 | FS65: 0 | FT65: 0 | FU65: 0 | FV65: 0 | FW65: 0 | FX65: 0 | FY65: 0 | FZ65: 0 | GA65: 0 | GB65: 0 | GC65: 0 | GD65: 0 | GE65: 0 | GF65: 0 | GG65: 0 | GH65: 0
CV66: 0 | CW66: 0 | CX66: 0 | CY66: 0 | CZ66: 0 | DA66: 0 | DB66: 0 | DC66: 0 | DD66: 0 | DE66: 0 | DF66: 0 | DG66: 0 | DH66: 0 | DI66: 0 | DJ66: 0 | DK66: 0 | DL66: 0 | DM66: 0 | DN66: 0 | DO66: 0 | DP66: 0 | DQ66: 0 | DR66: 0 | DS66: 0 | DT66: 0 | DU66: 0 | DV66: 0 | DW66: 0 | DX66: 0 | DY66: 0 | DZ66: 0 | EA66: 0 | EB66: 0 | EC66: 0 | ED66: 0 | EE66: 0 | EF66: 0 | EG66: 0 | EH66: 0 | EI66: 0 | EJ66: 0 | EK66: 0 | EL66: 0 | EM66: 0 | EN66: 0 | EO66: 0 | EP66: 0 | EQ66: 0 | ER66: 0 | ES66: 0 | ET66: 0 | EU66: 0 | EV66: 0 | EW66: 0 | EX66: 0 | EY66: 0 | EZ66: 0 | FA66: 0 | FB66: 0 | FC66: 0 | FD66: 0 | FE66: 0 | FF66: 0 | FG66: 0 | FH66: 0 | FI66: 0 | FJ66: 0 | FK66: 0 | FL66: 0 | FM66: 0 | FN66: 0 | FO66: 0 | FP66: 0 | FQ66: 0 | FR66: 0 | FS66: 0 | FT66: 0 | FU66: 0 | FV66: 0 | FW66: 0 | FX66: 0 | FY66: 0 | FZ66: 0 | GA66: 0 | GB66: 0 | GC66: 0 | GD66: 0 | GE66: 0 | GF66: 0 | GG66: 0 | GH66: 0
CV67: 0 | CW67: 0 | CX67: 0 | CY67: 0 | CZ67: 0 | DA67: 0 | DB67: 0 | DC67: 0 | DD67: 0 | DE67: 0 | DF67: 0 | DG67: 0 | DH67: 0 | DI67: 0 | DJ67: 0 | DK67: 0 | DL67: 0 | DM67: 0 | DN67: 0 | DO67: 0 | DP67: 0 | DQ67: 0 | DR67: 0 | DS67: 0 | DT67: 0 | DU67: 0 | DV67: 0 | DW67: 0 | DX67: 0 | DY67: 0 | DZ67: 0 | EA67: 0 | EB67: 0 | EC67: 0 | ED67: 0 | EE67: 0 | EF67: 0 | EG67: 0 | EH67: 0 | EI67: 0 | EJ67: 0 | EK67: 0 | EL67: 0 | EM67: 0 | EN67: 0 | EO67: 0 | EP67: 0 | EQ67: 0 | ER67: 0 | ES67: 0 | ET67: 0 | EU67: 0 | EV67: 0 | EW67: 0 | EX67: 0 | EY67: 0 | EZ67: 0 | FA67: 0 | FB67: 0 | FC67: 0 | FD67: 0 | FE67: 0 | FF67: 0 | FG67: 0 | FH67: 0 | FI67: 0 | FJ67: 0 | FK67: 0 | FL67: 0 | FM67: 0 | FN67: 0 | FO67: 0 | FP67: 0 | FQ67: 0 | FR67: 0 | FS67: 0 | FT67: 0 | FU67: 0 | FV67: 0 | FW67: 0 | FX67: 0 | FY67: 0 | FZ67: 0 | GA67: 0 | GB67: 0 | GC67: 0 | GD67: 0 | GE67: 0 | GF67: 0 | GG67: 0 | GH67: 0
CV68: 0 | CW68: 0 | CX68: 0 | CY68: 0 | CZ68: 0 | DA68: 0 | DB68: 0 | DC68: 0 | DD68: 0 | DE68: 0 | DF68: 0 | DG68: 0 | DH68: 0 | DI68: 0 | DJ68: 0 | DK68: 0 | DL68: 0 | DM68: 0 | DN68: 0 | DO68: 0 | DP68: 0 | DQ68: 0 | DR68: 0 | DS68: 0 | DT68: 0 | DU68: 0 | DV68: 0 | DW68: 0 | DX68: 0 | DY68: 0 | DZ68: 0 | EA68: 0 | EB68: 0 | EC68: 0 | ED68: 0 | EE68: 0 | EF68: 0 | EG68: 0 | EH68: 0 | EI68: 0 | EJ68: 0 | EK68: 0 | EL68: 0 | EM68: 0 | EN68: 0 | EO68: 0 | EP68: 0 | EQ68: 0 | ER68: 0 | ES68: 0 | ET68: 0 | EU68: 0 | EV68: 0 | EW68: 0 | EX68: 0 | EY68: 0 | EZ68: 0 | FA68: 0 | FB68: 0 | FC68: 0 | FD68: 0 | FE68: 0 | FF68: 0 | FG68: 0 | FH68: 0 | FI68: 0 | FJ68: 0 | FK68: 0 | FL68: 0 | FM68: 0 | FN68: 0 | FO68: 0 | FP68: 0 | FQ68: 0 | FR68: 0 | FS68: 0 | FT68: 0 | FU68: 0 | FV68: 0 | FW68: 0 | FX68: 0 | FY68: 0 | FZ68: 0 | GA68: 0 | GB68: 0 | GC68: 0 | GD68: 0 | GE68: 0 | GF68: 0 | GG68: 0 | GH68: 0
CV69: 0 | CW69: 0 | CX69: 0 | CY69: 0 | CZ69: 0 | DA69: 0 | DB69: 0 | DC69: 0 | DD69: 0 | DE69: 0 | DF69: 0 | DG69: 0 | DH69: 0 | DI69: 0 | DJ69: 0 | DK69: 0 | DL69: 0 | DM69: 0 | DN69: 0 | DO69: 0 | DP69: 0 | DQ69: 0 | DR69: 0 | DS69: 0 | DT69: 0 | DU69: 0 | DV69: 0 | DW69: 0 | DX69: 0 | DY69: 0 | DZ69: 0 | EA69: 0 | EB69: 0 | EC69: 0 | ED69: 0 | EE69: 0 | EF69: 0 | EG69: 0 | EH69: 0 | EI69: 0 | EJ69: 0 | EK69: 0 | EL69: 0 | EM69: 0 | EN69: 0 | EO69: 0 | EP69: 0 | EQ69: 0 | ER69: 0 | ES69: 0 | ET69: 0 | EU69: 0 | EV69: 0 | EW69: 0 | EX69: 0 | EY69: 0 | EZ69: 0 | FA69: 0 | FB69: 0 | FC69: 0 | FD69: 0 | FE69: 0 | FF69: 0 | FG69: 0 | FH69: 0 | FI69: 0 | FJ69: 0 | FK69: 0 | FL69: 0 | FM69: 0 | FN69: 0 | FO69: 0 | FP69: 0 | FQ69: 0 | FR69: 0 | FS69: 0 | FT69: 0 | FU69: 0 | FV69: 0 | FW69: 0 | FX69: 0 | FY69: 0 | FZ69: 0 | GA69: 0 | GB69: 0 | GC69: 0 | GD69: 0 | GE69: 0 | GF69: 0 | GG69: 0 | GH69: 0
CV70: 0 | CW70: 0 | CX70: 0 | CY70: 0 | CZ70: 0 | DA70: 0 | DB70: 0 | DC70: 0 | DD70: 0 | DE70: 0 | DF70: 0 | DG70: 0 | DH70: 0 | DI70: 0 | DJ70: 0 | DK70: 0 | DL70: 0 | DM70: 0 | DN70: 0 | DO70: 0 | DP70: 0 | DQ70: 0 | DR70: 0 | DS70: 0 | DT70: 0 | DU70: 0 | DV70: 0 | DW70: 0 | DX70: 0 | DY70: 0 | DZ70: 0 | EA70: 0 | EB70: 0 | EC70: 0 | ED70: 0 | EE70: 0 | EF70: 0 | EG70: 0 | EH70: 0 | EI70: 0 | EJ70: 0 | EK70: 0 | EL70: 0 | EM70: 0 | EN70: 0 | EO70: 0 | EP70: 0 | EQ70: 0 | ER70: 0 | ES70: 0 | ET70: 0 | EU70: 0 | EV70: 0 | EW70: 0 | EX70: 0 | EY70: 0 | EZ70: 0 | FA70: 0 | FB70: 0 | FC70: 0 | FD70: 0 | FE70: 0 | FF70: 0 | FG70: 0 | FH70: 0 | FI70: 0 | FJ70: 0 | FK70: 0 | FL70: 0 | FM70: 0 | FN70: 0 | FO70: 0 | FP70: 0 | FQ70: 0 | FR70: 0 | FS70: 0 | FT70: 0 | FU70: 0 | FV70: 0 | FW70: 0 | FX70: 0 | FY70: 0 | FZ70: 0 | GA70: 0 | GB70: 0 | GC70: 0 | GD70: 0 | GE70: 0 | GF70: 0 | GG70: 0 | GH70: 0
CV71: 0 | CW71: 0 | CX71: 0 | CY71: 0 | CZ71: 0 | DA71: 0 | DB71: 0 | DC71: 0 | DD71: 0 | DE71: 0 | DF71: 0 | DG71: 0 | DH71: 0 | DI71: 0 | DJ71: 0 | DK71: 0 | DL71: 0 | DM71: 0 | DN71: 0 | DO71: 0 | DP71: 0 | DQ71: 0 | DR71: 0 | DS71: 0 | DT71: 0 | DU71: 0 | DV71: 0 | DW71: 0 | DX71: 0 | DY71: 0 | DZ71: 0 | EA71: 0 | EB71: 0 | EC71: 0 | ED71: 0 | EE71: 0 | EF71: 0 | EG71: 0 | EH71: 0 | EI71: 0 | EJ71: 0 | EK71: 0 | EL71: 0 | EM71: 0 | EN71: 0 | EO71: 0 | EP71: 0 | EQ71: 0 | ER71: 0 | ES71: 0 | ET71: 0 | EU71: 0 | EV71: 0 | EW71: 0 | EX71: 0 | EY71: 0 | EZ71: 0 | FA71: 0 | FB71: 0 | FC71: 0 | FD71: 0 | FE71: 0 | FF71: 0 | FG71: 0 | FH71: 0 | FI71: 0 | FJ71: 0 | FK71: 0 | FL71: 0 | FM71: 0 | FN71: 0 | FO71: 0 | FP71: 0 | FQ71: 0 | FR71: 0 | FS71: 0 | FT71: 0 | FU71: 0 | FV71: 0 | FW71: 0 | FX71: 0 | FY71: 0 | FZ71: 0 | GA71: 0 | GB71: 0 | GC71: 0 | GD71: 0 | GE71: 0 | GF71: 0 | GG71: 0 | GH71: 0
CV72: 0 | CW72: 0 | CX72: 0 | CY72: 0 | CZ72: 0 | DA72: 0 | DB72: 0 | DC72: 0 | DD72: 0 | DE72: 0 | DF72: 0 | DG72: 0 | DH72: 0 | DI72: 0 | DJ72: 0 | DK72: 0 | DL72: 0 | DM72: 0 | DN72: 0 | DO72: 0 | DP72: 0 | DQ72: 0 | DR72: 0 | DS72: 0 | DT72: 0 | DU72: 0 | DV72: 0 | DW72: 0 | DX72: 0 | DY72: 0 | DZ72: 0 | EA72: 0 | EB72: 0 | EC72: 0 | ED72: 0 | EE72: 0 | EF72: 0 | EG72: 0 | EH72: 0 | EI72: 0 | EJ72: 0 | EK72: 0 | EL72: 0 | EM72: 0 | EN72: 0 | EO72: 0 | EP72: 0 | EQ72: 0 | ER72: 0 | ES72: 0 | ET72: 0 | EU72: 0 | EV72: 0 | EW72: 0 | EX72: 0 | EY72: 0 | EZ72: 0 | FA72: 0 | FB72: 0 | FC72: 0 | FD72: 0 | FE72: 0 | FF72: 0 | FG72: 0 | FH72: 0 | FI72: 0 | FJ72: 0 | FK72: 0 | FL72: 0 | FM72: 0 | FN72: 0 | FO72: 0 | FP72: 0 | FQ72: 0 | FR72: 0 | FS72: 0 | FT72: 0 | FU72: 0 | FV72: 0 | FW72: 0 | FX72: 0 | FY72: 0 | FZ72: 0 | GA72: 0 | GB72: 0 | GC72: 0 | GD72: 0 | GE72: 0 | GF72: 0 | GG72: 0 | GH72: 0
CV73: 0 | CW73: 0 | CX73: 0 | CY73: 0 | CZ73: 0 | DA73: 0 | DB73: 0 | DC73: 0 | DD73: 0 | DE73: 0 | DF73: 0 | DG73: 0 | DH73: 0 | DI73: 0 | DJ73: 0 | DK73: 0 | DL73: 0 | DM73: 0 | DN73: 0 | DO73: 0 | DP73: 0 | DQ73: 0 | DR73: 0 | DS73: 0 | DT73: 0 | DU73: 0 | DV73: 0 | DW73: 0 | DX73: 0 | DY73: 0 | DZ73: 0 | EA73: 0 | EB73: 0 | EC73: 0 | ED73: 0 | EE73: 0 | EF73: 0 | EG73: 0 | EH73: 0 | EI73: 0 | EJ73: 0 | EK73: 0 | EL73: 0 | EM73: 0 | EN73: 0 | EO73: 0 | EP73: 0 | EQ73: 0 | ER73: 0 | ES73: 0 | ET73: 0 | EU73: 0 | EV73: 0 | EW73: 0 | EX73: 0 | EY73: 0 | EZ73: 0 | FA73: 0 | FB73: 0 | FC73: 0 | FD73: 0 | FE73: 0 | FF73: 0 | FG73: 0 | FH73: 0 | FI73: 0 | FJ73: 0 | FK73: 0 | FL73: 0 | FM73: 0 | FN73: 0 | FO73: 0 | FP73: 0 | FQ73: 0 | FR73: 0 | FS73: 0 | FT73: 0 | FU73: 0 | FV73: 0 | FW73: 0 | FX73: 0 | FY73: 0 | FZ73: 0 | GA73: 0 | GB73: 0 | GC73: 0 | GD73: 0 | GE73: 0 | GF73: 0 | GG73: 0 | GH73: 0
CV74: 0 | CW74: 0 | CX74: 0 | CY74: 0 | CZ74: 0 | DA74: 0 | DB74: 0 | DC74: 0 | DD74: 0 | DE74: 0 | DF74: 0 | DG74: 0 | DH74: 0 | DI74: 0 | DJ74: 0 | DK74: 0 | DL74: 0 | DM74: 0 | DN74: 0 | DO74: 0 | DP74: 0 | DQ74: 0 | DR74: 0 | DS74: 0 | DT74: 0 | DU74: 0 | DV74: 0 | DW74: 0 | DX74: 0 | DY74: 0 | DZ74: 0 | EA74: 0 | EB74: 0 | EC74: 0 | ED74: 0 | EE74: 0 | EF74: 0 | EG74: 0 | EH74: 0 | EI74: 0 | EJ74: 0 | EK74: 0 | EL74: 0 | EM74: 0 | EN74: 0 | EO74: 0 | EP74: 0 | EQ74: 0 | ER74: 0 | ES74: 0 | ET74: 0 | EU74: 0 | EV74: 0 | EW74: 0 | EX74: 0 | EY74: 0 | EZ74: 0 | FA74: 0 | FB74: 0 | FC74: 0 | FD74: 0 | FE74: 0 | FF74: 0 | FG74: 0 | FH74: 0 | FI74: 0 | FJ74: 0 | FK74: 0 | FL74: 0 | FM74: 0 | FN74: 0 | FO74: 0 | FP74: 0 | FQ74: 0 | FR74: 0 | FS74: 0 | FT74: 0 | FU74: 0 | FV74: 0 | FW74: 0 | FX74: 0 | FY74: 0 | FZ74: 0 | GA74: 0 | GB74: 0 | GC74: 0 | GD74: 0 | GE74: 0 | GF74: 0 | GG74: 0 | GH74: 0
CV75: 0 | CW75: 0 | CX75: 0 | CY75: 0 | CZ75: 0 | DA75: 0 | DB75: 0 | DC75: 0 | DD75: 0 | DE75: 0 | DF75: 0 | DG75: 0 | DH75: 0 | DI75: 0 | DJ75: 0 | DK75: 0 | DL75: 0 | DM75: 0 | DN75: 0 | DO75: 0 | DP75: 0 | DQ75: 0 | DR75: 0 | DS75: 0 | DT75: 0 | DU75: 0 | DV75: 0 | DW75: 0 | DX75: 0 | DY75: 0 | DZ75: 0 | EA75: 0 | EB75: 0 | EC75: 0 | ED75: 0 | EE75: 0 | EF75: 0 | EG75: 0 | EH75: 0 | EI75: 0 | EJ75: 0 | EK75: 0 | EL75: 0 | EM75: 0 | EN75: 0 | EO75: 0 | EP75: 0 | EQ75: 0 | ER75: 0 | ES75: 0 | ET75: 0 | EU75: 0 | EV75: 0 | EW75: 0 | EX75: 0 | EY75: 0 | EZ75: 0 | FA75: 0 | FB75: 0 | FC75: 0 | FD75: 0 | FE75: 0 | FF75: 0 | FG75: 0 | FH75: 0 | FI75: 0 | FJ75: 0 | FK75: 0 | FL75: 0 | FM75: 0 | FN75: 0 | FO75: 0 | FP75: 0 | FQ75: 0 | FR75: 0 | FS75: 0 | FT75: 0 | FU75: 0 | FV75: 0 | FW75: 0 | FX75: 0 | FY75: 0 | FZ75: 0 | GA75: 0 | GB75: 0 | GC75: 0 | GD75: 0 | GE75: 0 | GF75: 0 | GG75: 0 | GH75: 0
CV76: 0 | CW76: 0 | CX76: 0 | CY76: 0 | CZ76: 0 | DA76: 0 | DB76: 0 | DC76: 0 | DD76: 0 | DE76: 0 | DF76: 0 | DG76: 0 | DH76: 0 | DI76: 0 | DJ76: 0 | DK76: 0 | DL76: 0 | DM76: 0 | DN76: 0 | DO76: 0 | DP76: 0 | DQ76: 0 | DR76: 0 | DS76: 0 | DT76: 0 | DU76: 0 | DV76: 0 | DW76: 0 | DX76: 0 | DY76: 0 | DZ76: 0 | EA76: 0 | EB76: 0 | EC76: 0 | ED76: 0 | EE76: 0 | EF76: 0 | EG76: 0 | EH76: 0 | EI76: 0 | EJ76: 0 | EK76: 0 | EL76: 0 | EM76: 0 | EN76: 0 | EO76: 0 | EP76: 0 | EQ76: 0 | ER76: 0 | ES76: 0 | ET76: 0 | EU76: 0 | EV76: 0 | EW76: 0 | EX76: 0 | EY76: 0 | EZ76: 0 | FA76: 0 | FB76: 0 | FC76: 0 | FD76: 0 | FE76: 0 | FF76: 0 | FG76: 0 | FH76: 0 | FI76: 0 | FJ76: 0 | FK76: 0 | FL76: 0 | FM76: 0 | FN76: 0 | FO76: 0 | FP76: 0 | FQ76: 0 | FR76: 0 | FS76: 0 | FT76: 0 | FU76: 0 | FV76: 0 | FW76: 0 | FX76: 0 | FY76: 0 | FZ76: 0 | GA76: 0 | GB76: 0 | GC76: 0 | GD76: 0 | GE76: 0 | GF76: 0 | GG76: 0 | GH76: 0
CV77: 0 | CW77: 0 | CX77: 0 | CY77: 0 | CZ77: 0 | DA77: 0 | DB77: 0 | DC77: 0 | DD77: 0 | DE77: 0 | DF77: 0 | DG77: 0 | DH77: 0 | DI77: 0 | DJ77: 0 | DK77: 0 | DL77: 0 | DM77: 0 | DN77: 0 | DO77: 0 | DP77: 0 | DQ77: 0 | DR77: 0 | DS77: 0 | DT77: 0 | DU77: 0 | DV77: 0 | DW77: 0 | DX77: 0 | DY77: 0 | DZ77: 0 | EA77: 0 | EB77: 0 | EC77: 0 | ED77: 0 | EE77: 0 | EF77: 0 | EG77: 0 | EH77: 0 | EI77: 0 | EJ77: 0 | EK77: 0 | EL77: 0 | EM77: 0 | EN77: 0 | EO77: 0 | EP77: 0 | EQ77: 0 | ER77: 0 | ES77: 0 | ET77: 0 | EU77: 0 | EV77: 0 | EW77: 0 | EX77: 0 | EY77: 0 | EZ77: 0 | FA77: 0 | FB77: 0 | FC77: 0 | FD77: 0 | FE77: 0 | FF77: 0 | FG77: 0 | FH77: 0 | FI77: 0 | FJ77: 0 | FK77: 0 | FL77: 0 | FM77: 0 | FN77: 0 | FO77: 0 | FP77: 0 | FQ77: 0 | FR77: 0 | FS77: 0 | FT77: 0 | FU77: 0 | FV77: 0 | FW77: 0 | FX77: 0 | FY77: 0 | FZ77: 0 | GA77: 0 | GB77: 0 | GC77: 0 | GD77: 0 | GE77: 0 | GF77: 0 | GG77: 0 | GH77: 0
CV78: 0 | CW78: 0 | CX78: 0 | CY78: 0 | CZ78: 0 | DA78: 0 | DB78: 0 | DC78: 0 | DD78: 0 | DE78: 0 | DF78: 0 | DG78: 0 | DH78: 0 | DI78: 0 | DJ78: 0 | DK78: 0 | DL78: 0 | DM78: 0 | DN78: 0 | DO78: 0 | DP78: 0 | DQ78: 0 | DR78: 0 | DS78: 0 | DT78: 0 | DU78: 0 | DV78: 0 | DW78: 0 | DX78: 0 | DY78: 0 | DZ78: 0 | EA78: 0 | EB78: 0 | EC78: 0 | ED78: 0 | EE78: 0 | EF78: 0 | EG78: 0 | EH78: 0 | EI78: 0 | EJ78: 0 | EK78: 0 | EL78: 0 | EM78: 0 | EN78: 0 | EO78: 0 | EP78: 0 | EQ78: 0 | ER78: 0 | ES78: 0 | ET78: 0 | EU78: 0 | EV78: 0 | EW78: 0 | EX78: 0 | EY78: 0 | EZ78: 0 | FA78: 0 | FB78: 0 | FC78: 0 | FD78: 0 | FE78: 0 | FF78: 0 | FG78: 0 | FH78: 0 | FI78: 0 | FJ78: 0 | FK78: 0 | FL78: 0 | FM78: 0 | FN78: 0 | FO78: 0 | FP78: 0 | FQ78: 0 | FR78: 0 | FS78: 0 | FT78: 0 | FU78: 0 | FV78: 0 | FW78: 0 | FX78: 0 | FY78: 0 | FZ78: 0 | GA78: 0 | GB78: 0 | GC78: 0 | GD78: 0 | GE78: 0 | GF78: 0 | GG78: 0 | GH78: 0
CV79: 0 | CW79: 0 | CX79: 0 | CY79: 0 | CZ79: 0 | DA79: 0 | DB79: 0 | DC79: 0 | DD79: 0 | DE79: 0 | DF79: 0 | DG79: 0 | DH79: 0 | DI79: 0 | DJ79: 0 | DK79: 0 | DL79: 0 | DM79: 0 | DN79: 0 | DO79: 0 | DP79: 0 | DQ79: 0 | DR79: 0 | DS79: 0 | DT79: 0 | DU79: 0 | DV79: 0 | DW79: 0 | DX79: 0 | DY79: 0 | DZ79: 0 | EA79: 0 | EB79: 0 | EC79: 0 | ED79: 0 | EE79: 0 | EF79: 0 | EG79: 0 | EH79: 0 | EI79: 0 | EJ79: 0 | EK79: 0 | EL79: 0 | EM79: 0 | EN79: 0 | EO79: 0 | EP79: 0 | EQ79: 0 | ER79: 0 | ES79: 0 | ET79: 0 | EU79: 0 | EV79: 0 | EW79: 0 | EX79: 0 | EY79: 0 | EZ79: 0 | FA79: 0 | FB79: 0 | FC79: 0 | FD79: 0 | FE79: 0 | FF79: 0 | FG79: 0 | FH79: 0 | FI79: 0 | FJ79: 0 | FK79: 0 | FL79: 0 | FM79: 0 | FN79: 0 | FO79: 0 | FP79: 0 | FQ79: 0 | FR79: 0 | FS79: 0 | FT79: 0 | FU79: 0 | FV79: 0 | FW79: 0 | FX79: 0 | FY79: 0 | FZ79: 0 | GA79: 0 | GB79: 0 | GC79: 0 | GD79: 0 | GE79: 0 | GF79: 0 | GG79: 0 | GH79: 0
CV80: 0 | CW80: 0 | CX80: 0 | CY80: 0 | CZ80: 0 | DA80: 0 | DB80: 0 | DC80: 0 | DD80: 0 | DE80: 0 | DF80: 0 | DG80: 0 | DH80: 0 | DI80: 0 | DJ80: 0 | DK80: 0 | DL80: 0 | DM80: 0 | DN80: 0 | DO80: 0 | DP80: 0 | DQ80: 0 | DR80: 0 | DS80: 0 | DT80: 0 | DU80: 0 | DV80: 0 | DW80: 0 | DX80: 0 | DY80: 0 | DZ80: 0 | EA80: 0 | EB80: 0 | EC80: 0 | ED80: 0 | EE80: 0 | EF80: 0 | EG80: 0 | EH80: 0 | EI80: 0 | EJ80: 0 | EK80: 0 | EL80: 0 | EM80: 0 | EN80: 0 | EO80: 0 | EP80: 0 | EQ80: 0 | ER80: 0 | ES80: 0 | ET80: 0 | EU80: 0 | EV80: 0 | EW80: 0 | EX80: 0 | EY80: 0 | EZ80: 0 | FA80: 0 | FB80: 0 | FC80: 0 | FD80: 0 | FE80: 0 | FF80: 0 | FG80: 0 | FH80: 0 | FI80: 0 | FJ80: 0 | FK80: 0 | FL80: 0 | FM80: 0 | FN80: 0 | FO80: 0 | FP80: 0 | FQ80: 0 | FR80: 0 | FS80: 0 | FT80: 0 | FU80: 0 | FV80: 0 | FW80: 0 | FX80: 0 | FY80: 0 | FZ80: 0 | GA80: 0 | GB80: 0 | GC80: 0 | GD80: 0 | GE80: 0 | GF80: 0 | GG80: 0 | GH80: 0
CV81: 0 | CW81: 0 | CX81: 0 | CY81: 0 | CZ81: 0 | DA81: 0 | DB81: 0 | DC81: 0 | DD81: 0 | DE81: 0 | DF81: 0 | DG81: 0 | DH81: 0 | DI81: 0 | DJ81: 0 | DK81: 0 | DL81: 0 | DM81: 0 | DN81: 0 | DO81: 0 | DP81: 0 | DQ81: 0 | DR81: 0 | DS81: 0 | DT81: 0 | DU81: 0 | DV81: 0 | DW81: 0 | DX81: 0 | DY81: 0 | DZ81: 0 | EA81: 0 | EB81: 0 | EC81: 0 | ED81: 0 | EE81: 0 | EF81: 0 | EG81: 0 | EH81: 0 | EI81: 0 | EJ81: 0 | EK81: 0 | EL81: 0 | EM81: 0 | EN81: 0 | EO81: 0 | EP81: 0 | EQ81: 0 | ER81: 0 | ES81: 0 | ET81: 0 | EU81: 0 | EV81: 0 | EW81: 0 | EX81: 0 | EY81: 0 | EZ81: 0 | FA81: 0 | FB81: 0 | FC81: 0 | FD81: 0 | FE81: 0 | FF81: 0 | FG81: 0 | FH81: 0 | FI81: 0 | FJ81: 0 | FK81: 0 | FL81: 0 | FM81: 0 | FN81: 0 | FO81: 0 | FP81: 0 | FQ81: 0 | FR81: 0 | FS81: 0 | FT81: 0 | FU81: 0 | FV81: 0 | FW81: 0 | FX81: 0 | FY81: 0 | FZ81: 0 | GA81: 0 | GB81: 0 | GC81: 0 | GD81: 0 | GE81: 0 | GF81: 0 | GG81: 0 | GH81: 0
CV82: 0 | CW82: 0 | CX82: 0 | CY82: 0 | CZ82: 0 | DA82: 0 | DB82: 0 | DC82: 0 | DD82: 0 | DE82: 0 | DF82: 0 | DG82: 0 | DH82: 0 | DI82: 0 | DJ82: 0 | DK82: 0 | DL82: 0 | DM82: 0 | DN82: 0 | DO82: 0 | DP82: 0 | DQ82: 0 | DR82: 0 | DS82: 0 | DT82: 0 | DU82: 0 | DV82: 0 | DW82: 0 | DX82: 0 | DY82: 0 | DZ82: 0 | EA82: 0 | EB82: 0 | EC82: 0 | ED82: 0 | EE82: 0 | EF82: 0 | EG82: 0 | EH82: 0 | EI82: 0 | EJ82: 0 | EK82: 0 | EL82: 0 | EM82: 0 | EN82: 0 | EO82: 0 | EP82: 0 | EQ82: 0 | ER82: 0 | ES82: 0 | ET82: 0 | EU82: 0 | EV82: 0 | EW82: 0 | EX82: 0 | EY82: 0 | EZ82: 0 | FA82: 0 | FB82: 0 | FC82: 0 | FD82: 0 | FE82: 0 | FF82: 0 | FG82: 0 | FH82: 0 | FI82: 0 | FJ82: 0 | FK82: 0 | FL82: 0 | FM82: 0 | FN82: 0 | FO82: 0 | FP82: 0 | FQ82: 0 | FR82: 0 | FS82: 0 | FT82: 0 | FU82: 0 | FV82: 0 | FW82: 0 | FX82: 0 | FY82: 0 | FZ82: 0 | GA82: 0 | GB82: 0 | GC82: 0 | GD82: 0 | GE82: 0 | GF82: 0 | GG82: 0 | GH82: 0
CV83: 0 | CW83: 0 | CX83: 0 | CY83: 0 | CZ83: 0 | DA83: 0 | DB83: 0 | DC83: 0 | DD83: 0 | DE83: 0 | DF83: 0 | DG83: 0 | DH83: 0 | DI83: 0 | DJ83: 0 | DK83: 0 | DL83: 0 | DM83: 0 | DN83: 0 | DO83: 0 | DP83: 0 | DQ83: 0 | DR83: 0 | DS83: 0 | DT83: 0 | DU83: 0 | DV83: 0 | DW83: 0 | DX83: 0 | DY83: 0 | DZ83: 0 | EA83: 0 | EB83: 0 | EC83: 0 | ED83: 0 | EE83: 0 | EF83: 0 | EG83: 0 | EH83: 0 | EI83: 0 | EJ83: 0 | EK83: 0 | EL83: 0 | EM83: 0 | EN83: 0 | EO83: 0 | EP83: 0 | EQ83: 0 | ER83: 0 | ES83: 0 | ET83: 0 | EU83: 0 | EV83: 0 | EW83: 0 | EX83: 0 | EY83: 0 | EZ83: 0 | FA83: 0 | FB83: 0 | FC83: 0 | FD83: 0 | FE83: 0 | FF83: 0 | FG83: 0 | FH83: 0 | FI83: 0 | FJ83: 0 | FK83: 0 | FL83: 0 | FM83: 0 | FN83: 0 | FO83: 0 | FP83: 0 | FQ83: 0 | FR83: 0 | FS83: 0 | FT83: 0 | FU83: 0 | FV83: 0 | FW83: 0 | FX83: 0 | FY83: 0 | FZ83: 0 | GA83: 0 | GB83: 0 | GC83: 0 | GD83: 0 | GE83: 0 | GF83: 0 | GG83: 0 | GH83: 0
CV84: 0 | CW84: 0 | CX84: 0 | CY84: 0 | CZ84: 0 | DA84: 0 | DB84: 0 | DC84: 0 | DD84: 0 | DE84: 0 | DF84: 0 | DG84: 0 | DH84: 0 | DI84: 0 | DJ84: 0 | DK84: 0 | DL84: 0 | DM84: 0 | DN84: 0 | DO84: 0 | DP84: 0 | DQ84: 0 | DR84: 0 | DS84: 0 | DT84: 0 | DU84: 0 | DV84: 0 | DW84: 0 | DX84: 0 | DY84: 0 | DZ84: 0 | EA84: 0 | EB84: 0 | EC84: 0 | ED84: 0 | EE84: 0 | EF84: 0 | EG84: 0 | EH84: 0 | EI84: 0 | EJ84: 0 | EK84: 0 | EL84: 0 | EM84: 0 | EN84: 0 | EO84: 0 | EP84: 0 | EQ84: 0 | ER84: 0 | ES84: 0 | ET84: 0 | EU84: 0 | EV84: 0 | EW84: 0 | EX84: 0 | EY84: 0 | EZ84: 0 | FA84: 0 | FB84: 0 | FC84: 0 | FD84: 0 | FE84: 0 | FF84: 0 | FG84: 0 | FH84: 0 | FI84: 0 | FJ84: 0 | FK84: 0 | FL84: 0 | FM84: 0 | FN84: 0 | FO84: 0 | FP84: 0 | FQ84: 0 | FR84: 0 | FS84: 0 | FT84: 0 | FU84: 0 | FV84: 0 | FW84: 0 | FX84: 0 | FY84: 0 | FZ84: 0 | GA84: 0 | GB84: 0 | GC84: 0 | GD84: 0 | GE84: 0 | GF84: 0 | GG84: 0 | GH84: 0
CV85: 0 | CW85: 0 | CX85: 0 | CY85: 0 | CZ85: 0 | DA85: 0 | DB85: 0 | DC85: 0 | DD85: 0 | DE85: 0 | DF85: 0 | DG85: 0 | DH85: 0 | DI85: 0 | DJ85: 0 | DK85: 0 | DL85: 0 | DM85: 0 | DN85: 0 | DO85: 0 | DP85: 0 | DQ85: 0 | DR85: 0 | DS85: 0 | DT85: 0 | DU85: 0 | DV85: 0 | DW85: 0 | DX85: 0 | DY85: 0 | DZ85: 0 | EA85: 0 | EB85: 0 | EC85: 0 | ED85: 0 | EE85: 0 | EF85: 0 | EG85: 0 | EH85: 0 | EI85: 0 | EJ85: 0 | EK85: 0 | EL85: 0 | EM85: 0 | EN85: 0 | EO85: 0 | EP85: 0 | EQ85: 0 | ER85: 0 | ES85: 0 | ET85: 0 | EU85: 0 | EV85: 0 | EW85: 0 | EX85: 0 | EY85: 0 | EZ85: 0 | FA85: 0 | FB85: 0 | FC85: 0 | FD85: 0 | FE85: 0 | FF85: 0 | FG85: 0 | FH85: 0 | FI85: 0 | FJ85: 0 | FK85: 0 | FL85: 0 | FM85: 0 | FN85: 0 | FO85: 0 | FP85: 0 | FQ85: 0 | FR85: 0 | FS85: 0 | FT85: 0 | FU85: 0 | FV85: 0 | FW85: 0 | FX85: 0 | FY85: 0 | FZ85: 0 | GA85: 0 | GB85: 0 | GC85: 0 | GD85: 0 | GE85: 0 | GF85: 0 | GG85: 0 | GH85: 0
CV86: 0 | CW86: 0 | CX86: 0 | CY86: 0 | CZ86: 0 | DA86: 0 | DB86: 0 | DC86: 0 | DD86: 0 | DE86: 0 | DF86: 0 | DG86: 0 | DH86: 0 | DI86: 0 | DJ86: 0 | DK86: 0 | DL86: 0 | DM86: 0 | DN86: 0 | DO86: 0 | DP86: 0 | DQ86: 0 | DR86: 0 | DS86: 0 | DT86: 0 | DU86: 0 | DV86: 0 | DW86: 0 | DX86: 0 | DY86: 0 | DZ86: 0 | EA86: 0 | EB86: 0 | EC86: 0 | ED86: 0 | EE86: 0 | EF86: 0 | EG86: 0 | EH86: 0 | EI86: 0 | EJ86: 0 | EK86: 0 | EL86: 0 | EM86: 0 | EN86: 0 | EO86: 0 | EP86: 0 | EQ86: 0 | ER86: 0 | ES86: 0 | ET86: 0 | EU86: 0 | EV86: 0 | EW86: 0 | EX86: 0 | EY86: 0 | EZ86: 0 | FA86: 0 | FB86: 0 | FC86: 0 | FD86: 0 | FE86: 0 | FF86: 0 | FG86: 0 | FH86: 0 | FI86: 0 | FJ86: 0 | FK86: 0 | FL86: 0 | FM86: 0 | FN86: 0 | FO86: 0 | FP86: 0 | FQ86: 0 | FR86: 0 | FS86: 0 | FT86: 0 | FU86: 0 | FV86: 0 | FW86: 0 | FX86: 0 | FY86: 0 | FZ86: 0 | GA86: 0 | GB86: 0 | GC86: 0 | GD86: 0 | GE86: 0 | GF86: 0 | GG86: 0 | GH86: 0
CV87: 0 | CW87: 0 | CX87: 0 | CY87: 0 | CZ87: 0 | DA87: 0 | DB87: 0 | DC87: 0 | DD87: 0 | DE87: 0 | DF87: 0 | DG87: 0 | DH87: 0 | DI87: 0 | DJ87: 0 | DK87: 0 | DL87: 0 | DM87: 0 | DN87: 0 | DO87: 0 | DP87: 0 | DQ87: 0 | DR87: 0 | DS87: 0 | DT87: 0 | DU87: 0 | DV87: 0 | DW87: 0 | DX87: 0 | DY87: 0 | DZ87: 0 | EA87: 0 | EB87: 0 | EC87: 0 | ED87: 0 | EE87: 0 | EF87: 0 | EG87: 0 | EH87: 0 | EI87: 0 | EJ87: 0 | EK87: 0 | EL87: 0 | EM87: 0 | EN87: 0 | EO87: 0 | EP87: 0 | EQ87: 0 | ER87: 0 | ES87: 0 | ET87: 0 | EU87: 0 | EV87: 0 | EW87: 0 | EX87: 0 | EY87: 0 | EZ87: 0 | FA87: 0 | FB87: 0 | FC87: 0 | FD87: 0 | FE87: 0 | FF87: 0 | FG87: 0 | FH87: 0 | FI87: 0 | FJ87: 0 | FK87: 0 | FL87: 0 | FM87: 0 | FN87: 0 | FO87: 0 | FP87: 0 | FQ87: 0 | FR87: 0 | FS87: 0 | FT87: 0 | FU87: 0 | FV87: 0 | FW87: 0 | FX87: 0 | FY87: 0 | FZ87: 0 | GA87: 0 | GB87: 0 | GC87: 0 | GD87: 0 | GE87: 0 | GF87: 0 | GG87: 0 | GH87: 0
CV88: 0 | CW88: 0 | CX88: 0 | CY88: 0 | CZ88: 0 | DA88: 0 | DB88: 0 | DC88: 0 | DD88: 0 | DE88: 0 | DF88: 0 | DG88: 0 | DH88: 0 | DI88: 0 | DJ88: 0 | DK88: 0 | DL88: 0 | DM88: 0 | DN88: 0 | DO88: 0 | DP88: 0 | DQ88: 0 | DR88: 0 | DS88: 0 | DT88: 0 | DU88: 0 | DV88: 0 | DW88: 0 | DX88: 0 | DY88: 0 | DZ88: 0 | EA88: 0 | EB88: 0 | EC88: 0 | ED88: 0 | EE88: 0 | EF88: 0 | EG88: 0 | EH88: 0 | EI88: 0 | EJ88: 0 | EK88: 0 | EL88: 0 | EM88: 0 | EN88: 0 | EO88: 0 | EP88: 0 | EQ88: 0 | ER88: 0 | ES88: 0 | ET88: 0 | EU88: 0 | EV88: 0 | EW88: 0 | EX88: 0 | EY88: 0 | EZ88: 0 | FA88: 0 | FB88: 0 | FC88: 0 | FD88: 0 | FE88: 0 | FF88: 0 | FG88: 0 | FH88: 0 | FI88: 0 | FJ88: 0 | FK88: 0 | FL88: 0 | FM88: 0 | FN88: 0 | FO88: 0 | FP88: 0 | FQ88: 0 | FR88: 0 | FS88: 0 | FT88: 0 | FU88: 0 | FV88: 0 | FW88: 0 | FX88: 0 | FY88: 0 | FZ88: 0 | GA88: 0 | GB88: 0 | GC88: 0 | GD88: 0 | GE88: 0 | GF88: 0 | GG88: 0 | GH88: 0
CV89: 0 | CW89: 0 | CX89: 0 | CY89: 0 | CZ89: 0 | DA89: 0 | DB89: 0 | DC89: 0 | DD89: 0 | DE89: 0 | DF89: 0 | DG89: 0 | DH89: 0 | DI89: 0 | DJ89: 0 | DK89: 0 | DL89: 0 | DM89: 0 | DN89: 0 | DO89: 0 | DP89: 0 | DQ89: 0 | DR89: 0 | DS89: 0 | DT89: 0 | DU89: 0 | DV89: 0 | DW89: 0 | DX89: 0 | DY89: 0 | DZ89: 0 | EA89: 0 | EB89: 0 | EC89: 0 | ED89: 0 | EE89: 0 | EF89: 0 | EG89: 0 | EH89: 0 | EI89: 0 | EJ89: 0 | EK89: 0 | EL89: 0 | EM89: 0 | EN89: 0 | EO89: 0 | EP89: 0 | EQ89: 0 | ER89: 0 | ES89: 0 | ET89: 0 | EU89: 0 | EV89: 0 | EW89: 0 | EX89: 0 | EY89: 0 | EZ89: 0 | FA89: 0 | FB89: 0 | FC89: 0 | FD89: 0 | FE89: 0 | FF89: 0 | FG89: 0 | FH89: 0 | FI89: 0 | FJ89: 0 | FK89: 0 | FL89: 0 | FM89: 0 | FN89: 0 | FO89: 0 | FP89: 0 | FQ89: 0 | FR89: 0 | FS89: 0 | FT89: 0 | FU89: 0 | FV89: 0 | FW89: 0 | FX89: 0 | FY89: 0 | FZ89: 0 | GA89: 0 | GB89: 0 | GC89: 0 | GD89: 0 | GE89: 0 | GF89: 0 | GG89: 0 | GH89: 0
CV90: 0 | CW90: 0 | CX90: 0 | CY90: 0 | CZ90: 0 | DA90: 0 | DB90: 0 | DC90: 0 | DD90: 0 | DE90: 0 | DF90: 0 | DG90: 0 | DH90: 0 | DI90: 0 | DJ90: 0 | DK90: 0 | DL90: 0 | DM90: 0 | DN90: 0 | DO90: 0 | DP90: 0 | DQ90: 0 | DR90: 0 | DS90: 0 | DT90: 0 | DU90: 0 | DV90: 0 | DW90: 0 | DX90: 0 | DY90: 0 | DZ90: 0 | EA90: 0 | EB90: 0 | EC90: 0 | ED90: 0 | EE90: 0 | EF90: 0 | EG90: 0 | EH90: 0 | EI90: 0 | EJ90: 0 | EK90: 0 | EL90: 0 | EM90: 0 | EN90: 0 | EO90: 0 | EP90: 0 | EQ90: 0 | ER90: 0 | ES90: 0 | ET90: 0 | EU90: 0 | EV90: 0 | EW90: 0 | EX90: 0 | EY90: 0 | EZ90: 0 | FA90: 0 | FB90: 0 | FC90: 0 | FD90: 0 | FE90: 0 | FF90: 0 | FG90: 0 | FH90: 0 | FI90: 0 | FJ90: 0 | FK90: 0 | FL90: 0 | FM90: 0 | FN90: 0 | FO90: 0 | FP90: 0 | FQ90: 0 | FR90: 0 | FS90: 0 | FT90: 0 | FU90: 0 | FV90: 0 | FW90: 0 | FX90: 0 | FY90: 0 | FZ90: 0 | GA90: 0 | GB90: 0 | GC90: 0 | GD90: 0 | GE90: 0 | GF90: 0 | GG90: 0 | GH90: 0
CV91: 0 | CW91: 0 | CX91: 0 | CY91: 0 | CZ91: 0 | DA91: 0 | DB91: 0 | DC91: 0 | DD91: 0 | DE91: 0 | DF91: 0 | DG91: 0 | DH91: 0 | DI91: 0 | DJ91: 0 | DK91: 0 | DL91: 0 | DM91: 0 | DN91: 0 | DO91: 0 | DP91: 0 | DQ91: 0 | DR91: 0 | DS91: 0 | DT91: 0 | DU91: 0 | DV91: 0 | DW91: 0 | DX91: 0 | DY91: 0 | DZ91: 0 | EA91: 0 | EB91: 0 | EC91: 0 | ED91: 0 | EE91: 0 | EF91: 0 | EG91: 0 | EH91: 0 | EI91: 0 | EJ91: 0 | EK91: 0 | EL91: 0 | EM91: 0 | EN91: 0 | EO91: 0 | EP91: 0 | EQ91: 0 | ER91: 0 | ES91: 0 | ET91: 0 | EU91: 0 | EV91: 0 | EW91: 0 | EX91: 0 | EY91: 0 | EZ91: 0 | FA91: 0 | FB91: 0 | FC91: 0 | FD91: 0 | FE91: 0 | FF91: 0 | FG91: 0 | FH91: 0 | FI91: 0 | FJ91: 0 | FK91: 0 | FL91: 0 | FM91: 0 | FN91: 0 | FO91: 0 | FP91: 0 | FQ91: 0 | FR91: 0 | FS91: 0 | FT91: 0 | FU91: 0 | FV91: 0 | FW91: 0 | FX91: 0 | FY91: 0 | FZ91: 0 | GA91: 0 | GB91: 0 | GC91: 0 | GD91: 0 | GE91: 0 | GF91: 0 | GG91: 0 | GH91: 0
CV92: 0 | CW92: 0 | CX92: 0 | CY92: 0 | CZ92: 0 | DA92: 0 | DB92: 0 | DC92: 0 | DD92: 0 | DE92: 0 | DF92: 0 | DG92: 0 | DH92: 0 | DI92: 0 | DJ92: 0 | DK92: 0 | DL92: 0 | DM92: 0 | DN92: 0 | DO92: 0 | DP92: 0 | DQ92: 0 | DR92: 0 | DS92: 0 | DT92: 0 | DU92: 0 | DV92: 0 | DW92: 0 | DX92: 0 | DY92: 0 | DZ92: 0 | EA92: 0 | EB92: 0 | EC92: 0 | ED92: 0 | EE92: 0 | EF92: 0 | EG92: 0 | EH92: 0 | EI92: 0 | EJ92: 0 | EK92: 0 | EL92: 0 | EM92: 0 | EN92: 0 | EO92: 0 | EP92: 0 | EQ92: 0 | ER92: 0 | ES92: 0 | ET92: 0 | EU92: 0 | EV92: 0 | EW92: 0 | EX92: 0 | EY92: 0 | EZ92: 0 | FA92: 0 | FB92: 0 | FC92: 0 | FD92: 0 | FE92: 0 | FF92: 0 | FG92: 0 | FH92: 0 | FI92: 0 | FJ92: 0 | FK92: 0 | FL92: 0 | FM92: 0 | FN92: 0 | FO92: 0 | FP92: 0 | FQ92: 0 | FR92: 0 | FS92: 0 | FT92: 0 | FU92: 0 | FV92: 0 | FW92: 0 | FX92: 0 | FY92: 0 | FZ92: 0 | GA92: 0 | GB92: 0 | GC92: 0 | GD92: 0 | GE92: 0 | GF92: 0 | GG92: 0 | GH92: 0
CV93: 0 | CW93: 0 | CX93: 0 | CY93: 0 | CZ93: 0 | DA93: 0 | DB93: 0 | DC93: 0 | DD93: 0 | DE93: 0 | DF93: 0 | DG93: 0 | DH93: 0 | DI93: 0 | DJ93: 0 | DK93: 0 | DL93: 0 | DM93: 0 | DN93: 0 | DO93: 0 | DP93: 0 | DQ93: 0 | DR93: 0 | DS93: 0 | DT93: 0 | DU93: 0 | DV93: 0 | DW93: 0 | DX93: 0 | DY93: 0 | DZ93: 0 | EA93: 0 | EB93: 0 | EC93: 0 | ED93: 0 | EE93: 0 | EF93: 0 | EG93: 0 | EH93: 0 | EI93: 0 | EJ93: 0 | EK93: 0 | EL93: 0 | EM93: 0 | EN93: 0 | EO93: 0 | EP93: 0 | EQ93: 0 | ER93: 0 | ES93: 0 | ET93: 0 | EU93: 0 | EV93: 0 | EW93: 0 | EX93: 0 | EY93: 0 | EZ93: 0 | FA93: 0 | FB93: 0 | FC93: 0 | FD93: 0 | FE93: 0 | FF93: 0 | FG93: 0 | FH93: 0 | FI93: 0 | FJ93: 0 | FK93: 0 | FL93: 0 | FM93: 0 | FN93: 0 | FO93: 0 | FP93: 0 | FQ93: 0 | FR93: 0 | FS93: 0 | FT93: 0 | FU93: 0 | FV93: 0 | FW93: 0 | FX93: 0 | FY93: 0 | FZ93: 0 | GA93: 0 | GB93: 0 | GC93: 0 | GD93: 0 | GE93: 0 | GF93: 0 | GG93: 0 | GH93: 0
CV94: 0 | CW94: 0 | CX94: 0 | CY94: 0 | CZ94: 0 | DA94: 0 | DB94: 0 | DC94: 0 | DD94: 0 | DE94: 0 | DF94: 0 | DG94: 0 | DH94: 0 | DI94: 0 | DJ94: 0 | DK94: 0 | DL94: 0 | DM94: 0 | DN94: 0 | DO94: 0 | DP94: 0 | DQ94: 0 | DR94: 0 | DS94: 0 | DT94: 0 | DU94: 0 | DV94: 0 | DW94: 0 | DX94: 0 | DY94: 0 | DZ94: 0 | EA94: 0 | EB94: 0 | EC94: 0 | ED94: 0 | EE94: 0 | EF94: 0 | EG94: 0 | EH94: 0 | EI94: 0 | EJ94: 0 | EK94: 0 | EL94: 0 | EM94: 0 | EN94: 0 | EO94: 0 | EP94: 0 | EQ94: 0 | ER94: 0 | ES94: 0 | ET94: 0 | EU94: 0 | EV94: 0 | EW94: 0 | EX94: 0 | EY94: 0 | EZ94: 0 | FA94: 0 | FB94: 0 | FC94: 0 | FD94: 0 | FE94: 0 | FF94: 0 | FG94: 0 | FH94: 0 | FI94: 0 | FJ94: 0 | FK94: 0 | FL94: 0 | FM94: 0 | FN94: 0 | FO94: 0 | FP94: 0 | FQ94: 0 | FR94: 0 | FS94: 0 | FT94: 0 | FU94: 0 | FV94: 0 | FW94: 0 | FX94: 0 | FY94: 0 | FZ94: 0 | GA94: 0 | GB94: 0 | GC94: 0 | GD94: 0 | GE94: 0 | GF94: 0 | GG94: 0 | GH94: 0
CV95: 0 | CW95: 0 | CX95: 0 | CY95: 0 | CZ95: 0 | DA95: 0 | DB95: 0 | DC95: 0 | DD95: 0 | DE95: 0 | DF95: 0 | DG95: 0 | DH95: 0 | DI95: 0 | DJ95: 0 | DK95: 0 | DL95: 0 | DM95: 0 | DN95: 0 | DO95: 0 | DP95: 0 | DQ95: 0 | DR95: 0 | DS95: 0 | DT95: 0 | DU95: 0 | DV95: 0 | DW95: 0 | DX95: 0 | DY95: 0 | DZ95: 0 | EA95: 0 | EB95: 0 | EC95: 0 | ED95: 0 | EE95: 0 | EF95: 0 | EG95: 0 | EH95: 0 | EI95: 0 | EJ95: 0 | EK95: 0 | EL95: 0 | EM95: 0 | EN95: 0 | EO95: 0 | EP95: 0 | EQ95: 0 | ER95: 0 | ES95: 0 | ET95: 0 | EU95: 0 | EV95: 0 | EW95: 0 | EX95: 0 | EY95: 0 | EZ95: 0 | FA95: 0 | FB95: 0 | FC95: 0 | FD95: 0 | FE95: 0 | FF95: 0 | FG95: 0 | FH95: 0 | FI95: 0 | FJ95: 0 | FK95: 0 | FL95: 0 | FM95: 0 | FN95: 0 | FO95: 0 | FP95: 0 | FQ95: 0 | FR95: 0 | FS95: 0 | FT95: 0 | FU95: 0 | FV95: 0 | FW95: 0 | FX95: 0 | FY95: 0 | FZ95: 0 | GA95: 0 | GB95: 0 | GC95: 0 | GD95: 0 | GE95: 0 | GF95: 0 | GG95: 0 | GH95: 0
CV96: 0 | CW96: 0 | CX96: 0 | CY96: 0 | CZ96: 0 | DA96: 0 | DB96: 0 | DC96: 0 | DD96: 0 | DE96: 0 | DF96: 0 | DG96: 0 | DH96: 0 | DI96: 0 | DJ96: 0 | DK96: 0 | DL96: 0 | DM96: 0 | DN96: 0 | DO96: 0 | DP96: 0 | DQ96: 0 | DR96: 0 | DS96: 0 | DT96: 0 | DU96: 0 | DV96: 0 | DW96: 0 | DX96: 0 | DY96: 0 | DZ96: 0 | EA96: 0 | EB96: 0 | EC96: 0 | ED96: 0 | EE96: 0 | EF96: 0 | EG96: 0 | EH96: 0 | EI96: 0 | EJ96: 0 | EK96: 0 | EL96: 0 | EM96: 0 | EN96: 0 | EO96: 0 | EP96: 0 | EQ96: 0 | ER96: 0 | ES96: 0 | ET96: 0 | EU96: 0 | EV96: 0 | EW96: 0 | EX96: 0 | EY96: 0 | EZ96: 0 | FA96: 0 | FB96: 0 | FC96: 0 | FD96: 0 | FE96: 0 | FF96: 0 | FG96: 0 | FH96: 0 | FI96: 0 | FJ96: 0 | FK96: 0 | FL96: 0 | FM96: 0 | FN96: 0 | FO96: 0 | FP96: 0 | FQ96: 0 | FR96: 0 | FS96: 0 | FT96: 0 | FU96: 0 | FV96: 0 | FW96: 0 | FX96: 0 | FY96: 0 | FZ96: 0 | GA96: 0 | GB96: 0 | GC96: 0 | GD96: 0 | GE96: 0 | GF96: 0 | GG96: 0 | GH96: 0
CV97: 0 | CW97: 0 | CX97: 0 | CY97: 0 | CZ97: 0 | DA97: 0 | DB97: 0 | DC97: 0 | DD97: 0 | DE97: 0 | DF97: 0 | DG97: 0 | DH97: 0 | DI97: 0 | DJ97: 0 | DK97: 0 | DL97: 0 | DM97: 0 | DN97: 0 | DO97: 0 | DP97: 0 | DQ97: 0 | DR97: 0 | DS97: 0 | DT97: 0 | DU97: 0 | DV97: 0 | DW97: 0 | DX97: 0 | DY97: 0 | DZ97: 0 | EA97: 0 | EB97: 0 | EC97: 0 | ED97: 0 | EE97: 0 | EF97: 0 | EG97: 0 | EH97: 0 | EI97: 0 | EJ97: 0 | EK97: 0 | EL97: 0 | EM97: 0 | EN97: 0 | EO97: 0 | EP97: 0 | EQ97: 0 | ER97: 0 | ES97: 0 | ET97: 0 | EU97: 0 | EV97: 0 | EW97: 0 | EX97: 0 | EY97: 0 | EZ97: 0 | FA97: 0 | FB97: 0 | FC97: 0 | FD97: 0 | FE97: 0 | FF97: 0 | FG97: 0 | FH97: 0 | FI97: 0 | FJ97: 0 | FK97: 0 | FL97: 0 | FM97: 0 | FN97: 0 | FO97: 0 | FP97: 0 | FQ97: 0 | FR97: 0 | FS97: 0 | FT97: 0 | FU97: 0 | FV97: 0 | FW97: 0 | FX97: 0 | FY97: 0 | FZ97: 0 | GA97: 0 | GB97: 0 | GC97: 0 | GD97: 0 | GE97: 0 | GF97: 0 | GG97: 0 | GH97: 0
CV98: 0 | CW98: 0 | CX98: 0 | CY98: 0 | CZ98: 0 | DA98: 0 | DB98: 0 | DC98: 0 | DD98: 0 | DE98: 0 | DF98: 0 | DG98: 0 | DH98: 0 | DI98: 0 | DJ98: 0 | DK98: 0 | DL98: 0 | DM98: 0 | DN98: 0 | DO98: 0 | DP98: 0 | DQ98: 0 | DR98: 0 | DS98: 0 | DT98: 0 | DU98: 0 | DV98: 0 | DW98: 0 | DX98: 0 | DY98: 0 | DZ98: 0 | EA98: 0 | EB98: 0 | EC98: 0 | ED98: 0 | EE98: 0 | EF98: 0 | EG98: 0 | EH98: 0 | EI98: 0 | EJ98: 0 | EK98: 0 | EL98: 0 | EM98: 0 | EN98: 0 | EO98: 0 | EP98: 0 | EQ98: 0 | ER98: 0 | ES98: 0 | ET98: 0 | EU98: 0 | EV98: 0 | EW98: 0 | EX98: 0 | EY98: 0 | EZ98: 0 | FA98: 0 | FB98: 0 | FC98: 0 | FD98: 0 | FE98: 0 | FF98: 0 | FG98: 0 | FH98: 0 | FI98: 0 | FJ98: 0 | FK98: 0 | FL98: 0 | FM98: 0 | FN98: 0 | FO98: 0 | FP98: 0 | FQ98: 0 | FR98: 0 | FS98: 0 | FT98: 0 | FU98: 0 | FV98: 0 | FW98: 0 | FX98: 0 | FY98: 0 | FZ98: 0 | GA98: 0 | GB98: 0 | GC98: 0 | GD98: 0 | GE98: 0 | GF98: 0 | GG98: 0 | GH98: 0
CV99: 0 | CW99: 0 | CX99: 0 | CY99: 0 | CZ99: 0 | DA99: 0 | DB99: 0 | DC99: 0 | DD99: 0 | DE99: 0 | DF99: 0 | DG99: 0 | DH99: 0 | DI99: 0 | DJ99: 0 | DK99: 0 | DL99: 0 | DM99: 0 | DN99: 0 | DO99: 0 | DP99: 0 | DQ99: 0 | DR99: 0 | DS99: 0 | DT99: 0 | DU99: 0 | DV99: 0 | DW99: 0 | DX99: 0 | DY99: 0 | DZ99: 0 | EA99: 0 | EB99: 0 | EC99: 0 | ED99: 0 | EE99: 0 | EF99: 0 | EG99: 0 | EH99: 0 | EI99: 0 | EJ99: 0 | EK99: 0 | EL99: 0 | EM99: 0 | EN99: 0 | EO99: 0 | EP99: 0 | EQ99: 0 | ER99: 0 | ES99: 0 | ET99: 0 | EU99: 0 | EV99: 0 | EW99: 0 | EX99: 0 | EY99: 0 | EZ99: 0 | FA99: 0 | FB99: 0 | FC99: 0 | FD99: 0 | FE99: 0 | FF99: 0 | FG99: 0 | FH99: 0 | FI99: 0 | FJ99: 0 | FK99: 0 | FL99: 0 | FM99: 0 | FN99: 0 | FO99: 0 | FP99: 0 | FQ99: 0 | FR99: 0 | FS99: 0 | FT99: 0 | FU99: 0 | FV99: 0 | FW99: 0 | FX99: 0 | FY99: 0 | FZ99: 0 | GA99: 0 | GB99: 0 | GC99: 0 | GD99: 0 | GE99: 0 | GF99: 0 | GG99: 0 | GH99: 0
CV100: 0 | CW100: 0 | CX100: 0 | CY100: 0 | CZ100: 0 | DA100: 0 | DB100: 0 | DC100: 0 | DD100: 0 | DE100: 0 | DF100: 0 | DG100: 0 | DH100: 0 | DI100: 0 | DJ100: 0 | DK100: 0 | DL100: 0 | DM100: 0 | DN100: 0 | DO100: 0 | DP100: 0 | DQ100: 0 | DR100: 0 | DS100: 0 | DT100: 0 | DU100: 0 | DV100: 0 | DW100: 0 | DX100: 0 | DY100: 0 | DZ100: 0 | EA100: 0 | EB100: 0 | EC100: 0 | ED100: 0 | EE100: 0 | EF100: 0 | EG100: 0 | EH100: 0 | EI100: 0 | EJ100: 0 | EK100: 0 | EL100: 0 | EM100: 0 | EN100: 0 | EO100: 0 | EP100: 0 | EQ100: 0 | ER100: 0 | ES100: 0 | ET100: 0 | EU100: 0 | EV100: 0 | EW100: 0 | EX100: 0 | EY100: 0 | EZ100: 0 | FA100: 0 | FB100: 0 | FC100: 0 | FD100: 0 | FE100: 0 | FF100: 0 | FG100: 0 | FH100: 0 | FI100: 0 | FJ100: 0 | FK100: 0 | FL100: 0 | FM100: 0 | FN100: 0 | FO100: 0 | FP100: 0 | FQ100: 0 | FR100: 0 | FS100: 0 | FT100: 0 | FU100: 0 | FV100: 0 | FW100: 0 | FX100: 0 | FY100: 0 | FZ100: 0 | GA100: 0 | GB100: 0 | GC100: 0 | GD100: 0 | GE100: 0 | GF100: 0 | GG100: 0 | GH100: 0
CV101: 0 | CW101: 0 | CX101: 0 | CY101: 0 | CZ101: 0 | DA101: 0 | DB101: 0 | DC101: 0 | DD101: 0 | DE101: 0 | DF101: 0 | DG101: 0 | DH101: 0 | DI101: 0 | DJ101: 0 | DK101: 0 | DL101: 0 | DM101: 0 | DN101: 0 | DO101: 0 | DP101: 0 | DQ101: 0 | DR101: 0 | DS101: 0 | DT101: 0 | DU101: 0 | DV101: 0 | DW101: 0 | DX101: 0 | DY101: 0 | DZ101: 0 | EA101: 0 | EB101: 0 | EC101: 0 | ED101: 0 | EE101: 0 | EF101: 0 | EG101: 0 | EH101: 0 | EI101: 0 | EJ101: 0 | EK101: 0 | EL101: 0 | EM101: 0 | EN101: 0 | EO101: 0 | EP101: 0 | EQ101: 0 | ER101: 0 | ES101: 0 | ET101: 0 | EU101: 0 | EV101: 0 | EW101: 0 | EX101: 0 | EY101: 0 | EZ101: 0 | FA101: 0 | FB101: 0 | FC101: 0 | FD101: 0 | FE101: 0 | FF101: 0 | FG101: 0 | FH101: 0 | FI101: 0 | FJ101: 0 | FK101: 0 | FL101: 0 | FM101: 0 | FN101: 0 | FO101: 0 | FP101: 0 | FQ101: 0 | FR101: 0 | FS101: 0 | FT101: 0 | FU101: 0 | FV101: 0 | FW101: 0 | FX101: 0 | FY101: 0 | FZ101: 0 | GA101: 0 | GB101: 0 | GC101: 0 | GD101: 0 | GE101: 0 | GF101: 0 | GG101: 0 | GH101: 0
CV102: 0 | CW102: 0 | CX102: 0 | CY102: 0 | CZ102: 0 | DA102: 0 | DB102: 0 | DC102: 0 | DD102: 0 | DE102: 0 | DF102: 0 | DG102: 0 | DH102: 0 | DI102: 0 | DJ102: 0 | DK102: 0 | DL102: 0 | DM102: 0 | DN102: 0 | DO102: 0 | DP102: 0 | DQ102: 0 | DR102: 0 | DS102: 0 | DT102: 0 | DU102: 0 | DV102: 0 | DW102: 0 | DX102: 0 | DY102: 0 | DZ102: 0 | EA102: 0 | EB102: 0 | EC102: 0 | ED102: 0 | EE102: 0 | EF102: 0 | EG102: 0 | EH102: 0 | EI102: 0 | EJ102: 0 | EK102: 0 | EL102: 0 | EM102: 0 | EN102: 0 | EO102: 0 | EP102: 0 | EQ102: 0 | ER102: 0 | ES102: 0 | ET102: 0 | EU102: 0 | EV102: 0 | EW102: 0 | EX102: 0 | EY102: 0 | EZ102: 0 | FA102: 0 | FB102: 0 | FC102: 0 | FD102: 0 | FE102: 0 | FF102: 0 | FG102: 0 | FH102: 0 | FI102: 0 | FJ102: 0 | FK102: 0 | FL102: 0 | FM102: 0 | FN102: 0 | FO102: 0 | FP102: 0 | FQ102: 0 | FR102: 0 | FS102: 0 | FT102: 0 | FU102: 0 | FV102: 0 | FW102: 0 | FX102: 0 | FY102: 0 | FZ102: 0 | GA102: 0 | GB102: 0 | GC102: 0 | GD102: 0 | GE102: 0 | GF102: 0 | GG102: 0 | GH102: 0
CV103: 0 | CW103: 0 | CX103: 0 | CY103: 0 | CZ103: 0 | DA103: 0 | DB103: 0 | DC103: 0 | DD103: 0 | DE103: 0 | DF103: 0 | DG103: 0 | DH103: 0 | DI103: 0 | DJ103: 0 | DK103: 0 | DL103: 0 | DM103: 0 | DN103: 0 | DO103: 0 | DP103: 0 | DQ103: 0 | DR103: 0 | DS103: 0 | DT103: 0 | DU103: 0 | DV103: 0 | DW103: 0 | DX103: 0 | DY103: 0 | DZ103: 0 | EA103: 0 | EB103: 0 | EC103: 0 | ED103: 0 | EE103: 0 | EF103: 0 | EG103: 0 | EH103: 0 | EI103: 0 | EJ103: 0 | EK103: 0 | EL103: 0 | EM103: 0 | EN103: 0 | EO103: 0 | EP103: 0 | EQ103: 0 | ER103: 0 | ES103: 0 | ET103: 0 | EU103: 0 | EV103: 0 | EW103: 0 | EX103: 0 | EY103: 0 | EZ103: 0 | FA103: 0 | FB103: 0 | FC103: 0 | FD103: 0 | FE103: 0 | FF103: 0 | FG103: 0 | FH103: 0 | FI103: 0 | FJ103: 0 | FK103: 0 | FL103: 0 | FM103: 0 | FN103: 0 | FO103: 0 | FP103: 0 | FQ103: 0 | FR103: 0 | FS103: 0 | FT103: 0 | FU103: 0 | FV103: 0 | FW103: 0 | FX103: 0 | FY103: 0 | FZ103: 0 | GA103: 0 | GB103: 0 | GC103: 0 | GD103: 0 | GE103: 0 | GF103: 0 | GG103: 0 | GH103: 0
CV104: 0 | CW104: 0 | CX104: 0 | CY104: 0 | CZ104: 0 | DA104: 0 | DB104: 0 | DC104: 0 | DD104: 0 | DE104: 0 | DF104: 0 | DG104: 0 | DH104: 0 | DI104: 0 | DJ104: 0 | DK104: 0 | DL104: 0 | DM104: 0 | DN104: 0 | DO104: 0 | DP104: 0 | DQ104: 0 | DR104: 0 | DS104: 0 | DT104: 0 | DU104: 0 | DV104: 0 | DW104: 0 | DX104: 0 | DY104: 0 | DZ104: 0 | EA104: 0 | EB104: 0 | EC104: 0 | ED104: 0 | EE104: 0 | EF104: 0 | EG104: 0 | EH104: 0 | EI104: 0 | EJ104: 0 | EK104: 0 | EL104: 0 | EM104: 0 | EN104: 0 | EO104: 0 | EP104: 0 | EQ104: 0 | ER104: 0 | ES104: 0 | ET104: 0 | EU104: 0 | EV104: 0 | EW104: 0 | EX104: 0 | EY104: 0 | EZ104: 0 | FA104: 0 | FB104: 0 | FC104: 0 | FD104: 0 | FE104: 0 | FF104: 0 | FG104: 0 | FH104: 0 | FI104: 0 | FJ104: 0 | FK104: 0 | FL104: 0 | FM104: 0 | FN104: 0 | FO104: 0 | FP104: 0 | FQ104: 0 | FR104: 0 | FS104: 0 | FT104: 0 | FU104: 0 | FV104: 0 | FW104: 0 | FX104: 0 | FY104: 0 | FZ104: 0 | GA104: 0 | GB104: 0 | GC104: 0 | GD104: 0 | GE104: 0 | GF104: 0 | GG104: 0 | GH104: 0
CV105: 0 | CW105: 0 | CX105: 0 | CY105: 0 | CZ105: 0 | DA105: 0 | DB105: 0 | DC105: 0 | DD105: 0 | DE105: 0 | DF105: 0 | DG105: 0 | DH105: 0 | DI105: 0 | DJ105: 0 | DK105: 0 | DL105: 0 | DM105: 0 | DN105: 0 | DO105: 0 | DP105: 0 | DQ105: 0 | DR105: 0 | DS105: 0 | DT105: 0 | DU105: 0 | DV105: 0 | DW105: 0 | DX105: 0 | DY105: 0 | DZ105: 0 | EA105: 0 | EB105: 0 | EC105: 0 | ED105: 0 | EE105: 0 | EF105: 0 | EG105: 0 | EH105: 0 | EI105: 0 | EJ105: 0 | EK105: 0 | EL105: 0 | EM105: 0 | EN105: 0 | EO105: 0 | EP105: 0 | EQ105: 0 | ER105: 0 | ES105: 0 | ET105: 0 | EU105: 0 | EV105: 0 | EW105: 0 | EX105: 0 | EY105: 0 | EZ105: 0 | FA105: 0 | FB105: 0 | FC105: 0 | FD105: 0 | FE105: 0 | FF105: 0 | FG105: 0 | FH105: 0 | FI105: 0 | FJ105: 0 | FK105: 0 | FL105: 0 | FM105: 0 | FN105: 0 | FO105: 0 | FP105: 0 | FQ105: 0 | FR105: 0 | FS105: 0 | FT105: 0 | FU105: 0 | FV105: 0 | FW105: 0 | FX105: 0 | FY105: 0 | FZ105: 0 | GA105: 0 | GB105: 0 | GC105: 0 | GD105: 0 | GE105: 0 | GF105: 0 | GG105: 0 | GH105: 0
CV106: 0 | CW106: 0 | CX106: 0 | CY106: 0 | CZ106: 0 | DA106: 0 | DB106: 0 | DC106: 0 | DD106: 0 | DE106: 0 | DF106: 0 | DG106: 0 | DH106: 0 | DI106: 0 | DJ106: 0 | DK106: 0 | DL106: 0 | DM106: 0 | DN106: 0 | DO106: 0 | DP106: 0 | DQ106: 0 | DR106: 0 | DS106: 0 | DT106: 0 | DU106: 0 | DV106: 0 | DW106: 0 | DX106: 0 | DY106: 0 | DZ106: 0 | EA106: 0 | EB106: 0 | EC106: 0 | ED106: 0 | EE106: 0 | EF106: 0 | EG106: 0 | EH106: 0 | EI106: 0 | EJ106: 0 | EK106: 0 | EL106: 0 | EM106: 0 | EN106: 0 | EO106: 0 | EP106: 0 | EQ106: 0 | ER106: 0 | ES106: 0 | ET106: 0 | EU106: 0 | EV106: 0 | EW106: 0 | EX106: 0 | EY106: 0 | EZ106: 0 | FA106: 0 | FB106: 0 | FC106: 0 | FD106: 0 | FE106: 0 | FF106: 0 | FG106: 0 | FH106: 0 | FI106: 0 | FJ106: 0 | FK106: 0 | FL106: 0 | FM106: 0 | FN106: 0 | FO106: 0 | FP106: 0 | FQ106: 0 | FR106: 0 | FS106: 0 | FT106: 0 | FU106: 0 | FV106: 0 | FW106: 0 | FX106: 0 | FY106: 0 | FZ106: 0 | GA106: 0 | GB106: 0 | GC106: 0 | GD106: 0 | GE106: 0 | GF106: 0 | GG106: 0 | GH106: 0
CV107: 0 | CW107: 0 | CX107: 0 | CY107: 0 | CZ107: 0 | DA107: 0 | DB107: 0 | DC107: 0 | DD107: 0 | DE107: 0 | DF107: 0 | DG107: 0 | DH107: 0 | DI107: 0 | DJ107: 0 | DK107: 0 | DL107: 0 | DM107: 0 | DN107: 0 | DO107: 0 | DP107: 0 | DQ107: 0 | DR107: 0 | DS107: 0 | DT107: 0 | DU107: 0 | DV107: 0 | DW107: 0 | DX107: 0 | DY107: 0 | DZ107: 0 | EA107: 0 | EB107: 0 | EC107: 0 | ED107: 0 | EE107: 0 | EF107: 0 | EG107: 0 | EH107: 0 | EI107: 0 | EJ107: 0 | EK107: 0 | EL107: 0 | EM107: 0 | EN107: 0 | EO107: 0 | EP107: 0 | EQ107: 0 | ER107: 0 | ES107: 0 | ET107: 0 | EU107: 0 | EV107: 0 | EW107: 0 | EX107: 0 | EY107: 0 | EZ107: 0 | FA107: 0 | FB107: 0 | FC107: 0 | FD107: 0 | FE107: 0 | FF107: 0 | FG107: 0 | FH107: 0 | FI107: 0 | FJ107: 0 | FK107: 0 | FL107: 0 | FM107: 0 | FN107: 0 | FO107: 0 | FP107: 0 | FQ107: 0 | FR107: 0 | FS107: 0 | FT107: 0 | FU107: 0 | FV107: 0 | FW107: 0 | FX107: 0 | FY107: 0 | FZ107: 0 | GA107: 0 | GB107: 0 | GC107: 0 | GD107: 0 | GE107: 0 | GF107: 0 | GG107: 0 | GH107: 0
CV108: 0 | CW108: 0 | CX108: 0 | CY108: 0 | CZ108: 0 | DA108: 0 | DB108: 0 | DC108: 0 | DD108: 0 | DE108: 0 | DF108: 0 | DG108: 0 | DH108: 0 | DI108: 0 | DJ108: 0 | DK108: 0 | DL108: 0 | DM108: 0 | DN108: 0 | DO108: 0 | DP108: 0 | DQ108: 0 | DR108: 0 | DS108: 0 | DT108: 0 | DU108: 0 | DV108: 0 | DW108: 0 | DX108: 0 | DY108: 0 | DZ108: 0 | EA108: 0 | EB108: 0 | EC108: 0 | ED108: 0 | EE108: 0 | EF108: 0 | EG108: 0 | EH108: 0 | EI108: 0 | EJ108: 0 | EK108: 0 | EL108: 0 | EM108: 0 | EN108: 0 | EO108: 0 | EP108: 0 | EQ108: 0 | ER108: 0 | ES108: 0 | ET108: 0 | EU108: 0 | EV108: 0 | EW108: 0 | EX108: 0 | EY108: 0 | EZ108: 0 | FA108: 0 | FB108: 0 | FC108: 0 | FD108: 0 | FE108: 0 | FF108: 0 | FG108: 0 | FH108: 0 | FI108: 0 | FJ108: 0 | FK108: 0 | FL108: 0 | FM108: 0 | FN108: 0 | FO108: 0 | FP108: 0 | FQ108: 0 | FR108: 0 | FS108: 0 | FT108: 0 | FU108: 0 | FV108: 0 | FW108: 0 | FX108: 0 | FY108: 0 | FZ108: 0 | GA108: 0 | GB108: 0 | GC108: 0 | GD108: 0 | GE108: 0 | GF108: 0 | GG108: 0 | GH108: 0
CV109: 0 | CW109: 0 | CX109: 0 | CY109: 0 | CZ109: 0 | DA109: 0 | DB109: 0 | DC109: 0 | DD109: 0 | DE109: 0 | DF109: 0 | DG109: 0 | DH109: 0 | DI109: 0 | DJ109: 0 | DK109: 0 | DL109: 0 | DM109: 0 | DN109: 0 | DO109: 0 | DP109: 0 | DQ109: 0 | DR109: 0 | DS109: 0 | DT109: 0 | DU109: 0 | DV109: 0 | DW109: 0 | DX109: 0 | DY109: 0 | DZ109: 0 | EA109: 0 | EB109: 0 | EC109: 0 | ED109: 0 | EE109: 0 | EF109: 0 | EG109: 0 | EH109: 0 | EI109: 0 | EJ109: 0 | EK109: 0 | EL109: 0 | EM109: 0 | EN109: 0 | EO109: 0 | EP109: 0 | EQ109: 0 | ER109: 0 | ES109: 0 | ET109: 0 | EU109: 0 | EV109: 0 | EW109: 0 | EX109: 0 | EY109: 0 | EZ109: 0 | FA109: 0 | FB109: 0 | FC109: 0 | FD109: 0 | FE109: 0 | FF109: 0 | FG109: 0 | FH109: 0 | FI109: 0 | FJ109: 0 | FK109: 0 | FL109: 0 | FM109: 0 | FN109: 0 | FO109: 0 | FP109: 0 | FQ109: 0 | FR109: 0 | FS109: 0 | FT109: 0 | FU109: 0 | FV109: 0 | FW109: 0 | FX109: 0 | FY109: 0 | FZ109: 0 | GA109: 0 | GB109: 0 | GC109: 0 | GD109: 0 | GE109: 0 | GF109: 0 | GG109: 0 | GH109: 0
CV110: 0 | CW110: 0 | CX110: 0 | CY110: 0 | CZ110: 0 | DA110: 0 | DB110: 0 | DC110: 0 | DD110: 0 | DE110: 0 | DF110: 0 | DG110: 0 | DH110: 0 | DI110: 0 | DJ110: 0 | DK110: 0 | DL110: 0 | DM110: 0 | DN110: 0 | DO110: 0 | DP110: 0 | DQ110: 0 | DR110: 0 | DS110: 0 | DT110: 0 | DU110: 0 | DV110: 0 | DW110: 0 | DX110: 0 | DY110: 0 | DZ110: 0 | EA110: 0 | EB110: 0 | EC110: 0 | ED110: 0 | EE110: 0 | EF110: 0 | EG110: 0 | EH110: 0 | EI110: 0 | EJ110: 0 | EK110: 0 | EL110: 0 | EM110: 0 | EN110: 0 | EO110: 0 | EP110: 0 | EQ110: 0 | ER110: 0 | ES110: 0 | ET110: 0 | EU110: 0 | EV110: 0 | EW110: 0 | EX110: 0 | EY110: 0 | EZ110: 0 | FA110: 0 | FB110: 0 | FC110: 0 | FD110: 0 | FE110: 0 | FF110: 0 | FG110: 0 | FH110: 0 | FI110: 0 | FJ110: 0 | FK110: 0 | FL110: 0 | FM110: 0 | FN110: 0 | FO110: 0 | FP110: 0 | FQ110: 0 | FR110: 0 | FS110: 0 | FT110: 0 | FU110: 0 | FV110: 0 | FW110: 0 | FX110: 0 | FY110: 0 | FZ110: 0 | GA110: 0 | GB110: 0 | GC110: 0 | GD110: 0 | GE110: 0 | GF110: 0 | GG110: 0 | GH110: 0
CV111: 0 | CW111: 0 | CX111: 0 | CY111: 0 | CZ111: 0 | DA111: 0 | DB111: 0 | DC111: 0 | DD111: 0 | DE111: 0 | DF111: 0 | DG111: 0 | DH111: 0 | DI111: 0 | DJ111: 0 | DK111: 0 | DL111: 0 | DM111: 0 | DN111: 0 | DO111: 0 | DP111: 0 | DQ111: 0 | DR111: 0 | DS111: 0 | DT111: 0 | DU111: 0 | DV111: 0 | DW111: 0 | DX111: 0 | DY111: 0 | DZ111: 0 | EA111: 0 | EB111: 0 | EC111: 0 | ED111: 0 | EE111: 0 | EF111: 0 | EG111: 0 | EH111: 0 | EI111: 0 | EJ111: 0 | EK111: 0 | EL111: 0 | EM111: 0 | EN111: 0 | EO111: 0 | EP111: 0 | EQ111: 0 | ER111: 0 | ES111: 0 | ET111: 0 | EU111: 0 | EV111: 0 | EW111: 0 | EX111: 0 | EY111: 0 | EZ111: 0 | FA111: 0 | FB111: 0 | FC111: 0 | FD111: 0 | FE111: 0 | FF111: 0 | FG111: 0 | FH111: 0 | FI111: 0 | FJ111: 0 | FK111: 0 | FL111: 0 | FM111: 0 | FN111: 0 | FO111: 0 | FP111: 0 | FQ111: 0 | FR111: 0 | FS111: 0 | FT111: 0 | FU111: 0 | FV111: 0 | FW111: 0 | FX111: 0 | FY111: 0 | FZ111: 0 | GA111: 0 | GB111: 0 | GC111: 0 | GD111: 0 | GE111: 0 | GF111: 0 | GG111: 0 | GH111: 0
CV112: 0 | CW112: 0 | CX112: 0 | CY112: 0 | CZ112: 0 | DA112: 0 | DB112: 0 | DC112: 0 | DD112: 0 | DE112: 0 | DF112: 0 | DG112: 0 | DH112: 0 | DI112: 0 | DJ112: 0 | DK112: 0 | DL112: 0 | DM112: 0 | DN112: 0 | DO112: 0 | DP112: 0 | DQ112: 0 | DR112: 0 | DS112: 0 | DT112: 0 | DU112: 0 | DV112: 0 | DW112: 0 | DX112: 0 | DY112: 0 | DZ112: 0 | EA112: 0 | EB112: 0 | EC112: 0 | ED112: 0 | EE112: 0 | EF112: 0 | EG112: 0 | EH112: 0 | EI112: 0 | EJ112: 0 | EK112: 0 | EL112: 0 | EM112: 0 | EN112: 0 | EO112: 0 | EP112: 0 | EQ112: 0 | ER112: 0 | ES112: 0 | ET112: 0 | EU112: 0 | EV112: 0 | EW112: 0 | EX112: 0 | EY112: 0 | EZ112: 0 | FA112: 0 | FB112: 0 | FC112: 0 | FD112: 0 | FE112: 0 | FF112: 0 | FG112: 0 | FH112: 0 | FI112: 0 | FJ112: 0 | FK112: 0 | FL112: 0 | FM112: 0 | FN112: 0 | FO112: 0 | FP112: 0 | FQ112: 0 | FR112: 0 | FS112: 0 | FT112: 0 | FU112: 0 | FV112: 0 | FW112: 0 | FX112: 0 | FY112: 0 | FZ112: 0 | GA112: 0 | GB112: 0 | GC112: 0 | GD112: 0 | GE112: 0 | GF112: 0 | GG112: 0 | GH112: 0
CV113: 0 | CW113: 0 | CX113: 0 | CY113: 0 | CZ113: 0 | DA113: 0 | DB113: 0 | DC113: 0 | DD113: 0 | DE113: 0 | DF113: 0 | DG113: 0 | DH113: 0 | DI113: 0 | DJ113: 0 | DK113: 0 | DL113: 0 | DM113: 0 | DN113: 0 | DO113: 0 | DP113: 0 | DQ113: 0 | DR113: 0 | DS113: 0 | DT113: 0 | DU113: 0 | DV113: 0 | DW113: 0 | DX113: 0 | DY113: 0 | DZ113: 0 | EA113: 0 | EB113: 0 | EC113: 0 | ED113: 0 | EE113: 0 | EF113: 0 | EG113: 0 | EH113: 0 | EI113: 0 | EJ113: 0 | EK113: 0 | EL113: 0 | EM113: 0 | EN113: 0 | EO113: 0 | EP113: 0 | EQ113: 0 | ER113: 0 | ES113: 0 | ET113: 0 | EU113: 0 | EV113: 0 | EW113: 0 | EX113: 0 | EY113: 0 | EZ113: 0 | FA113: 0 | FB113: 0 | FC113: 0 | FD113: 0 | FE113: 0 | FF113: 0 | FG113: 0 | FH113: 0 | FI113: 0 | FJ113: 0 | FK113: 0 | FL113: 0 | FM113: 0 | FN113: 0 | FO113: 0 | FP113: 0 | FQ113: 0 | FR113: 0 | FS113: 0 | FT113: 0 | FU113: 0 | FV113: 0 | FW113: 0 | FX113: 0 | FY113: 0 | FZ113: 0 | GA113: 0 | GB113: 0 | GC113: 0 | GD113: 0 | GE113: 0 | GF113: 0 | GG113: 0 | GH113: 0
CV114: 0 | CW114: 0 | CX114: 0 | CY114: 0 | CZ114: 0 | DA114: 0 | DB114: 0 | DC114: 0 | DD114: 0 | DE114: 0 | DF114: 0 | DG114: 0 | DH114: 0 | DI114: 0 | DJ114: 0 | DK114: 0 | DL114: 0 | DM114: 0 | DN114: 0 | DO114: 0 | DP114: 0 | DQ114: 0 | DR114: 0 | DS114: 0 | DT114: 0 | DU114: 0 | DV114: 0 | DW114: 0 | DX114: 0 | DY114: 0 | DZ114: 0 | EA114: 0 | EB114: 0 | EC114: 0 | ED114: 0 | EE114: 0 | EF114: 0 | EG114: 0 | EH114: 0 | EI114: 0 | EJ114: 0 | EK114: 0 | EL114: 0 | EM114: 0 | EN114: 0 | EO114: 0 | EP114: 0 | EQ114: 0 | ER114: 0 | ES114: 0 | ET114: 0 | EU114: 0 | EV114: 0 | EW114: 0 | EX114: 0 | EY114: 0 | EZ114: 0 | FA114: 0 | FB114: 0 | FC114: 0 | FD114: 0 | FE114: 0 | FF114: 0 | FG114: 0 | FH114: 0 | FI114: 0 | FJ114: 0 | FK114: 0 | FL114: 0 | FM114: 0 | FN114: 0 | FO114: 0 | FP114: 0 | FQ114: 0 | FR114: 0 | FS114: 0 | FT114: 0 | FU114: 0 | FV114: 0 | FW114: 0 | FX114: 0 | FY114: 0 | FZ114: 0 | GA114: 0 | GB114: 0 | GC114: 0 | GD114: 0 | GE114: 0 | GF114: 0 | GG114: 0 | GH114: 0
CV115: 0 | CW115: 0 | CX115: 0 | CY115: 0 | CZ115: 0 | DA115: 0 | DB115: 0 | DC115: 0 | DD115: 0 | DE115: 0 | DF115: 0 | DG115: 0 | DH115: 0 | DI115: 0 | DJ115: 0 | DK115: 0 | DL115: 0 | DM115: 0 | DN115: 0 | DO115: 0 | DP115: 0 | DQ115: 0 | DR115: 0 | DS115: 0 | DT115: 0 | DU115: 0 | DV115: 0 | DW115: 0 | DX115: 0 | DY115: 0 | DZ115: 0 | EA115: 0 | EB115: 0 | EC115: 0 | ED115: 0 | EE115: 0 | EF115: 0 | EG115: 0 | EH115: 0 | EI115: 0 | EJ115: 0 | EK115: 0 | EL115: 0 | EM115: 0 | EN115: 0 | EO115: 0 | EP115: 0 | EQ115: 0 | ER115: 0 | ES115: 0 | ET115: 0 | EU115: 0 | EV115: 0 | EW115: 0 | EX115: 0 | EY115: 0 | EZ115: 0 | FA115: 0 | FB115: 0 | FC115: 0 | FD115: 0 | FE115: 0 | FF115: 0 | FG115: 0 | FH115: 0 | FI115: 0 | FJ115: 0 | FK115: 0 | FL115: 0 | FM115: 0 | FN115: 0 | FO115: 0 | FP115: 0 | FQ115: 0 | FR115: 0 | FS115: 0 | FT115: 0 | FU115: 0 | FV115: 0 | FW115: 0 | FX115: 0 | FY115: 0 | FZ115: 0 | GA115: 0 | GB115: 0 | GC115: 0 | GD115: 0 | GE115: 0 | GF115: 0 | GG115: 0 | GH115: 0
CV116: 0 | CW116: 0 | CX116: 0 | CY116: 0 | CZ116: 0 | DA116: 0 | DB116: 0 | DC116: 0 | DD116: 0 | DE116: 0 | DF116: 0 | DG116: 0 | DH116: 0 | DI116: 0 | DJ116: 0 | DK116: 0 | DL116: 0 | DM116: 0 | DN116: 0 | DO116: 0 | DP116: 0 | DQ116: 0 | DR116: 0 | DS116: 0 | DT116: 0 | DU116: 0 | DV116: 0 | DW116: 0 | DX116: 0 | DY116: 0 | DZ116: 0 | EA116: 0 | EB116: 0 | EC116: 0 | ED116: 0 | EE116: 0 | EF116: 0 | EG116: 0 | EH116: 0 | EI116: 0 | EJ116: 0 | EK116: 0 | EL116: 0 | EM116: 0 | EN116: 0 | EO116: 0 | EP116: 0 | EQ116: 0 | ER116: 0 | ES116: 0 | ET116: 0 | EU116: 0 | EV116: 0 | EW116: 0 | EX116: 0 | EY116: 0 | EZ116: 0 | FA116: 0 | FB116: 0 | FC116: 0 | FD116: 0 | FE116: 0 | FF116: 0 | FG116: 0 | FH116: 0 | FI116: 0 | FJ116: 0 | FK116: 0 | FL116: 0 | FM116: 0 | FN116: 0 | FO116: 0 | FP116: 0 | FQ116: 0 | FR116: 0 | FS116: 0 | FT116: 0 | FU116: 0 | FV116: 0 | FW116: 0 | FX116: 0 | FY116: 0 | FZ116: 0 | GA116: 0 | GB116: 0 | GC116: 0 | GD116: 0 | GE116: 0 | GF116: 0 | GG116: 0 | GH116: 0
CV117: 0 | CW117: 0 | CX117: 0 | CY117: 0 | CZ117: 0 | DA117: 0 | DB117: 0 | DC117: 0 | DD117: 0 | DE117: 0 | DF117: 0 | DG117: 0 | DH117: 0 | DI117: 0 | DJ117: 0 | DK117: 0 | DL117: 0 | DM117: 0 | DN117: 0 | DO117: 0 | DP117: 0 | DQ117: 0 | DR117: 0 | DS117: 0 | DT117: 0 | DU117: 0 | DV117: 0 | DW117: 0 | DX117: 0 | DY117: 0 | DZ117: 0 | EA117: 0 | EB117: 0 | EC117: 0 | ED117: 0 | EE117: 0 | EF117: 0 | EG117: 0 | EH117: 0 | EI117: 0 | EJ117: 0 | EK117: 0 | EL117: 0 | EM117: 0 | EN117: 0 | EO117: 0 | EP117: 0 | EQ117: 0 | ER117: 0 | ES117: 0 | ET117: 0 | EU117: 0 | EV117: 0 | EW117: 0 | EX117: 0 | EY117: 0 | EZ117: 0 | FA117: 0 | FB117: 0 | FC117: 0 | FD117: 0 | FE117: 0 | FF117: 0 | FG117: 0 | FH117: 0 | FI117: 0 | FJ117: 0 | FK117: 0 | FL117: 0 | FM117: 0 | FN117: 0 | FO117: 0 | FP117: 0 | FQ117: 0 | FR117: 0 | FS117: 0 | FT117: 0 | FU117: 0 | FV117: 0 | FW117: 0 | FX117: 0 | FY117: 0 | FZ117: 0 | GA117: 0 | GB117: 0 | GC117: 0 | GD117: 0 | GE117: 0 | GF117: 0 | GG117: 0 | GH117: 0
CV118: 0 | CW118: 0 | CX118: 0 | CY118: 0 | CZ118: 0 | DA118: 0 | DB118: 0 | DC118: 0 | DD118: 0 | DE118: 0 | DF118: 0 | DG118: 0 | DH118: 0 | DI118: 0 | DJ118: 0 | DK118: 0 | DL118: 0 | DM118: 0 | DN118: 0 | DO118: 0 | DP118: 0 | DQ118: 0 | DR118: 0 | DS118: 0 | DT118: 0 | DU118: 0 | DV118: 0 | DW118: 0 | DX118: 0 | DY118: 0 | DZ118: 0 | EA118: 0 | EB118: 0 | EC118: 0 | ED118: 0 | EE118: 0 | EF118: 0 | EG118: 0 | EH118: 0 | EI118: 0 | EJ118: 0 | EK118: 0 | EL118: 0 | EM118: 0 | EN118: 0 | EO118: 0 | EP118: 0 | EQ118: 0 | ER118: 0 | ES118: 0 | ET118: 0 | EU118: 0 | EV118: 0 | EW118: 0 | EX118: 0 | EY118: 0 | EZ118: 0 | FA118: 0 | FB118: 0 | FC118: 0 | FD118: 0 | FE118: 0 | FF118: 0 | FG118: 0 | FH118: 0 | FI118: 0 | FJ118: 0 | FK118: 0 | FL118: 0 | FM118: 0 | FN118: 0 | FO118: 0 | FP118: 0 | FQ118: 0 | FR118: 0 | FS118: 0 | FT118: 0 | FU118: 0 | FV118: 0 | FW118: 0 | FX118: 0 | FY118: 0 | FZ118: 0 | GA118: 0 | GB118: 0 | GC118: 0 | GD118: 0 | GE118: 0 | GF118: 0 | GG118: 0 | GH118: 0
CV119: 0 | CW119: 0 | CX119: 0 | CY119: 0 | CZ119: 0 | DA119: 0 | DB119: 0 | DC119: 0 | DD119: 0 | DE119: 0 | DF119: 0 | DG119: 0 | DH119: 0 | DI119: 0 | DJ119: 0 | DK119: 0 | DL119: 0 | DM119: 0 | DN119: 0 | DO119: 0 | DP119: 0 | DQ119: 0 | DR119: 0 | DS119: 0 | DT119: 0 | DU119: 0 | DV119: 0 | DW119: 0 | DX119: 0 | DY119: 0 | DZ119: 0 | EA119: 0 | EB119: 0 | EC119: 0 | ED119: 0 | EE119: 0 | EF119: 0 | EG119: 0 | EH119: 0 | EI119: 0 | EJ119: 0 | EK119: 0 | EL119: 0 | EM119: 0 | EN119: 0 | EO119: 0 | EP119: 0 | EQ119: 0 | ER119: 0 | ES119: 0 | ET119: 0 | EU119: 0 | EV119: 0 | EW119: 0 | EX119: 0 | EY119: 0 | EZ119: 0 | FA119: 0 | FB119: 0 | FC119: 0 | FD119: 0 | FE119: 0 | FF119: 0 | FG119: 0 | FH119: 0 | FI119: 0 | FJ119: 0 | FK119: 0 | FL119: 0 | FM119: 0 | FN119: 0 | FO119: 0 | FP119: 0 | FQ119: 0 | FR119: 0 | FS119: 0 | FT119: 0 | FU119: 0 | FV119: 0 | FW119: 0 | FX119: 0 | FY119: 0 | FZ119: 0 | GA119: 0 | GB119: 0 | GC119: 0 | GD119: 0 | GE119: 0 | GF119: 0 | GG119: 0 | GH119: 0
CV120: 0 | CW120: 0 | CX120: 0 | CY120: 0 | CZ120: 0 | DA120: 0 | DB120: 0 | DC120: 0 | DD120: 0 | DE120: 0 | DF120: 0 | DG120: 0 | DH120: 0 | DI120: 0 | DJ120: 0 | DK120: 0 | DL120: 0 | DM120: 0 | DN120: 0 | DO120: 0 | DP120: 0 | DQ120: 0 | DR120: 0 | DS120: 0 | DT120: 0 | DU120: 0 | DV120: 0 | DW120: 0 | DX120: 0 | DY120: 0 | DZ120: 0 | EA120: 0 | EB120: 0 | EC120: 0 | ED120: 0 | EE120: 0 | EF120: 0 | EG120: 0 | EH120: 0 | EI120: 0 | EJ120: 0 | EK120: 0 | EL120: 0 | EM120: 0 | EN120: 0 | EO120: 0 | EP120: 0 | EQ120: 0 | ER120: 0 | ES120: 0 | ET120: 0 | EU120: 0 | EV120: 0 | EW120: 0 | EX120: 0 | EY120: 0 | EZ120: 0 | FA120: 0 | FB120: 0 | FC120: 0 | FD120: 0 | FE120: 0 | FF120: 0 | FG120: 0 | FH120: 0 | FI120: 0 | FJ120: 0 | FK120: 0 | FL120: 0 | FM120: 0 | FN120: 0 | FO120: 0 | FP120: 0 | FQ120: 0 | FR120: 0 | FS120: 0 | FT120: 0 | FU120: 0 | FV120: 0 | FW120: 0 | FX120: 0 | FY120: 0 | FZ120: 0 | GA120: 0 | GB120: 0 | GC120: 0 | GD120: 0 | GE120: 0 | GF120: 0 | GG120: 0 | GH120: 0
CV121: 0 | CW121: 0 | CX121: 0 | CY121: 0 | CZ121: 0 | DA121: 0 | DB121: 0 | DC121: 0 | DD121: 0 | DE121: 0 | DF121: 0 | DG121: 0 | DH121: 0 | DI121: 0 | DJ121: 0 | DK121: 0 | DL121: 0 | DM121: 0 | DN121: 0 | DO121: 0 | DP121: 0 | DQ121: 0 | DR121: 0 | DS121: 0 | DT121: 0 | DU121: 0 | DV121: 0 | DW121: 0 | DX121: 0 | DY121: 0 | DZ121: 0 | EA121: 0 | EB121: 0 | EC121: 0 | ED121: 0 | EE121: 0 | EF121: 0 | EG121: 0 | EH121: 0 | EI121: 0 | EJ121: 0 | EK121: 0 | EL121: 0 | EM121: 0 | EN121: 0 | EO121: 0 | EP121: 0 | EQ121: 0 | ER121: 0 | ES121: 0 | ET121: 0 | EU121: 0 | EV121: 0 | EW121: 0 | EX121: 0 | EY121: 0 | EZ121: 0 | FA121: 0 | FB121: 0 | FC121: 0 | FD121: 0 | FE121: 0 | FF121: 0 | FG121: 0 | FH121: 0 | FI121: 0 | FJ121: 0 | FK121: 0 | FL121: 0 | FM121: 0 | FN121: 0 | FO121: 0 | FP121: 0 | FQ121: 0 | FR121: 0 | FS121: 0 | FT121: 0 | FU121: 0 | FV121: 0 | FW121: 0 | FX121: 0 | FY121: 0 | FZ121: 0 | GA121: 0 | GB121: 0 | GC121: 0 | GD121: 0 | GE121: 0 | GF121: 0 | GG121: 0 | GH121: 0
CV122: 0 | CW122: 0 | CX122: 0 | CY122: 0 | CZ122: 0 | DA122: 0 | DB122: 0 | DC122: 0 | DD122: 0 | DE122: 0 | DF122: 0 | DG122: 0 | DH122: 0 | DI122: 0 | DJ122: 0 | DK122: 0 | DL122: 0 | DM122: 0 | DN122: 0 | DO122: 0 | DP122: 0 | DQ122: 0 | DR122: 0 | DS122: 0 | DT122: 0 | DU122: 0 | DV122: 0 | DW122: 0 | DX122: 0 | DY122: 0 | DZ122: 0 | EA122: 0 | EB122: 0 | EC122: 0 | ED122: 0 | EE122: 0 | EF122: 0 | EG122: 0 | EH122: 0 | EI122: 0 | EJ122: 0 | EK122: 0 | EL122: 0 | EM122: 0 | EN122: 0 | EO122: 0 | EP122: 0 | EQ122: 0 | ER122: 0 | ES122: 0 | ET122: 0 | EU122: 0 | EV122: 0 | EW122: 0 | EX122: 0 | EY122: 0 | EZ122: 0 | FA122: 0 | FB122: 0 | FC122: 0 | FD122: 0 | FE122: 0 | FF122: 0 | FG122: 0 | FH122: 0 | FI122: 0 | FJ122: 0 | FK122: 0 | FL122: 0 | FM122: 0 | FN122: 0 | FO122: 0 | FP122: 0 | FQ122: 0 | FR122: 0 | FS122: 0 | FT122: 0 | FU122: 0 | FV122: 0 | FW122: 0 | FX122: 0 | FY122: 0 | FZ122: 0 | GA122: 0 | GB122: 0 | GC122: 0 | GD122: 0 | GE122: 0 | GF122: 0 | GG122: 0 | GH122: 0
CV123: 0 | CW123: 0 | CX123: 0 | CY123: 0 | CZ123: 0 | DA123: 0 | DB123: 0 | DC123: 0 | DD123: 0 | DE123: 0 | DF123: 0 | DG123: 0 | DH123: 0 | DI123: 0 | DJ123: 0 | DK123: 0 | DL123: 0 | DM123: 0 | DN123: 0 | DO123: 0 | DP123: 0 | DQ123: 0 | DR123: 0 | DS123: 0 | DT123: 0 | DU123: 0 | DV123: 0 | DW123: 0 | DX123: 0 | DY123: 0 | DZ123: 0 | EA123: 0 | EB123: 0 | EC123: 0 | ED123: 0 | EE123: 0 | EF123: 0 | EG123: 0 | EH123: 0 | EI123: 0 | EJ123: 0 | EK123: 0 | EL123: 0 | EM123: 0 | EN123: 0 | EO123: 0 | EP123: 0 | EQ123: 0 | ER123: 0 | ES123: 0 | ET123: 0 | EU123: 0 | EV123: 0 | EW123: 0 | EX123: 0 | EY123: 0 | EZ123: 0 | FA123: 0 | FB123: 0 | FC123: 0 | FD123: 0 | FE123: 0 | FF123: 0 | FG123: 0 | FH123: 0 | FI123: 0 | FJ123: 0 | FK123: 0 | FL123: 0 | FM123: 0 | FN123: 0 | FO123: 0 | FP123: 0 | FQ123: 0 | FR123: 0 | FS123: 0 | FT123: 0 | FU123: 0 | FV123: 0 | FW123: 0 | FX123: 0 | FY123: 0 | FZ123: 0 | GA123: 0 | GB123: 0 | GC123: 0 | GD123: 0 | GE123: 0 | GF123: 0 | GG123: 0 | GH123: 0
CV124: 0 | CW124: 0 | CX124: 0 | CY124: 0 | CZ124: 0 | DA124: 0 | DB124: 0 | DC124: 0 | DD124: 0 | DE124: 0 | DF124: 0 | DG124: 0 | DH124: 0 | DI124: 0 | DJ124: 0 | DK124: 0 | DL124: 0 | DM124: 0 | DN124: 0 | DO124: 0 | DP124: 0 | DQ124: 0 | DR124: 0 | DS124: 0 | DT124: 0 | DU124: 0 | DV124: 0 | DW124: 0 | DX124: 0 | DY124: 0 | DZ124: 0 | EA124: 0 | EB124: 0 | EC124: 0 | ED124: 0 | EE124: 0 | EF124: 0 | EG124: 0 | EH124: 0 | EI124: 0 | EJ124: 0 | EK124: 0 | EL124: 0 | EM124: 0 | EN124: 0 | EO124: 0 | EP124: 0 | EQ124: 0 | ER124: 0 | ES124: 0 | ET124: 0 | EU124: 0 | EV124: 0 | EW124: 0 | EX124: 0 | EY124: 0 | EZ124: 0 | FA124: 0 | FB124: 0 | FC124: 0 | FD124: 0 | FE124: 0 | FF124: 0 | FG124: 0 | FH124: 0 | FI124: 0 | FJ124: 0 | FK124: 0 | FL124: 0 | FM124: 0 | FN124: 0 | FO124: 0 | FP124: 0 | FQ124: 0 | FR124: 0 | FS124: 0 | FT124: 0 | FU124: 0 | FV124: 0 | FW124: 0 | FX124: 0 | FY124: 0 | FZ124: 0 | GA124: 0 | GB124: 0 | GC124: 0 | GD124: 0 | GE124: 0 | GF124: 0 | GG124: 0 | GH124: 0
CV125: 0 | CW125: 0 | CX125: 0 | CY125: 0 | CZ125: 0 | DA125: 0 | DB125: 0 | DC125: 0 | DD125: 0 | DE125: 0 | DF125: 0 | DG125: 0 | DH125: 0 | DI125: 0 | DJ125: 0 | DK125: 0 | DL125: 0 | DM125: 0 | DN125: 0 | DO125: 0 | DP125: 0 | DQ125: 0 | DR125: 0 | DS125: 0 | DT125: 0 | DU125: 0 | DV125: 0 | DW125: 0 | DX125: 0 | DY125: 0 | DZ125: 0 | EA125: 0 | EB125: 0 | EC125: 0 | ED125: 0 | EE125: 0 | EF125: 0 | EG125: 0 | EH125: 0 | EI125: 0 | EJ125: 0 | EK125: 0 | EL125: 0 | EM125: 0 | EN125: 0 | EO125: 0 | EP125: 0 | EQ125: 0 | ER125: 0 | ES125: 0 | ET125: 0 | EU125: 0 | EV125: 0 | EW125: 0 | EX125: 0 | EY125: 0 | EZ125: 0 | FA125: 0 | FB125: 0 | FC125: 0 | FD125: 0 | FE125: 0 | FF125: 0 | FG125: 0 | FH125: 0 | FI125: 0 | FJ125: 0 | FK125: 0 | FL125: 0 | FM125: 0 | FN125: 0 | FO125: 0 | FP125: 0 | FQ125: 0 | FR125: 0 | FS125: 0 | FT125: 0 | FU125: 0 | FV125: 0 | FW125: 0 | FX125: 0 | FY125: 0 | FZ125: 0 | GA125: 0 | GB125: 0 | GC125: 0 | GD125: 0 | GE125: 0 | GF125: 0 | GG125: 0 | GH125: 0
CV126: 0 | CW126: 0 | CX126: 0 | CY126: 0 | CZ126: 0 | DA126: 0 | DB126: 0 | DC126: 0 | DD126: 0 | DE126: 0 | DF126: 0 | DG126: 0 | DH126: 0 | DI126: 0 | DJ126: 0 | DK126: 0 | DL126: 0 | DM126: 0 | DN126: 0 | DO126: 0 | DP126: 0 | DQ126: 0 | DR126: 0 | DS126: 0 | DT126: 0 | DU126: 0 | DV126: 0 | DW126: 0 | DX126: 0 | DY126: 0 | DZ126: 0 | EA126: 0 | EB126: 0 | EC126: 0 | ED126: 0 | EE126: 0 | EF126: 0 | EG126: 0 | EH126: 0 | EI126: 0 | EJ126: 0 | EK126: 0 | EL126: 0 | EM126: 0 | EN126: 0 | EO126: 0 | EP126: 0 | EQ126: 0 | ER126: 0 | ES126: 0 | ET126: 0 | EU126: 0 | EV126: 0 | EW126: 0 | EX126: 0 | EY126: 0 | EZ126: 0 | FA126: 0 | FB126: 0 | FC126: 0 | FD126: 0 | FE126: 0 | FF126: 0 | FG126: 0 | FH126: 0 | FI126: 0 | FJ126: 0 | FK126: 0 | FL126: 0 | FM126: 0 | FN126: 0 | FO126: 0 | FP126: 0 | FQ126: 0 | FR126: 0 | FS126: 0 | FT126: 0 | FU126: 0 | FV126: 0 | FW126: 0 | FX126: 0 | FY126: 0 | FZ126: 0 | GA126: 0 | GB126: 0 | GC126: 0 | GD126: 0 | GE126: 0 | GF126: 0 | GG126: 0 | GH126: 0
CV127: 0 | CW127: 0 | CX127: 0 | CY127: 0 | CZ127: 0 | DA127: 0 | DB127: 0 | DC127: 0 | DD127: 0 | DE127: 0 | DF127: 0 | DG127: 0 | DH127: 0 | DI127: 0 | DJ127: 0 | DK127: 0 | DL127: 0 | DM127: 0 | DN127: 0 | DO127: 0 | DP127: 0 | DQ127: 0 | DR127: 0 | DS127: 0 | DT127: 0 | DU127: 0 | DV127: 0 | DW127: 0 | DX127: 0 | DY127: 0 | DZ127: 0 | EA127: 0 | EB127: 0 | EC127: 0 | ED127: 0 | EE127: 0 | EF127: 0 | EG127: 0 | EH127: 0 | EI127: 0 | EJ127: 0 | EK127: 0 | EL127: 0 | EM127: 0 | EN127: 0 | EO127: 0 | EP127: 0 | EQ127: 0 | ER127: 0 | ES127: 0 | ET127: 0 | EU127: 0 | EV127: 0 | EW127: 0 | EX127: 0 | EY127: 0 | EZ127: 0 | FA127: 0 | FB127: 0 | FC127: 0 | FD127: 0 | FE127: 0 | FF127: 0 | FG127: 0 | FH127: 0 | FI127: 0 | FJ127: 0 | FK127: 0 | FL127: 0 | FM127: 0 | FN127: 0 | FO127: 0 | FP127: 0 | FQ127: 0 | FR127: 0 | FS127: 0 | FT127: 0 | FU127: 0 | FV127: 0 | FW127: 0 | FX127: 0 | FY127: 0 | FZ127: 0 | GA127: 0 | GB127: 0 | GC127: 0 | GD127: 0 | GE127: 0 | GF127: 0 | GG127: 0 | GH127: 0
CV128: 0 | CW128: 0 | CX128: 0 | CY128: 0 | CZ128: 0 | DA128: 0 | DB128: 0 | DC128: 0 | DD128: 0 | DE128: 0 | DF128: 0 | DG128: 0 | DH128: 0 | DI128: 0 | DJ128: 0 | DK128: 0 | DL128: 0 | DM128: 0 | DN128: 0 | DO128: 0 | DP128: 0 | DQ128: 0 | DR128: 0 | DS128: 0 | DT128: 0 | DU128: 0 | DV128: 0 | DW128: 0 | DX128: 0 | DY128: 0 | DZ128: 0 | EA128: 0 | EB128: 0 | EC128: 0 | ED128: 0 | EE128: 0 | EF128: 0 | EG128: 0 | EH128: 0 | EI128: 0 | EJ128: 0 | EK128: 0 | EL128: 0 | EM128: 0 | EN128: 0 | EO128: 0 | EP128: 0 | EQ128: 0 | ER128: 0 | ES128: 0 | ET128: 0 | EU128: 0 | EV128: 0 | EW128: 0 | EX128: 0 | EY128: 0 | EZ128: 0 | FA128: 0 | FB128: 0 | FC128: 0 | FD128: 0 | FE128: 0 | FF128: 0 | FG128: 0 | FH128: 0 | FI128: 0 | FJ128: 0 | FK128: 0 | FL128: 0 | FM128: 0 | FN128: 0 | FO128: 0 | FP128: 0 | FQ128: 0 | FR128: 0 | FS128: 0 | FT128: 0 | FU128: 0 | FV128: 0 | FW128: 0 | FX128: 0 | FY128: 0 | FZ128: 0 | GA128: 0 | GB128: 0 | GC128: 0 | GD128: 0 | GE128: 0 | GF128: 0 | GG128: 0 | GH128: 0
CV129: 0 | CW129: 0 | CX129: 0 | CY129: 0 | CZ129: 0 | DA129: 0 | DB129: 0 | DC129: 0 | DD129: 0 | DE129: 0 | DF129: 0 | DG129: 0 | DH129: 0 | DI129: 0 | DJ129: 0 | DK129: 0 | DL129: 0 | DM129: 0 | DN129: 0 | DO129: 0 | DP129: 0 | DQ129: 0 | DR129: 0 | DS129: 0 | DT129: 0 | DU129: 0 | DV129: 0 | DW129: 0 | DX129: 0 | DY129: 0 | DZ129: 0 | EA129: 0 | EB129: 0 | EC129: 0 | ED129: 0 | EE129: 0 | EF129: 0 | EG129: 0 | EH129: 0 | EI129: 0 | EJ129: 0 | EK129: 0 | EL129: 0 | EM129: 0 | EN129: 0 | EO129: 0 | EP129: 0 | EQ129: 0 | ER129: 0 | ES129: 0 | ET129: 0 | EU129: 0 | EV129: 0 | EW129: 0 | EX129: 0 | EY129: 0 | EZ129: 0 | FA129: 0 | FB129: 0 | FC129: 0 | FD129: 0 | FE129: 0 | FF129: 0 | FG129: 0 | FH129: 0 | FI129: 0 | FJ129: 0 | FK129: 0 | FL129: 0 | FM129: 0 | FN129: 0 | FO129: 0 | FP129: 0 | FQ129: 0 | FR129: 0 | FS129: 0 | FT129: 0 | FU129: 0 | FV129: 0 | FW129: 0 | FX129: 0 | FY129: 0 | FZ129: 0 | GA129: 0 | GB129: 0 | GC129: 0 | GD129: 0 | GE129: 0 | GF129: 0 | GG129: 0 | GH129: 0
CV130: 0 | CW130: 0 | CX130: 0 | CY130: 0 | CZ130: 0 | DA130: 0 | DB130: 0 | DC130: 0 | DD130: 0 | DE130: 0 | DF130: 0 | DG130: 0 | DH130: 0 | DI130: 0 | DJ130: 0 | DK130: 0 | DL130: 0 | DM130: 0 | DN130: 0 | DO130: 0 | DP130: 0 | DQ130: 0 | DR130: 0 | DS130: 0 | DT130: 0 | DU130: 0 | DV130: 0 | DW130: 0 | DX130: 0 | DY130: 0 | DZ130: 0 | EA130: 0 | EB130: 0 | EC130: 0 | ED130: 0 | EE130: 0 | EF130: 0 | EG130: 0 | EH130: 0 | EI130: 0 | EJ130: 0 | EK130: 0 | EL130: 0 | EM130: 0 | EN130: 0 | EO130: 0 | EP130: 0 | EQ130: 0 | ER130: 0 | ES130: 0 | ET130: 0 | EU130: 0 | EV130: 0 | EW130: 0 | EX130: 0 | EY130: 0 | EZ130: 0 | FA130: 0 | FB130: 0 | FC130: 0 | FD130: 0 | FE130: 0 | FF130: 0 | FG130: 0 | FH130: 0 | FI130: 0 | FJ130: 0 | FK130: 0 | FL130: 0 | FM130: 0 | FN130: 0 | FO130: 0 | FP130: 0 | FQ130: 0 | FR130: 0 | FS130: 0 | FT130: 0 | FU130: 0 | FV130: 0 | FW130: 0 | FX130: 0 | FY130: 0 | FZ130: 0 | GA130: 0 | GB130: 0 | GC130: 0 | GD130: 0 | GE130: 0 | GF130: 0 | GG130: 0 | GH130: 0
CV131: 0 | CW131: 0 | CX131: 0 | CY131: 0 | CZ131: 0 | DA131: 0 | DB131: 0 | DC131: 0 | DD131: 0 | DE131: 0 | DF131: 0 | DG131: 0 | DH131: 0 | DI131: 0 | DJ131: 0 | DK131: 0 | DL131: 0 | DM131: 0 | DN131: 0 | DO131: 0 | DP131: 0 | DQ131: 0 | DR131: 0 | DS131: 0 | DT131: 0 | DU131: 0 | DV131: 0 | DW131: 0 | DX131: 0 | DY131: 0 | DZ131: 0 | EA131: 0 | EB131: 0 | EC131: 0 | ED131: 0 | EE131: 0 | EF131: 0 | EG131: 0 | EH131: 0 | EI131: 0 | EJ131: 0 | EK131: 0 | EL131: 0 | EM131: 0 | EN131: 0 | EO131: 0 | EP131: 0 | EQ131: 0 | ER131: 0 | ES131: 0 | ET131: 0 | EU131: 0 | EV131: 0 | EW131: 0 | EX131: 0 | EY131: 0 | EZ131: 0 | FA131: 0 | FB131: 0 | FC131: 0 | FD131: 0 | FE131: 0 | FF131: 0 | FG131: 0 | FH131: 0 | FI131: 0 | FJ131: 0 | FK131: 0 | FL131: 0 | FM131: 0 | FN131: 0 | FO131: 0 | FP131: 0 | FQ131: 0 | FR131: 0 | FS131: 0 | FT131: 0 | FU131: 0 | FV131: 0 | FW131: 0 | FX131: 0 | FY131: 0 | FZ131: 0 | GA131: 0 | GB131: 0 | GC131: 0 | GD131: 0 | GE131: 0 | GF131: 0 | GG131: 0 | GH131: 0
CV132: 0 | CW132: 0 | CX132: 0 | CY132: 0 | CZ132: 0 | DA132: 0 | DB132: 0 | DC132: 0 | DD132: 0 | DE132: 0 | DF132: 0 | DG132: 0 | DH132: 0 | DI132: 0 | DJ132: 0 | DK132: 0 | DL132: 0 | DM132: 0 | DN132: 0 | DO132: 0 | DP132: 0 | DQ132: 0 | DR132: 0 | DS132: 0 | DT132: 0 | DU132: 0 | DV132: 0 | DW132: 0 | DX132: 0 | DY132: 0 | DZ132: 0 | EA132: 0 | EB132: 0 | EC132: 0 | ED132: 0 | EE132: 0 | EF132: 0 | EG132: 0 | EH132: 0 | EI132: 0 | EJ132: 0 | EK132: 0 | EL132: 0 | EM132: 0 | EN132: 0 | EO132: 0 | EP132: 0 | EQ132: 0 | ER132: 0 | ES132: 0 | ET132: 0 | EU132: 0 | EV132: 0 | EW132: 0 | EX132: 0 | EY132: 0 | EZ132: 0 | FA132: 0 | FB132: 0 | FC132: 0 | FD132: 0 | FE132: 0 | FF132: 0 | FG132: 0 | FH132: 0 | FI132: 0 | FJ132: 0 | FK132: 0 | FL132: 0 | FM132: 0 | FN132: 0 | FO132: 0 | FP132: 0 | FQ132: 0 | FR132: 0 | FS132: 0 | FT132: 0 | FU132: 0 | FV132: 0 | FW132: 0 | FX132: 0 | FY132: 0 | FZ132: 0 | GA132: 0 | GB132: 0 | GC132: 0 | GD132: 0 | GE132: 0 | GF132: 0 | GG132: 0 | GH132: 0
CV133: 0 | CW133: 0 | CX133: 0 | CY133: 0 | CZ133: 0 | DA133: 0 | DB133: 0 | DC133: 0 | DD133: 0 | DE133: 0 | DF133: 0 | DG133: 0 | DH133: 0 | DI133: 0 | DJ133: 0 | DK133: 0 | DL133: 0 | DM133: 0 | DN133: 0 | DO133: 0 | DP133: 0 | DQ133: 0 | DR133: 0 | DS133: 0 | DT133: 0 | DU133: 0 | DV133: 0 | DW133: 0 | DX133: 0 | DY133: 0 | DZ133: 0 | EA133: 0 | EB133: 0 | EC133: 0 | ED133: 0 | EE133: 0 | EF133: 0 | EG133: 0 | EH133: 0 | EI133: 0 | EJ133: 0 | EK133: 0 | EL133: 0 | EM133: 0 | EN133: 0 | EO133: 0 | EP133: 0 | EQ133: 0 | ER133: 0 | ES133: 0 | ET133: 0 | EU133: 0 | EV133: 0 | EW133: 0 | EX133: 0 | EY133: 0 | EZ133: 0 | FA133: 0 | FB133: 0 | FC133: 0 | FD133: 0 | FE133: 0 | FF133: 0 | FG133: 0 | FH133: 0 | FI133: 0 | FJ133: 0 | FK133: 0 | FL133: 0 | FM133: 0 | FN133: 0 | FO133: 0 | FP133: 0 | FQ133: 0 | FR133: 0 | FS133: 0 | FT133: 0 | FU133: 0 | FV133: 0 | FW133: 0 | FX133: 0 | FY133: 0 | FZ133: 0 | GA133: 0 | GB133: 0 | GC133: 0 | GD133: 0 | GE133: 0 | GF133: 0 | GG133: 0 | GH133: 0
CV134: 0 | CW134: 0 | CX134: 0 | CY134: 0 | CZ134: 0 | DA134: 0 | DB134: 0 | DC134: 0 | DD134: 0 | DE134: 0 | DF134: 0 | DG134: 0 | DH134: 0 | DI134: 0 | DJ134: 0 | DK134: 0 | DL134: 0 | DM134: 0 | DN134: 0 | DO134: 0 | DP134: 0 | DQ134: 0 | DR134: 0 | DS134: 0 | DT134: 0 | DU134: 0 | DV134: 0 | DW134: 0 | DX134: 0 | DY134: 0 | DZ134: 0 | EA134: 0 | EB134: 0 | EC134: 0 | ED134: 0 | EE134: 0 | EF134: 0 | EG134: 0 | EH134: 0 | EI134: 0 | EJ134: 0 | EK134: 0 | EL134: 0 | EM134: 0 | EN134: 0 | EO134: 0 | EP134: 0 | EQ134: 0 | ER134: 0 | ES134: 0 | ET134: 0 | EU134: 0 | EV134: 0 | EW134: 0 | EX134: 0 | EY134: 0 | EZ134: 0 | FA134: 0 | FB134: 0 | FC134: 0 | FD134: 0 | FE134: 0 | FF134: 0 | FG134: 0 | FH134: 0 | FI134: 0 | FJ134: 0 | FK134: 0 | FL134: 0 | FM134: 0 | FN134: 0 | FO134: 0 | FP134: 0 | FQ134: 0 | FR134: 0 | FS134: 0 | FT134: 0 | FU134: 0 | FV134: 0 | FW134: 0 | FX134: 0 | FY134: 0 | FZ134: 0 | GA134: 0 | GB134: 0 | GC134: 0 | GD134: 0 | GE134: 0 | GF134: 0 | GG134: 0 | GH134: 0
CV135: 0 | CW135: 0 | CX135: 0 | CY135: 0 | CZ135: 0 | DA135: 0 | DB135: 0 | DC135: 0 | DD135: 0 | DE135: 0 | DF135: 0 | DG135: 0 | DH135: 0 | DI135: 0 | DJ135: 0 | DK135: 0 | DL135: 0 | DM135: 0 | DN135: 0 | DO135: 0 | DP135: 0 | DQ135: 0 | DR135: 0 | DS135: 0 | DT135: 0 | DU135: 0 | DV135: 0 | DW135: 0 | DX135: 0 | DY135: 0 | DZ135: 0 | EA135: 0 | EB135: 0 | EC135: 0 | ED135: 0 | EE135: 0 | EF135: 0 | EG135: 0 | EH135: 0 | EI135: 0 | EJ135: 0 | EK135: 0 | EL135: 0 | EM135: 0 | EN135: 0 | EO135: 0 | EP135: 0 | EQ135: 0 | ER135: 0 | ES135: 0 | ET135: 0 | EU135: 0 | EV135: 0 | EW135: 0 | EX135: 0 | EY135: 0 | EZ135: 0 | FA135: 0 | FB135: 0 | FC135: 0 | FD135: 0 | FE135: 0 | FF135: 0 | FG135: 0 | FH135: 0 | FI135: 0 | FJ135: 0 | FK135: 0 | FL135: 0 | FM135: 0 | FN135: 0 | FO135: 0 | FP135: 0 | FQ135: 0 | FR135: 0 | FS135: 0 | FT135: 0 | FU135: 0 | FV135: 0 | FW135: 0 | FX135: 0 | FY135: 0 | FZ135: 0 | GA135: 0 | GB135: 0 | GC135: 0 | GD135: 0 | GE135: 0 | GF135: 0 | GG135: 0 | GH135: 0
CV136: 0 | CW136: 0 | CX136: 0 | CY136: 0 | CZ136: 0 | DA136: 0 | DB136: 0 | DC136: 0 | DD136: 0 | DE136: 0 | DF136: 0 | DG136: 0 | DH136: 0 | DI136: 0 | DJ136: 0 | DK136: 0 | DL136: 0 | DM136: 0 | DN136: 0 | DO136: 0 | DP136: 0 | DQ136: 0 | DR136: 0 | DS136: 0 | DT136: 0 | DU136: 0 | DV136: 0 | DW136: 0 | DX136: 0 | DY136: 0 | DZ136: 0 | EA136: 0 | EB136: 0 | EC136: 0 | ED136: 0 | EE136: 0 | EF136: 0 | EG136: 0 | EH136: 0 | EI136: 0 | EJ136: 0 | EK136: 0 | EL136: 0 | EM136: 0 | EN136: 0 | EO136: 0 | EP136: 0 | EQ136: 0 | ER136: 0 | ES136: 0 | ET136: 0 | EU136: 0 | EV136: 0 | EW136: 0 | EX136: 0 | EY136: 0 | EZ136: 0 | FA136: 0 | FB136: 0 | FC136: 0 | FD136: 0 | FE136: 0 | FF136: 0 | FG136: 0 | FH136: 0 | FI136: 0 | FJ136: 0 | FK136: 0 | FL136: 0 | FM136: 0 | FN136: 0 | FO136: 0 | FP136: 0 | FQ136: 0 | FR136: 0 | FS136: 0 | FT136: 0 | FU136: 0 | FV136: 0 | FW136: 0 | FX136: 0 | FY136: 0 | FZ136: 0 | GA136: 0 | GB136: 0 | GC136: 0 | GD136: 0 | GE136: 0 | GF136: 0 | GG136: 0 | GH136: 0
CV137: 0 | CW137: 0 | CX137: 0 | CY137: 0 | CZ137: 0 | DA137: 0 | DB137: 0 | DC137: 0 | DD137: 0 | DE137: 0 | DF137: 0 | DG137: 0 | DH137: 0 | DI137: 0 | DJ137: 0 | DK137: 0 | DL137: 0 | DM137: 0 | DN137: 0 | DO137: 0 | DP137: 0 | DQ137: 0 | DR137: 0 | DS137: 0 | DT137: 0 | DU137: 0 | DV137: 0 | DW137: 0 | DX137: 0 | DY137: 0 | DZ137: 0 | EA137: 0 | EB137: 0 | EC137: 0 | ED137: 0 | EE137: 0 | EF137: 0 | EG137: 0 | EH137: 0 | EI137: 0 | EJ137: 0 | EK137: 0 | EL137: 0 | EM137: 0 | EN137: 0 | EO137: 0 | EP137: 0 | EQ137: 0 | ER137: 0 | ES137: 0 | ET137: 0 | EU137: 0 | EV137: 0 | EW137: 0 | EX137: 0 | EY137: 0 | EZ137: 0 | FA137: 0 | FB137: 0 | FC137: 0 | FD137: 0 | FE137: 0 | FF137: 0 | FG137: 0 | FH137: 0 | FI137: 0 | FJ137: 0 | FK137: 0 | FL137: 0 | FM137: 0 | FN137: 0 | FO137: 0 | FP137: 0 | FQ137: 0 | FR137: 0 | FS137: 0 | FT137: 0 | FU137: 0 | FV137: 0 | FW137: 0 | FX137: 0 | FY137: 0 | FZ137: 0 | GA137: 0 | GB137: 0 | GC137: 0 | GD137: 0 | GE137: 0 | GF137: 0 | GG137: 0 | GH137: 0
CV138: 0 | CW138: 0 | CX138: 0 | CY138: 0 | CZ138: 0 | DA138: 0 | DB138: 0 | DC138: 0 | DD138: 0 | DE138: 0 | DF138: 0 | DG138: 0 | DH138: 0 | DI138: 0 | DJ138: 0 | DK138: 0 | DL138: 0 | DM138: 0 | DN138: 0 | DO138: 0 | DP138: 0 | DQ138: 0 | DR138: 0 | DS138: 0 | DT138: 0 | DU138: 0 | DV138: 0 | DW138: 0 | DX138: 0 | DY138: 0 | DZ138: 0 | EA138: 0 | EB138: 0 | EC138: 0 | ED138: 0 | EE138: 0 | EF138: 0 | EG138: 0 | EH138: 0 | EI138: 0 | EJ138: 0 | EK138: 0 | EL138: 0 | EM138: 0 | EN138: 0 | EO138: 0 | EP138: 0 | EQ138: 0 | ER138: 0 | ES138: 0 | ET138: 0 | EU138: 0 | EV138: 0 | EW138: 0 | EX138: 0 | EY138: 0 | EZ138: 0 | FA138: 0 | FB138: 0 | FC138: 0 | FD138: 0 | FE138: 0 | FF138: 0 | FG138: 0 | FH138: 0 | FI138: 0 | FJ138: 0 | FK138: 0 | FL138: 0 | FM138: 0 | FN138: 0 | FO138: 0 | FP138: 0 | FQ138: 0 | FR138: 0 | FS138: 0 | FT138: 0 | FU138: 0 | FV138: 0 | FW138: 0 | FX138: 0 | FY138: 0 | FZ138: 0 | GA138: 0 | GB138: 0 | GC138: 0 | GD138: 0 | GE138: 0 | GF138: 0 | GG138: 0 | GH138: 0
CV139: 0 | CW139: 0 | CX139: 0 | CY139: 0 | CZ139: 0 | DA139: 0 | DB139: 0 | DC139: 0 | DD139: 0 | DE139: 0 | DF139: 0 | DG139: 0 | DH139: 0 | DI139: 0 | DJ139: 0 | DK139: 0 | DL139: 0 | DM139: 0 | DN139: 0 | DO139: 0 | DP139: 0 | DQ139: 0 | DR139: 0 | DS139: 0 | DT139: 0 | DU139: 0 | DV139: 0 | DW139: 0 | DX139: 0 | DY139: 0 | DZ139: 0 | EA139: 0 | EB139: 0 | EC139: 0 | ED139: 0 | EE139: 0 | EF139: 0 | EG139: 0 | EH139: 0 | EI139: 0 | EJ139: 0 | EK139: 0 | EL139: 0 | EM139: 0 | EN139: 0 | EO139: 0 | EP139: 0 | EQ139: 0 | ER139: 0 | ES139: 0 | ET139: 0 | EU139: 0 | EV139: 0 | EW139: 0 | EX139: 0 | EY139: 0 | EZ139: 0 | FA139: 0 | FB139: 0 | FC139: 0 | FD139: 0 | FE139: 0 | FF139: 0 | FG139: 0 | FH139: 0 | FI139: 0 | FJ139: 0 | FK139: 0 | FL139: 0 | FM139: 0 | FN139: 0 | FO139: 0 | FP139: 0 | FQ139: 0 | FR139: 0 | FS139: 0 | FT139: 0 | FU139: 0 | FV139: 0 | FW139: 0 | FX139: 0 | FY139: 0 | FZ139: 0 | GA139: 0 | GB139: 0 | GC139: 0 | GD139: 0 | GE139: 0 | GF139: 0 | GG139: 0 | GH139: 0
CV140: 0 | CW140: 0 | CX140: 0 | CY140: 0 | CZ140: 0 | DA140: 0 | DB140: 0 | DC140: 0 | DD140: 0 | DE140: 0 | DF140: 0 | DG140: 0 | DH140: 0 | DI140: 0 | DJ140: 0 | DK140: 0 | DL140: 0 | DM140: 0 | DN140: 0 | DO140: 0 | DP140: 0 | DQ140: 0 | DR140: 0 | DS140: 0 | DT140: 0 | DU140: 0 | DV140: 0 | DW140: 0 | DX140: 0 | DY140: 0 | DZ140: 0 | EA140: 0 | EB140: 0 | EC140: 0 | ED140: 0 | EE140: 0 | EF140: 0 | EG140: 0 | EH140: 0 | EI140: 0 | EJ140: 0 | EK140: 0 | EL140: 0 | EM140: 0 | EN140: 0 | EO140: 0 | EP140: 0 | EQ140: 0 | ER140: 0 | ES140: 0 | ET140: 0 | EU140: 0 | EV140: 0 | EW140: 0 | EX140: 0 | EY140: 0 | EZ140: 0 | FA140: 0 | FB140: 0 | FC140: 0 | FD140: 0 | FE140: 0 | FF140: 0 | FG140: 0 | FH140: 0 | FI140: 0 | FJ140: 0 | FK140: 0 | FL140: 0 | FM140: 0 | FN140: 0 | FO140: 0 | FP140: 0 | FQ140: 0 | FR140: 0 | FS140: 0 | FT140: 0 | FU140: 0 | FV140: 0 | FW140: 0 | FX140: 0 | FY140: 0 | FZ140: 0 | GA140: 0 | GB140: 0 | GC140: 0 | GD140: 0 | GE140: 0 | GF140: 0 | GG140: 0 | GH140: 0
CV141: 0 | CW141: 0 | CX141: 0 | CY141: 0 | CZ141: 0 | DA141: 0 | DB141: 0 | DC141: 0 | DD141: 0 | DE141: 0 | DF141: 0 | DG141: 0 | DH141: 0 | DI141: 0 | DJ141: 0 | DK141: 0 | DL141: 0 | DM141: 0 | DN141: 0 | DO141: 0 | DP141: 0 | DQ141: 0 | DR141: 0 | DS141: 0 | DT141: 0 | DU141: 0 | DV141: 0 | DW141: 0 | DX141: 0 | DY141: 0 | DZ141: 0 | EA141: 0 | EB141: 0 | EC141: 0 | ED141: 0 | EE141: 0 | EF141: 0 | EG141: 0 | EH141: 0 | EI141: 0 | EJ141: 0 | EK141: 0 | EL141: 0 | EM141: 0 | EN141: 0 | EO141: 0 | EP141: 0 | EQ141: 0 | ER141: 0 | ES141: 0 | ET141: 0 | EU141: 0 | EV141: 0 | EW141: 0 | EX141: 0 | EY141: 0 | EZ141: 0 | FA141: 0 | FB141: 0 | FC141: 0 | FD141: 0 | FE141: 0 | FF141: 0 | FG141: 0 | FH141: 0 | FI141: 0 | FJ141: 0 | FK141: 0 | FL141: 0 | FM141: 0 | FN141: 0 | FO141: 0 | FP141: 0 | FQ141: 0 | FR141: 0 | FS141: 0 | FT141: 0 | FU141: 0 | FV141: 0 | FW141: 0 | FX141: 0 | FY141: 0 | FZ141: 0 | GA141: 0 | GB141: 0 | GC141: 0 | GD141: 0 | GE141: 0 | GF141: 0 | GG141: 0 | GH141: 0
CV142: 0 | CW142: 0 | CX142: 0 | CY142: 0 | CZ142: 0 | DA142: 0 | DB142: 0 | DC142: 0 | DD142: 0 | DE142: 0 | DF142: 0 | DG142: 0 | DH142: 0 | DI142: 0 | DJ142: 0 | DK142: 0 | DL142: 0 | DM142: 0 | DN142: 0 | DO142: 0 | DP142: 0 | DQ142: 0 | DR142: 0 | DS142: 0 | DT142: 0 | DU142: 0 | DV142: 0 | DW142: 0 | DX142: 0 | DY142: 0 | DZ142: 0 | EA142: 0 | EB142: 0 | EC142: 0 | ED142: 0 | EE142: 0 | EF142: 0 | EG142: 0 | EH142: 0 | EI142: 0 | EJ142: 0 | EK142: 0 | EL142: 0 | EM142: 0 | EN142: 0 | EO142: 0 | EP142: 0 | EQ142: 0 | ER142: 0 | ES142: 0 | ET142: 0 | EU142: 0 | EV142: 0 | EW142: 0 | EX142: 0 | EY142: 0 | EZ142: 0 | FA142: 0 | FB142: 0 | FC142: 0 | FD142: 0 | FE142: 0 | FF142: 0 | FG142: 0 | FH142: 0 | FI142: 0 | FJ142: 0 | FK142: 0 | FL142: 0 | FM142: 0 | FN142: 0 | FO142: 0 | FP142: 0 | FQ142: 0 | FR142: 0 | FS142: 0 | FT142: 0 | FU142: 0 | FV142: 0 | FW142: 0 | FX142: 0 | FY142: 0 | FZ142: 0 | GA142: 0 | GB142: 0 | GC142: 0 | GD142: 0 | GE142: 0 | GF142: 0 | GG142: 0 | GH142: 0
CV143: 0 | CW143: 0 | CX143: 0 | CY143: 0 | CZ143: 0 | DA143: 0 | DB143: 0 | DC143: 0 | DD143: 0 | DE143: 0 | DF143: 0 | DG143: 0 | DH143: 0 | DI143: 0 | DJ143: 0 | DK143: 0 | DL143: 0 | DM143: 0 | DN143: 0 | DO143: 0 | DP143: 0 | DQ143: 0 | DR143: 0 | DS143: 0 | DT143: 0 | DU143: 0 | DV143: 0 | DW143: 0 | DX143: 0 | DY143: 0 | DZ143: 0 | EA143: 0 | EB143: 0 | EC143: 0 | ED143: 0 | EE143: 0 | EF143: 0 | EG143: 0 | EH143: 0 | EI143: 0 | EJ143: 0 | EK143: 0 | EL143: 0 | EM143: 0 | EN143: 0 | EO143: 0 | EP143: 0 | EQ143: 0 | ER143: 0 | ES143: 0 | ET143: 0 | EU143: 0 | EV143: 0 | EW143: 0 | EX143: 0 | EY143: 0 | EZ143: 0 | FA143: 0 | FB143: 0 | FC143: 0 | FD143: 0 | FE143: 0 | FF143: 0 | FG143: 0 | FH143: 0 | FI143: 0 | FJ143: 0 | FK143: 0 | FL143: 0 | FM143: 0 | FN143: 0 | FO143: 0 | FP143: 0 | FQ143: 0 | FR143: 0 | FS143: 0 | FT143: 0 | FU143: 0 | FV143: 0 | FW143: 0 | FX143: 0 | FY143: 0 | FZ143: 0 | GA143: 0 | GB143: 0 | GC143: 0 | GD143: 0 | GE143: 0 | GF143: 0 | GG143: 0 | GH143: 0
CV144: 0 | CW144: 0 | CX144: 0 | CY144: 0 | CZ144: 0 | DA144: 0 | DB144: 0 | DC144: 0 | DD144: 0 | DE144: 0 | DF144: 0 | DG144: 0 | DH144: 0 | DI144: 0 | DJ144: 0 | DK144: 0 | DL144: 0 | DM144: 0 | DN144: 0 | DO144: 0 | DP144: 0 | DQ144: 0 | DR144: 0 | DS144: 0 | DT144: 0 | DU144: 0 | DV144: 0 | DW144: 0 | DX144: 0 | DY144: 0 | DZ144: 0 | EA144: 0 | EB144: 0 | EC144: 0 | ED144: 0 | EE144: 0 | EF144: 0 | EG144: 0 | EH144: 0 | EI144: 0 | EJ144: 0 | EK144: 0 | EL144: 0 | EM144: 0 | EN144: 0 | EO144: 0 | EP144: 0 | EQ144: 0 | ER144: 0 | ES144: 0 | ET144: 0 | EU144: 0 | EV144: 0 | EW144: 0 | EX144: 0 | EY144: 0 | EZ144: 0 | FA144: 0 | FB144: 0 | FC144: 0 | FD144: 0 | FE144: 0 | FF144: 0 | FG144: 0 | FH144: 0 | FI144: 0 | FJ144: 0 | FK144: 0 | FL144: 0 | FM144: 0 | FN144: 0 | FO144: 0 | FP144: 0 | FQ144: 0 | FR144: 0 | FS144: 0 | FT144: 0 | FU144: 0 | FV144: 0 | FW144: 0 | FX144: 0 | FY144: 0 | FZ144: 0 | GA144: 0 | GB144: 0 | GC144: 0 | GD144: 0 | GE144: 0 | GF144: 0 | GG144: 0 | GH144: 0
CV145: 0 | CW145: 0 | CX145: 0 | CY145: 0 | CZ145: 0 | DA145: 0 | DB145: 0 | DC145: 0 | DD145: 0 | DE145: 0 | DF145: 0 | DG145: 0 | DH145: 0 | DI145: 0 | DJ145: 0 | DK145: 0 | DL145: 0 | DM145: 0 | DN145: 0 | DO145: 0 | DP145: 0 | DQ145: 0 | DR145: 0 | DS145: 0 | DT145: 0 | DU145: 0 | DV145: 0 | DW145: 0 | DX145: 0 | DY145: 0 | DZ145: 0 | EA145: 0 | EB145: 0 | EC145: 0 | ED145: 0 | EE145: 0 | EF145: 0 | EG145: 0 | EH145: 0 | EI145: 0 | EJ145: 0 | EK145: 0 | EL145: 0 | EM145: 0 | EN145: 0 | EO145: 0 | EP145: 0 | EQ145: 0 | ER145: 0 | ES145: 0 | ET145: 0 | EU145: 0 | EV145: 0 | EW145: 0 | EX145: 0 | EY145: 0 | EZ145: 0 | FA145: 0 | FB145: 0 | FC145: 0 | FD145: 0 | FE145: 0 | FF145: 0 | FG145: 0 | FH145: 0 | FI145: 0 | FJ145: 0 | FK145: 0 | FL145: 0 | FM145: 0 | FN145: 0 | FO145: 0 | FP145: 0 | FQ145: 0 | FR145: 0 | FS145: 0 | FT145: 0 | FU145: 0 | FV145: 0 | FW145: 0 | FX145: 0 | FY145: 0 | FZ145: 0 | GA145: 0 | GB145: 0 | GC145: 0 | GD145: 0 | GE145: 0 | GF145: 0 | GG145: 0 | GH145: 0
CV146: 0 | CW146: 0 | CX146: 0 | CY146: 0 | CZ146: 0 | DA146: 0 | DB146: 0 | DC146: 0 | DD146: 0 | DE146: 0 | DF146: 0 | DG146: 0 | DH146: 0 | DI146: 0 | DJ146: 0 | DK146: 0 | DL146: 0 | DM146: 0 | DN146: 0 | DO146: 0 | DP146: 0 | DQ146: 0 | DR146: 0 | DS146: 0 | DT146: 0 | DU146: 0 | DV146: 0 | DW146: 0 | DX146: 0 | DY146: 0 | DZ146: 0 | EA146: 0 | EB146: 0 | EC146: 0 | ED146: 0 | EE146: 0 | EF146: 0 | EG146: 0 | EH146: 0 | EI146: 0 | EJ146: 0 | EK146: 0 | EL146: 0 | EM146: 0 | EN146: 0 | EO146: 0 | EP146: 0 | EQ146: 0 | ER146: 0 | ES146: 0 | ET146: 0 | EU146: 0 | EV146: 0 | EW146: 0 | EX146: 0 | EY146: 0 | EZ146: 0 | FA146: 0 | FB146: 0 | FC146: 0 | FD146: 0 | FE146: 0 | FF146: 0 | FG146: 0 | FH146: 0 | FI146: 0 | FJ146: 0 | FK146: 0 | FL146: 0 | FM146: 0 | FN146: 0 | FO146: 0 | FP146: 0 | FQ146: 0 | FR146: 0 | FS146: 0 | FT146: 0 | FU146: 0 | FV146: 0 | FW146: 0 | FX146: 0 | FY146: 0 | FZ146: 0 | GA146: 0 | GB146: 0 | GC146: 0 | GD146: 0 | GE146: 0 | GF146: 0 | GG146: 0 | GH146: 0
CV147: 0 | CW147: 0 | CX147: 0 | CY147: 0 | CZ147: 0 | DA147: 0 | DB147: 0 | DC147: 0 | DD147: 0 | DE147: 0 | DF147: 0 | DG147: 0 | DH147: 0 | DI147: 0 | DJ147: 0 | DK147: 0 | DL147: 0 | DM147: 0 | DN147: 0 | DO147: 0 | DP147: 0 | DQ147: 0 | DR147: 0 | DS147: 0 | DT147: 0 | DU147: 0 | DV147: 0 | DW147: 0 | DX147: 0 | DY147: 0 | DZ147: 0 | EA147: 0 | EB147: 0 | EC147: 0 | ED147: 0 | EE147: 0 | EF147: 0 | EG147: 0 | EH147: 0 | EI147: 0 | EJ147: 0 | EK147: 0 | EL147: 0 | EM147: 0 | EN147: 0 | EO147: 0 | EP147: 0 | EQ147: 0 | ER147: 0 | ES147: 0 | ET147: 0 | EU147: 0 | EV147: 0 | EW147: 0 | EX147: 0 | EY147: 0 | EZ147: 0 | FA147: 0 | FB147: 0 | FC147: 0 | FD147: 0 | FE147: 0 | FF147: 0 | FG147: 0 | FH147: 0 | FI147: 0 | FJ147: 0 | FK147: 0 | FL147: 0 | FM147: 0 | FN147: 0 | FO147: 0 | FP147: 0 | FQ147: 0 | FR147: 0 | FS147: 0 | FT147: 0 | FU147: 0 | FV147: 0 | FW147: 0 | FX147: 0 | FY147: 0 | FZ147: 0 | GA147: 0 | GB147: 0 | GC147: 0 | GD147: 0 | GE147: 0 | GF147: 0 | GG147: 0 | GH147: 0
CV148: 0 | CW148: 0 | CX148: 0 | CY148: 0 | CZ148: 0 | DA148: 0 | DB148: 0 | DC148: 0 | DD148: 0 | DE148: 0 | DF148: 0 | DG148: 0 | DH148: 0 | DI148: 0 | DJ148: 0 | DK148: 0 | DL148: 0 | DM148: 0 | DN148: 0 | DO148: 0 | DP148: 0 | DQ148: 0 | DR148: 0 | DS148: 0 | DT148: 0 | DU148: 0 | DV148: 0 | DW148: 0 | DX148: 0 | DY148: 0 | DZ148: 0 | EA148: 0 | EB148: 0 | EC148: 0 | ED148: 0 | EE148: 0 | EF148: 0 | EG148: 0 | EH148: 0 | EI148: 0 | EJ148: 0 | EK148: 0 | EL148: 0 | EM148: 0 | EN148: 0 | EO148: 0 | EP148: 0 | EQ148: 0 | ER148: 0 | ES148: 0 | ET148: 0 | EU148: 0 | EV148: 0 | EW148: 0 | EX148: 0 | EY148: 0 | EZ148: 0 | FA148: 0 | FB148: 0 | FC148: 0 | FD148: 0 | FE148: 0 | FF148: 0 | FG148: 0 | FH148: 0 | FI148: 0 | FJ148: 0 | FK148: 0 | FL148: 0 | FM148: 0 | FN148: 0 | FO148: 0 | FP148: 0 | FQ148: 0 | FR148: 0 | FS148: 0 | FT148: 0 | FU148: 0 | FV148: 0 | FW148: 0 | FX148: 0 | FY148: 0 | FZ148: 0 | GA148: 0 | GB148: 0 | GC148: 0 | GD148: 0 | GE148: 0 | GF148: 0 | GG148: 0 | GH148: 0
CV149: 0 | CW149: 0 | CX149: 0 | CY149: 0 | CZ149: 0 | DA149: 0 | DB149: 0 | DC149: 0 | DD149: 0 | DE149: 0 | DF149: 0 | DG149: 0 | DH149: 0 | DI149: 0 | DJ149: 0 | DK149: 0 | DL149: 0 | DM149: 0 | DN149: 0 | DO149: 0 | DP149: 0 | DQ149: 0 | DR149: 0 | DS149: 0 | DT149: 0 | DU149: 0 | DV149: 0 | DW149: 0 | DX149: 0 | DY149: 0 | DZ149: 0 | EA149: 0 | EB149: 0 | EC149: 0 | ED149: 0 | EE149: 0 | EF149: 0 | EG149: 0 | EH149: 0 | EI149: 0 | EJ149: 0 | EK149: 0 | EL149: 0 | EM149: 0 | EN149: 0 | EO149: 0 | EP149: 0 | EQ149: 0 | ER149: 0 | ES149: 0 | ET149: 0 | EU149: 0 | EV149: 0 | EW149: 0 | EX149: 0 | EY149: 0 | EZ149: 0 | FA149: 0 | FB149: 0 | FC149: 0 | FD149: 0 | FE149: 0 | FF149: 0 | FG149: 0 | FH149: 0 | FI149: 0 | FJ149: 0 | FK149: 0 | FL149: 0 | FM149: 0 | FN149: 0 | FO149: 0 | FP149: 0 | FQ149: 0 | FR149: 0 | FS149: 0 | FT149: 0 | FU149: 0 | FV149: 0 | FW149: 0 | FX149: 0 | FY149: 0 | FZ149: 0 | GA149: 0 | GB149: 0 | GC149: 0 | GD149: 0 | GE149: 0 | GF149: 0 | GG149: 0 | GH149: 0
CV150: 0 | CW150: 0 | CX150: 0 | CY150: 0 | CZ150: 0 | DA150: 0 | DB150: 0 | DC150: 0 | DD150: 0 | DE150: 0 | DF150: 0 | DG150: 0 | DH150: 0 | DI150: 0 | DJ150: 0 | DK150: 0 | DL150: 0 | DM150: 0 | DN150: 0 | DO150: 0 | DP150: 0 | DQ150: 0 | DR150: 0 | DS150: 0 | DT150: 0 | DU150: 0 | DV150: 0 | DW150: 0 | DX150: 0 | DY150: 0 | DZ150: 0 | EA150: 0 | EB150: 0 | EC150: 0 | ED150: 0 | EE150: 0 | EF150: 0 | EG150: 0 | EH150: 0 | EI150: 0 | EJ150: 0 | EK150: 0 | EL150: 0 | EM150: 0 | EN150: 0 | EO150: 0 | EP150: 0 | EQ150: 0 | ER150: 0 | ES150: 0 | ET150: 0 | EU150: 0 | EV150: 0 | EW150: 0 | EX150: 0 | EY150: 0 | EZ150: 0 | FA150: 0 | FB150: 0 | FC150: 0 | FD150: 0 | FE150: 0 | FF150: 0 | FG150: 0 | FH150: 0 | FI150: 0 | FJ150: 0 | FK150: 0 | FL150: 0 | FM150: 0 | FN150: 0 | FO150: 0 | FP150: 0 | FQ150: 0 | FR150: 0 | FS150: 0 | FT150: 0 | FU150: 0 | FV150: 0 | FW150: 0 | FX150: 0 | FY150: 0 | FZ150: 0 | GA150: 0 | GB150: 0 | GC150: 0 | GD150: 0 | GE150: 0 | GF150: 0 | GG150: 0 | GH150: 0
CV151: 0 | CW151: 0 | CX151: 0 | CY151: 0 | CZ151: 0 | DA151: 0 | DB151: 0 | DC151: 0 | DD151: 0 | DE151: 0 | DF151: 0 | DG151: 0 | DH151: 0 | DI151: 0 | DJ151: 0 | DK151: 0 | DL151: 0 | DM151: 0 | DN151: 0 | DO151: 0 | DP151: 0 | DQ151: 0 | DR151: 0 | DS151: 0 | DT151: 0 | DU151: 0 | DV151: 0 | DW151: 0 | DX151: 0 | DY151: 0 | DZ151: 0 | EA151: 0 | EB151: 0 | EC151: 0 | ED151: 0 | EE151: 0 | EF151: 0 | EG151: 0 | EH151: 0 | EI151: 0 | EJ151: 0 | EK151: 0 | EL151: 0 | EM151: 0 | EN151: 0 | EO151: 0 | EP151: 0 | EQ151: 0 | ER151: 0 | ES151: 0 | ET151: 0 | EU151: 0 | EV151: 0 | EW151: 0 | EX151: 0 | EY151: 0 | EZ151: 0 | FA151: 0 | FB151: 0 | FC151: 0 | FD151: 0 | FE151: 0 | FF151: 0 | FG151: 0 | FH151: 0 | FI151: 0 | FJ151: 0 | FK151: 0 | FL151: 0 | FM151: 0 | FN151: 0 | FO151: 0 | FP151: 0 | FQ151: 0 | FR151: 0 | FS151: 0 | FT151: 0 | FU151: 0 | FV151: 0 | FW151: 0 | FX151: 0 | FY151: 0 | FZ151: 0 | GA151: 0 | GB151: 0 | GC151: 0 | GD151: 0 | GE151: 0 | GF151: 0 | GG151: 0 | GH151: 0
CV152: 0 | CW152: 0 | CX152: 0 | CY152: 0 | CZ152: 0 | DA152: 0 | DB152: 0 | DC152: 0 | DD152: 0 | DE152: 0 | DF152: 0 | DG152: 0 | DH152: 0 | DI152: 0 | DJ152: 0 | DK152: 0 | DL152: 0 | DM152: 0 | DN152: 0 | DO152: 0 | DP152: 0 | DQ152: 0 | DR152: 0 | DS152: 0 | DT152: 0 | DU152: 0 | DV152: 0 | DW152: 0 | DX152: 0 | DY152: 0 | DZ152: 0 | EA152: 0 | EB152: 0 | EC152: 0 | ED152: 0 | EE152: 0 | EF152: 0 | EG152: 0 | EH152: 0 | EI152: 0 | EJ152: 0 | EK152: 0 | EL152: 0 | EM152: 0 | EN152: 0 | EO152: 0 | EP152: 0 | EQ152: 0 | ER152: 0 | ES152: 0 | ET152: 0 | EU152: 0 | EV152: 0 | EW152: 0 | EX152: 0 | EY152: 0 | EZ152: 0 | FA152: 0 | FB152: 0 | FC152: 0 | FD152: 0 | FE152: 0 | FF152: 0 | FG152: 0 | FH152: 0 | FI152: 0 | FJ152: 0 | FK152: 0 | FL152: 0 | FM152: 0 | FN152: 0 | FO152: 0 | FP152: 0 | FQ152: 0 | FR152: 0 | FS152: 0 | FT152: 0 | FU152: 0 | FV152: 0 | FW152: 0 | FX152: 0 | FY152: 0 | FZ152: 0 | GA152: 0 | GB152: 0 | GC152: 0 | GD152: 0 | GE152: 0 | GF152: 0 | GG152: 0 | GH152: 0
CV153: 0 | CW153: 0 | CX153: 0 | CY153: 0 | CZ153: 0 | DA153: 0 | DB153: 0 | DC153: 0 | DD153: 0 | DE153: 0 | DF153: 0 | DG153: 0 | DH153: 0 | DI153: 0 | DJ153: 0 | DK153: 0 | DL153: 0 | DM153: 0 | DN153: 0 | DO153: 0 | DP153: 0 | DQ153: 0 | DR153: 0 | DS153: 0 | DT153: 0 | DU153: 0 | DV153: 0 | DW153: 0 | DX153: 0 | DY153: 0 | DZ153: 0 | EA153: 0 | EB153: 0 | EC153: 0 | ED153: 0 | EE153: 0 | EF153: 0 | EG153: 0 | EH153: 0 | EI153: 0 | EJ153: 0 | EK153: 0 | EL153: 0 | EM153: 0 | EN153: 0 | EO153: 0 | EP153: 0 | EQ153: 0 | ER153: 0 | ES153: 0 | ET153: 0 | EU153: 0 | EV153: 0 | EW153: 0 | EX153: 0 | EY153: 0 | EZ153: 0 | FA153: 0 | FB153: 0 | FC153: 0 | FD153: 0 | FE153: 0 | FF153: 0 | FG153: 0 | FH153: 0 | FI153: 0 | FJ153: 0 | FK153: 0 | FL153: 0 | FM153: 0 | FN153: 0 | FO153: 0 | FP153: 0 | FQ153: 0 | FR153: 0 | FS153: 0 | FT153: 0 | FU153: 0 | FV153: 0 | FW153: 0 | FX153: 0 | FY153: 0 | FZ153: 0 | GA153: 0 | GB153: 0 | GC153: 0 | GD153: 0 | GE153: 0 | GF153: 0 | GG153: 0 | GH153: 0
CV154: 0 | CW154: 0 | CX154: 0 | CY154: 0 | CZ154: 0 | DA154: 0 | DB154: 0 | DC154: 0 | DD154: 0 | DE154: 0 | DF154: 0 | DG154: 0 | DH154: 0 | DI154: 0 | DJ154: 0 | DK154: 0 | DL154: 0 | DM154: 0 | DN154: 0 | DO154: 0 | DP154: 0 | DQ154: 0 | DR154: 0 | DS154: 0 | DT154: 0 | DU154: 0 | DV154: 0 | DW154: 0 | DX154: 0 | DY154: 0 | DZ154: 0 | EA154: 0 | EB154: 0 | EC154: 0 | ED154: 0 | EE154: 0 | EF154: 0 | EG154: 0 | EH154: 0 | EI154: 0 | EJ154: 0 | EK154: 0 | EL154: 0 | EM154: 0 | EN154: 0 | EO154: 0 | EP154: 0 | EQ154: 0 | ER154: 0 | ES154: 0 | ET154: 0 | EU154: 0 | EV154: 0 | EW154: 0 | EX154: 0 | EY154: 0 | EZ154: 0 | FA154: 0 | FB154: 0 | FC154: 0 | FD154: 0 | FE154: 0 | FF154: 0 | FG154: 0 | FH154: 0 | FI154: 0 | FJ154: 0 | FK154: 0 | FL154: 0 | FM154: 0 | FN154: 0 | FO154: 0 | FP154: 0 | FQ154: 0 | FR154: 0 | FS154: 0 | FT154: 0 | FU154: 0 | FV154: 0 | FW154: 0 | FX154: 0 | FY154: 0 | FZ154: 0 | GA154: 0 | GB154: 0 | GC154: 0 | GD154: 0 | GE154: 0 | GF154: 0 | GG154: 0 | GH154: 0
CV155: 0 | CW155: 0 | CX155: 0 | CY155: 0 | CZ155: 0 | DA155: 0 | DB155: 0 | DC155: 0 | DD155: 0 | DE155: 0 | DF155: 0 | DG155: 0 | DH155: 0 | DI155: 0 | DJ155: 0 | DK155: 0 | DL155: 0 | DM155: 0 | DN155: 0 | DO155: 0 | DP155: 0 | DQ155: 0 | DR155: 0 | DS155: 0 | DT155: 0 | DU155: 0 | DV155: 0 | DW155: 0 | DX155: 0 | DY155: 0 | DZ155: 0 | EA155: 0 | EB155: 0 | EC155: 0 | ED155: 0 | EE155: 0 | EF155: 0 | EG155: 0 | EH155: 0 | EI155: 0 | EJ155: 0 | EK155: 0 | EL155: 0 | EM155: 0 | EN155: 0 | EO155: 0 | EP155: 0 | EQ155: 0 | ER155: 0 | ES155: 0 | ET155: 0 | EU155: 0 | EV155: 0 | EW155: 0 | EX155: 0 | EY155: 0 | EZ155: 0 | FA155: 0 | FB155: 0 | FC155: 0 | FD155: 0 | FE155: 0 | FF155: 0 | FG155: 0 | FH155: 0 | FI155: 0 | FJ155: 0 | FK155: 0 | FL155: 0 | FM155: 0 | FN155: 0 | FO155: 0 | FP155: 0 | FQ155: 0 | FR155: 0 | FS155: 0 | FT155: 0 | FU155: 0 | FV155: 0 | FW155: 0 | FX155: 0 | FY155: 0 | FZ155: 0 | GA155: 0 | GB155: 0 | GC155: 0 | GD155: 0 | GE155: 0 | GF155: 0 | GG155: 0 | GH155: 0
CV156: 0 | CW156: 0 | CX156: 0 | CY156: 0 | CZ156: 0 | DA156: 0 | DB156: 0 | DC156: 0 | DD156: 0 | DE156: 0 | DF156: 0 | DG156: 0 | DH156: 0 | DI156: 0 | DJ156: 0 | DK156: 0 | DL156: 0 | DM156: 0 | DN156: 0 | DO156: 0 | DP156: 0 | DQ156: 0 | DR156: 0 | DS156: 0 | DT156: 0 | DU156: 0 | DV156: 0 | DW156: 0 | DX156: 0 | DY156: 0 | DZ156: 0 | EA156: 0 | EB156: 0 | EC156: 0 | ED156: 0 | EE156: 0 | EF156: 0 | EG156: 0 | EH156: 0 | EI156: 0 | EJ156: 0 | EK156: 0 | EL156: 0 | EM156: 0 | EN156: 0 | EO156: 0 | EP156: 0 | EQ156: 0 | ER156: 0 | ES156: 0 | ET156: 0 | EU156: 0 | EV156: 0 | EW156: 0 | EX156: 0 | EY156: 0 | EZ156: 0 | FA156: 0 | FB156: 0 | FC156: 0 | FD156: 0 | FE156: 0 | FF156: 0 | FG156: 0 | FH156: 0 | FI156: 0 | FJ156: 0 | FK156: 0 | FL156: 0 | FM156: 0 | FN156: 0 | FO156: 0 | FP156: 0 | FQ156: 0 | FR156: 0 | FS156: 0 | FT156: 0 | FU156: 0 | FV156: 0 | FW156: 0 | FX156: 0 | FY156: 0 | FZ156: 0 | GA156: 0 | GB156: 0 | GC156: 0 | GD156: 0 | GE156: 0 | GF156: 0 | GG156: 0 | GH156: 0
CV157: 0 | CW157: 0 | CX157: 0 | CY157: 0 | CZ157: 0 | DA157: 0 | DB157: 0 | DC157: 0 | DD157: 0 | DE157: 0 | DF157: 0 | DG157: 0 | DH157: 0 | DI157: 0 | DJ157: 0 | DK157: 0 | DL157: 0 | DM157: 0 | DN157: 0 | DO157: 0 | DP157: 0 | DQ157: 0 | DR157: 0 | DS157: 0 | DT157: 0 | DU157: 0 | DV157: 0 | DW157: 0 | DX157: 0 | DY157: 0 | DZ157: 0 | EA157: 0 | EB157: 0 | EC157: 0 | ED157: 0 | EE157: 0 | EF157: 0 | EG157: 0 | EH157: 0 | EI157: 0 | EJ157: 0 | EK157: 0 | EL157: 0 | EM157: 0 | EN157: 0 | EO157: 0 | EP157: 0 | EQ157: 0 | ER157: 0 | ES157: 0 | ET157: 0 | EU157: 0 | EV157: 0 | EW157: 0 | EX157: 0 | EY157: 0 | EZ157: 0 | FA157: 0 | FB157: 0 | FC157: 0 | FD157: 0 | FE157: 0 | FF157: 0 | FG157: 0 | FH157: 0 | FI157: 0 | FJ157: 0 | FK157: 0 | FL157: 0 | FM157: 0 | FN157: 0 | FO157: 0 | FP157: 0 | FQ157: 0 | FR157: 0 | FS157: 0 | FT157: 0 | FU157: 0 | FV157: 0 | FW157: 0 | FX157: 0 | FY157: 0 | FZ157: 0 | GA157: 0 | GB157: 0 | GC157: 0 | GD157: 0 | GE157: 0 | GF157: 0 | GG157: 0 | GH157: 0
CV158: 0 | CW158: 0 | CX158: 0 | CY158: 0 | CZ158: 0 | DA158: 0 | DB158: 0 | DC158: 0 | DD158: 0 | DE158: 0 | DF158: 0 | DG158: 0 | DH158: 0 | DI158: 0 | DJ158: 0 | DK158: 0 | DL158: 0 | DM158: 0 | DN158: 0 | DO158: 0 | DP158: 0 | DQ158: 0 | DR158: 0 | DS158: 0 | DT158: 0 | DU158: 0 | DV158: 0 | DW158: 0 | DX158: 0 | DY158: 0 | DZ158: 0 | EA158: 0 | EB158: 0 | EC158: 0 | ED158: 0 | EE158: 0 | EF158: 0 | EG158: 0 | EH158: 0 | EI158: 0 | EJ158: 0 | EK158: 0 | EL158: 0 | EM158: 0 | EN158: 0 | EO158: 0 | EP158: 0 | EQ158: 0 | ER158: 0 | ES158: 0 | ET158: 0 | EU158: 0 | EV158: 0 | EW158: 0 | EX158: 0 | EY158: 0 | EZ158: 0 | FA158: 0 | FB158: 0 | FC158: 0 | FD158: 0 | FE158: 0 | FF158: 0 | FG158: 0 | FH158: 0 | FI158: 0 | FJ158: 0 | FK158: 0 | FL158: 0 | FM158: 0 | FN158: 0 | FO158: 0 | FP158: 0 | FQ158: 0 | FR158: 0 | FS158: 0 | FT158: 0 | FU158: 0 | FV158: 0 | FW158: 0 | FX158: 0 | FY158: 0 | FZ158: 0 | GA158: 0 | GB158: 0 | GC158: 0 | GD158: 0 | GE158: 0 | GF158: 0 | GG158: 0 | GH158: 0
CV159: 0 | CW159: 0 | CX159: 0 | CY159: 0 | CZ159: 0 | DA159: 0 | DB159: 0 | DC159: 0 | DD159: 0 | DE159: 0 | DF159: 0 | DG159: 0 | DH159: 0 | DI159: 0 | DJ159: 0 | DK159: 0 | DL159: 0 | DM159: 0 | DN159: 0 | DO159: 0 | DP159: 0 | DQ159: 0 | DR159: 0 | DS159: 0 | DT159: 0 | DU159: 0 | DV159: 0 | DW159: 0 | DX159: 0 | DY159: 0 | DZ159: 0 | EA159: 0 | EB159: 0 | EC159: 0 | ED159: 0 | EE159: 0 | EF159: 0 | EG159: 0 | EH159: 0 | EI159: 0 | EJ159: 0 | EK159: 0 | EL159: 0 | EM159: 0 | EN159: 0 | EO159: 0 | EP159: 0 | EQ159: 0 | ER159: 0 | ES159: 0 | ET159: 0 | EU159: 0 | EV159: 0 | EW159: 0 | EX159: 0 | EY159: 0 | EZ159: 0 | FA159: 0 | FB159: 0 | FC159: 0 | FD159: 0 | FE159: 0 | FF159: 0 | FG159: 0 | FH159: 0 | FI159: 0 | FJ159: 0 | FK159: 0 | FL159: 0 | FM159: 0 | FN159: 0 | FO159: 0 | FP159: 0 | FQ159: 0 | FR159: 0 | FS159: 0 | FT159: 0 | FU159: 0 | FV159: 0 | FW159: 0 | FX159: 0 | FY159: 0 | FZ159: 0 | GA159: 0 | GB159: 0 | GC159: 0 | GD159: 0 | GE159: 0 | GF159: 0 | GG159: 0 | GH159: 0
CV160: 0 | CW160: 0 | CX160: 0 | CY160: 0 | CZ160: 0 | DA160: 0 | DB160: 0 | DC160: 0 | DD160: 0 | DE160: 0 | DF160: 0 | DG160: 0 | DH160: 0 | DI160: 0 | DJ160: 0 | DK160: 0 | DL160: 0 | DM160: 0 | DN160: 0 | DO160: 0 | DP160: 0 | DQ160: 0 | DR160: 0 | DS160: 0 | DT160: 0 | DU160: 0 | DV160: 0 | DW160: 0 | DX160: 0 | DY160: 0 | DZ160: 0 | EA160: 0 | EB160: 0 | EC160: 0 | ED160: 0 | EE160: 0 | EF160: 0 | EG160: 0 | EH160: 0 | EI160: 0 | EJ160: 0 | EK160: 0 | EL160: 0 | EM160: 0 | EN160: 0 | EO160: 0 | EP160: 0 | EQ160: 0 | ER160: 0 | ES160: 0 | ET160: 0 | EU160: 0 | EV160: 0 | EW160: 0 | EX160: 0 | EY160: 0 | EZ160: 0 | FA160: 0 | FB160: 0 | FC160: 0 | FD160: 0 | FE160: 0 | FF160: 0 | FG160: 0 | FH160: 0 | FI160: 0 | FJ160: 0 | FK160: 0 | FL160: 0 | FM160: 0 | FN160: 0 | FO160: 0 | FP160: 0 | FQ160: 0 | FR160: 0 | FS160: 0 | FT160: 0 | FU160: 0 | FV160: 0 | FW160: 0 | FX160: 0 | FY160: 0 | FZ160: 0 | GA160: 0 | GB160: 0 | GC160: 0 | GD160: 0 | GE160: 0 | GF160: 0 | GG160: 0 | GH160: 0
CV161: 0 | CW161: 0 | CX161: 0 | CY161: 0 | CZ161: 0 | DA161: 0 | DB161: 0 | DC161: 0 | DD161: 0 | DE161: 0 | DF161: 0 | DG161: 0 | DH161: 0 | DI161: 0 | DJ161: 0 | DK161: 0 | DL161: 0 | DM161: 0 | DN161: 0 | DO161: 0 | DP161: 0 | DQ161: 0 | DR161: 0 | DS161: 0 | DT161: 0 | DU161: 0 | DV161: 0 | DW161: 0 | DX161: 0 | DY161: 0 | DZ161: 0 | EA161: 0 | EB161: 0 | EC161: 0 | ED161: 0 | EE161: 0 | EF161: 0 | EG161: 0 | EH161: 0 | EI161: 0 | EJ161: 0 | EK161: 0 | EL161: 0 | EM161: 0 | EN161: 0 | EO161: 0 | EP161: 0 | EQ161: 0 | ER161: 0 | ES161: 0 | ET161: 0 | EU161: 0 | EV161: 0 | EW161: 0 | EX161: 0 | EY161: 0 | EZ161: 0 | FA161: 0 | FB161: 0 | FC161: 0 | FD161: 0 | FE161: 0 | FF161: 0 | FG161: 0 | FH161: 0 | FI161: 0 | FJ161: 0 | FK161: 0 | FL161: 0 | FM161: 0 | FN161: 0 | FO161: 0 | FP161: 0 | FQ161: 0 | FR161: 0 | FS161: 0 | FT161: 0 | FU161: 0 | FV161: 0 | FW161: 0 | FX161: 0 | FY161: 0 | FZ161: 0 | GA161: 0 | GB161: 0 | GC161: 0 | GD161: 0 | GE161: 0 | GF161: 0 | GG161: 0 | GH161: 0
CV162: 0 | CW162: 0 | CX162: 0 | CY162: 0 | CZ162: 0 | DA162: 0 | DB162: 0 | DC162: 0 | DD162: 0 | DE162: 0 | DF162: 0 | DG162: 0 | DH162: 0 | DI162: 0 | DJ162: 0 | DK162: 0 | DL162: 0 | DM162: 0 | DN162: 0 | DO162: 0 | DP162: 0 | DQ162: 0 | DR162: 0 | DS162: 0 | DT162: 0 | DU162: 0 | DV162: 0 | DW162: 0 | DX162: 0 | DY162: 0 | DZ162: 0 | EA162: 0 | EB162: 0 | EC162: 0 | ED162: 0 | EE162: 0 | EF162: 0 | EG162: 0 | EH162: 0 | EI162: 0 | EJ162: 0 | EK162: 0 | EL162: 0 | EM162: 0 | EN162: 0 | EO162: 0 | EP162: 0 | EQ162: 0 | ER162: 0 | ES162: 0 | ET162: 0 | EU162: 0 | EV162: 0 | EW162: 0 | EX162: 0 | EY162: 0 | EZ162: 0 | FA162: 0 | FB162: 0 | FC162: 0 | FD162: 0 | FE162: 0 | FF162: 0 | FG162: 0 | FH162: 0 | FI162: 0 | FJ162: 0 | FK162: 0 | FL162: 0 | FM162: 0 | FN162: 0 | FO162: 0 | FP162: 0 | FQ162: 0 | FR162: 0 | FS162: 0 | FT162: 0 | FU162: 0 | FV162: 0 | FW162: 0 | FX162: 0 | FY162: 0 | FZ162: 0 | GA162: 0 | GB162: 0 | GC162: 0 | GD162: 0 | GE162: 0 | GF162: 0 | GG162: 0 | GH162: 0
CV163: 0 | CW163: 0 | CX163: 0 | CY163: 0 | CZ163: 0 | DA163: 0 | DB163: 0 | DC163: 0 | DD163: 0 | DE163: 0 | DF163: 0 | DG163: 0 | DH163: 0 | DI163: 0 | DJ163: 0 | DK163: 0 | DL163: 0 | DM163: 0 | DN163: 0 | DO163: 0 | DP163: 0 | DQ163: 0 | DR163: 0 | DS163: 0 | DT163: 0 | DU163: 0 | DV163: 0 | DW163: 0 | DX163: 0 | DY163: 0 | DZ163: 0 | EA163: 0 | EB163: 0 | EC163: 0 | ED163: 0 | EE163: 0 | EF163: 0 | EG163: 0 | EH163: 0 | EI163: 0 | EJ163: 0 | EK163: 0 | EL163: 0 | EM163: 0 | EN163: 0 | EO163: 0 | EP163: 0 | EQ163: 0 | ER163: 0 | ES163: 0 | ET163: 0 | EU163: 0 | EV163: 0 | EW163: 0 | EX163: 0 | EY163: 0 | EZ163: 0 | FA163: 0 | FB163: 0 | FC163: 0 | FD163: 0 | FE163: 0 | FF163: 0 | FG163: 0 | FH163: 0 | FI163: 0 | FJ163: 0 | FK163: 0 | FL163: 0 | FM163: 0 | FN163: 0 | FO163: 0 | FP163: 0 | FQ163: 0 | FR163: 0 | FS163: 0 | FT163: 0 | FU163: 0 | FV163: 0 | FW163: 0 | FX163: 0 | FY163: 0 | FZ163: 0 | GA163: 0 | GB163: 0 | GC163: 0 | GD163: 0 | GE163: 0 | GF163: 0 | GG163: 0 | GH163: 0
CV164: 0 | CW164: 0 | CX164: 0 | CY164: 0 | CZ164: 0 | DA164: 0 | DB164: 0 | DC164: 0 | DD164: 0 | DE164: 0 | DF164: 0 | DG164: 0 | DH164: 0 | DI164: 0 | DJ164: 0 | DK164: 0 | DL164: 0 | DM164: 0 | DN164: 0 | DO164: 0 | DP164: 0 | DQ164: 0 | DR164: 0 | DS164: 0 | DT164: 0 | DU164: 0 | DV164: 0 | DW164: 0 | DX164: 0 | DY164: 0 | DZ164: 0 | EA164: 0 | EB164: 0 | EC164: 0 | ED164: 0 | EE164: 0 | EF164: 0 | EG164: 0 | EH164: 0 | EI164: 0 | EJ164: 0 | EK164: 0 | EL164: 0 | EM164: 0 | EN164: 0 | EO164: 0 | EP164: 0 | EQ164: 0 | ER164: 0 | ES164: 0 | ET164: 0 | EU164: 0 | EV164: 0 | EW164: 0 | EX164: 0 | EY164: 0 | EZ164: 0 | FA164: 0 | FB164: 0 | FC164: 0 | FD164: 0 | FE164: 0 | FF164: 0 | FG164: 0 | FH164: 0 | FI164: 0 | FJ164: 0 | FK164: 0 | FL164: 0 | FM164: 0 | FN164: 0 | FO164: 0 | FP164: 0 | FQ164: 0 | FR164: 0 | FS164: 0 | FT164: 0 | FU164: 0 | FV164: 0 | FW164: 0 | FX164: 0 | FY164: 0 | FZ164: 0 | GA164: 0 | GB164: 0 | GC164: 0 | GD164: 0 | GE164: 0 | GF164: 0 | GG164: 0 | GH164: 0
CV165: 0 | CW165: 0 | CX165: 0 | CY165: 0 | CZ165: 0 | DA165: 0 | DB165: 0 | DC165: 0 | DD165: 0 | DE165: 0 | DF165: 0 | DG165: 0 | DH165: 0 | DI165: 0 | DJ165: 0 | DK165: 0 | DL165: 0 | DM165: 0 | DN165: 0 | DO165: 0 | DP165: 0 | DQ165: 0 | DR165: 0 | DS165: 0 | DT165: 0 | DU165: 0 | DV165: 0 | DW165: 0 | DX165: 0 | DY165: 0 | DZ165: 0 | EA165: 0 | EB165: 0 | EC165: 0 | ED165: 0 | EE165: 0 | EF165: 0 | EG165: 0 | EH165: 0 | EI165: 0 | EJ165: 0 | EK165: 0 | EL165: 0 | EM165: 0 | EN165: 0 | EO165: 0 | EP165: 0 | EQ165: 0 | ER165: 0 | ES165: 0 | ET165: 0 | EU165: 0 | EV165: 0 | EW165: 0 | EX165: 0 | EY165: 0 | EZ165: 0 | FA165: 0 | FB165: 0 | FC165: 0 | FD165: 0 | FE165: 0 | FF165: 0 | FG165: 0 | FH165: 0 | FI165: 0 | FJ165: 0 | FK165: 0 | FL165: 0 | FM165: 0 | FN165: 0 | FO165: 0 | FP165: 0 | FQ165: 0 | FR165: 0 | FS165: 0 | FT165: 0 | FU165: 0 | FV165: 0 | FW165: 0 | FX165: 0 | FY165: 0 | FZ165: 0 | GA165: 0 | GB165: 0 | GC165: 0 | GD165: 0 | GE165: 0 | GF165: 0 | GG165: 0 | GH165: 0
CV166: 0 | CW166: 0 | CX166: 0 | CY166: 0 | CZ166: 0 | DA166: 0 | DB166: 0 | DC166: 0 | DD166: 0 | DE166: 0 | DF166: 0 | DG166: 0 | DH166: 0 | DI166: 0 | DJ166: 0 | DK166: 0 | DL166: 0 | DM166: 0 | DN166: 0 | DO166: 0 | DP166: 0 | DQ166: 0 | DR166: 0 | DS166: 0 | DT166: 0 | DU166: 0 | DV166: 0 | DW166: 0 | DX166: 0 | DY166: 0 | DZ166: 0 | EA166: 0 | EB166: 0 | EC166: 0 | ED166: 0 | EE166: 0 | EF166: 0 | EG166: 0 | EH166: 0 | EI166: 0 | EJ166: 0 | EK166: 0 | EL166: 0 | EM166: 0 | EN166: 0 | EO166: 0 | EP166: 0 | EQ166: 0 | ER166: 0 | ES166: 0 | ET166: 0 | EU166: 0 | EV166: 0 | EW166: 0 | EX166: 0 | EY166: 0 | EZ166: 0 | FA166: 0 | FB166: 0 | FC166: 0 | FD166: 0 | FE166: 0 | FF166: 0 | FG166: 0 | FH166: 0 | FI166: 0 | FJ166: 0 | FK166: 0 | FL166: 0 | FM166: 0 | FN166: 0 | FO166: 0 | FP166: 0 | FQ166: 0 | FR166: 0 | FS166: 0 | FT166: 0 | FU166: 0 | FV166: 0 | FW166: 0 | FX166: 0 | FY166: 0 | FZ166: 0 | GA166: 0 | GB166: 0 | GC166: 0 | GD166: 0 | GE166: 0 | GF166: 0 | GG166: 0 | GH166: 0
CV167: 0 | CW167: 0 | CX167: 0 | CY167: 0 | CZ167: 0 | DA167: 0 | DB167: 0 | DC167: 0 | DD167: 0 | DE167: 0 | DF167: 0 | DG167: 0 | DH167: 0 | DI167: 0 | DJ167: 0 | DK167: 0 | DL167: 0 | DM167: 0 | DN167: 0 | DO167: 0 | DP167: 0 | DQ167: 0 | DR167: 0 | DS167: 0 | DT167: 0 | DU167: 0 | DV167: 0 | DW167: 0 | DX167: 0 | DY167: 0 | DZ167: 0 | EA167: 0 | EB167: 0 | EC167: 0 | ED167: 0 | EE167: 0 | EF167: 0 | EG167: 0 | EH167: 0 | EI167: 0 | EJ167: 0 | EK167: 0 | EL167: 0 | EM167: 0 | EN167: 0 | EO167: 0 | EP167: 0 | EQ167: 0 | ER167: 0 | ES167: 0 | ET167: 0 | EU167: 0 | EV167: 0 | EW167: 0 | EX167: 0 | EY167: 0 | EZ167: 0 | FA167: 0 | FB167: 0 | FC167: 0 | FD167: 0 | FE167: 0 | FF167: 0 | FG167: 0 | FH167: 0 | FI167: 0 | FJ167: 0 | FK167: 0 | FL167: 0 | FM167: 0 | FN167: 0 | FO167: 0 | FP167: 0 | FQ167: 0 | FR167: 0 | FS167: 0 | FT167: 0 | FU167: 0 | FV167: 0 | FW167: 0 | FX167: 0 | FY167: 0 | FZ167: 0 | GA167: 0 | GB167: 0 | GC167: 0 | GD167: 0 | GE167: 0 | GF167: 0 | GG167: 0 | GH167: 0
CV168: 0 | CW168: 0 | CX168: 0 | CY168: 0 | CZ168: 0 | DA168: 0 | DB168: 0 | DC168: 0 | DD168: 0 | DE168: 0 | DF168: 0 | DG168: 0 | DH168: 0 | DI168: 0 | DJ168: 0 | DK168: 0 | DL168: 0 | DM168: 0 | DN168: 0 | DO168: 0 | DP168: 0 | DQ168: 0 | DR168: 0 | DS168: 0 | DT168: 0 | DU168: 0 | DV168: 0 | DW168: 0 | DX168: 0 | DY168: 0 | DZ168: 0 | EA168: 0 | EB168: 0 | EC168: 0 | ED168: 0 | EE168: 0 | EF168: 0 | EG168: 0 | EH168: 0 | EI168: 0 | EJ168: 0 | EK168: 0 | EL168: 0 | EM168: 0 | EN168: 0 | EO168: 0 | EP168: 0 | EQ168: 0 | ER168: 0 | ES168: 0 | ET168: 0 | EU168: 0 | EV168: 0 | EW168: 0 | EX168: 0 | EY168: 0 | EZ168: 0 | FA168: 0 | FB168: 0 | FC168: 0 | FD168: 0 | FE168: 0 | FF168: 0 | FG168: 0 | FH168: 0 | FI168: 0 | FJ168: 0 | FK168: 0 | FL168: 0 | FM168: 0 | FN168: 0 | FO168: 0 | FP168: 0 | FQ168: 0 | FR168: 0 | FS168: 0 | FT168: 0 | FU168: 0 | FV168: 0 | FW168: 0 | FX168: 0 | FY168: 0 | FZ168: 0 | GA168: 0 | GB168: 0 | GC168: 0 | GD168: 0 | GE168: 0 | GF168: 0 | GG168: 0 | GH168: 0
CV169: 0 | CW169: 0 | CX169: 0 | CY169: 0 | CZ169: 0 | DA169: 0 | DB169: 0 | DC169: 0 | DD169: 0 | DE169: 0 | DF169: 0 | DG169: 0 | DH169: 0 | DI169: 0 | DJ169: 0 | DK169: 0 | DL169: 0 | DM169: 0 | DN169: 0 | DO169: 0 | DP169: 0 | DQ169: 0 | DR169: 0 | DS169: 0 | DT169: 0 | DU169: 0 | DV169: 0 | DW169: 0 | DX169: 0 | DY169: 0 | DZ169: 0 | EA169: 0 | EB169: 0 | EC169: 0 | ED169: 0 | EE169: 0 | EF169: 0 | EG169: 0 | EH169: 0 | EI169: 0 | EJ169: 0 | EK169: 0 | EL169: 0 | EM169: 0 | EN169: 0 | EO169: 0 | EP169: 0 | EQ169: 0 | ER169: 0 | ES169: 0 | ET169: 0 | EU169: 0 | EV169: 0 | EW169: 0 | EX169: 0 | EY169: 0 | EZ169: 0 | FA169: 0 | FB169: 0 | FC169: 0 | FD169: 0 | FE169: 0 | FF169: 0 | FG169: 0 | FH169: 0 | FI169: 0 | FJ169: 0 | FK169: 0 | FL169: 0 | FM169: 0 | FN169: 0 | FO169: 0 | FP169: 0 | FQ169: 0 | FR169: 0 | FS169: 0 | FT169: 0 | FU169: 0 | FV169: 0 | FW169: 0 | FX169: 0 | FY169: 0 | FZ169: 0 | GA169: 0 | GB169: 0 | GC169: 0 | GD169: 0 | GE169: 0 | GF169: 0 | GG169: 0 | GH169: 0
CV170: 0 | CW170: 0 | CX170: 0 | CY170: 0 | CZ170: 0 | DA170: 0 | DB170: 0 | DC170: 0 | DD170: 0 | DE170: 0 | DF170: 0 | DG170: 0 | DH170: 0 | DI170: 0 | DJ170: 0 | DK170: 0 | DL170: 0 | DM170: 0 | DN170: 0 | DO170: 0 | DP170: 0 | DQ170: 0 | DR170: 0 | DS170: 0 | DT170: 0 | DU170: 0 | DV170: 0 | DW170: 0 | DX170: 0 | DY170: 0 | DZ170: 0 | EA170: 0 | EB170: 0 | EC170: 0 | ED170: 0 | EE170: 0 | EF170: 0 | EG170: 0 | EH170: 0 | EI170: 0 | EJ170: 0 | EK170: 0 | EL170: 0 | EM170: 0 | EN170: 0 | EO170: 0 | EP170: 0 | EQ170: 0 | ER170: 0 | ES170: 0 | ET170: 0 | EU170: 0 | EV170: 0 | EW170: 0 | EX170: 0 | EY170: 0 | EZ170: 0 | FA170: 0 | FB170: 0 | FC170: 0 | FD170: 0 | FE170: 0 | FF170: 0 | FG170: 0 | FH170: 0 | FI170: 0 | FJ170: 0 | FK170: 0 | FL170: 0 | FM170: 0 | FN170: 0 | FO170: 0 | FP170: 0 | FQ170: 0 | FR170: 0 | FS170: 0 | FT170: 0 | FU170: 0 | FV170: 0 | FW170: 0 | FX170: 0 | FY170: 0 | FZ170: 0 | GA170: 0 | GB170: 0 | GC170: 0 | GD170: 0 | GE170: 0 | GF170: 0 | GG170: 0 | GH170: 0
CV171: 0 | CW171: 0 | CX171: 0 | CY171: 0 | CZ171: 0 | DA171: 0 | DB171: 0 | DC171: 0 | DD171: 0 | DE171: 0 | DF171: 0 | DG171: 0 | DH171: 0 | DI171: 0 | DJ171: 0 | DK171: 0 | DL171: 0 | DM171: 0 | DN171: 0 | DO171: 0 | DP171: 0 | DQ171: 0 | DR171: 0 | DS171: 0 | DT171: 0 | DU171: 0 | DV171: 0 | DW171: 0 | DX171: 0 | DY171: 0 | DZ171: 0 | EA171: 0 | EB171: 0 | EC171: 0 | ED171: 0 | EE171: 0 | EF171: 0 | EG171: 0 | EH171: 0 | EI171: 0 | EJ171: 0 | EK171: 0 | EL171: 0 | EM171: 0 | EN171: 0 | EO171: 0 | EP171: 0 | EQ171: 0 | ER171: 0 | ES171: 0 | ET171: 0 | EU171: 0 | EV171: 0 | EW171: 0 | EX171: 0 | EY171: 0 | EZ171: 0 | FA171: 0 | FB171: 0 | FC171: 0 | FD171: 0 | FE171: 0 | FF171: 0 | FG171: 0 | FH171: 0 | FI171: 0 | FJ171: 0 | FK171: 0 | FL171: 0 | FM171: 0 | FN171: 0 | FO171: 0 | FP171: 0 | FQ171: 0 | FR171: 0 | FS171: 0 | FT171: 0 | FU171: 0 | FV171: 0 | FW171: 0 | FX171: 0 | FY171: 0 | FZ171: 0 | GA171: 0 | GB171: 0 | GC171: 0 | GD171: 0 | GE171: 0 | GF171: 0 | GG171: 0 | GH171: 0
CV172: 0 | CW172: 0 | CX172: 0 | CY172: 0 | CZ172: 0 | DA172: 0 | DB172: 0 | DC172: 0 | DD172: 0 | DE172: 0 | DF172: 0 | DG172: 0 | DH172: 0 | DI172: 0 | DJ172: 0 | DK172: 0 | DL172: 0 | DM172: 0 | DN172: 0 | DO172: 0 | DP172: 0 | DQ172: 0 | DR172: 0 | DS172: 0 | DT172: 0 | DU172: 0 | DV172: 0 | DW172: 0 | DX172: 0 | DY172: 0 | DZ172: 0 | EA172: 0 | EB172: 0 | EC172: 0 | ED172: 0 | EE172: 0 | EF172: 0 | EG172: 0 | EH172: 0 | EI172: 0 | EJ172: 0 | EK172: 0 | EL172: 0 | EM172: 0 | EN172: 0 | EO172: 0 | EP172: 0 | EQ172: 0 | ER172: 0 | ES172: 0 | ET172: 0 | EU172: 0 | EV172: 0 | EW172: 0 | EX172: 0 | EY172: 0 | EZ172: 0 | FA172: 0 | FB172: 0 | FC172: 0 | FD172: 0 | FE172: 0 | FF172: 0 | FG172: 0 | FH172: 0 | FI172: 0 | FJ172: 0 | FK172: 0 | FL172: 0 | FM172: 0 | FN172: 0 | FO172: 0 | FP172: 0 | FQ172: 0 | FR172: 0 | FS172: 0 | FT172: 0 | FU172: 0 | FV172: 0 | FW172: 0 | FX172: 0 | FY172: 0 | FZ172: 0 | GA172: 0 | GB172: 0 | GC172: 0 | GD172: 0 | GE172: 0 | GF172: 0 | GG172: 0 | GH172: 0
CV173: 0 | CW173: 0 | CX173: 0 | CY173: 0 | CZ173: 0 | DA173: 0 | DB173: 0 | DC173: 0 | DD173: 0 | DE173: 0 | DF173: 0 | DG173: 0 | DH173: 0 | DI173: 0 | DJ173: 0 | DK173: 0 | DL173: 0 | DM173: 0 | DN173: 0 | DO173: 0 | DP173: 0 | DQ173: 0 | DR173: 0 | DS173: 0 | DT173: 0 | DU173: 0 | DV173: 0 | DW173: 0 | DX173: 0 | DY173: 0 | DZ173: 0 | EA173: 0 | EB173: 0 | EC173: 0 | ED173: 0 | EE173: 0 | EF173: 0 | EG173: 0 | EH173: 0 | EI173: 0 | EJ173: 0 | EK173: 0 | EL173: 0 | EM173: 0 | EN173: 0 | EO173: 0 | EP173: 0 | EQ173: 0 | ER173: 0 | ES173: 0 | ET173: 0 | EU173: 0 | EV173: 0 | EW173: 0 | EX173: 0 | EY173: 0 | EZ173: 0 | FA173: 0 | FB173: 0 | FC173: 0 | FD173: 0 | FE173: 0 | FF173: 0 | FG173: 0 | FH173: 0 | FI173: 0 | FJ173: 0 | FK173: 0 | FL173: 0 | FM173: 0 | FN173: 0 | FO173: 0 | FP173: 0 | FQ173: 0 | FR173: 0 | FS173: 0 | FT173: 0 | FU173: 0 | FV173: 0 | FW173: 0 | FX173: 0 | FY173: 0 | FZ173: 0 | GA173: 0 | GB173: 0 | GC173: 0 | GD173: 0 | GE173: 0 | GF173: 0 | GG173: 0 | GH173: 0
CV174: 0 | CW174: 0 | CX174: 0 | CY174: 0 | CZ174: 0 | DA174: 0 | DB174: 0 | DC174: 0 | DD174: 0 | DE174: 0 | DF174: 0 | DG174: 0 | DH174: 0 | DI174: 0 | DJ174: 0 | DK174: 0 | DL174: 0 | DM174: 0 | DN174: 0 | DO174: 0 | DP174: 0 | DQ174: 0 | DR174: 0 | DS174: 0 | DT174: 0 | DU174: 0 | DV174: 0 | DW174: 0 | DX174: 0 | DY174: 0 | DZ174: 0 | EA174: 0 | EB174: 0 | EC174: 0 | ED174: 0 | EE174: 0 | EF174: 0 | EG174: 0 | EH174: 0 | EI174: 0 | EJ174: 0 | EK174: 0 | EL174: 0 | EM174: 0 | EN174: 0 | EO174: 0 | EP174: 0 | EQ174: 0 | ER174: 0 | ES174: 0 | ET174: 0 | EU174: 0 | EV174: 0 | EW174: 0 | EX174: 0 | EY174: 0 | EZ174: 0 | FA174: 0 | FB174: 0 | FC174: 0 | FD174: 0 | FE174: 0 | FF174: 0 | FG174: 0 | FH174: 0 | FI174: 0 | FJ174: 0 | FK174: 0 | FL174: 0 | FM174: 0 | FN174: 0 | FO174: 0 | FP174: 0 | FQ174: 0 | FR174: 0 | FS174: 0 | FT174: 0 | FU174: 0 | FV174: 0 | FW174: 0 | FX174: 0 | FY174: 0 | FZ174: 0 | GA174: 0 | GB174: 0 | GC174: 0 | GD174: 0 | GE174: 0 | GF174: 0 | GG174: 0 | GH174: 0
CV175: 0 | CW175: 0 | CX175: 0 | CY175: 0 | CZ175: 0 | DA175: 0 | DB175: 0 | DC175: 0 | DD175: 0 | DE175: 0 | DF175: 0 | DG175: 0 | DH175: 0 | DI175: 0 | DJ175: 0 | DK175: 0 | DL175: 0 | DM175: 0 | DN175: 0 | DO175: 0 | DP175: 0 | DQ175: 0 | DR175: 0 | DS175: 0 | DT175: 0 | DU175: 0 | DV175: 0 | DW175: 0 | DX175: 0 | DY175: 0 | DZ175: 0 | EA175: 0 | EB175: 0 | EC175: 0 | ED175: 0 | EE175: 0 | EF175: 0 | EG175: 0 | EH175: 0 | EI175: 0 | EJ175: 0 | EK175: 0 | EL175: 0 | EM175: 0 | EN175: 0 | EO175: 0 | EP175: 0 | EQ175: 0 | ER175: 0 | ES175: 0 | ET175: 0 | EU175: 0 | EV175: 0 | EW175: 0 | EX175: 0 | EY175: 0 | EZ175: 0 | FA175: 0 | FB175: 0 | FC175: 0 | FD175: 0 | FE175: 0 | FF175: 0 | FG175: 0 | FH175: 0 | FI175: 0 | FJ175: 0 | FK175: 0 | FL175: 0 | FM175: 0 | FN175: 0 | FO175: 0 | FP175: 0 | FQ175: 0 | FR175: 0 | FS175: 0 | FT175: 0 | FU175: 0 | FV175: 0 | FW175: 0 | FX175: 0 | FY175: 0 | FZ175: 0 | GA175: 0 | GB175: 0 | GC175: 0 | GD175: 0 | GE175: 0 | GF175: 0 | GG175: 0 | GH175: 0
CV176: 0 | CW176: 0 | CX176: 0 | CY176: 0 | CZ176: 0 | DA176: 0 | DB176: 0 | DC176: 0 | DD176: 0 | DE176: 0 | DF176: 0 | DG176: 0 | DH176: 0 | DI176: 0 | DJ176: 0 | DK176: 0 | DL176: 0 | DM176: 0 | DN176: 0 | DO176: 0 | DP176: 0 | DQ176: 0 | DR176: 0 | DS176: 0 | DT176: 0 | DU176: 0 | DV176: 0 | DW176: 0 | DX176: 0 | DY176: 0 | DZ176: 0 | EA176: 0 | EB176: 0 | EC176: 0 | ED176: 0 | EE176: 0 | EF176: 0 | EG176: 0 | EH176: 0 | EI176: 0 | EJ176: 0 | EK176: 0 | EL176: 0 | EM176: 0 | EN176: 0 | EO176: 0 | EP176: 0 | EQ176: 0 | ER176: 0 | ES176: 0 | ET176: 0 | EU176: 0 | EV176: 0 | EW176: 0 | EX176: 0 | EY176: 0 | EZ176: 0 | FA176: 0 | FB176: 0 | FC176: 0 | FD176: 0 | FE176: 0 | FF176: 0 | FG176: 0 | FH176: 0 | FI176: 0 | FJ176: 0 | FK176: 0 | FL176: 0 | FM176: 0 | FN176: 0 | FO176: 0 | FP176: 0 | FQ176: 0 | FR176: 0 | FS176: 0 | FT176: 0 | FU176: 0 | FV176: 0 | FW176: 0 | FX176: 0 | FY176: 0 | FZ176: 0 | GA176: 0 | GB176: 0 | GC176: 0 | GD176: 0 | GE176: 0 | GF176: 0 | GG176: 0 | GH176: 0
CV177: 0 | CW177: 0 | CX177: 0 | CY177: 0 | CZ177: 0 | DA177: 0 | DB177: 0 | DC177: 0 | DD177: 0 | DE177: 0 | DF177: 0 | DG177: 0 | DH177: 0 | DI177: 0 | DJ177: 0 | DK177: 0 | DL177: 0 | DM177: 0 | DN177: 0 | DO177: 0 | DP177: 0 | DQ177: 0 | DR177: 0 | DS177: 0 | DT177: 0 | DU177: 0 | DV177: 0 | DW177: 0 | DX177: 0 | DY177: 0 | DZ177: 0 | EA177: 0 | EB177: 0 | EC177: 0 | ED177: 0 | EE177: 0 | EF177: 0 | EG177: 0 | EH177: 0 | EI177: 0 | EJ177: 0 | EK177: 0 | EL177: 0 | EM177: 0 | EN177: 0 | EO177: 0 | EP177: 0 | EQ177: 0 | ER177: 0 | ES177: 0 | ET177: 0 | EU177: 0 | EV177: 0 | EW177: 0 | EX177: 0 | EY177: 0 | EZ177: 0 | FA177: 0 | FB177: 0 | FC177: 0 | FD177: 0 | FE177: 0 | FF177: 0 | FG177: 0 | FH177: 0 | FI177: 0 | FJ177: 0 | FK177: 0 | FL177: 0 | FM177: 0 | FN177: 0 | FO177: 0 | FP177: 0 | FQ177: 0 | FR177: 0 | FS177: 0 | FT177: 0 | FU177: 0 | FV177: 0 | FW177: 0 | FX177: 0 | FY177: 0 | FZ177: 0 | GA177: 0 | GB177: 0 | GC177: 0 | GD177: 0 | GE177: 0 | GF177: 0 | GG177: 0 | GH177: 0
CV178: 0 | CW178: 0 | CX178: 0 | CY178: 0 | CZ178: 0 | DA178: 0 | DB178: 0 | DC178: 0 | DD178: 0 | DE178: 0 | DF178: 0 | DG178: 0 | DH178: 0 | DI178: 0 | DJ178: 0 | DK178: 0 | DL178: 0 | DM178: 0 | DN178: 0 | DO178: 0 | DP178: 0 | DQ178: 0 | DR178: 0 | DS178: 0 | DT178: 0 | DU178: 0 | DV178: 0 | DW178: 0 | DX178: 0 | DY178: 0 | DZ178: 0 | EA178: 0 | EB178: 0 | EC178: 0 | ED178: 0 | EE178: 0 | EF178: 0 | EG178: 0 | EH178: 0 | EI178: 0 | EJ178: 0 | EK178: 0 | EL178: 0 | EM178: 0 | EN178: 0 | EO178: 0 | EP178: 0 | EQ178: 0 | ER178: 0 | ES178: 0 | ET178: 0 | EU178: 0 | EV178: 0 | EW178: 0 | EX178: 0 | EY178: 0 | EZ178: 0 | FA178: 0 | FB178: 0 | FC178: 0 | FD178: 0 | FE178: 0 | FF178: 0 | FG178: 0 | FH178: 0 | FI178: 0 | FJ178: 0 | FK178: 0 | FL178: 0 | FM178: 0 | FN178: 0 | FO178: 0 | FP178: 0 | FQ178: 0 | FR178: 0 | FS178: 0 | FT178: 0 | FU178: 0 | FV178: 0 | FW178: 0 | FX178: 0 | FY178: 0 | FZ178: 0 | GA178: 0 | GB178: 0 | GC178: 0 | GD178: 0 | GE178: 0 | GF178: 0 | GG178: 0 | GH178: 0
CV179: 0 | CW179: 0 | CX179: 0 | CY179: 0 | CZ179: 0 | DA179: 0 | DB179: 0 | DC179: 0 | DD179: 0 | DE179: 0 | DF179: 0 | DG179: 0 | DH179: 0 | DI179: 0 | DJ179: 0 | DK179: 0 | DL179: 0 | DM179: 0 | DN179: 0 | DO179: 0 | DP179: 0 | DQ179: 0 | DR179: 0 | DS179: 0 | DT179: 0 | DU179: 0 | DV179: 0 | DW179: 0 | DX179: 0 | DY179: 0 | DZ179: 0 | EA179: 0 | EB179: 0 | EC179: 0 | ED179: 0 | EE179: 0 | EF179: 0 | EG179: 0 | EH179: 0 | EI179: 0 | EJ179: 0 | EK179: 0 | EL179: 0 | EM179: 0 | EN179: 0 | EO179: 0 | EP179: 0 | EQ179: 0 | ER179: 0 | ES179: 0 | ET179: 0 | EU179: 0 | EV179: 0 | EW179: 0 | EX179: 0 | EY179: 0 | EZ179: 0 | FA179: 0 | FB179: 0 | FC179: 0 | FD179: 0 | FE179: 0 | FF179: 0 | FG179: 0 | FH179: 0 | FI179: 0 | FJ179: 0 | FK179: 0 | FL179: 0 | FM179: 0 | FN179: 0 | FO179: 0 | FP179: 0 | FQ179: 0 | FR179: 0 | FS179: 0 | FT179: 0 | FU179: 0 | FV179: 0 | FW179: 0 | FX179: 0 | FY179: 0 | FZ179: 0 | GA179: 0 | GB179: 0 | GC179: 0 | GD179: 0 | GE179: 0 | GF179: 0 | GG179: 0 | GH179: 0
CV180: 0 | CW180: 0 | CX180: 0 | CY180: 0 | CZ180: 0 | DA180: 0 | DB180: 0 | DC180: 0 | DD180: 0 | DE180: 0 | DF180: 0 | DG180: 0 | DH180: 0 | DI180: 0 | DJ180: 0 | DK180: 0 | DL180: 0 | DM180: 0 | DN180: 0 | DO180: 0 | DP180: 0 | DQ180: 0 | DR180: 0 | DS180: 0 | DT180: 0 | DU180: 0 | DV180: 0 | DW180: 0 | DX180: 0 | DY180: 0 | DZ180: 0 | EA180: 0 | EB180: 0 | EC180: 0 | ED180: 0 | EE180: 0 | EF180: 0 | EG180: 0 | EH180: 0 | EI180: 0 | EJ180: 0 | EK180: 0 | EL180: 0 | EM180: 0 | EN180: 0 | EO180: 0 | EP180: 0 | EQ180: 0 | ER180: 0 | ES180: 0 | ET180: 0 | EU180: 0 | EV180: 0 | EW180: 0 | EX180: 0 | EY180: 0 | EZ180: 0 | FA180: 0 | FB180: 0 | FC180: 0 | FD180: 0 | FE180: 0 | FF180: 0 | FG180: 0 | FH180: 0 | FI180: 0 | FJ180: 0 | FK180: 0 | FL180: 0 | FM180: 0 | FN180: 0 | FO180: 0 | FP180: 0 | FQ180: 0 | FR180: 0 | FS180: 0 | FT180: 0 | FU180: 0 | FV180: 0 | FW180: 0 | FX180: 0 | FY180: 0 | FZ180: 0 | GA180: 0 | GB180: 0 | GC180: 0 | GD180: 0 | GE180: 0 | GF180: 0 | GG180: 0 | GH180: 0
CV181: 0 | CW181: 0 | CX181: 0 | CY181: 0 | CZ181: 0 | DA181: 0 | DB181: 0 | DC181: 0 | DD181: 0 | DE181: 0 | DF181: 0 | DG181: 0 | DH181: 0 | DI181: 0 | DJ181: 0 | DK181: 0 | DL181: 0 | DM181: 0 | DN181: 0 | DO181: 0 | DP181: 0 | DQ181: 0 | DR181: 0 | DS181: 0 | DT181: 0 | DU181: 0 | DV181: 0 | DW181: 0 | DX181: 0 | DY181: 0 | DZ181: 0 | EA181: 0 | EB181: 0 | EC181: 0 | ED181: 0 | EE181: 0 | EF181: 0 | EG181: 0 | EH181: 0 | EI181: 0 | EJ181: 0 | EK181: 0 | EL181: 0 | EM181: 0 | EN181: 0 | EO181: 0 | EP181: 0 | EQ181: 0 | ER181: 0 | ES181: 0 | ET181: 0 | EU181: 0 | EV181: 0 | EW181: 0 | EX181: 0 | EY181: 0 | EZ181: 0 | FA181: 0 | FB181: 0 | FC181: 0 | FD181: 0 | FE181: 0 | FF181: 0 | FG181: 0 | FH181: 0 | FI181: 0 | FJ181: 0 | FK181: 0 | FL181: 0 | FM181: 0 | FN181: 0 | FO181: 0 | FP181: 0 | FQ181: 0 | FR181: 0 | FS181: 0 | FT181: 0 | FU181: 0 | FV181: 0 | FW181: 0 | FX181: 0 | FY181: 0 | FZ181: 0 | GA181: 0 | GB181: 0 | GC181: 0 | GD181: 0 | GE181: 0 | GF181: 0 | GG181: 0 | GH181: 0
CV182: 0 | CW182: 0 | CX182: 0 | CY182: 0 | CZ182: 0 | DA182: 0 | DB182: 0 | DC182: 0 | DD182: 0 | DE182: 0 | DF182: 0 | DG182: 0 | DH182: 0 | DI182: 0 | DJ182: 0 | DK182: 0 | DL182: 0 | DM182: 0 | DN182: 0 | DO182: 0 | DP182: 0 | DQ182: 0 | DR182: 0 | DS182: 0 | DT182: 0 | DU182: 0 | DV182: 0 | DW182: 0 | DX182: 0 | DY182: 0 | DZ182: 0 | EA182: 0 | EB182: 0 | EC182: 0 | ED182: 0 | EE182: 0 | EF182: 0 | EG182: 0 | EH182: 0 | EI182: 0 | EJ182: 0 | EK182: 0 | EL182: 0 | EM182: 0 | EN182: 0 | EO182: 0 | EP182: 0 | EQ182: 0 | ER182: 0 | ES182: 0 | ET182: 0 | EU182: 0 | EV182: 0 | EW182: 0 | EX182: 0 | EY182: 0 | EZ182: 0 | FA182: 0 | FB182: 0 | FC182: 0 | FD182: 0 | FE182: 0 | FF182: 0 | FG182: 0 | FH182: 0 | FI182: 0 | FJ182: 0 | FK182: 0 | FL182: 0 | FM182: 0 | FN182: 0 | FO182: 0 | FP182: 0 | FQ182: 0 | FR182: 0 | FS182: 0 | FT182: 0 | FU182: 0 | FV182: 0 | FW182: 0 | FX182: 0 | FY182: 0 | FZ182: 0 | GA182: 0 | GB182: 0 | GC182: 0 | GD182: 0 | GE182: 0 | GF182: 0 | GG182: 0 | GH182: 0
CV183: 0 | CW183: 0 | CX183: 0 | CY183: 0 | CZ183: 0 | DA183: 0 | DB183: 0 | DC183: 0 | DD183: 0 | DE183: 0 | DF183: 0 | DG183: 0 | DH183: 0 | DI183: 0 | DJ183: 0 | DK183: 0 | DL183: 0 | DM183: 0 | DN183: 0 | DO183: 0 | DP183: 0 | DQ183: 0 | DR183: 0 | DS183: 0 | DT183: 0 | DU183: 0 | DV183: 0 | DW183: 0 | DX183: 0 | DY183: 0 | DZ183: 0 | EA183: 0 | EB183: 0 | EC183: 0 | ED183: 0 | EE183: 0 | EF183: 0 | EG183: 0 | EH183: 0 | EI183: 0 | EJ183: 0 | EK183: 0 | EL183: 0 | EM183: 0 | EN183: 0 | EO183: 0 | EP183: 0 | EQ183: 0 | ER183: 0 | ES183: 0 | ET183: 0 | EU183: 0 | EV183: 0 | EW183: 0 | EX183: 0 | EY183: 0 | EZ183: 0 | FA183: 0 | FB183: 0 | FC183: 0 | FD183: 0 | FE183: 0 | FF183: 0 | FG183: 0 | FH183: 0 | FI183: 0 | FJ183: 0 | FK183: 0 | FL183: 0 | FM183: 0 | FN183: 0 | FO183: 0 | FP183: 0 | FQ183: 0 | FR183: 0 | FS183: 0 | FT183: 0 | FU183: 0 | FV183: 0 | FW183: 0 | FX183: 0 | FY183: 0 | FZ183: 0 | GA183: 0 | GB183: 0 | GC183: 0 | GD183: 0 | GE183: 0 | GF183: 0 | GG183: 0 | GH183: 0
CV184: 0 | CW184: 0 | CX184: 0 | CY184: 0 | CZ184: 0 | DA184: 0 | DB184: 0 | DC184: 0 | DD184: 0 | DE184: 0 | DF184: 0 | DG184: 0 | DH184: 0 | DI184: 0 | DJ184: 0 | DK184: 0 | DL184: 0 | DM184: 0 | DN184: 0 | DO184: 0 | DP184: 0 | DQ184: 0 | DR184: 0 | DS184: 0 | DT184: 0 | DU184: 0 | DV184: 0 | DW184: 0 | DX184: 0 | DY184: 0 | DZ184: 0 | EA184: 0 | EB184: 0 | EC184: 0 | ED184: 0 | EE184: 0 | EF184: 0 | EG184: 0 | EH184: 0 | EI184: 0 | EJ184: 0 | EK184: 0 | EL184: 0 | EM184: 0 | EN184: 0 | EO184: 0 | EP184: 0 | EQ184: 0 | ER184: 0 | ES184: 0 | ET184: 0 | EU184: 0 | EV184: 0 | EW184: 0 | EX184: 0 | EY184: 0 | EZ184: 0 | FA184: 0 | FB184: 0 | FC184: 0 | FD184: 0 | FE184: 0 | FF184: 0 | FG184: 0 | FH184: 0 | FI184: 0 | FJ184: 0 | FK184: 0 | FL184: 0 | FM184: 0 | FN184: 0 | FO184: 0 | FP184: 0 | FQ184: 0 | FR184: 0 | FS184: 0 | FT184: 0 | FU184: 0 | FV184: 0 | FW184: 0 | FX184: 0 | FY184: 0 | FZ184: 0 | GA184: 0 | GB184: 0 | GC184: 0 | GD184: 0 | GE184: 0 | GF184: 0 | GG184: 0 | GH184: 0
CV185: 0 | CW185: 0 | CX185: 0 | CY185: 0 | CZ185: 0 | DA185: 0 | DB185: 0 | DC185: 0 | DD185: 0 | DE185: 0 | DF185: 0 | DG185: 0 | DH185: 0 | DI185: 0 | DJ185: 0 | DK185: 0 | DL185: 0 | DM185: 0 | DN185: 0 | DO185: 0 | DP185: 0 | DQ185: 0 | DR185: 0 | DS185: 0 | DT185: 0 | DU185: 0 | DV185: 0 | DW185: 0 | DX185: 0 | DY185: 0 | DZ185: 0 | EA185: 0 | EB185: 0 | EC185: 0 | ED185: 0 | EE185: 0 | EF185: 0 | EG185: 0 | EH185: 0 | EI185: 0 | EJ185: 0 | EK185: 0 | EL185: 0 | EM185: 0 | EN185: 0 | EO185: 0 | EP185: 0 | EQ185: 0 | ER185: 0 | ES185: 0 | ET185: 0 | EU185: 0 | EV185: 0 | EW185: 0 | EX185: 0 | EY185: 0 | EZ185: 0 | FA185: 0 | FB185: 0 | FC185: 0 | FD185: 0 | FE185: 0 | FF185: 0 | FG185: 0 | FH185: 0 | FI185: 0 | FJ185: 0 | FK185: 0 | FL185: 0 | FM185: 0 | FN185: 0 | FO185: 0 | FP185: 0 | FQ185: 0 | FR185: 0 | FS185: 0 | FT185: 0 | FU185: 0 | FV185: 0 | FW185: 0 | FX185: 0 | FY185: 0 | FZ185: 0 | GA185: 0 | GB185: 0 | GC185: 0 | GD185: 0 | GE185: 0 | GF185: 0 | GG185: 0 | GH185: 0
CV186: 0 | CW186: 0 | CX186: 0 | CY186: 0 | CZ186: 0 | DA186: 0 | DB186: 0 | DC186: 0 | DD186: 0 | DE186: 0 | DF186: 0 | DG186: 0 | DH186: 0 | DI186: 0 | DJ186: 0 | DK186: 0 | DL186: 0 | DM186: 0 | DN186: 0 | DO186: 0 | DP186: 0 | DQ186: 0 | DR186: 0 | DS186: 0 | DT186: 0 | DU186: 0 | DV186: 0 | DW186: 0 | DX186: 0 | DY186: 0 | DZ186: 0 | EA186: 0 | EB186: 0 | EC186: 0 | ED186: 0 | EE186: 0 | EF186: 0 | EG186: 0 | EH186: 0 | EI186: 0 | EJ186: 0 | EK186: 0 | EL186: 0 | EM186: 0 | EN186: 0 | EO186: 0 | EP186: 0 | EQ186: 0 | ER186: 0 | ES186: 0 | ET186: 0 | EU186: 0 | EV186: 0 | EW186: 0 | EX186: 0 | EY186: 0 | EZ186: 0 | FA186: 0 | FB186: 0 | FC186: 0 | FD186: 0 | FE186: 0 | FF186: 0 | FG186: 0 | FH186: 0 | FI186: 0 | FJ186: 0 | FK186: 0 | FL186: 0 | FM186: 0 | FN186: 0 | FO186: 0 | FP186: 0 | FQ186: 0 | FR186: 0 | FS186: 0 | FT186: 0 | FU186: 0 | FV186: 0 | FW186: 0 | FX186: 0 | FY186: 0 | FZ186: 0 | GA186: 0 | GB186: 0 | GC186: 0 | GD186: 0 | GE186: 0 | GF186: 0 | GG186: 0 | GH186: 0
CV187: 0 | CW187: 0 | CX187: 0 | CY187: 0 | CZ187: 0 | DA187: 0 | DB187: 0 | DC187: 0 | DD187: 0 | DE187: 0 | DF187: 0 | DG187: 0 | DH187: 0 | DI187: 0 | DJ187: 0 | DK187: 0 | DL187: 0 | DM187: 0 | DN187: 0 | DO187: 0 | DP187: 0 | DQ187: 0 | DR187: 0 | DS187: 0 | DT187: 0 | DU187: 0 | DV187: 0 | DW187: 0 | DX187: 0 | DY187: 0 | DZ187: 0 | EA187: 0 | EB187: 0 | EC187: 0 | ED187: 0 | EE187: 0 | EF187: 0 | EG187: 0 | EH187: 0 | EI187: 0 | EJ187: 0 | EK187: 0 | EL187: 0 | EM187: 0 | EN187: 0 | EO187: 0 | EP187: 0 | EQ187: 0 | ER187: 0 | ES187: 0 | ET187: 0 | EU187: 0 | EV187: 0 | EW187: 0 | EX187: 0 | EY187: 0 | EZ187: 0 | FA187: 0 | FB187: 0 | FC187: 0 | FD187: 0 | FE187: 0 | FF187: 0 | FG187: 0 | FH187: 0 | FI187: 0 | FJ187: 0 | FK187: 0 | FL187: 0 | FM187: 0 | FN187: 0 | FO187: 0 | FP187: 0 | FQ187: 0 | FR187: 0 | FS187: 0 | FT187: 0 | FU187: 0 | FV187: 0 | FW187: 0 | FX187: 0 | FY187: 0 | FZ187: 0 | GA187: 0 | GB187: 0 | GC187: 0 | GD187: 0 | GE187: 0 | GF187: 0 | GG187: 0 | GH187: 0
CV188: 0 | CW188: 0 | CX188: 0 | CY188: 0 | CZ188: 0 | DA188: 0 | DB188: 0 | DC188: 0 | DD188: 0 | DE188: 0 | DF188: 0 | DG188: 0 | DH188: 0 | DI188: 0 | DJ188: 0 | DK188: 0 | DL188: 0 | DM188: 0 | DN188: 0 | DO188: 0 | DP188: 0 | DQ188: 0 | DR188: 0 | DS188: 0 | DT188: 0 | DU188: 0 | DV188: 0 | DW188: 0 | DX188: 0 | DY188: 0 | DZ188: 0 | EA188: 0 | EB188: 0 | EC188: 0 | ED188: 0 | EE188: 0 | EF188: 0 | EG188: 0 | EH188: 0 | EI188: 0 | EJ188: 0 | EK188: 0 | EL188: 0 | EM188: 0 | EN188: 0 | EO188: 0 | EP188: 0 | EQ188: 0 | ER188: 0 | ES188: 0 | ET188: 0 | EU188: 0 | EV188: 0 | EW188: 0 | EX188: 0 | EY188: 0 | EZ188: 0 | FA188: 0 | FB188: 0 | FC188: 0 | FD188: 0 | FE188: 0 | FF188: 0 | FG188: 0 | FH188: 0 | FI188: 0 | FJ188: 0 | FK188: 0 | FL188: 0 | FM188: 0 | FN188: 0 | FO188: 0 | FP188: 0 | FQ188: 0 | FR188: 0 | FS188: 0 | FT188: 0 | FU188: 0 | FV188: 0 | FW188: 0 | FX188: 0 | FY188: 0 | FZ188: 0 | GA188: 0 | GB188: 0 | GC188: 0 | GD188: 0 | GE188: 0 | GF188: 0 | GG188: 0 | GH188: 0
CV189: 0 | CW189: 0 | CX189: 0 | CY189: 0 | CZ189: 0 | DA189: 0 | DB189: 0 | DC189: 0 | DD189: 0 | DE189: 0 | DF189: 0 | DG189: 0 | DH189: 0 | DI189: 0 | DJ189: 0 | DK189: 0 | DL189: 0 | DM189: 0 | DN189: 0 | DO189: 0 | DP189: 0 | DQ189: 0 | DR189: 0 | DS189: 0 | DT189: 0 | DU189: 0 | DV189: 0 | DW189: 0 | DX189: 0 | DY189: 0 | DZ189: 0 | EA189: 0 | EB189: 0 | EC189: 0 | ED189: 0 | EE189: 0 | EF189: 0 | EG189: 0 | EH189: 0 | EI189: 0 | EJ189: 0 | EK189: 0 | EL189: 0 | EM189: 0 | EN189: 0 | EO189: 0 | EP189: 0 | EQ189: 0 | ER189: 0 | ES189: 0 | ET189: 0 | EU189: 0 | EV189: 0 | EW189: 0 | EX189: 0 | EY189: 0 | EZ189: 0 | FA189: 0 | FB189: 0 | FC189: 0 | FD189: 0 | FE189: 0 | FF189: 0 | FG189: 0 | FH189: 0 | FI189: 0 | FJ189: 0 | FK189: 0 | FL189: 0 | FM189: 0 | FN189: 0 | FO189: 0 | FP189: 0 | FQ189: 0 | FR189: 0 | FS189: 0 | FT189: 0 | FU189: 0 | FV189: 0 | FW189: 0 | FX189: 0 | FY189: 0 | FZ189: 0 | GA189: 0 | GB189: 0 | GC189: 0 | GD189: 0 | GE189: 0 | GF189: 0 | GG189: 0 | GH189: 0
CV190: 0 | CW190: 0 | CX190: 0 | CY190: 0 | CZ190: 0 | DA190: 0 | DB190: 0 | DC190: 0 | DD190: 0 | DE190: 0 | DF190: 0 | DG190: 0 | DH190: 0 | DI190: 0 | DJ190: 0 | DK190: 0 | DL190: 0 | DM190: 0 | DN190: 0 | DO190: 0 | DP190: 0 | DQ190: 0 | DR190: 0 | DS190: 0 | DT190: 0 | DU190: 0 | DV190: 0 | DW190: 0 | DX190: 0 | DY190: 0 | DZ190: 0 | EA190: 0 | EB190: 0 | EC190: 0 | ED190: 0 | EE190: 0 | EF190: 0 | EG190: 0 | EH190: 0 | EI190: 0 | EJ190: 0 | EK190: 0 | EL190: 0 | EM190: 0 | EN190: 0 | EO190: 0 | EP190: 0 | EQ190: 0 | ER190: 0 | ES190: 0 | ET190: 0 | EU190: 0 | EV190: 0 | EW190: 0 | EX190: 0 | EY190: 0 | EZ190: 0 | FA190: 0 | FB190: 0 | FC190: 0 | FD190: 0 | FE190: 0 | FF190: 0 | FG190: 0 | FH190: 0 | FI190: 0 | FJ190: 0 | FK190: 0 | FL190: 0 | FM190: 0 | FN190: 0 | FO190: 0 | FP190: 0 | FQ190: 0 | FR190: 0 | FS190: 0 | FT190: 0 | FU190: 0 | FV190: 0 | FW190: 0 | FX190: 0 | FY190: 0 | FZ190: 0 | GA190: 0 | GB190: 0 | GC190: 0 | GD190: 0 | GE190: 0 | GF190: 0 | GG190: 0 | GH190: 0

Sheet Historical scenario - output
D1: Replacement expenditure forecast ($,000) | X1: Replacement quantity forecast (#)
D2: 1 | E2: 2 | F2: 3 | G2: 4 | H2: 5 | I2: 6 | J2: 7 | K2: 8 | L2: 9 | M2: 10 | N2: 11 | O2: 12 | P2: 13 | Q2: 14 | R2: 15 | S2: 16 | T2: 17 | U2: 18 | V2: 19 | W2: 20 | X2: 1 | Y2: 2 | Z2: 3 | AA2: 4 | AB2: 5 | AC2: 6 | AD2: 7 | AE2: 8 | AF2: 9 | AG2: 10 | AH2: 11 | AI2: 12 | AJ2: 13 | AK2: 14 | AL2: 15 | AM2: 16 | AN2: 17 | AO2: 18 | AP2: 19 | AQ2: 20
A5: ID | B5: Asset group | D5: 2020 | E5: 2021 | F5: 2022 | G5: 2023 | H5: 2024 | I5: 2025 | J5: 2026 | K5: 2027 | L5: 2028 | M5: 2029 | N5: 2030 | O5: 2031 | P5: 2032 | Q5: 2033 | R5: 2034 | S5: 2035 | T5: 2036 | U5: 2037 | V5: 2038 | W5: 2039 | X5: 2020 | Y5: 2021 | Z5: 2022 | AA5: 2023 | AB5: 2024 | AC5: 2025 | AD5: 2026 | AE5: 2027 | AF5: 2028 | AG5: 2029 | AH5: 2030 | AI5: 2031 | AJ5: 2032 | AK5: 2033 | AL5: 2034 | AM5: 2035 | AN5: 2036 | AO5: 2037 | AP5: 2038 | AQ5: 2039
A6: 1 | B6: OVERHEAD CONDUCTORS | D6: =IFERROR(IF($A6="","",SUMIFS(D$21:D$175,$A$21:$A$175,$A6)),"") -> 54.4886438 | E6: =IFERROR(IF($A6="","",SUMIFS(E$21:E$175,$A$21:$A$175,$A6)),"") -> 67.19798874 | F6: 82.16799078 | G6: 99.62231814 | H6: 119.7653182 | I6: 142.7711718 | J6: 168.7724762 | K6: 197.8488318 | L6: 230.0161285 | M6: 265.2173183 | N6: 303.3155162 | O6: 344.0902691 | P6: 387.2377737 | Q6: 432.3756973 | R6: 479.0530637 | S6: 526.7654122 | T6: 574.9751321 | U6: =IFERROR(IF($A6="","",SUMIFS(U$21:U$175,$A$21:$A$175,$A6)),"") -> 623.1365392 | V6: 670.7249084 | W6: 717.2683333 | X6: =IFERROR(IF($A6="","",SUMIFS(X$21:X$175,$A$21:$A$175,$A6)),"") -> 0.4938482367 | Y6: =IFERROR(IF($A6="","",SUMIFS(Y$21:Y$175,$A$21:$A$175,$A6)),"") -> 0.6090371486 | Z6: 0.7447151283 | AA6: 0.9029093536 | AB6: 1.085471891 | AC6: 1.293981397 | AD6: 1.529639645 | AE6: 1.793168079 | AF6: 2.084710713 | AG6: 2.403750503 | AH6: 2.749046817 | AI6: 3.118601617 | AJ6: 3.509661434 | AK6: 3.918761063 | AL6: 4.341813162 | AM6: 4.774245638 | AN6: 5.211185952 | AO6: =IFERROR(IF($A6="","",SUMIFS(AO$21:AO$175,$A$21:$A$175,$A6)),"") -> 5.647688393 | AP6: 6.078997204 | AQ6: 6.500835347
A7: 2 | B7: POLES | D7: =IFERROR(IF($A7="","",SUMIFS(D$21:D$175,$A$21:$A$175,$A7)),"") -> 2265.579056 | E7: 2479.99437 | F7: 2707.293872 | G7: 2947.329821 | H7: 3199.836481 | I7: 3464.510399 | J7: 3741.127158 | K7: 4029.689374 | L7: 4330.592437 | M7: 4644.78445 | N7: 4973.887146 | O7: 5320.237868 | P7: 5686.811739 | Q7: 6076.99027 | R7: 6494.158847 | S7: 6941.140529 | T7: 7419.505198 | U7: 7928.827328 | V7: 8465.996444 | W7: 9024.704395 | X7: 258.4998758 | Y7: 275.193393 | Z7: 291.8995961 | AA7: 308.6323444 | AB7: 325.4352063 | AC7: 342.3852337 | AD7: 359.5968382 | AE7: 377.2255258 | AF7: 395.4709132 | AG7: 414.5780116 | AH7: 434.8353311 | AI7: 456.5680682 | AJ7: 480.1246279 | AK7: 505.8551349 | AL7: 534.0814486 | AM7: 565.0595081 | AN7: 598.936483 | AO7: 635.7069703 | AP7: 675.1740517 | AQ7: 716.9220074
A8: 3 | B8: SERVICE LINES | D8: 1138.770447 | E8: 1114.7618 | F8: 1090.652993 | G8: 1069.087128 | H8: 1052.791958 | I8: 1044.484108 | J8: 1046.772575 | K8: 1062.06466 | L8: 1092.47712 | M8: 1139.754988 | N8: 1205.20024 | O8: 1289.612303 | P8: 1393.242328 | Q8: 1515.763081 | R8: 1656.256281 | S8: 1813.219052 | T8: 1984.590814 | U8: 2167.801439 | V8: 2359.840629 | W8: 2557.347474 | X8: 754.0703053 | Y8: 738.1722747 | Z8: 722.2079199 | AA8: 707.927449 | AB8: 697.1371233 | AC8: 691.6358362 | AD8: 693.1512119 | AE8: 703.2773154 | AF8: 723.4158194 | AG8: 754.7222486 | AH8: 798.0587444 | AI8: 853.9546721 | AJ8: 922.5763375 | AK8: 1003.707053 | AL8: 1096.738753 | AM8: 1200.676263 | AN8: 1314.15511 | AO8: 1435.473407 | AP8: 1562.637798 | AQ8: 1693.422758
A9: 4 | B9: SWITCHGEAR | D9: 2319.689806 | E9: 2270.351834 | F9: 2236.393248 | G9: 2213.787536 | H9: 2203.870096 | I9: 2209.236349 | J9: 2232.4434 | K9: 2275.620143 | L9: 2340.387541 | M9: 2427.910236 | N9: 2539.023053 | O9: 2674.399958 | P9: 2834.728404 | Q9: 3020.844657 | R9: 3233.787412 | S9: 3474.741363 | T9: 3744.867354 | U9: 4045.043892 | V9: 4375.567384 | W9: 4735.868243 | X9: 50.12829894 | Y9: 50.23146149 | Z9: 50.7550278 | AA9: 51.51956043 | AB9: 52.53052635 | AC9: 53.84645817 | AD9: 55.53575767 | AE9: 57.66183039 | AF9: 60.27778333 | AG9: 63.42531829 | AH9: 67.13630276 | AI9: 71.43617741 | AJ9: 76.34811112 | AK9: 81.89649263 | AL9: 88.10833331 | AM9: 95.01157443 | AN9: 102.6300752 | AO9: 110.9759659 | AP9: 120.0407957 | AQ9: 129.7872476
A10: 5 | B10: TRANSFORMERS | D10: 3602.013643 | E10: 3891.427205 | F10: 4212.557169 | G10: 4563.369261 | H10: 4940.452032 | I10: 5339.137491 | J10: 5753.682369 | K10: 6177.494815 | L10: 6603.389987 | M10: 7023.858418 | N10: 7431.33294 | O10: 7818.442848 | P10: 8178.247243 | Q10: 8504.442631 | R10: 8791.542251 | S10: 9035.026132 | T10: 9231.46133 | U10: 9378.591537 | V10: 9475.394445 | W10: 9522.104557 | X10: 12.97755485 | Y10: 14.97716208 | Z10: 17.19083712 | AA10: 19.60895564 | AB10: 22.2160021 | AC10: 24.99096039 | AD10: 27.90793931 | AE10: 30.93697465 | AF10: 34.0449408 | AG10: 37.19650564 | AH10: 40.35507219 | AI10: 43.48366719 | AJ10: 46.5457561 | AK10: 49.50598315 | AL10: 52.3308492 | AM10: 54.98934721 | AN10: 57.45357412 | AO10: 59.6993292 | AP10: 61.70669552 | AQ10: 63.46058591
A11: 6 | B11: UNDERGROUND CABLES | D11: 1540.012799 | E11: 1665.15543 | F11: 1785.419356 | G11: 1898.7825 | H11: 2003.430686 | I11: 2097.862794 | J11: 2180.990416 | K11: 2252.22639 | L11: 2311.556823 | M11: 2359.591824 | N11: 2397.590997 | O11: 2427.460882 | P11: 2451.722782 | Q11: 2473.450787 | R11: 2496.181235 | S11: 2523.796209 | T11: 2560.384991 | U11: 2610.088522 | V11: 2676.932918 | W11: 2764.658835 | X11: 9.210443247 | Y11: 9.983353413 | Z11: 10.73504523 | AA11: 11.45326697 | AB11: 12.12633269 | AC11: 12.74364683 | AD11: 13.29623473 | AE11: 13.77725661 | AF11: 14.18248075 | AG11: 14.5106903 | AH11: 14.76399816 | AI11: 14.94804517 | AJ11: 15.07205923 | AK11: 15.14875728 | AL11: 15.19407787 | AM11: 15.22674047 | AN11: 15.26763655 | AO11: 15.33906874 | AP11: 15.46386514 | AQ11: 15.66440607
C18: Total | D18: =IFERROR(SUM(D$6:D$17),"") -> 10920.55439 | E18: =IFERROR(SUM(E$6:E$17),"") -> 11488.88863 | F18: 12114.48463 | G18: 12791.97856 | H18: 13520.14657 | I18: 14298.00231 | J18: 15123.7884 | K18: 15994.94422 | L18: 16908.42004 | M18: 17861.11723 | N18: 18850.34989 | O18: 19874.24413 | P18: 20931.99027 | Q18: 22023.86712 | R18: 23150.97909 | S18: 24314.6887 | T18: 25515.78482 | U18: 26753.48926 | V18: 28024.45673 | W18: 29321.95184
A20: ID | B20: Asset group | C20: Asset category
A21: =IFERROR('Historical scenario - input'!A6,"") -> 1 | B21: =IFERROR('Historical scenario - input'!B6,"") -> OVERHEAD CONDUCTORS | C21: =IFERROR('Historical scenario - input'!C6,"") -> ˂ = 1 kv | D21: =IFERROR(repcalc('Historical scenario - input'!$CV6:$GH6,'Historical scenario - input'!$G6,'Historical scenario - input'!$E6,'Historical scenario - input'!$F6,20,TRUE,TRUE),"") -> 43.81995154 | E21: 54.07852279 | F21: 66.16917323 | G21: 80.27411588 | H21: 96.55984622 | I21: 115.1682215 | J21: 136.2070432 | K21: 159.7406076 | L21: 185.780791 | M21: 214.2793086 | N21: 245.1218334 | O21: 278.1246589 | P21: 313.0345437 | Q21: 349.53227 | R21: 387.2402946 | S21: 425.7346626 | T21: 464.561106 | U21: 503.2549791 | V21: 541.3643957 | W21: 578.4756614 | X21: =IFERROR(IF(OR(D21="",'Historical scenario - input'!$D6=""),"",D21/'Historical scenario - input'!$D6),"") -> 0.3971544213 | Y21: =IFERROR(IF(OR(E21="",'Historical scenario - input'!$D6=""),"",E21/'Historical scenario - input'!$D6),"") -> 0.490131177 | Z21: =IFERROR(IF(OR(F21="",'Historical scenario - input'!$D6=""),"",F21/'Historical scenario - input'!$D6),"") -> 0.5997126602 | AA21: =IFERROR(IF(OR(G21="",'Historical scenario - input'!$D6=""),"",G21/'Historical scenario - input'!$D6),"") -> 0.7275503264 | AB21: =IFERROR(IF(OR(H21="",'Historical scenario - input'!$D6=""),"",H21/'Historical scenario - input'!$D6),"") -> 0.8751531781 | AC21: =IFERROR(IF(OR(I21="",'Historical scenario - input'!$D6=""),"",I21/'Historical scenario - input'!$D6),"") -> 1.043806914 | AD21: =IFERROR(IF(OR(J21="",'Historical scenario - input'!$D6=""),"",J21/'Historical scenario - input'!$D6),"") -> 1.234488573 | AE21: =IFERROR(IF(OR(K21="",'Historical scenario - input'!$D6=""),"",K21/'Historical scenario - input'!$D6),"") -> 1.447780894 | AF21: =IFERROR(IF(OR(L21="",'Historical scenario - input'!$D6=""),"",L21/'Historical scenario - input'!$D6),"") -> 1.683791514 | AG21: =IFERROR(IF(OR(M21="",'Historical scenario - input'!$D6=""),"",M21/'Historical scenario - input'!$D6),"") -> 1.942082815 | AH21: =IFERROR(IF(OR(N21="",'Historical scenario - input'!$D6=""),"",N21/'Historical scenario - input'!$D6),"") -> 2.221618612 | AI21: =IFERROR(IF(OR(O21="",'Historical scenario - input'!$D6=""),"",O21/'Historical scenario - input'!$D6),"") -> 2.520733915 | AJ21: =IFERROR(IF(OR(P21="",'Historical scenario - input'!$D6=""),"",P21/'Historical scenario - input'!$D6),"") -> 2.837133514 | AK21: =IFERROR(IF(OR(Q21="",'Historical scenario - input'!$D6=""),"",Q21/'Historical scenario - input'!$D6),"") -> 3.167924235 | AL21: =IFERROR(IF(OR(R21="",'Historical scenario - input'!$D6=""),"",R21/'Historical scenario - input'!$D6),"") -> 3.509684282 | AM21: =IFERROR(IF(OR(S21="",'Historical scenario - input'!$D6=""),"",S21/'Historical scenario - input'!$D6),"") -> 3.858571213 | AN21: =IFERROR(IF(OR(T21="",'Historical scenario - input'!$D6=""),"",T21/'Historical scenario - input'!$D6),"") -> 4.210467852 | AO21: =IFERROR(IF(OR(U21="",'Historical scenario - input'!$D6=""),"",U21/'Historical scenario - input'!$D6),"") -> 4.561162964 | AP21: =IFERROR(IF(OR(V21="",'Historical scenario - input'!$D6=""),"",V21/'Historical scenario - input'!$D6),"") -> 4.906560956 | AQ21: =IFERROR(IF(OR(W21="",'Historical scenario - input'!$D6=""),"",W21/'Historical scenario - input'!$D6),"") -> 5.242912384
A22: =IFERROR('Historical scenario - input'!A7,"") -> 1 | B22: =IFERROR('Historical scenario - input'!B7,"") -> OVERHEAD CONDUCTORS | C22: =IFERROR('Historical scenario - input'!C7,"") -> ˃ 11 kv & < = 22 kv ; multiple-phase | D22: =IFERROR(repcalc('Historical scenario - input'!$CV7:$GH7,'Historical scenario - input'!$G7,'Historical scenario - input'!$E7,'Historical scenario - input'!$F7,20,TRUE,TRUE),"") -> 0.1632045622 | E22: 0.2006348257 | F22: 0.2444931531 | G22: 0.295339419 | H22: 0.3536545916 | I22: 0.4198075834 | J22: 0.4940212638 | K22: 0.5763395274 | L22: 0.6665976324 | M22: 0.7643982347 | N22: 0.8690956245 | O22: 0.9797905771 | P22: 1.095337947 | Q22: 1.214368653 | R22: 1.33532704 | S22: 1.456523754 | T22: 1.57620333 | U22: 1.692624662 | V22: 1.804151512 | W22: 1.909349284 | X22: =IFERROR(IF(OR(D22="",'Historical scenario - input'!$D7=""),"",D22/'Historical scenario - input'!$D7),"") -> 0.001479175837 | Y22: =IFERROR(IF(OR(E22="",'Historical scenario - input'!$D7=""),"",E22/'Historical scenario - input'!$D7),"") -> 0.001818418444 | Z22: =IFERROR(IF(OR(F22="",'Historical scenario - input'!$D7=""),"",F22/'Historical scenario - input'!$D7),"") -> 0.002215920678 | AA22: =IFERROR(IF(OR(G22="",'Historical scenario - input'!$D7=""),"",G22/'Historical scenario - input'!$D7),"") -> 0.002676756864 | AB22: =IFERROR(IF(OR(H22="",'Historical scenario - input'!$D7=""),"",H22/'Historical scenario - input'!$D7),"") -> 0.003205286171 | AC22: =IFERROR(IF(OR(I22="",'Historical scenario - input'!$D7=""),"",I22/'Historical scenario - input'!$D7),"") -> 0.003804852174 | AD22: =IFERROR(IF(OR(J22="",'Historical scenario - input'!$D7=""),"",J22/'Historical scenario - input'!$D7),"") -> 0.004477474809 | AE22: =IFERROR(IF(OR(K22="",'Historical scenario - input'!$D7=""),"",K22/'Historical scenario - input'!$D7),"") -> 0.005223551909 | AF22: =IFERROR(IF(OR(L22="",'Historical scenario - input'!$D7=""),"",L22/'Historical scenario - input'!$D7),"") -> 0.006041590364 | AG22: =IFERROR(IF(OR(M22="",'Historical scenario - input'!$D7=""),"",M22/'Historical scenario - input'!$D7),"") -> 0.006927988916 | AH22: =IFERROR(IF(OR(N22="",'Historical scenario - input'!$D7=""),"",N22/'Historical scenario - input'!$D7),"") -> 0.00787689529 | AI22: =IFERROR(IF(OR(O22="",'Historical scenario - input'!$D7=""),"",O22/'Historical scenario - input'!$D7),"") -> 0.008880159518 | AJ22: =IFERROR(IF(OR(P22="",'Historical scenario - input'!$D7=""),"",P22/'Historical scenario - input'!$D7),"") -> 0.009927402772 | AK22: =IFERROR(IF(OR(Q22="",'Historical scenario - input'!$D7=""),"",Q22/'Historical scenario - input'!$D7),"") -> 0.01100621664 | AL22: =IFERROR(IF(OR(R22="",'Historical scenario - input'!$D7=""),"",R22/'Historical scenario - input'!$D7),"") -> 0.0121025017 | AM22: =IFERROR(IF(OR(S22="",'Historical scenario - input'!$D7=""),"",S22/'Historical scenario - input'!$D7),"") -> 0.0132009468 | AN22: =IFERROR(IF(OR(T22="",'Historical scenario - input'!$D7=""),"",T22/'Historical scenario - input'!$D7),"") -> 0.01428564158 | AO22: =IFERROR(IF(OR(U22="",'Historical scenario - input'!$D7=""),"",U22/'Historical scenario - input'!$D7),"") -> 0.01534080583 | AP22: =IFERROR(IF(OR(V22="",'Historical scenario - input'!$D7=""),"",V22/'Historical scenario - input'!$D7),"") -> 0.01635160982 | AQ22: =IFERROR(IF(OR(W22="",'Historical scenario - input'!$D7=""),"",W22/'Historical scenario - input'!$D7),"") -> 0.01730505132
A23: =IFERROR('Historical scenario - input'!A8,"") -> 1 | B23: =IFERROR('Historical scenario - input'!B8,"") -> OVERHEAD CONDUCTORS | C23: =IFERROR('Historical scenario - input'!C8,"") -> > 1 kv & < = 11 kv | D23: =IFERROR(repcalc('Historical scenario - input'!$CV8:$GH8,'Historical scenario - input'!$G8,'Historical scenario - input'!$E8,'Historical scenario - input'!$F8,20,TRUE,TRUE),"") -> 9.673279864 | E23: 11.87116708 | F23: 14.44652879 | G23: 17.43402626 | H23: 20.86465824 | I23: 24.76404044 | J23: 29.15063579 | K23: 34.03403314 | L23: 39.4133889 | M23: 45.27615857 | N23: 51.59725022 | O23: 58.33872913 | P23: 65.45019003 | Q23: 72.86989032 | R23: 80.52670507 | S23: 88.3429219 | T23: 96.23784496 | U23: 104.1321228 | V23: 111.9526591 | W23: 119.6379125 | X23: =IFERROR(IF(OR(D23="",'Historical scenario - input'!$D8=""),"",D23/'Historical scenario - input'!$D8),"") -> 0.08767207019 | Y23: =IFERROR(IF(OR(E23="",'Historical scenario - input'!$D8=""),"",E23/'Historical scenario - input'!$D8),"") -> 0.1075922343 | Z23: =IFERROR(IF(OR(F23="",'Historical scenario - input'!$D8=""),"",F23/'Historical scenario - input'!$D8),"") -> 0.1309335721 | AA23: =IFERROR(IF(OR(G23="",'Historical scenario - input'!$D8=""),"",G23/'Historical scenario - input'!$D8),"") -> 0.1580102298 | AB23: =IFERROR(IF(OR(H23="",'Historical scenario - input'!$D8=""),"",H23/'Historical scenario - input'!$D8),"") -> 0.1891031592 | AC23: =IFERROR(IF(OR(I23="",'Historical scenario - input'!$D8=""),"",I23/'Historical scenario - input'!$D8),"") -> 0.2244445237 | AD23: =IFERROR(IF(OR(J23="",'Historical scenario - input'!$D8=""),"",J23/'Historical scenario - input'!$D8),"") -> 0.2642016589 | AE23: =IFERROR(IF(OR(K23="",'Historical scenario - input'!$D8=""),"",K23/'Historical scenario - input'!$D8),"") -> 0.3084614716 | AF23: =IFERROR(IF(OR(L23="",'Historical scenario - input'!$D8=""),"",L23/'Historical scenario - input'!$D8),"") -> 0.3572163162 | AG23: =IFERROR(IF(OR(M23="",'Historical scenario - input'!$D8=""),"",M23/'Historical scenario - input'!$D8),"") -> 0.4103524976 | AH23: =IFERROR(IF(OR(N23="",'Historical scenario - input'!$D8=""),"",N23/'Historical scenario - input'!$D8),"") -> 0.4676425997 | AI23: =IFERROR(IF(OR(O23="",'Historical scenario - input'!$D8=""),"",O23/'Historical scenario - input'!$D8),"") -> 0.5287428078 | AJ23: =IFERROR(IF(OR(P23="",'Historical scenario - input'!$D8=""),"",P23/'Historical scenario - input'!$D8),"") -> 0.5931962824 | AK23: =IFERROR(IF(OR(Q23="",'Historical scenario - input'!$D8=""),"",Q23/'Historical scenario - input'!$D8),"") -> 0.6604434306 | AL23: =IFERROR(IF(OR(R23="",'Historical scenario - input'!$D8=""),"",R23/'Historical scenario - input'!$D8),"") -> 0.729839624 | AM23: =IFERROR(IF(OR(S23="",'Historical scenario - input'!$D8=""),"",S23/'Historical scenario - input'!$D8),"") -> 0.8006805302 | AN23: =IFERROR(IF(OR(T23="",'Historical scenario - input'!$D8=""),"",T23/'Historical scenario - input'!$D8),"") -> 0.8722347763 | AO23: =IFERROR(IF(OR(U23="",'Historical scenario - input'!$D8=""),"",U23/'Historical scenario - input'!$D8),"") -> 0.9437831743 | AP23: =IFERROR(IF(OR(V23="",'Historical scenario - input'!$D8=""),"",V23/'Historical scenario - input'!$D8),"") -> 1.014663229 | AQ23: =IFERROR(IF(OR(W23="",'Historical scenario - input'!$D8=""),"",W23/'Historical scenario - input'!$D8),"") -> 1.084317172
A24: =IFERROR('Historical scenario - input'!A9,"") -> 1 | B24: =IFERROR('Historical scenario - input'!B9,"") -> OVERHEAD CONDUCTORS | C24: =IFERROR('Historical scenario - input'!C9,"") -> > 22 kv & < = 66 kv | D24: =IFERROR(repcalc('Historical scenario - input'!$CV9:$GH9,'Historical scenario - input'!$G9,'Historical scenario - input'!$E9,'Historical scenario - input'!$F9,20,TRUE,TRUE),"") -> 0.8322078378 | E24: 1.047664049 | F24: 1.307795603 | G24: 1.618836581 | H24: 1.987159157 | I24: 2.419102228 | J24: 2.920775893 | K24: 3.497851496 | L24: 4.155350926 | M24: 4.897452831 | N24: 5.727336945 | O24: 6.64709048 | P24: 7.657702031 | Q24: 8.759168327 | R24: 9.950736983 | S24: 11.23130399 | T24: 12.59997783 | U24: 14.05681272 | V24: 15.60370209 | W24: 17.24541009 | X24: =IFERROR(IF(OR(D24="",'Historical scenario - input'!$D9=""),"",D24/'Historical scenario - input'!$D9),"") -> 0.007542569324 | Y24: =IFERROR(IF(OR(E24="",'Historical scenario - input'!$D9=""),"",E24/'Historical scenario - input'!$D9),"") -> 0.009495318792 | Z24: =IFERROR(IF(OR(F24="",'Historical scenario - input'!$D9=""),"",F24/'Historical scenario - input'!$D9),"") -> 0.01185297536 | AA24: =IFERROR(IF(OR(G24="",'Historical scenario - input'!$D9=""),"",G24/'Historical scenario - input'!$D9),"") -> 0.01467204054 | AB24: =IFERROR(IF(OR(H24="",'Historical scenario - input'!$D9=""),"",H24/'Historical scenario - input'!$D9),"") -> 0.01801026741 | AC24: =IFERROR(IF(OR(I24="",'Historical scenario - input'!$D9=""),"",I24/'Historical scenario - input'!$D9),"") -> 0.02192510744 | AD24: =IFERROR(IF(OR(J24="",'Historical scenario - input'!$D9=""),"",J24/'Historical scenario - input'!$D9),"") -> 0.02647193844 | AE24: =IFERROR(IF(OR(K24="",'Historical scenario - input'!$D9=""),"",K24/'Historical scenario - input'!$D9),"") -> 0.03170216164 | AF24: =IFERROR(IF(OR(L24="",'Historical scenario - input'!$D9=""),"",L24/'Historical scenario - input'!$D9),"") -> 0.03766129205 | AG24: =IFERROR(IF(OR(M24="",'Historical scenario - input'!$D9=""),"",M24/'Historical scenario - input'!$D9),"") -> 0.04438720211 | AH24: =IFERROR(IF(OR(N24="",'Historical scenario - input'!$D9=""),"",N24/'Historical scenario - input'!$D9),"") -> 0.05190871077 | AI24: =IFERROR(IF(OR(O24="",'Historical scenario - input'!$D9=""),"",O24/'Historical scenario - input'!$D9),"") -> 0.06024473511 | AJ24: =IFERROR(IF(OR(P24="",'Historical scenario - input'!$D9=""),"",P24/'Historical scenario - input'!$D9),"") -> 0.06940423511 | AK24: =IFERROR(IF(OR(Q24="",'Historical scenario - input'!$D9=""),"",Q24/'Historical scenario - input'!$D9),"") -> 0.0793871811 | AL24: =IFERROR(IF(OR(R24="",'Historical scenario - input'!$D9=""),"",R24/'Historical scenario - input'!$D9),"") -> 0.09018675398 | AM24: =IFERROR(IF(OR(S24="",'Historical scenario - input'!$D9=""),"",S24/'Historical scenario - input'!$D9),"") -> 0.1017929478 | AN24: =IFERROR(IF(OR(T24="",'Historical scenario - input'!$D9=""),"",T24/'Historical scenario - input'!$D9),"") -> 0.1141976823 | AO24: =IFERROR(IF(OR(U24="",'Historical scenario - input'!$D9=""),"",U24/'Historical scenario - input'!$D9),"") -> 0.127401449 | AP24: =IFERROR(IF(OR(V24="",'Historical scenario - input'!$D9=""),"",V24/'Historical scenario - input'!$D9),"") -> 0.1414214087 | AQ24: =IFERROR(IF(OR(W24="",'Historical scenario - input'!$D9=""),"",W24/'Historical scenario - input'!$D9),"") -> 0.1563007403
A25: =IFERROR('Historical scenario - input'!A10,"") -> 2 | B25: =IFERROR('Historical scenario - input'!B10,"") -> POLES | C25: =IFERROR('Historical scenario - input'!C10,"") -> ˂ = 1 kv ; concrete | D25: =IFERROR(repcalc('Historical scenario - input'!$CV10:$GH10,'Historical scenario - input'!$G10,'Historical scenario - input'!$E10,'Historical scenario - input'!$F10,20,TRUE,TRUE),"") -> 77.2777201 | E25: 97.98097165 | F25: 122.4616753 | G25: 150.9329201 | H25: 183.5180526 | I25: 220.2454012 | J25: 261.0549414 | K25: 305.8186343 | L25: 354.3744411 | M25: 406.5718382 | N25: 462.3242969 | O25: 521.662 | P25: 584.7764721 | Q25: 652.0481652 | R25: 724.0486884 | S25: 801.5114101 | T25: 885.2675171 | U25: 976.148964 | V25: 1074.864561 | W25: 1181.860052 | X25: =IFERROR(IF(OR(D25="",'Historical scenario - input'!$D10=""),"",D25/'Historical scenario - input'!$D10),"") -> 3.421205353 | Y25: =IFERROR(IF(OR(E25="",'Historical scenario - input'!$D10=""),"",E25/'Historical scenario - input'!$D10),"") -> 4.337770631 | Z25: =IFERROR(IF(OR(F25="",'Historical scenario - input'!$D10=""),"",F25/'Historical scenario - input'!$D10),"") -> 5.421569612 | AA25: =IFERROR(IF(OR(G25="",'Historical scenario - input'!$D10=""),"",G25/'Historical scenario - input'!$D10),"") -> 6.682036083 | AB25: =IFERROR(IF(OR(H25="",'Historical scenario - input'!$D10=""),"",H25/'Historical scenario - input'!$D10),"") -> 8.124630789 | AC25: =IFERROR(IF(OR(I25="",'Historical scenario - input'!$D10=""),"",I25/'Historical scenario - input'!$D10),"") -> 9.750607869 | AD25: =IFERROR(IF(OR(J25="",'Historical scenario - input'!$D10=""),"",J25/'Historical scenario - input'!$D10),"") -> 11.55730995 | AE25: =IFERROR(IF(OR(K25="",'Historical scenario - input'!$D10=""),"",K25/'Historical scenario - input'!$D10),"") -> 13.53906854 | AF25: =IFERROR(IF(OR(L25="",'Historical scenario - input'!$D10=""),"",L25/'Historical scenario - input'!$D10),"") -> 15.68870993 | AG25: =IFERROR(IF(OR(M25="",'Historical scenario - input'!$D10=""),"",M25/'Historical scenario - input'!$D10),"") -> 17.99957022 | AH25: =IFERROR(IF(OR(N25="",'Historical scenario - input'!$D10=""),"",N25/'Historical scenario - input'!$D10),"") -> 20.46781863 | AI25: =IFERROR(IF(OR(O25="",'Historical scenario - input'!$D10=""),"",O25/'Historical scenario - input'!$D10),"") -> 23.09479142 | AJ25: =IFERROR(IF(OR(P25="",'Historical scenario - input'!$D10=""),"",P25/'Historical scenario - input'!$D10),"") -> 25.88896766 | AK25: =IFERROR(IF(OR(Q25="",'Historical scenario - input'!$D10=""),"",Q25/'Historical scenario - input'!$D10),"") -> 28.86719057 | AL25: =IFERROR(IF(OR(R25="",'Historical scenario - input'!$D10=""),"",R25/'Historical scenario - input'!$D10),"") -> 32.05476618 | AM25: =IFERROR(IF(OR(S25="",'Historical scenario - input'!$D10=""),"",S25/'Historical scenario - input'!$D10),"") -> 35.48416184 | AN25: =IFERROR(IF(OR(T25="",'Historical scenario - input'!$D10=""),"",T25/'Historical scenario - input'!$D10),"") -> 39.1921755 | AO25: =IFERROR(IF(OR(U25="",'Historical scenario - input'!$D10=""),"",U25/'Historical scenario - input'!$D10),"") -> 43.21563908 | AP25: =IFERROR(IF(OR(V25="",'Historical scenario - input'!$D10=""),"",V25/'Historical scenario - input'!$D10),"") -> 47.58593273 | AQ25: =IFERROR(IF(OR(W25="",'Historical scenario - input'!$D10=""),"",W25/'Historical scenario - input'!$D10),"") -> 52.32279019
A26: =IFERROR('Historical scenario - input'!A11,"") -> 2 | B26: =IFERROR('Historical scenario - input'!B11,"") -> POLES | C26: =IFERROR('Historical scenario - input'!C11,"") -> ˂ = 1 kv ; steel | D26: =IFERROR(repcalc('Historical scenario - input'!$CV11:$GH11,'Historical scenario - input'!$G11,'Historical scenario - input'!$E11,'Historical scenario - input'!$F11,20,TRUE,TRUE),"") -> 26.46567259 | E26: 29.46730512 | F26: 33.31795737 | G26: 38.24273988 | H26: 44.49275887 | I26: 52.34200936 | J26: 62.08272833 | K26: 74.0190512 | L26: 88.45887391 | M26: 105.7039135 | N26: 126.0380831 | O26: 149.7144497 | P26: 176.9412119 | Q26: 207.8673122 | R26: 242.5684601 | S26: 281.034466 | T26: 323.1588603 | U26: 368.7317615 | V26: 417.4368645 | W26: 468.853231 | X26: =IFERROR(IF(OR(D26="",'Historical scenario - input'!$D11=""),"",D26/'Historical scenario - input'!$D11),"") -> 1.613207063 | Y26: =IFERROR(IF(OR(E26="",'Historical scenario - input'!$D11=""),"",E26/'Historical scenario - input'!$D11),"") -> 1.796170666 | Z26: =IFERROR(IF(OR(F26="",'Historical scenario - input'!$D11=""),"",F26/'Historical scenario - input'!$D11),"") -> 2.030886008 | AA26: =IFERROR(IF(OR(G26="",'Historical scenario - input'!$D11=""),"",G26/'Historical scenario - input'!$D11),"") -> 2.331074636 | AB26: =IFERROR(IF(OR(H26="",'Historical scenario - input'!$D11=""),"",H26/'Historical scenario - input'!$D11),"") -> 2.712042652 | AC26: =IFERROR(IF(OR(I26="",'Historical scenario - input'!$D11=""),"",I26/'Historical scenario - input'!$D11),"") -> 3.19049134 | AD26: =IFERROR(IF(OR(J26="",'Historical scenario - input'!$D11=""),"",J26/'Historical scenario - input'!$D11),"") -> 3.784233917 | AE26: =IFERROR(IF(OR(K26="",'Historical scenario - input'!$D11=""),"",K26/'Historical scenario - input'!$D11),"") -> 4.511808865 | AF26: =IFERROR(IF(OR(L26="",'Historical scenario - input'!$D11=""),"",L26/'Historical scenario - input'!$D11),"") -> 5.391983889 | AG26: =IFERROR(IF(OR(M26="",'Historical scenario - input'!$D11=""),"",M26/'Historical scenario - input'!$D11),"") -> 6.443150056 | AH26: =IFERROR(IF(OR(N26="",'Historical scenario - input'!$D11=""),"",N26/'Historical scenario - input'!$D11),"") -> 7.682613212 | AI26: =IFERROR(IF(OR(O26="",'Historical scenario - input'!$D11=""),"",O26/'Historical scenario - input'!$D11),"") -> 9.125798973 | AJ26: =IFERROR(IF(OR(P26="",'Historical scenario - input'!$D11=""),"",P26/'Historical scenario - input'!$D11),"") -> 10.78539802 | AK26: =IFERROR(IF(OR(Q26="",'Historical scenario - input'!$D11=""),"",Q26/'Historical scenario - input'!$D11),"") -> 12.67048911 | AL26: =IFERROR(IF(OR(R26="",'Historical scenario - input'!$D11=""),"",R26/'Historical scenario - input'!$D11),"") -> 14.78568708 | AM26: =IFERROR(IF(OR(S26="",'Historical scenario - input'!$D11=""),"",S26/'Historical scenario - input'!$D11),"") -> 17.13037082 | AN26: =IFERROR(IF(OR(T26="",'Historical scenario - input'!$D11=""),"",T26/'Historical scenario - input'!$D11),"") -> 19.69805053 | AO26: =IFERROR(IF(OR(U26="",'Historical scenario - input'!$D11=""),"",U26/'Historical scenario - input'!$D11),"") -> 22.47593293 | AP26: =IFERROR(IF(OR(V26="",'Historical scenario - input'!$D11=""),"",V26/'Historical scenario - input'!$D11),"") -> 25.44473775 | AQ26: =IFERROR(IF(OR(W26="",'Historical scenario - input'!$D11=""),"",W26/'Historical scenario - input'!$D11),"") -> 28.57880681
A27: =IFERROR('Historical scenario - input'!A12,"") -> 2 | B27: =IFERROR('Historical scenario - input'!B12,"") -> POLES | C27: =IFERROR('Historical scenario - input'!C12,"") -> ˂ = 1 kv ; wood | D27: =IFERROR(repcalc('Historical scenario - input'!$CV12:$GH12,'Historical scenario - input'!$G12,'Historical scenario - input'!$E12,'Historical scenario - input'!$F12,20,TRUE,TRUE),"") -> 1070.371787 | E27: 1126.844192 | F27: 1176.991433 | G27: 1220.351311 | H27: 1256.795551 | I27: 1286.558513 | J27: 1310.248447 | K27: 1328.839933 | L27: 1343.647221 | M27: 1356.279359 | N27: 1368.579001 | O27: 1382.54769 | P27: 1400.261133 | Q27: 1423.77841 | R27: 1455.04932 | S27: 1495.824062 | T27: 1547.569251 | U27: 1611.393945 | V27: 1687.988853 | W27: 1777.581364 | X27: =IFERROR(IF(OR(D27="",'Historical scenario - input'!$D12=""),"",D27/'Historical scenario - input'!$D12),"") -> 143.1820364 | Y27: =IFERROR(IF(OR(E27="",'Historical scenario - input'!$D12=""),"",E27/'Historical scenario - input'!$D12),"") -> 150.7362658 | Z27: =IFERROR(IF(OR(F27="",'Historical scenario - input'!$D12=""),"",F27/'Historical scenario - input'!$D12),"") -> 157.4443874 | AA27: =IFERROR(IF(OR(G27="",'Historical scenario - input'!$D12=""),"",G27/'Historical scenario - input'!$D12),"") -> 163.2445736 | AB27: =IFERROR(IF(OR(H27="",'Historical scenario - input'!$D12=""),"",H27/'Historical scenario - input'!$D12),"") -> 168.1196652 | AC27: =IFERROR(IF(OR(I27="",'Historical scenario - input'!$D12=""),"",I27/'Historical scenario - input'!$D12),"") -> 172.1010121 | AD27: =IFERROR(IF(OR(J27="",'Historical scenario - input'!$D12=""),"",J27/'Historical scenario - input'!$D12),"") -> 175.2699793 | AE27: =IFERROR(IF(OR(K27="",'Historical scenario - input'!$D12=""),"",K27/'Historical scenario - input'!$D12),"") -> 177.7569346 | AF27: =IFERROR(IF(OR(L27="",'Historical scenario - input'!$D12=""),"",L27/'Historical scenario - input'!$D12),"") -> 179.7376833 | AG27: =IFERROR(IF(OR(M27="",'Historical scenario - input'!$D12=""),"",M27/'Historical scenario - input'!$D12),"") -> 181.4274657 | AH27: =IFERROR(IF(OR(N27="",'Historical scenario - input'!$D12=""),"",N27/'Historical scenario - input'!$D12),"") -> 183.0727704 | AI27: =IFERROR(IF(OR(O27="",'Historical scenario - input'!$D12=""),"",O27/'Historical scenario - input'!$D12),"") -> 184.9413411 | AJ27: =IFERROR(IF(OR(P27="",'Historical scenario - input'!$D12=""),"",P27/'Historical scenario - input'!$D12),"") -> 187.3108419 | AK27: =IFERROR(IF(OR(Q27="",'Historical scenario - input'!$D12=""),"",Q27/'Historical scenario - input'!$D12),"") -> 190.4567129 | AL27: =IFERROR(IF(OR(R27="",'Historical scenario - input'!$D12=""),"",R27/'Historical scenario - input'!$D12),"") -> 194.6397759 | AM27: =IFERROR(IF(OR(S27="",'Historical scenario - input'!$D12=""),"",S27/'Historical scenario - input'!$D12),"") -> 200.0941523 | AN27: =IFERROR(IF(OR(T27="",'Historical scenario - input'!$D12=""),"",T27/'Historical scenario - input'!$D12),"") -> 207.016029 | AO27: =IFERROR(IF(OR(U27="",'Historical scenario - input'!$D12=""),"",U27/'Historical scenario - input'!$D12),"") -> 215.553763 | AP27: =IFERROR(IF(OR(V27="",'Historical scenario - input'!$D12=""),"",V27/'Historical scenario - input'!$D12),"") -> 225.7997495 | AQ27: =IFERROR(IF(OR(W27="",'Historical scenario - input'!$D12=""),"",W27/'Historical scenario - input'!$D12),"") -> 237.7844061
A28: =IFERROR('Historical scenario - input'!A13,"") -> 2 | B28: =IFERROR('Historical scenario - input'!B13,"") -> POLES | C28: =IFERROR('Historical scenario - input'!C13,"") -> ˃ 11 kv & < = 22 kv ; concrete | D28: =IFERROR(repcalc('Historical scenario - input'!$CV13:$GH13,'Historical scenario - input'!$G13,'Historical scenario - input'!$E13,'Historical scenario - input'!$F13,20,TRUE,TRUE),"") -> 0.7716683956 | E28: 0.928166697 | F28: 1.098722432 | G28: 1.280107602 | H28: 1.468059894 | I28: 1.65744893 | J28: 1.842558841 | K28: 2.01747998 | L28: 2.176589215 | M28: 2.31508564 | N28: 2.429538319 | O28: 2.518396505 | P28: 2.582411453 | Q28: 2.624922972 | R28: 2.651972657 | S28: 2.67221833 | T28: 2.696639153 | U28: 2.738036479 | V28: 2.810350517 | W28: 2.927826151 | X28: =IFERROR(IF(OR(D28="",'Historical scenario - input'!$D13=""),"",D28/'Historical scenario - input'!$D13),"") -> 0.03416296498 | Y28: =IFERROR(IF(OR(E28="",'Historical scenario - input'!$D13=""),"",E28/'Historical scenario - input'!$D13),"") -> 0.04109138919 | Z28: =IFERROR(IF(OR(F28="",'Historical scenario - input'!$D13=""),"",F28/'Historical scenario - input'!$D13),"") -> 0.04864215795 | AA28: =IFERROR(IF(OR(G28="",'Historical scenario - input'!$D13=""),"",G28/'Historical scenario - input'!$D13),"") -> 0.05667236267 | AB28: =IFERROR(IF(OR(H28="",'Historical scenario - input'!$D13=""),"",H28/'Historical scenario - input'!$D13),"") -> 0.06499330418 | AC28: =IFERROR(IF(OR(I28="",'Historical scenario - input'!$D13=""),"",I28/'Historical scenario - input'!$D13),"") -> 0.07337785257 | AD28: =IFERROR(IF(OR(J28="",'Historical scenario - input'!$D13=""),"",J28/'Historical scenario - input'!$D13),"") -> 0.08157295742 | AE28: =IFERROR(IF(OR(K28="",'Historical scenario - input'!$D13=""),"",K28/'Historical scenario - input'!$D13),"") -> 0.08931698939 | AF28: =IFERROR(IF(OR(L28="",'Historical scenario - input'!$D13=""),"",L28/'Historical scenario - input'!$D13),"") -> 0.09636100372 | AG28: =IFERROR(IF(OR(M28="",'Historical scenario - input'!$D13=""),"",M28/'Historical scenario - input'!$D13),"") -> 0.1024924567 | AH28: =IFERROR(IF(OR(N28="",'Historical scenario - input'!$D13=""),"",N28/'Historical scenario - input'!$D13),"") -> 0.1075594556 | AI28: =IFERROR(IF(OR(O28="",'Historical scenario - input'!$D13=""),"",O28/'Historical scenario - input'!$D13),"") -> 0.1114933462 | AJ28: =IFERROR(IF(OR(P28="",'Historical scenario - input'!$D13=""),"",P28/'Historical scenario - input'!$D13),"") -> 0.114327388 | AK28: =IFERROR(IF(OR(Q28="",'Historical scenario - input'!$D13=""),"",Q28/'Historical scenario - input'!$D13),"") -> 0.1162094393 | AL28: =IFERROR(IF(OR(R28="",'Historical scenario - input'!$D13=""),"",R28/'Historical scenario - input'!$D13),"") -> 0.1174069711 | AM28: =IFERROR(IF(OR(S28="",'Historical scenario - input'!$D13=""),"",S28/'Historical scenario - input'!$D13),"") -> 0.1183032787 | AN28: =IFERROR(IF(OR(T28="",'Historical scenario - input'!$D13=""),"",T28/'Historical scenario - input'!$D13),"") -> 0.1193844266 | AO28: =IFERROR(IF(OR(U28="",'Historical scenario - input'!$D13=""),"",U28/'Historical scenario - input'!$D13),"") -> 0.1212171509 | AP28: =IFERROR(IF(OR(V28="",'Historical scenario - input'!$D13=""),"",V28/'Historical scenario - input'!$D13),"") -> 0.1244186063 | AQ28: =IFERROR(IF(OR(W28="",'Historical scenario - input'!$D13=""),"",W28/'Historical scenario - input'!$D13),"") -> 0.1296194361
A29: =IFERROR('Historical scenario - input'!A14,"") -> 2 | B29: =IFERROR('Historical scenario - input'!B14,"") -> POLES | C29: =IFERROR('Historical scenario - input'!C14,"") -> ˃ 11 kv & < = 22 kv ; steel | D29: =IFERROR(repcalc('Historical scenario - input'!$CV14:$GH14,'Historical scenario - input'!$G14,'Historical scenario - input'!$E14,'Historical scenario - input'!$F14,20,TRUE,TRUE),"") -> 4.528819816e-05 | E29: 7.379183119e-05 | F29: 0.0001187286989 | G29: 0.0001886373322 | H29: 0.000295954214 | I29: 0.000458507978 | J29: 0.0007014479238 | K29: 0.001059670883 | L29: 0.001580791835 | M29: 0.002328669502 | N29: 0.003387444957 | O29: 0.004865976945 | P29: 0.006902461908 | Q29: 0.009668913012 | R29: 0.01337504835 | S29: 0.01827101661 | T29: 0.02464828725 | U29: 0.03283797384 | V29: 0.04320587014 | W29: 0.05614358346 | X29: =IFERROR(IF(OR(D29="",'Historical scenario - input'!$D14=""),"",D29/'Historical scenario - input'!$D14),"") -> 2.760528413e-06 | Y29: =IFERROR(IF(OR(E29="",'Historical scenario - input'!$D14=""),"",E29/'Historical scenario - input'!$D14),"") -> 4.497958738e-06 | Z29: =IFERROR(IF(OR(F29="",'Historical scenario - input'!$D14=""),"",F29/'Historical scenario - input'!$D14),"") -> 7.237071913e-06 | AA29: =IFERROR(IF(OR(G29="",'Historical scenario - input'!$D14=""),"",G29/'Historical scenario - input'!$D14),"") -> 1.14983315e-05 | AB29: =IFERROR(IF(OR(H29="",'Historical scenario - input'!$D14=""),"",H29/'Historical scenario - input'!$D14),"") -> 1.803979955e-05 | AC29: =IFERROR(IF(OR(I29="",'Historical scenario - input'!$D14=""),"",I29/'Historical scenario - input'!$D14),"") -> 2.794821504e-05 | AD29: =IFERROR(IF(OR(J29="",'Historical scenario - input'!$D14=""),"",J29/'Historical scenario - input'!$D14),"") -> 4.275654591e-05 | AE29: =IFERROR(IF(OR(K29="",'Historical scenario - input'!$D14=""),"",K29/'Historical scenario - input'!$D14),"") -> 6.459191795e-05 | AF29: =IFERROR(IF(OR(L29="",'Historical scenario - input'!$D14=""),"",L29/'Historical scenario - input'!$D14),"") -> 9.635668793e-05 | AG29: =IFERROR(IF(OR(M29="",'Historical scenario - input'!$D14=""),"",M29/'Historical scenario - input'!$D14),"") -> 0.0001419433448 | AH29: =IFERROR(IF(OR(N29="",'Historical scenario - input'!$D14=""),"",N29/'Historical scenario - input'!$D14),"") -> 0.0002064806822 | AI29: =IFERROR(IF(OR(O29="",'Historical scenario - input'!$D14=""),"",O29/'Historical scenario - input'!$D14),"") -> 0.0002966041521 | AJ29: =IFERROR(IF(OR(P29="",'Historical scenario - input'!$D14=""),"",P29/'Historical scenario - input'!$D14),"") -> 0.0004207374767 | AK29: =IFERROR(IF(OR(Q29="",'Historical scenario - input'!$D14=""),"",Q29/'Historical scenario - input'!$D14),"") -> 0.0005893656665 | AL29: =IFERROR(IF(OR(R29="",'Historical scenario - input'!$D14=""),"",R29/'Historical scenario - input'!$D14),"") -> 0.0008152720241 | AM29: =IFERROR(IF(OR(S29="",'Historical scenario - input'!$D14=""),"",S29/'Historical scenario - input'!$D14),"") -> 0.001113704288 | AN29: =IFERROR(IF(OR(T29="",'Historical scenario - input'!$D14=""),"",T29/'Historical scenario - input'!$D14),"") -> 0.00150242889 | AO29: =IFERROR(IF(OR(U29="",'Historical scenario - input'!$D14=""),"",U29/'Historical scenario - input'!$D14),"") -> 0.002001628757 | AP29: =IFERROR(IF(OR(V29="",'Historical scenario - input'!$D14=""),"",V29/'Historical scenario - input'!$D14),"") -> 0.002633600739 | AQ29: =IFERROR(IF(OR(W29="",'Historical scenario - input'!$D14=""),"",W29/'Historical scenario - input'!$D14),"") -> 0.003422215139
A30: =IFERROR('Historical scenario - input'!A15,"") -> 2 | B30: =IFERROR('Historical scenario - input'!B15,"") -> POLES | C30: =IFERROR('Historical scenario - input'!C15,"") -> ˃ 11 kv & < = 22 kv ; wood | D30: =IFERROR(repcalc('Historical scenario - input'!$CV15:$GH15,'Historical scenario - input'!$G15,'Historical scenario - input'!$E15,'Historical scenario - input'!$F15,20,TRUE,TRUE),"") -> 58.49881186 | E30: 64.48116831 | F30: 70.51726525 | G30: 76.53682668 | H30: 82.47371227 | I30: 88.27007026 | J30: 93.88042946 | K30: 99.27546159 | L30: 104.445141 | M30: 109.401043 | N30: 114.1775574 | O30: 118.8318445 | P30: 123.4424323 | Q30: 128.1064307 | R30: 132.9354292 | S30: 138.0502312 | T30: 143.5746642 | U30: 149.6287768 | V30: 156.3217936 | W30: 163.7452353 | X30: =IFERROR(IF(OR(D30="",'Historical scenario - input'!$D15=""),"",D30/'Historical scenario - input'!$D15),"") -> 1.811358475 | Y30: =IFERROR(IF(OR(E30="",'Historical scenario - input'!$D15=""),"",E30/'Historical scenario - input'!$D15),"") -> 1.996596289 | Z30: =IFERROR(IF(OR(F30="",'Historical scenario - input'!$D15=""),"",F30/'Historical scenario - input'!$D15),"") -> 2.183498125 | AA30: =IFERROR(IF(OR(G30="",'Historical scenario - input'!$D15=""),"",G30/'Historical scenario - input'!$D15),"") -> 2.369887956 | AB30: =IFERROR(IF(OR(H30="",'Historical scenario - input'!$D15=""),"",H30/'Historical scenario - input'!$D15),"") -> 2.553717809 | AC30: =IFERROR(IF(OR(I30="",'Historical scenario - input'!$D15=""),"",I30/'Historical scenario - input'!$D15),"") -> 2.733196363 | AD30: =IFERROR(IF(OR(J30="",'Historical scenario - input'!$D15=""),"",J30/'Historical scenario - input'!$D15),"") -> 2.906915647 | AE30: =IFERROR(IF(OR(K30="",'Historical scenario - input'!$D15=""),"",K30/'Historical scenario - input'!$D15),"") -> 3.073967538 | AF30: =IFERROR(IF(OR(L30="",'Historical scenario - input'!$D15=""),"",L30/'Historical scenario - input'!$D15),"") -> 3.234041603 | AG30: =IFERROR(IF(OR(M30="",'Historical scenario - input'!$D15=""),"",M30/'Historical scenario - input'!$D15),"") -> 3.38749626 | AH30: =IFERROR(IF(OR(N30="",'Historical scenario - input'!$D15=""),"",N30/'Historical scenario - input'!$D15),"") -> 3.535396355 | AI30: =IFERROR(IF(OR(O30="",'Historical scenario - input'!$D15=""),"",O30/'Historical scenario - input'!$D15),"") -> 3.679511803 | AJ30: =IFERROR(IF(OR(P30="",'Historical scenario - input'!$D15=""),"",P30/'Historical scenario - input'!$D15),"") -> 3.822274143 | AK30: =IFERROR(IF(OR(Q30="",'Historical scenario - input'!$D15=""),"",Q30/'Historical scenario - input'!$D15),"") -> 3.96669029 | AL30: =IFERROR(IF(OR(R30="",'Historical scenario - input'!$D15=""),"",R30/'Historical scenario - input'!$D15),"") -> 4.116215502 | AM30: =IFERROR(IF(OR(S30="",'Historical scenario - input'!$D15=""),"",S30/'Historical scenario - input'!$D15),"") -> 4.274590343 | AN30: =IFERROR(IF(OR(T30="",'Historical scenario - input'!$D15=""),"",T30/'Historical scenario - input'!$D15),"") -> 4.445649006 | AO30: =IFERROR(IF(OR(U30="",'Historical scenario - input'!$D15=""),"",U30/'Historical scenario - input'!$D15),"") -> 4.633108678 | AP30: =IFERROR(IF(OR(V30="",'Historical scenario - input'!$D15=""),"",V30/'Historical scenario - input'!$D15),"") -> 4.840351396 | AQ30: =IFERROR(IF(OR(W30="",'Historical scenario - input'!$D15=""),"",W30/'Historical scenario - input'!$D15),"") -> 5.070211004
A31: =IFERROR('Historical scenario - input'!A16,"") -> 2 | B31: =IFERROR('Historical scenario - input'!B16,"") -> POLES | C31: =IFERROR('Historical scenario - input'!C16,"") -> > 1 kv & < = 11 kv ; concrete | D31: =IFERROR(repcalc('Historical scenario - input'!$CV16:$GH16,'Historical scenario - input'!$G16,'Historical scenario - input'!$E16,'Historical scenario - input'!$F16,20,TRUE,TRUE),"") -> 12.48608701 | E31: 16.11769495 | F31: 20.70423428 | G31: 26.4610237 | H31: 33.6345593 | I31: 42.49916562 | J31: 53.3500948 | K31: 66.49251156 | L31: 82.22609533 | M31: 100.8254069 | N31: 122.5166817 | O31: 147.4522768 | P31: 175.684552 | Q31: 207.1414251 | R31: 241.6061331 | S31: 278.7037781 | T31: 317.8969971 | U31: 358.4925432 | V31: 399.6597429 | W31: 440.4607435 | X31: =IFERROR(IF(OR(D31="",'Historical scenario - input'!$D16=""),"",D31/'Historical scenario - input'!$D16),"") -> 0.4904045999 | Y31: =IFERROR(IF(OR(E31="",'Historical scenario - input'!$D16=""),"",E31/'Historical scenario - input'!$D16),"") -> 0.6330399375 | Z31: =IFERROR(IF(OR(F31="",'Historical scenario - input'!$D16=""),"",F31/'Historical scenario - input'!$D16),"") -> 0.8131812406 | AA31: =IFERROR(IF(OR(G31="",'Historical scenario - input'!$D16=""),"",G31/'Historical scenario - input'!$D16),"") -> 1.039285385 | AB31: =IFERROR(IF(OR(H31="",'Historical scenario - input'!$D16=""),"",H31/'Historical scenario - input'!$D16),"") -> 1.32103377 | AC31: =IFERROR(IF(OR(I31="",'Historical scenario - input'!$D16=""),"",I31/'Historical scenario - input'!$D16),"") -> 1.669200791 | AD31: =IFERROR(IF(OR(J31="",'Historical scenario - input'!$D16=""),"",J31/'Historical scenario - input'!$D16),"") -> 2.095382794 | AE31: =IFERROR(IF(OR(K31="",'Historical scenario - input'!$D16=""),"",K31/'Historical scenario - input'!$D16),"") -> 2.611565457 | AF31: =IFERROR(IF(OR(L31="",'Historical scenario - input'!$D16=""),"",L31/'Historical scenario - input'!$D16),"") -> 3.229519011 | AG31: =IFERROR(IF(OR(M31="",'Historical scenario - input'!$D16=""),"",M31/'Historical scenario - input'!$D16),"") -> 3.960027131 | AH31: =IFERROR(IF(OR(N31="",'Historical scenario - input'!$D16=""),"",N31/'Historical scenario - input'!$D16),"") -> 4.811975457 | AI31: =IFERROR(IF(OR(O31="",'Historical scenario - input'!$D16=""),"",O31/'Historical scenario - input'!$D16),"") -> 5.791347981 | AJ31: =IFERROR(IF(OR(P31="",'Historical scenario - input'!$D16=""),"",P31/'Historical scenario - input'!$D16),"") -> 6.900201188 | AK31: =IFERROR(IF(OR(Q31="",'Historical scenario - input'!$D16=""),"",Q31/'Historical scenario - input'!$D16),"") -> 8.135703972 | AL31: =IFERROR(IF(OR(R31="",'Historical scenario - input'!$D16=""),"",R31/'Historical scenario - input'!$D16),"") -> 9.48934273 | AM31: =IFERROR(IF(OR(S31="",'Historical scenario - input'!$D16=""),"",S31/'Historical scenario - input'!$D16),"") -> 10.94639295 | AN31: =IFERROR(IF(OR(T31="",'Historical scenario - input'!$D16=""),"",T31/'Historical scenario - input'!$D16),"") -> 12.4857491 | AO31: =IFERROR(IF(OR(U31="",'Historical scenario - input'!$D16=""),"",U31/'Historical scenario - input'!$D16),"") -> 14.08018317 | AP31: =IFERROR(IF(OR(V31="",'Historical scenario - input'!$D16=""),"",V31/'Historical scenario - input'!$D16),"") -> 15.69706956 | AQ31: =IFERROR(IF(OR(W31="",'Historical scenario - input'!$D16=""),"",W31/'Historical scenario - input'!$D16),"") -> 17.29957308
A32: =IFERROR('Historical scenario - input'!A17,"") -> 2 | B32: =IFERROR('Historical scenario - input'!B17,"") -> POLES | C32: =IFERROR('Historical scenario - input'!C17,"") -> > 1 kv & < = 11 kv ; steel | D32: =IFERROR(repcalc('Historical scenario - input'!$CV17:$GH17,'Historical scenario - input'!$G17,'Historical scenario - input'!$E17,'Historical scenario - input'!$F17,20,TRUE,TRUE),"") -> 0.008217695716 | E32: 0.01165428106 | F32: 0.01633668813 | G32: 0.02263713184 | H32: 0.03100963936 | I32: 0.04199839394 | J32: 0.05624397152 | K32: 0.07448650146 | L32: 0.09756478202 | M32: 0.1264104759 | N32: 0.1620367127 | O32: 0.2055207339 | P32: 0.2579806179 | Q32: 0.320546585 | R32: 0.3943278597 | S32: 0.4803765008 | T32: 0.5796499405 | U32: 0.6929741365 | V32: 0.8210092081 | W32: 0.9642191758 | X32: =IFERROR(IF(OR(D32="",'Historical scenario - input'!$D17=""),"",D32/'Historical scenario - input'!$D17),"") -> 0.0005009071554 | Y32: =IFERROR(IF(OR(E32="",'Historical scenario - input'!$D17=""),"",E32/'Historical scenario - input'!$D17),"") -> 0.0007103831751 | Z32: =IFERROR(IF(OR(F32="",'Historical scenario - input'!$D17=""),"",F32/'Historical scenario - input'!$D17),"") -> 0.000995797881 | AA32: =IFERROR(IF(OR(G32="",'Historical scenario - input'!$D17=""),"",G32/'Historical scenario - input'!$D17),"") -> 0.001379839521 | AB32: =IFERROR(IF(OR(H32="",'Historical scenario - input'!$D17=""),"",H32/'Historical scenario - input'!$D17),"") -> 0.001890183183 | AC32: =IFERROR(IF(OR(I32="",'Historical scenario - input'!$D17=""),"",I32/'Historical scenario - input'!$D17),"") -> 0.002559999392 | AD32: =IFERROR(IF(OR(J32="",'Historical scenario - input'!$D17=""),"",J32/'Historical scenario - input'!$D17),"") -> 0.003428334262 | AE32: =IFERROR(IF(OR(K32="",'Historical scenario - input'!$D17=""),"",K32/'Historical scenario - input'!$D17),"") -> 0.004540302154 | AF32: =IFERROR(IF(OR(L32="",'Historical scenario - input'!$D17=""),"",L32/'Historical scenario - input'!$D17),"") -> 0.005947031762 | AG32: =IFERROR(IF(OR(M32="",'Historical scenario - input'!$D17=""),"",M32/'Historical scenario - input'!$D17),"") -> 0.007705312304 | AH32: =IFERROR(IF(OR(N32="",'Historical scenario - input'!$D17=""),"",N32/'Historical scenario - input'!$D17),"") -> 0.009876898786 | AI32: =IFERROR(IF(OR(O32="",'Historical scenario - input'!$D17=""),"",O32/'Historical scenario - input'!$D17),"") -> 0.01252745414 | AJ32: =IFERROR(IF(OR(P32="",'Historical scenario - input'!$D17=""),"",P32/'Historical scenario - input'!$D17),"") -> 0.01572513049 | AK32: =IFERROR(IF(OR(Q32="",'Historical scenario - input'!$D17=""),"",Q32/'Historical scenario - input'!$D17),"") -> 0.01953882008 | AL32: =IFERROR(IF(OR(R32="",'Historical scenario - input'!$D17=""),"",R32/'Historical scenario - input'!$D17),"") -> 0.02403613535 | AM32: =IFERROR(IF(OR(S32="",'Historical scenario - input'!$D17=""),"",S32/'Historical scenario - input'!$D17),"") -> 0.02928120423 | AN32: =IFERROR(IF(OR(T32="",'Historical scenario - input'!$D17=""),"",T32/'Historical scenario - input'!$D17),"") -> 0.0353323867 | AO32: =IFERROR(IF(OR(U32="",'Historical scenario - input'!$D17=""),"",U32/'Historical scenario - input'!$D17),"") -> 0.04224002877 | AP32: =IFERROR(IF(OR(V32="",'Historical scenario - input'!$D17=""),"",V32/'Historical scenario - input'!$D17),"") -> 0.05004436781 | AQ32: =IFERROR(IF(OR(W32="",'Historical scenario - input'!$D17=""),"",W32/'Historical scenario - input'!$D17),"") -> 0.05877368805
A33: =IFERROR('Historical scenario - input'!A18,"") -> 2 | B33: =IFERROR('Historical scenario - input'!B18,"") -> POLES | C33: =IFERROR('Historical scenario - input'!C18,"") -> > 1 kv & < = 11 kv ; wood | D33: =IFERROR(repcalc('Historical scenario - input'!$CV18:$GH18,'Historical scenario - input'!$G18,'Historical scenario - input'!$E18,'Historical scenario - input'!$F18,20,TRUE,TRUE),"") -> 431.7649656 | E33: 438.179499 | F33: 442.4103666 | G33: 444.8756117 | H33: 446.1036747 | I33: 446.7146662 | J33: 447.3970432 | K33: 448.8807409 | L33: 451.9079276 | M33: 457.2025945 | N33: 465.4401876 | O33: 477.2184487 | P33: 493.030569 | Q33: 513.2416946 | R33: 538.0697421 | S33: 567.5714038 | T33: 601.634115 | U33: 639.9746164 | V33: 682.1445537 | W33: 727.5432957 | X33: =IFERROR(IF(OR(D33="",'Historical scenario - input'!$D18=""),"",D33/'Historical scenario - input'!$D18),"") -> 68.48964958 | Y33: =IFERROR(IF(OR(E33="",'Historical scenario - input'!$D18=""),"",E33/'Historical scenario - input'!$D18),"") -> 69.5071688 | Z33: =IFERROR(IF(OR(F33="",'Historical scenario - input'!$D18=""),"",F33/'Historical scenario - input'!$D18),"") -> 70.1782993 | AA33: =IFERROR(IF(OR(G33="",'Historical scenario - input'!$D18=""),"",G33/'Historical scenario - input'!$D18),"") -> 70.56935413 | AB33: =IFERROR(IF(OR(H33="",'Historical scenario - input'!$D18=""),"",H33/'Historical scenario - input'!$D18),"") -> 70.76415826 | AC33: =IFERROR(IF(OR(I33="",'Historical scenario - input'!$D18=""),"",I33/'Historical scenario - input'!$D18),"") -> 70.86107811 | AD33: =IFERROR(IF(OR(J33="",'Historical scenario - input'!$D18=""),"",J33/'Historical scenario - input'!$D18),"") -> 70.96932164 | AE33: =IFERROR(IF(OR(K33="",'Historical scenario - input'!$D18=""),"",K33/'Historical scenario - input'!$D18),"") -> 71.20467639 | AF33: =IFERROR(IF(OR(L33="",'Historical scenario - input'!$D18=""),"",L33/'Historical scenario - input'!$D18),"") -> 71.68487041 | AG33: =IFERROR(IF(OR(M33="",'Historical scenario - input'!$D18=""),"",M33/'Historical scenario - input'!$D18),"") -> 72.52474837 | AH33: =IFERROR(IF(OR(N33="",'Historical scenario - input'!$D18=""),"",N33/'Historical scenario - input'!$D18),"") -> 73.83145437 | AI33: =IFERROR(IF(OR(O33="",'Historical scenario - input'!$D18=""),"",O33/'Historical scenario - input'!$D18),"") -> 75.69980645 | AJ33: =IFERROR(IF(OR(P33="",'Historical scenario - input'!$D18=""),"",P33/'Historical scenario - input'!$D18),"") -> 78.20803817 | AK33: =IFERROR(IF(OR(Q33="",'Historical scenario - input'!$D18=""),"",Q33/'Historical scenario - input'!$D18),"") -> 81.41407159 | AL33: =IFERROR(IF(OR(R33="",'Historical scenario - input'!$D18=""),"",R33/'Historical scenario - input'!$D18),"") -> 85.35247422 | AM33: =IFERROR(IF(OR(S33="",'Historical scenario - input'!$D18=""),"",S33/'Historical scenario - input'!$D18),"") -> 90.03223898 | AN33: =IFERROR(IF(OR(T33="",'Historical scenario - input'!$D18=""),"",T33/'Historical scenario - input'!$D18),"") -> 95.43551006 | AO33: =IFERROR(IF(OR(U33="",'Historical scenario - input'!$D18=""),"",U33/'Historical scenario - input'!$D18),"") -> 101.5173549 | AP33: =IFERROR(IF(OR(V33="",'Historical scenario - input'!$D18=""),"",V33/'Historical scenario - input'!$D18),"") -> 108.2066522 | AQ33: =IFERROR(IF(OR(W33="",'Historical scenario - input'!$D18=""),"",W33/'Historical scenario - input'!$D18),"") -> 115.4081256
A34: =IFERROR('Historical scenario - input'!A19,"") -> 2 | B34: =IFERROR('Historical scenario - input'!B19,"") -> POLES | C34: =IFERROR('Historical scenario - input'!C19,"") -> > 22 kv & < = 66 kv ; concrete | D34: =IFERROR(repcalc('Historical scenario - input'!$CV19:$GH19,'Historical scenario - input'!$G19,'Historical scenario - input'!$E19,'Historical scenario - input'!$F19,20,TRUE,TRUE),"") -> 2.01152958 | E34: 2.649873979 | F34: 3.467299626 | G34: 4.504054515 | H34: 5.804886687 | I34: 7.417612153 | J34: 9.390850162 | K34: 11.7708789 | L34: 14.59766665 | M34: 17.90026118 | N34: 21.69186037 | O34: 25.96501947 | P34: 30.6875512 | Q34: 35.79971969 | R34: 41.21329594 | S34: 46.81292182 | T34: 52.46002124 | U34: 57.99922033 | V34: 63.26692506 | W34: 68.10139926 | X34: =IFERROR(IF(OR(D34="",'Historical scenario - input'!$D19=""),"",D34/'Historical scenario - input'!$D19),"") -> 0.07900500435 | Y34: =IFERROR(IF(OR(E34="",'Historical scenario - input'!$D19=""),"",E34/'Historical scenario - input'!$D19),"") -> 0.1040766725 | Z34: =IFERROR(IF(OR(F34="",'Historical scenario - input'!$D19=""),"",F34/'Historical scenario - input'!$D19),"") -> 0.1361819507 | AA34: =IFERROR(IF(OR(G34="",'Historical scenario - input'!$D19=""),"",G34/'Historical scenario - input'!$D19),"") -> 0.1769016226 | AB34: =IFERROR(IF(OR(H34="",'Historical scenario - input'!$D19=""),"",H34/'Historical scenario - input'!$D19),"") -> 0.227993216 | AC34: =IFERROR(IF(OR(I34="",'Historical scenario - input'!$D19=""),"",I34/'Historical scenario - input'!$D19),"") -> 0.2913347566 | AD34: =IFERROR(IF(OR(J34="",'Historical scenario - input'!$D19=""),"",J34/'Historical scenario - input'!$D19),"") -> 0.368835818 | AE34: =IFERROR(IF(OR(K34="",'Historical scenario - input'!$D19=""),"",K34/'Historical scenario - input'!$D19),"") -> 0.4623140263 | AF34: =IFERROR(IF(OR(L34="",'Historical scenario - input'!$D19=""),"",L34/'Historical scenario - input'!$D19),"") -> 0.5733391787 | AG34: =IFERROR(IF(OR(M34="",'Historical scenario - input'!$D19=""),"",M34/'Historical scenario - input'!$D19),"") -> 0.7030521582 | AH34: =IFERROR(IF(OR(N34="",'Historical scenario - input'!$D19=""),"",N34/'Historical scenario - input'!$D19),"") -> 0.851971326 | AI34: =IFERROR(IF(OR(O34="",'Historical scenario - input'!$D19=""),"",O34/'Historical scenario - input'!$D19),"") -> 1.019804281 | AJ34: =IFERROR(IF(OR(P34="",'Historical scenario - input'!$D19=""),"",P34/'Historical scenario - input'!$D19),"") -> 1.205286833 | AK34: =IFERROR(IF(OR(Q34="",'Historical scenario - input'!$D19=""),"",Q34/'Historical scenario - input'!$D19),"") -> 1.406072791 | AL34: =IFERROR(IF(OR(R34="",'Historical scenario - input'!$D19=""),"",R34/'Historical scenario - input'!$D19),"") -> 1.618696866 | AM34: =IFERROR(IF(OR(S34="",'Historical scenario - input'!$D19=""),"",S34/'Historical scenario - input'!$D19),"") -> 1.838628241 | AN34: =IFERROR(IF(OR(T34="",'Historical scenario - input'!$D19=""),"",T34/'Historical scenario - input'!$D19),"") -> 2.060424191 | AO34: =IFERROR(IF(OR(U34="",'Historical scenario - input'!$D19=""),"",U34/'Historical scenario - input'!$D19),"") -> 2.277982238 | AP34: =IFERROR(IF(OR(V34="",'Historical scenario - input'!$D19=""),"",V34/'Historical scenario - input'!$D19),"") -> 2.484877051 | AQ34: =IFERROR(IF(OR(W34="",'Historical scenario - input'!$D19=""),"",W34/'Historical scenario - input'!$D19),"") -> 2.674756265
A35: =IFERROR('Historical scenario - input'!A20,"") -> 2 | B35: =IFERROR('Historical scenario - input'!B20,"") -> POLES | C35: =IFERROR('Historical scenario - input'!C20,"") -> > 22 kv & < = 66 kv ; steel | D35: =IFERROR(repcalc('Historical scenario - input'!$CV20:$GH20,'Historical scenario - input'!$G20,'Historical scenario - input'!$E20,'Historical scenario - input'!$F20,20,TRUE,TRUE),"") -> 0.001362285903 | E35: 0.002122703985 | F35: 0.003268788437 | G35: 0.00497477925 | H35: 0.00748280077 | I35: 0.01112428197 | J35: 0.0163460054 | K35: 0.0237409383 | L35: 0.03408362836 | M35: 0.04836942843 | N35: 0.06785614609 | O35: 0.09410590927 | P35: 0.1290241376 | Q35: 0.1748915785 | R35: 0.2343845081 | S35: 0.3105775363 | T35: 0.4069231445 | U35: 0.527202286 | V35: 0.6754412364 | W35: 0.8557915149 | X35: =IFERROR(IF(OR(D35="",'Historical scenario - input'!$D20=""),"",D35/'Historical scenario - input'!$D20),"") -> 8.303772494e-05 | Y35: =IFERROR(IF(OR(E35="",'Historical scenario - input'!$D20=""),"",E35/'Historical scenario - input'!$D20),"") -> 0.000129388779 | Z35: =IFERROR(IF(OR(F35="",'Historical scenario - input'!$D20=""),"",F35/'Historical scenario - input'!$D20),"") -> 0.0001992480099 | AA35: =IFERROR(IF(OR(G35="",'Historical scenario - input'!$D20=""),"",G35/'Historical scenario - input'!$D20),"") -> 0.0003032361636 | AB35: =IFERROR(IF(OR(H35="",'Historical scenario - input'!$D20=""),"",H35/'Historical scenario - input'!$D20),"") -> 0.0004561118564 | AC35: =IFERROR(IF(OR(I35="",'Historical scenario - input'!$D20=""),"",I35/'Historical scenario - input'!$D20),"") -> 0.000678077241 | AD35: =IFERROR(IF(OR(J35="",'Historical scenario - input'!$D20=""),"",J35/'Historical scenario - input'!$D20),"") -> 0.0009963658121 | AE35: =IFERROR(IF(OR(K35="",'Historical scenario - input'!$D20=""),"",K35/'Historical scenario - input'!$D20),"") -> 0.001447121709 | AF35: =IFERROR(IF(OR(L35="",'Historical scenario - input'!$D20=""),"",L35/'Historical scenario - input'!$D20),"") -> 0.002077557252 | AG35: =IFERROR(IF(OR(M35="",'Historical scenario - input'!$D20=""),"",M35/'Historical scenario - input'!$D20),"") -> 0.002948343872 | AH35: =IFERROR(IF(OR(N35="",'Historical scenario - input'!$D20=""),"",N35/'Historical scenario - input'!$D20),"") -> 0.004136150849 | AI35: =IFERROR(IF(OR(O35="",'Historical scenario - input'!$D20=""),"",O35/'Historical scenario - input'!$D20),"") -> 0.00573619722 | AJ35: =IFERROR(IF(OR(P35="",'Historical scenario - input'!$D20=""),"",P35/'Historical scenario - input'!$D20),"") -> 0.007864627259 | AK35: =IFERROR(IF(OR(Q35="",'Historical scenario - input'!$D20=""),"",Q35/'Historical scenario - input'!$D20),"") -> 0.01066046324 | AL35: =IFERROR(IF(OR(R35="",'Historical scenario - input'!$D20=""),"",R35/'Historical scenario - input'!$D20),"") -> 0.01428683676 | AM35: =IFERROR(IF(OR(S35="",'Historical scenario - input'!$D20=""),"",S35/'Historical scenario - input'!$D20),"") -> 0.01893115974 | AN35: =IFERROR(IF(OR(T35="",'Historical scenario - input'!$D20=""),"",T35/'Historical scenario - input'!$D20),"") -> 0.02480387713 | AO35: =IFERROR(IF(OR(U35="",'Historical scenario - input'!$D20=""),"",U35/'Historical scenario - input'!$D20),"") -> 0.03213545579 | AP35: =IFERROR(IF(OR(V35="",'Historical scenario - input'!$D20=""),"",V35/'Historical scenario - input'!$D20),"") -> 0.04117131615 | AQ35: =IFERROR(IF(OR(W35="",'Historical scenario - input'!$D20=""),"",W35/'Historical scenario - input'!$D20),"") -> 0.0521645128
A36: =IFERROR('Historical scenario - input'!A21,"") -> 2 | B36: =IFERROR('Historical scenario - input'!B21,"") -> POLES | C36: =IFERROR('Historical scenario - input'!C21,"") -> > 22 kv & < = 66 kv ; wood | D36: =IFERROR(repcalc('Historical scenario - input'!$CV21:$GH21,'Historical scenario - input'!$G21,'Historical scenario - input'!$E21,'Historical scenario - input'!$F21,20,TRUE,TRUE),"") -> 99.84942629 | E36: 102.6016356 | F36: 106.5077654 | G36: 111.8256746 | H36: 118.7854974 | I36: 127.5758912 | J36: 138.3304378 | K36: 151.1148622 | L36: 165.9158637 | M36: 182.632466 | N36: 201.0708457 | O36: 220.9435632 | P36: 241.8739789 | Q36: 263.4063635 | R36: 285.0218313 | S36: 306.1597374 | T36: 326.243651 | U36: 344.7104905 | V36: 361.0409521 | W36: 374.7890482 | X36: =IFERROR(IF(OR(D36="",'Historical scenario - input'!$D21=""),"",D36/'Historical scenario - input'!$D21),"") -> 12.60887523 | Y36: =IFERROR(IF(OR(E36="",'Historical scenario - input'!$D21=""),"",E36/'Historical scenario - input'!$D21),"") -> 12.95642119 | Z36: =IFERROR(IF(OR(F36="",'Historical scenario - input'!$D21=""),"",F36/'Historical scenario - input'!$D21),"") -> 13.44968294 | AA36: =IFERROR(IF(OR(G36="",'Historical scenario - input'!$D21=""),"",G36/'Historical scenario - input'!$D21),"") -> 14.12122264 | AB36: =IFERROR(IF(OR(H36="",'Historical scenario - input'!$D21=""),"",H36/'Historical scenario - input'!$D21),"") -> 15.00010138 | AC36: =IFERROR(IF(OR(I36="",'Historical scenario - input'!$D21=""),"",I36/'Historical scenario - input'!$D21),"") -> 16.11014259 | AD36: =IFERROR(IF(OR(J36="",'Historical scenario - input'!$D21=""),"",J36/'Historical scenario - input'!$D21),"") -> 17.46821485 | AE36: =IFERROR(IF(OR(K36="",'Historical scenario - input'!$D21=""),"",K36/'Historical scenario - input'!$D21),"") -> 19.08261784 | AF36: =IFERROR(IF(OR(L36="",'Historical scenario - input'!$D21=""),"",L36/'Historical scenario - input'!$D21),"") -> 20.95167195 | AG36: =IFERROR(IF(OR(M36="",'Historical scenario - input'!$D21=""),"",M36/'Historical scenario - input'!$D21),"") -> 23.06262602 | AH36: =IFERROR(IF(OR(N36="",'Historical scenario - input'!$D21=""),"",N36/'Historical scenario - input'!$D21),"") -> 25.39100424 | AI36: =IFERROR(IF(OR(O36="",'Historical scenario - input'!$D21=""),"",O36/'Historical scenario - input'!$D21),"") -> 27.90050906 | AJ36: =IFERROR(IF(OR(P36="",'Historical scenario - input'!$D21=""),"",P36/'Historical scenario - input'!$D21),"") -> 30.54357882 | AK36: =IFERROR(IF(OR(Q36="",'Historical scenario - input'!$D21=""),"",Q36/'Historical scenario - input'!$D21),"") -> 33.26266455 | AL36: =IFERROR(IF(OR(R36="",'Historical scenario - input'!$D21=""),"",R36/'Historical scenario - input'!$D21),"") -> 35.99224195 | AM36: =IFERROR(IF(OR(S36="",'Historical scenario - input'!$D21=""),"",S36/'Historical scenario - input'!$D21),"") -> 38.66151338 | AN36: =IFERROR(IF(OR(T36="",'Historical scenario - input'!$D21=""),"",T36/'Historical scenario - input'!$D21),"") -> 41.1976878 | AO36: =IFERROR(IF(OR(U36="",'Historical scenario - input'!$D21=""),"",U36/'Historical scenario - input'!$D21),"") -> 43.52965989 | AP36: =IFERROR(IF(OR(V36="",'Historical scenario - input'!$D21=""),"",V36/'Historical scenario - input'!$D21),"") -> 45.59185253 | AQ36: =IFERROR(IF(OR(W36="",'Historical scenario - input'!$D21=""),"",W36/'Historical scenario - input'!$D21),"") -> 47.32794693
